Workbook

Sheet Cover
C2: CitiPower
C3: Revised regulatory proposal 2026-31
C5: Risk based HV underground cables
C6: Model number: | D6: 3.4.01
C8: 2025-12-01
A40: =_xlfn.SHEETS() -> 17
A41: 2025-11-13

Sheet Summary
A1: =bus -> CitiPower
A2: =proj -> HV cable replacement
A3: SUMMARY
A5: RESULTS
G7: PV of costs | H7: PV of benefits | I7: NPV
C8: Option | G8: =output_dollars -> 2026-06-30 | H8: =output_dollars -> 2026-06-30 | I8: =output_dollars -> 2026-06-30
C9: =options -> Option 1 (base case) | D9: =INDEX(Assumptions!$E$14:$E$18, MATCH(C9, Assumptions!$C$14:$C$18,0)) -> No change to existing practices | G9: =IF(Data!$C9, "", INDEX(Consol!$F$15:$F$82, MATCH($C9&G$7, Consol!$D$15:$D$82,0))/mill_conv) -> 0 | H9: =IF(Data!$C9, "", INDEX(Consol!$F$15:$F$82, MATCH($C9&H$7, Consol!$D$15:$D$82,0))/mill_conv) -> 0 | I9: =IF(Data!$C9, "", INDEX(Consol!$F$15:$F$82, MATCH($C9&I$7, Consol!$D$15:$D$82,0))/mill_conv) -> 0
C10: Option 2 | D10: =INDEX(Assumptions!$E$14:$E$18, MATCH(C10, Assumptions!$C$14:$C$18,0)) -> Replace highest 5 delta risk cable sections | G10: =IF(Data!$C10, "", INDEX(Consol!$F$15:$F$82, MATCH($C10&G$7, Consol!$D$15:$D$82,0))/mill_conv) -> -1.876457656 | H10: =IF(Data!$C10, "", INDEX(Consol!$F$15:$F$82, MATCH($C10&H$7, Consol!$D$15:$D$82,0))/mill_conv) -> 2.655669816 | I10: =IF(Data!$C10, "", INDEX(Consol!$F$15:$F$82, MATCH($C10&I$7, Consol!$D$15:$D$82,0))/mill_conv) -> 0.7792121596
C11: Option 3 | D11: =INDEX(Assumptions!$E$14:$E$18, MATCH(C11, Assumptions!$C$14:$C$18,0)) -> Replace highest 10 delta risk cable sections | G11: =IF(Data!$C11, "", INDEX(Consol!$F$15:$F$82, MATCH($C11&G$7, Consol!$D$15:$D$82,0))/mill_conv) -> -3.735214325 | H11: =IF(Data!$C11, "", INDEX(Consol!$F$15:$F$82, MATCH($C11&H$7, Consol!$D$15:$D$82,0))/mill_conv) -> 4.862589529 | I11: =IF(Data!$C11, "", INDEX(Consol!$F$15:$F$82, MATCH($C11&I$7, Consol!$D$15:$D$82,0))/mill_conv) -> 1.127375204
C12: Option 4 | D12: =INDEX(Assumptions!$E$14:$E$18, MATCH(C12, Assumptions!$C$14:$C$18,0)) -> Monitor highest delta risk cable sections and replace those with high partial discharge | G12: =IF(Data!$C12, "", INDEX(Consol!$F$15:$F$82, MATCH($C12&G$7, Consol!$D$15:$D$82,0))/mill_conv) -> -6.001603615 | H12: =IF(Data!$C12, "", INDEX(Consol!$F$15:$F$82, MATCH($C12&H$7, Consol!$D$15:$D$82,0))/mill_conv) -> 3.27311363 | I12: =IF(Data!$C12, "", INDEX(Consol!$F$15:$F$82, MATCH($C12&I$7, Consol!$D$15:$D$82,0))/mill_conv) -> -2.728489984
C13: Option 5 | D13: =INDEX(Assumptions!$E$14:$E$18, MATCH(C13, Assumptions!$C$14:$C$18,0)) -> Replace highest 5 delta risk cable sections and monitor further 10 | G13: =IF(Data!$C13, "", INDEX(Consol!$F$15:$F$82, MATCH($C13&G$7, Consol!$D$15:$D$82,0))/mill_conv) -> -3.908971299 | H13: =IF(Data!$C13, "", INDEX(Consol!$F$15:$F$82, MATCH($C13&H$7, Consol!$D$15:$D$82,0))/mill_conv) -> 3.669365025 | I13: =IF(Data!$C13, "", INDEX(Consol!$F$15:$F$82, MATCH($C13&I$7, Consol!$D$15:$D$82,0))/mill_conv) -> -0.2396062738
G16: NPV
C17: Preferred option: | G17: =output_dollars -> 2026-06-30
C18: =INDEX($C$9:$C$13,MATCH(G18, $I$9:$I$13,0)) -> Option 3 | D18: =INDEX($D$9:$D$13,MATCH(G18, $I$9:$I$13,0)) -> Replace highest 10 delta risk cable sections | G18: =_xlfn.MAXIFS(I9:I13, IF(compliance, Data!$F$9:$F$13, Data!$C$9:$C$13),FALSE) -> 1.127375204
A23: PREFERRED OPTION
C25: Preferred Option
C26: =C18 -> Option 3
C29: Expenditure forecast | D29: =output_dollars -> 2026-06-30 | F29: =Assumptions!K89 -> 2026-27 | G29: =Assumptions!L89 -> 2027-28 | H29: =Assumptions!M89 -> 2028-29 | I29: =Assumptions!N89 -> 2029-30 | J29: =Assumptions!O89 -> 2030-31 | L29: Total
C30: Capital expenditure | F30: =-INDEX(Consol!I$15:I$82,MATCH($C$26&$C30,Consol!$D$15:$D$82,0))/mill_conv -> 1.600957634 | G30: =-INDEX(Consol!J$15:J$82,MATCH($C$26&$C30,Consol!$D$15:$D$82,0))/mill_conv -> 1.600957634 | H30: =-INDEX(Consol!K$15:K$82,MATCH($C$26&$C30,Consol!$D$15:$D$82,0))/mill_conv -> 1.600957634 | I30: =-INDEX(Consol!L$15:L$82,MATCH($C$26&$C30,Consol!$D$15:$D$82,0))/mill_conv -> 1.600957634 | J30: =-INDEX(Consol!M$15:M$82,MATCH($C$26&$C30,Consol!$D$15:$D$82,0))/mill_conv -> 1.600957634 | L30: =SUM(F30:J30) -> 8.00478817
C31: Less adjustment for overlap with faults/corrective program | F31: =-Overlap_adjustment!H23/10^6 -> 0 | G31: =-Overlap_adjustment!I23/10^6 -> -0.0003314753911 | H31: =-Overlap_adjustment!J23/10^6 -> -0.001100341862 | I31: =-Overlap_adjustment!K23/10^6 -> -0.002438010582 | J31: =-Overlap_adjustment!L23/10^6 -> -0.004507355772 | L31: =SUM(F31:J31) -> -0.008377183607
C32: Total capital expenditure | F32: =SUM(F30:F31) -> 1.600957634 | G32: 1.600626159 | H32: 1.599857292 | I32: 1.598519623 | J32: 1.596450278 | K32: 0 | L32: =SUM(F32:J32) -> 7.996410986
A35: CHART
C37: Preferred option capex compared with risk ($M, 2026)
A63: SENSITIVITIES
C66: Sensitivity | D66: =output_dollars -> 2026-06-30 | F66: =Sensitivity_calcs!C89 -> Option 1 (base case) | G66: =Sensitivity_calcs!D89 -> Option 2 | H66: =Sensitivity_calcs!E89 -> Option 3 | I66: =Sensitivity_calcs!F89 -> Option 4 | J66: =Sensitivity_calcs!G89 -> Option 5 | L66: Preferred option
C67: =Sensitivity_calcs!B90 -> None | F67: =Sensitivity_calcs!C90 -> 0 | G67: =Sensitivity_calcs!D90 -> 0.7792121596 | H67: =Sensitivity_calcs!E90 -> 1.127375204 | I67: =Sensitivity_calcs!F90 -> -2.728489984 | J67: =Sensitivity_calcs!G90 -> -0.2396062738 | L67: =Sensitivity_calcs!K90 -> Option 3
C68: =Sensitivity_calcs!B91 -> Capex 10% higher | F68: =Sensitivity_calcs!C91 -> 0 | G68: =Sensitivity_calcs!D91 -> 0.591566394 | H68: =Sensitivity_calcs!E91 -> 0.7538537718 | I68: =Sensitivity_calcs!F91 -> -3.328650346 | J68: =Sensitivity_calcs!G91 -> -0.6305034037 | L68: =Sensitivity_calcs!K91 -> Option 3
C69: =Sensitivity_calcs!B92 -> Capex 10% lower | F69: =Sensitivity_calcs!C92 -> 0 | G69: =Sensitivity_calcs!D92 -> 0.9668579252 | H69: =Sensitivity_calcs!E92 -> 1.500896637 | I69: =Sensitivity_calcs!F92 -> -2.128329623 | J69: =Sensitivity_calcs!G92 -> 0.151290856 | L69: =Sensitivity_calcs!K92 -> Option 3
C70: =Sensitivity_calcs!B93 -> Total benefits 10% higher | F70: =Sensitivity_calcs!C93 -> 0 | G70: =Sensitivity_calcs!D93 -> 1.044779141 | H70: =Sensitivity_calcs!E93 -> 1.613634157 | I70: =Sensitivity_calcs!F93 -> -2.401178621 | J70: =Sensitivity_calcs!G93 -> 0.1273302287 | L70: =Sensitivity_calcs!K93 -> Option 3
C71: =Sensitivity_calcs!B94 -> Total benefits 10% lower | F71: =Sensitivity_calcs!C94 -> 0 | G71: =Sensitivity_calcs!D94 -> 0.513645178 | H71: =Sensitivity_calcs!E94 -> 0.6411162514 | I71: =Sensitivity_calcs!F94 -> -3.055801347 | J71: =Sensitivity_calcs!G94 -> -0.6065427763 | L71: =Sensitivity_calcs!K94 -> Option 3
C72: =Sensitivity_calcs!B95 -> Capex 10% higher & total benefits 10% lower | F72: =Sensitivity_calcs!C95 -> 0 | G72: =Sensitivity_calcs!D95 -> 0.3259994124 | H72: =Sensitivity_calcs!E95 -> 0.2675948189 | I72: =Sensitivity_calcs!F95 -> -3.655961709 | J72: =Sensitivity_calcs!G95 -> -0.9974399062 | L72: =Sensitivity_calcs!K95 -> Option 2
C73: =Sensitivity_calcs!B96 -> 0 | F73: =Sensitivity_calcs!C96 ->  | G73: =Sensitivity_calcs!D96 ->  | H73: =Sensitivity_calcs!E96 ->  | I73: =Sensitivity_calcs!F96 ->  | J73: =Sensitivity_calcs!G96 ->  | L73: =Sensitivity_calcs!K96 -> 
C74: =Sensitivity_calcs!B97 -> 0 | F74: =Sensitivity_calcs!C97 ->  | G74: =Sensitivity_calcs!D97 ->  | H74: =Sensitivity_calcs!E97 ->  | I74: =Sensitivity_calcs!F97 ->  | J74: =Sensitivity_calcs!G97 ->  | K74: =IF(C74=0,0, INDEX($F$66:$J$66, MATCH(MAX($F74:$I74),$F74:$I74,0))) -> 0 | L74: =Sensitivity_calcs!K97 -> 
D75: =Sensitivity_calcs!B98 -> 0 | F75: =Sensitivity_calcs!C98 ->  | G75: =Sensitivity_calcs!D98 ->  | H75: =Sensitivity_calcs!E98 ->  | I75: =Sensitivity_calcs!F98 ->  | J75: =Sensitivity_calcs!G98 ->  | L75: =Sensitivity_calcs!K98 -> 
D76: =Sensitivity_calcs!B99 -> 0

Sheet Assumptions
A1: =bus -> CitiPower
A2: =proj -> HV cable replacement
A4: Project
C6: Business: | E6: CitiPower
C8: Descripton: | E8: HV cable replacement
C10: Date of cost inputs: | E10: December | G10: 2023
C13: Option | E13: Description
C14: =options -> Option 1 (base case) | E14: No change to existing practices
C15: Option 2 | E15: Replace highest 5 delta risk cable sections
C16: Option 3 | E16: Replace highest 10 delta risk cable sections
C17: Option 4 | E17: Monitor highest delta risk cable sections and replace those with high partial discharge
C18: Option 5 | E18: Replace highest 5 delta risk cable sections and monitor further 10
C20: Compliance project | E20: No
C22: Expenditure starts | E22: 2026-27 | F22: [start]
A25: Timing & WACC
C27: Input dollars | G27: =EOMONTH(DATE(Assumptions!$G$10,INDEX(Data!$K$107:$K$108, MATCH(Assumptions!$E$10, Data!$J$107:$J$108,0)), 1),0) -> 2023-12-31 | H27: [input_dollars]
C28: Pre-tax real WACC | G28: 0.035 | H28: [real_disc]
C29: VCR date | G29: 2024-12-31 | H29: [vcr_date]
C31: Analysis period (years) | G31: 20 | H31: [years]\
C33: Output dollars | G33: 2026-06-30 | H33: [output_dollars]
C34: Other benefits date | G34: 2024-12-31 | H34: [custval_date]
C35: Value of CO2 reductions input date | G35: 2023-06-30
A39: VCR
C41: Enter ZSS code >> | D41: eg. AR | E41: Network average | G41: Network average | H41: 39123.64248 | I41: 2024 VCR ($/MWh)
A45: Risks
B48: SAFETY
C50: Value of statistical life | G50: 5400000 | H50: 2023-06-30
C52: Value of injury | G52: 0 | H52: =input_dollars -> 2023-12-31
C54: =Data!A83 -> Disproportionate factors applied to various bushfire and other risk valuations
C55: =Data!B85 -> Harm to property from network | G55: =Data!F85 -> 1
C56: =Data!B86 -> Harm to property from bushfire | G56: =Data!F86 -> 1
C57: =Data!B87 -> Harm to environment | G57: =Data!F87 -> 1
C58: =Data!B88 -> Safety - Public trespass | G58: =Data!F88 -> 1
C59: =Data!B89 -> Safety - Single fatality or serious injury ^ | G59: =Data!F89 -> 3
C60: =Data!B90 -> Safety from bushfire in HBRA | G60: =Data!F90 -> 3
C61: =Data!B91 -> Safety - Multiple fatality or serious injury ^ | G61: =Data!F91 -> 6
C62: =Data!B92 -> Safety from bushfire (REFCL declared areas) | G62: =Data!F92 -> 6
C63: =Data!B93 -> Safety from bushfire (electric line construction areas) | G63: =Data!F93 -> 10
C66: ^ Public or employee
C69: Incident type | G69: Value | H69: Probability | I69: DF selected | J69: Description/comment
C70: Safety (fatality) | G70: =G50*INDEX(hy_escalation, MATCH(input_dollars,hy_dates,0))/INDEX(hy_escalation, MATCH(H50,hy_dates,0)) -> 5607473.52 | H70: 0 | I70: 0 | J70: 0
C71: Safety (injury) | G71: =G52*INDEX(hy_escalation, MATCH(input_dollars,hy_dates,0))/INDEX(hy_escalation, MATCH(H52,hy_dates,0)) -> 0 | H71: 0 | I71: 0 | J71: 0
B77: UNPLANNED REPLACEMENT/REPAIR
C78: Major failure (replace) | G78: 0 | H78: =input_dollars -> 2023-12-31
C79: Minor failure (repair) | G79: 0 | H79: =input_dollars -> 2023-12-31
C81: Premium for failure | G81: 0.2
A87: Other benefits
B89: ENVIRONMENTAL | K89: 2026-27 | L89: 2027-28 | M89: 2028-29 | N89: 2029-30 | O89: 2030-31 | P89: 2031-32
C90: Value of CO2 reductions | H90: =G35 -> 2023-06-30 | I90: $/kWh | K90: 0.0247304868 | L90: 0.02234074009 | M90: 0.02019632912 | N90: 0.01806294208 | O90: 0.01591339762 | P90: 0.01371506943
B93: CUSTOMER VALUE | G93: Value
C94: =Data!B60 -> Reliability in worst-served areas | G94: 151432.8174 | H94: =custval_date -> 2024-12-31 | I94: per MWh
C95: =Data!B61 -> Network resilience | G95: 24590 | H95: 2024-12-31 | I95: per MWh
C96: =Data!B62 -> Enabling solar exports | G96: 88.35771951 | H96: 2024-12-31 | I96: per MWh
C97: =Data!B63 -> Aesthetics | G97: 0 | H97: 2024-12-31 | I97: per customer
C98: =Data!B64 -> Customer value of time - residential | G98: 0.3518133654 | H98: 2024-12-31 | I98: per customer minute
C99: =Data!B65 -> Customer value of time - business | G99: 0.3518133654 | H99: 2024-12-31 | I99: per customer minute
C100: =Data!B66 -> Communication | G100: 0 | H100: 2024-12-31 | I100: per customer
C101: =Data!B67 -> Information accessibility | G101: 0 | H101: 2024-12-31 | I101: per customer
A106: Sensitivities
G110: Capex | H110: Total benefits
B111: 1 | C111: =IF(G111=0, "", G$110&" "&ABS($G111)*100&"%"&IF($G111>0, " higher", " lower"))&IF(AND(G111<>0, H111<>0), " & ", "")&IF(H111=0, "", H$110&" "&ABS($H111)*100&"%"&IF($H111>0, " higher", " lower")) -> Capex 10% higher | G111: 0.1 | H111: 0
B112: 2 | C112: =IF(G112=0, "", G$110&" "&ABS($G112)*100&"%"&IF($G112>0, " higher", " lower"))&IF(AND(G112<>0, H112<>0), " & ", "")&IF(H112=0, "", H$110&" "&ABS($H112)*100&"%"&IF($H112>0, " higher", " lower")) -> Capex 10% lower | G112: -0.1 | H112: 0
B113: 3 | C113: =IF(G113=0, "", G$110&" "&ABS($G113)*100&"%"&IF($G113>0, " higher", " lower"))&IF(AND(G113<>0, H113<>0), " & ", "")&IF(H113=0, "", H$110&" "&ABS($H113)*100&"%"&IF($H113>0, " higher", " lower")) -> Total benefits 10% higher | G113: 0 | H113: 0.1
B114: 4 | C114: =IF(G114=0, "", G$110&" "&ABS($G114)*100&"%"&IF($G114>0, " higher", " lower"))&IF(AND(G114<>0, H114<>0), " & ", "")&IF(H114=0, "", H$110&" "&ABS($H114)*100&"%"&IF($H114>0, " higher", " lower")) -> Total benefits 10% lower | G114: 0 | H114: -0.1
B115: 5 | C115: =IF(G115=0, "", G$110&" "&ABS($G115)*100&"%"&IF($G115>0, " higher", " lower"))&IF(AND(G115<>0, H115<>0), " & ", "")&IF(H115=0, "", LOWER(H$110)&" "&ABS($H115)*100&"%"&IF($H115>0, " higher", " lower")) -> Capex 10% higher & total benefits 10% lower | G115: 0.1 | H115: -0.1

Sheet Option1 (base case)
A1: =bus -> CitiPower
A2: =proj -> HV cable replacement
A3: OPTION 1 (base case)
A6: Count | H6: 0 | I6: =H6+1 -> 1 | J6: 2 | K6: 3 | L6: 4 | M6: 5 | N6: 6 | O6: 7 | P6: 8 | Q6: 9 | R6: 10 | S6: 11 | T6: 12 | U6: 13 | V6: 14 | W6: 15 | X6: 16 | Y6: 17 | Z6: 18 | AA6: 19 | AB6: 20 | AC6: 21 | AD6: 22 | AE6: 23 | AF6: 24 | AG6: 25
A7: Value of CO2 reductions | G7: $/MWh | I7: =IF(ISBLANK(Assumptions!K90), H7,Assumptions!K90*thous_conv) -> 24.7304868 | J7: =IF(ISBLANK(Assumptions!L90), I7,Assumptions!L90*thous_conv) -> 22.34074009 | K7: =IF(ISBLANK(Assumptions!M90), J7,Assumptions!M90*thous_conv) -> 20.19632912 | L7: =IF(ISBLANK(Assumptions!N90), K7,Assumptions!N90*thous_conv) -> 18.06294208 | M7: =IF(ISBLANK(Assumptions!O90), L7,Assumptions!O90*thous_conv) -> 15.91339762 | N7: =IF(ISBLANK(Assumptions!P90), M7,Assumptions!P90*thous_conv) -> 13.71506943 | O7: =IF(ISBLANK(Assumptions!Q90), N7,Assumptions!Q90*thous_conv) -> 13.71506943 | P7: =IF(ISBLANK(Assumptions!R90), O7,Assumptions!R90*thous_conv) -> 13.71506943 | Q7: =IF(ISBLANK(Assumptions!S90), P7,Assumptions!S90*thous_conv) -> 13.71506943 | R7: =IF(ISBLANK(Assumptions!T90), Q7,Assumptions!T90*thous_conv) -> 13.71506943 | S7: =IF(ISBLANK(Assumptions!U90), R7,Assumptions!U90*thous_conv) -> 13.71506943 | T7: =IF(ISBLANK(Assumptions!V90), S7,Assumptions!V90*thous_conv) -> 13.71506943 | U7: =IF(ISBLANK(Assumptions!W90), T7,Assumptions!W90*thous_conv) -> 13.71506943 | V7: =IF(ISBLANK(Assumptions!X90), U7,Assumptions!X90*thous_conv) -> 13.71506943 | W7: =IF(ISBLANK(Assumptions!Y90), V7,Assumptions!Y90*thous_conv) -> 13.71506943 | X7: =IF(ISBLANK(Assumptions!Z90), W7,Assumptions!Z90*thous_conv) -> 13.71506943 | Y7: =IF(ISBLANK(Assumptions!AA90), X7,Assumptions!AA90*thous_conv) -> 13.71506943 | Z7: =IF(ISBLANK(Assumptions!AB90), Y7,Assumptions!AB90*thous_conv) -> 13.71506943 | AA7: =IF(ISBLANK(Assumptions!AC90), Z7,Assumptions!AC90*thous_conv) -> 13.71506943 | AB7: =IF(ISBLANK(Assumptions!AD90), AA7,Assumptions!AD90*thous_conv) -> 13.71506943 | AC7: =IF(ISBLANK(Assumptions!AE90), AB7,Assumptions!AE90*thous_conv) -> 13.71506943 | AD7: =IF(ISBLANK(Assumptions!AF90), AC7,Assumptions!AF90*thous_conv) -> 13.71506943 | AE7: =IF(ISBLANK(Assumptions!AG90), AD7,Assumptions!AG90*thous_conv) -> 13.71506943 | AF7: =IF(ISBLANK(Assumptions!AH90), AE7,Assumptions!AH90*thous_conv) -> 13.71506943 | AG7: =IF(ISBLANK(Assumptions!AI90), AF7,Assumptions!AI90*thous_conv) -> 13.71506943
G9: Units | H9: =DATE(LEFT(I9,4), 6,30) -> 2026-06-30 | I9: =start -> 2026-27 | J9: =LEFT(I9,4)+1&"-"&RIGHT(I9,2)+1 -> 2027-28 | K9: 2028-29 | L9: 2029-30 | M9: 2030-31 | N9: 2031-32 | O9: 2032-33 | P9: 2033-34 | Q9: 2034-35 | R9: 2035-36 | S9: 2036-37 | T9: 2037-38 | U9: 2038-39 | V9: 2039-40 | W9: 2040-41 | X9: 2041-42 | Y9: 2042-43 | Z9: 2043-44 | AA9: 2044-45 | AB9: 2045-46 | AC9: 2046-47 | AD9: 2047-48 | AE9: 2048-49 | AF9: 2049-50 | AG9: 2050-51
A11: INVESTMENT & OPERATING COST
C13: Capex | E13: Asset life (yrs)
C14: < Enter description > | E14: 0 | G14: =input_dollars -> 2023-12-31 | I14: 0 | J14: 0 | K14: 0 | L14: 0 | M14: 0 | N14: 0 | O14: 0 | P14: 0 | Q14: 0 | R14: 0 | S14: 0 | T14: 0 | U14: 0 | V14: 0 | W14: 0 | X14: 0 | Y14: 0 | Z14: 0 | AA14: 0 | AB14: 0 | AC14: 0 | AD14: 0 | AE14: 0 | AF14: 0 | AG14: 0
C15: < Enter description > | E15: 0 | G15: =input_dollars -> 2023-12-31 | I15: 0 | J15: 0 | K15: 0 | L15: 0 | M15: 0 | N15: 0 | O15: 0 | P15: 0 | Q15: 0 | R15: 0 | S15: 0 | T15: 0 | U15: 0 | V15: 0 | W15: 0 | X15: 0 | Y15: 0 | Z15: 0 | AA15: 0 | AB15: 0 | AC15: 0 | AD15: 0 | AE15: 0 | AF15: 0 | AG15: 0
C16: < Enter description > | E16: 0 | G16: =input_dollars -> 2023-12-31 | I16: 0 | J16: 0 | K16: 0 | L16: 0 | M16: 0 | N16: 0 | O16: 0 | P16: 0 | Q16: 0 | R16: 0 | S16: 0 | T16: 0 | U16: 0 | V16: 0 | W16: 0 | X16: 0 | Y16: 0 | Z16: 0 | AA16: 0 | AB16: 0 | AC16: 0 | AD16: 0 | AE16: 0 | AF16: 0 | AG16: 0
C17: Capital expenditure | G17: =input_dollars -> 2023-12-31 | I17: =SUM(I14:I16) -> 0 | J17: 0 | K17: 0 | L17: 0 | M17: 0 | N17: 0 | O17: 0 | P17: 0 | Q17: 0 | R17: 0 | S17: 0 | T17: 0 | U17: 0 | V17: 0 | W17: 0 | X17: 0 | Y17: 0 | Z17: 0 | AA17: 0 | AB17: 0 | AC17: =SUM(AC14:AC16) -> 0 | AD17: =SUM(AD14:AD16) -> 0 | AE17: =SUM(AE14:AE16) -> 0 | AF17: =SUM(AF14:AF16) -> 0 | AG17: =SUM(AG14:AG16) -> 0
C19: Operating expenditure | G19: =input_dollars -> 2023-12-31 | I19: 0 | J19: 0 | K19: 0 | L19: 0 | M19: 0 | N19: 0 | O19: 0 | P19: 0 | Q19: 0 | R19: 0 | S19: 0 | T19: 0 | U19: 0 | V19: 0 | W19: 0 | X19: 0 | Y19: 0 | Z19: 0 | AA19: 0 | AB19: 0 | AC19: 0 | AD19: 0 | AE19: 0 | AF19: 0 | AG19: 0
A22: RISK ASSUMPTIONS
C24: PoF (major) | I24: 0 | J24: 0 | K24: 0 | L24: 0 | M24: 0 | N24: 0 | O24: 0 | P24: 0 | Q24: 0 | R24: 0 | S24: 0 | T24: 0 | U24: 0 | V24: 0 | W24: 0 | X24: 0 | Y24: 0 | Z24: 0 | AA24: 0 | AB24: 0 | AC24: 0 | AD24: 0 | AE24: 0 | AF24: 0 | AG24: 0
C25: PoF (reparable) | I25: 0 | J25: 0 | K25: 0 | L25: 0 | M25: 0 | N25: 0 | O25: 0 | P25: 0 | Q25: 0 | R25: 0 | S25: 0 | T25: 0 | U25: 0 | V25: 0 | W25: 0 | X25: 0 | Y25: 0 | Z25: 0 | AA25: 0 | AB25: 0 | AC25: 0 | AD25: 0 | AE25: 0 | AF25: 0 | AG25: 0
C27: Energy at risk (weighted) | G27: MWh | I27: =INDEX(Workings_risks!J$60:J$232, MATCH($A$3&$C27, Workings_risks!$E$60:$E$232,0)) -> 88.15459738 | J27: =INDEX(Workings_risks!K$60:K$232, MATCH($A$3&$C27, Workings_risks!$E$60:$E$232,0)) -> 97.09582609 | K27: =INDEX(Workings_risks!L$60:L$232, MATCH($A$3&$C27, Workings_risks!$E$60:$E$232,0)) -> 107.4826994 | L27: =INDEX(Workings_risks!M$60:M$232, MATCH($A$3&$C27, Workings_risks!$E$60:$E$232,0)) -> 119.4161533 | M27: =INDEX(Workings_risks!N$60:N$232, MATCH($A$3&$C27, Workings_risks!$E$60:$E$232,0)) -> 133.1111983 | N27: =INDEX(Workings_risks!O$60:O$232, MATCH($A$3&$C27, Workings_risks!$E$60:$E$232,0)) -> 148.8527952 | O27: =INDEX(Workings_risks!P$60:P$232, MATCH($A$3&$C27, Workings_risks!$E$60:$E$232,0)) -> 166.9531977 | P27: =INDEX(Workings_risks!Q$60:Q$232, MATCH($A$3&$C27, Workings_risks!$E$60:$E$232,0)) -> 187.6739102 | Q27: =INDEX(Workings_risks!R$60:R$232, MATCH($A$3&$C27, Workings_risks!$E$60:$E$232,0)) -> 210.395155 | R27: =INDEX(Workings_risks!S$60:S$232, MATCH($A$3&$C27, Workings_risks!$E$60:$E$232,0)) -> 234.5720712 | S27: =INDEX(Workings_risks!T$60:T$232, MATCH($A$3&$C27, Workings_risks!$E$60:$E$232,0)) -> 260.0642438 | T27: =INDEX(Workings_risks!U$60:U$232, MATCH($A$3&$C27, Workings_risks!$E$60:$E$232,0)) -> 288.3036203 | U27: =INDEX(Workings_risks!V$60:V$232, MATCH($A$3&$C27, Workings_risks!$E$60:$E$232,0)) -> 319.0177887 | V27: =INDEX(Workings_risks!W$60:W$232, MATCH($A$3&$C27, Workings_risks!$E$60:$E$232,0)) -> 350.6312641 | W27: =INDEX(Workings_risks!X$60:X$232, MATCH($A$3&$C27, Workings_risks!$E$60:$E$232,0)) -> 380.6474334 | X27: =INDEX(Workings_risks!Y$60:Y$232, MATCH($A$3&$C27, Workings_risks!$E$60:$E$232,0)) -> 409.5618243 | Y27: =INDEX(Workings_risks!Z$60:Z$232, MATCH($A$3&$C27, Workings_risks!$E$60:$E$232,0)) -> 437.8725991 | Z27: =INDEX(Workings_risks!AA$60:AA$232, MATCH($A$3&$C27, Workings_risks!$E$60:$E$232,0)) -> 464.5216039 | AA27: =INDEX(Workings_risks!AB$60:AB$232, MATCH($A$3&$C27, Workings_risks!$E$60:$E$232,0)) -> 488.9202121 | AB27: =INDEX(Workings_risks!AC$60:AC$232, MATCH($A$3&$C27, Workings_risks!$E$60:$E$232,0)) -> 510.2020113 | AC27: =INDEX(Workings_risks!AD$60:AD$232, MATCH($A$3&$C27, Workings_risks!$E$60:$E$232,0)) -> 531.6666849 | AD27: =INDEX(Workings_risks!AE$60:AE$232, MATCH($A$3&$C27, Workings_risks!$E$60:$E$232,0)) -> 553.5706871 | AE27: =INDEX(Workings_risks!AF$60:AF$232, MATCH($A$3&$C27, Workings_risks!$E$60:$E$232,0)) -> 575.5328062 | AF27: =INDEX(Workings_risks!AG$60:AG$232, MATCH($A$3&$C27, Workings_risks!$E$60:$E$232,0)) -> 597.9574325 | AG27: =INDEX(Workings_risks!AH$60:AH$232, MATCH($A$3&$C27, Workings_risks!$E$60:$E$232,0)) -> 620.4881576
C28: Energy at risk value | D28: $/MWh | E28: =Assumptions!H41*vcr_esc -> 36935.21398 | F28: =IF(AND(SUM(I27:AG27)<>0, E28=0), "!", "") ->  | G28: =input_dollars -> 2023-12-31 | I28: =I27*$E$28 -> 3256008.917 | J28: =J27*$E$28 -> 3586255.113 | K28: 3969896.503 | L28: 4410661.173 | M28: 4916490.591 | N28: 5497909.841 | O28: 6166452.083 | P28: 6931776.03 | Q28: 7770990.069 | R28: 8663969.642 | S28: 9605528.491 | T28: 10648555.9 | U28: 11782990.29 | V28: 12950640.77 | W28: 14059294.4 | X28: 15127253.62 | Y28: 16172918.14 | Z28: 17157204.84 | AA28: 18058372.65 | AB28: 18844420.46 | AC28: 19637222.77 | AD28: 20446251.78 | AE28: 21257427.35 | AF28: 22085685.72 | AG28: 22917862.87
C30: Safety consequence | D30: (after DF) | G30: =input_dollars -> 2023-12-31 | I30: =INDEX(Workings_risks!J$60:J$170, MATCH($A$3&$C30, Workings_risks!$E$60:$E$170,0)) -> 937071.2295 | J30: =INDEX(Workings_risks!K$60:K$170, MATCH($A$3&$C30, Workings_risks!$E$60:$E$170,0)) -> 1032115.259 | K30: =INDEX(Workings_risks!L$60:L$170, MATCH($A$3&$C30, Workings_risks!$E$60:$E$170,0)) -> 1142526.293 | L30: =INDEX(Workings_risks!M$60:M$170, MATCH($A$3&$C30, Workings_risks!$E$60:$E$170,0)) -> 1269377.263 | M30: =INDEX(Workings_risks!N$60:N$170, MATCH($A$3&$C30, Workings_risks!$E$60:$E$170,0)) -> 1414953.706 | N30: =INDEX(Workings_risks!O$60:O$170, MATCH($A$3&$C30, Workings_risks!$E$60:$E$170,0)) -> 1582284.713 | O30: =INDEX(Workings_risks!P$60:P$170, MATCH($A$3&$C30, Workings_risks!$E$60:$E$170,0)) -> 1774689.499 | P30: =INDEX(Workings_risks!Q$60:Q$170, MATCH($A$3&$C30, Workings_risks!$E$60:$E$170,0)) -> 1994947.819 | Q30: =INDEX(Workings_risks!R$60:R$170, MATCH($A$3&$C30, Workings_risks!$E$60:$E$170,0)) -> 2236471.522 | R30: =INDEX(Workings_risks!S$60:S$170, MATCH($A$3&$C30, Workings_risks!$E$60:$E$170,0)) -> 2493468.812 | S30: =INDEX(Workings_risks!T$60:T$170, MATCH($A$3&$C30, Workings_risks!$E$60:$E$170,0)) -> 2764447.095 | T30: =INDEX(Workings_risks!U$60:U$170, MATCH($A$3&$C30, Workings_risks!$E$60:$E$170,0)) -> 3064627.778 | U30: =INDEX(Workings_risks!V$60:V$170, MATCH($A$3&$C30, Workings_risks!$E$60:$E$170,0)) -> 3391115.159 | V30: =INDEX(Workings_risks!W$60:W$170, MATCH($A$3&$C30, Workings_risks!$E$60:$E$170,0)) -> 3727162.048 | W30: =INDEX(Workings_risks!X$60:X$170, MATCH($A$3&$C30, Workings_risks!$E$60:$E$170,0)) -> 4046229.794 | X30: =INDEX(Workings_risks!Y$60:Y$170, MATCH($A$3&$C30, Workings_risks!$E$60:$E$170,0)) -> 4353585.788 | Y30: =INDEX(Workings_risks!Z$60:Z$170, MATCH($A$3&$C30, Workings_risks!$E$60:$E$170,0)) -> 4654525.425 | Z30: =INDEX(Workings_risks!AA$60:AA$170, MATCH($A$3&$C30, Workings_risks!$E$60:$E$170,0)) -> 4937800.676 | AA30: =INDEX(Workings_risks!AB$60:AB$170, MATCH($A$3&$C30, Workings_risks!$E$60:$E$170,0)) -> 5197154.52 | AB30: =INDEX(Workings_risks!AC$60:AC$170, MATCH($A$3&$C30, Workings_risks!$E$60:$E$170,0)) -> 5423377.115 | AC30: =INDEX(Workings_risks!AD$60:AD$170, MATCH($A$3&$C30, Workings_risks!$E$60:$E$170,0)) -> 5651543.639 | AD30: =INDEX(Workings_risks!AE$60:AE$170, MATCH($A$3&$C30, Workings_risks!$E$60:$E$170,0)) -> 5884380.167 | AE30: =INDEX(Workings_risks!AF$60:AF$170, MATCH($A$3&$C30, Workings_risks!$E$60:$E$170,0)) -> 6117834.468 | AF30: =INDEX(Workings_risks!AG$60:AG$170, MATCH($A$3&$C30, Workings_risks!$E$60:$E$170,0)) -> 6356205.157 | AG30: =INDEX(Workings_risks!AH$60:AH$170, MATCH($A$3&$C30, Workings_risks!$E$60:$E$170,0)) -> 6595703.662
C31: Unplanned replacements | G31: =input_dollars -> 2023-12-31 | I31: =INDEX(Workings_risks!J$60:J$170, MATCH($A$3&$C31, Workings_risks!$E$60:$E$170,0)) -> 2159114.733 | J31: =INDEX(Workings_risks!K$60:K$170, MATCH($A$3&$C31, Workings_risks!$E$60:$E$170,0)) -> 2378106.586 | K31: =INDEX(Workings_risks!L$60:L$170, MATCH($A$3&$C31, Workings_risks!$E$60:$E$170,0)) -> 2632505.698 | L31: =INDEX(Workings_risks!M$60:M$170, MATCH($A$3&$C31, Workings_risks!$E$60:$E$170,0)) -> 2924784.226 | M31: =INDEX(Workings_risks!N$60:N$170, MATCH($A$3&$C31, Workings_risks!$E$60:$E$170,0)) -> 3260208.291 | N31: =INDEX(Workings_risks!O$60:O$170, MATCH($A$3&$C31, Workings_risks!$E$60:$E$170,0)) -> 3645757.257 | O31: =INDEX(Workings_risks!P$60:P$170, MATCH($A$3&$C31, Workings_risks!$E$60:$E$170,0)) -> 4089078.955 | P31: =INDEX(Workings_risks!Q$60:Q$170, MATCH($A$3&$C31, Workings_risks!$E$60:$E$170,0)) -> 4596578.244 | Q31: =INDEX(Workings_risks!R$60:R$170, MATCH($A$3&$C31, Workings_risks!$E$60:$E$170,0)) -> 5153075.306 | R31: =INDEX(Workings_risks!S$60:S$170, MATCH($A$3&$C31, Workings_risks!$E$60:$E$170,0)) -> 5745225.206 | S31: =INDEX(Workings_risks!T$60:T$170, MATCH($A$3&$C31, Workings_risks!$E$60:$E$170,0)) -> 6369588.847 | T31: =INDEX(Workings_risks!U$60:U$170, MATCH($A$3&$C31, Workings_risks!$E$60:$E$170,0)) -> 7061238.014 | U31: =INDEX(Workings_risks!V$60:V$170, MATCH($A$3&$C31, Workings_risks!$E$60:$E$170,0)) -> 7813500.692 | V31: =INDEX(Workings_risks!W$60:W$170, MATCH($A$3&$C31, Workings_risks!$E$60:$E$170,0)) -> 8587789.527 | W31: =INDEX(Workings_risks!X$60:X$170, MATCH($A$3&$C31, Workings_risks!$E$60:$E$170,0)) -> 9322956.555 | X31: =INDEX(Workings_risks!Y$60:Y$170, MATCH($A$3&$C31, Workings_risks!$E$60:$E$170,0)) -> 10031138.42 | Y31: =INDEX(Workings_risks!Z$60:Z$170, MATCH($A$3&$C31, Workings_risks!$E$60:$E$170,0)) -> 10724536.3 | Z31: =INDEX(Workings_risks!AA$60:AA$170, MATCH($A$3&$C31, Workings_risks!$E$60:$E$170,0)) -> 11377233.5 | AA31: =INDEX(Workings_risks!AB$60:AB$170, MATCH($A$3&$C31, Workings_risks!$E$60:$E$170,0)) -> 11974813.16 | AB31: =INDEX(Workings_risks!AC$60:AC$170, MATCH($A$3&$C31, Workings_risks!$E$60:$E$170,0)) -> 12496054.8 | AC31: =INDEX(Workings_risks!AD$60:AD$170, MATCH($A$3&$C31, Workings_risks!$E$60:$E$170,0)) -> 13021775.45 | AD31: =INDEX(Workings_risks!AE$60:AE$170, MATCH($A$3&$C31, Workings_risks!$E$60:$E$170,0)) -> 13558256.31 | AE31: =INDEX(Workings_risks!AF$60:AF$170, MATCH($A$3&$C31, Workings_risks!$E$60:$E$170,0)) -> 14096160.59 | AF31: =INDEX(Workings_risks!AG$60:AG$170, MATCH($A$3&$C31, Workings_risks!$E$60:$E$170,0)) -> 14645392.76 | AG31: =INDEX(Workings_risks!AH$60:AH$170, MATCH($A$3&$C31, Workings_risks!$E$60:$E$170,0)) -> 15197223.54
C32: Environmental consequence | D32: (after DF) | G32: =input_dollars -> 2023-12-31 | I32: =INDEX(Workings_risks!J$60:J$170, MATCH($A$3&$C32, Workings_risks!$E$60:$E$170,0)) -> 128429.5992 | J32: =INDEX(Workings_risks!K$60:K$170, MATCH($A$3&$C32, Workings_risks!$E$60:$E$170,0)) -> 141455.7879 | K32: =INDEX(Workings_risks!L$60:L$170, MATCH($A$3&$C32, Workings_risks!$E$60:$E$170,0)) -> 156588.0898 | L32: =INDEX(Workings_risks!M$60:M$170, MATCH($A$3&$C32, Workings_risks!$E$60:$E$170,0)) -> 173973.5551 | M32: =INDEX(Workings_risks!N$60:N$170, MATCH($A$3&$C32, Workings_risks!$E$60:$E$170,0)) -> 193925.426 | N32: =INDEX(Workings_risks!O$60:O$170, MATCH($A$3&$C32, Workings_risks!$E$60:$E$170,0)) -> 216858.8525 | O32: =INDEX(Workings_risks!P$60:P$170, MATCH($A$3&$C32, Workings_risks!$E$60:$E$170,0)) -> 243228.7472 | P32: =INDEX(Workings_risks!Q$60:Q$170, MATCH($A$3&$C32, Workings_risks!$E$60:$E$170,0)) -> 273416.087 | Q32: =INDEX(Workings_risks!R$60:R$170, MATCH($A$3&$C32, Workings_risks!$E$60:$E$170,0)) -> 306517.9383 | R32: =INDEX(Workings_risks!S$60:S$170, MATCH($A$3&$C32, Workings_risks!$E$60:$E$170,0)) -> 341740.5103 | S32: =INDEX(Workings_risks!T$60:T$170, MATCH($A$3&$C32, Workings_risks!$E$60:$E$170,0)) -> 378879.2371 | T32: =INDEX(Workings_risks!U$60:U$170, MATCH($A$3&$C32, Workings_risks!$E$60:$E$170,0)) -> 420020.277 | U32: =INDEX(Workings_risks!V$60:V$170, MATCH($A$3&$C32, Workings_risks!$E$60:$E$170,0)) -> 464766.7616 | V32: =INDEX(Workings_risks!W$60:W$170, MATCH($A$3&$C32, Workings_risks!$E$60:$E$170,0)) -> 510823.4177 | W32: =INDEX(Workings_risks!X$60:X$170, MATCH($A$3&$C32, Workings_risks!$E$60:$E$170,0)) -> 554553.0099 | X32: =INDEX(Workings_risks!Y$60:Y$170, MATCH($A$3&$C32, Workings_risks!$E$60:$E$170,0)) -> 596677.4567 | Y32: =INDEX(Workings_risks!Z$60:Z$170, MATCH($A$3&$C32, Workings_risks!$E$60:$E$170,0)) -> 637922.5144 | Z32: =INDEX(Workings_risks!AA$60:AA$170, MATCH($A$3&$C32, Workings_risks!$E$60:$E$170,0)) -> 676746.5929 | AA32: =INDEX(Workings_risks!AB$60:AB$170, MATCH($A$3&$C32, Workings_risks!$E$60:$E$170,0)) -> 712292.1408 | AB32: =INDEX(Workings_risks!AC$60:AC$170, MATCH($A$3&$C32, Workings_risks!$E$60:$E$170,0)) -> 743296.91 | AC32: =INDEX(Workings_risks!AD$60:AD$170, MATCH($A$3&$C32, Workings_risks!$E$60:$E$170,0)) -> 774568.103 | AD32: =INDEX(Workings_risks!AE$60:AE$170, MATCH($A$3&$C32, Workings_risks!$E$60:$E$170,0)) -> 806479.3398 | AE32: =INDEX(Workings_risks!AF$60:AF$170, MATCH($A$3&$C32, Workings_risks!$E$60:$E$170,0)) -> 838475.2451 | AF32: =INDEX(Workings_risks!AG$60:AG$170, MATCH($A$3&$C32, Workings_risks!$E$60:$E$170,0)) -> 871144.9623 | AG32: =INDEX(Workings_risks!AH$60:AH$170, MATCH($A$3&$C32, Workings_risks!$E$60:$E$170,0)) -> 903969.2515
C33: Response cost | G33: =input_dollars -> 2023-12-31 | I33: =INDEX(Workings_risks!J$60:J$170, MATCH($A$3&$C33, Workings_risks!$E$60:$E$170,0)) -> 400238.0528 | J33: =INDEX(Workings_risks!K$60:K$170, MATCH($A$3&$C33, Workings_risks!$E$60:$E$170,0)) -> 440832.8723 | K33: =INDEX(Workings_risks!L$60:L$170, MATCH($A$3&$C33, Workings_risks!$E$60:$E$170,0)) -> 487991.1838 | L33: =INDEX(Workings_risks!M$60:M$170, MATCH($A$3&$C33, Workings_risks!$E$60:$E$170,0)) -> 542171.2546 | M33: =INDEX(Workings_risks!N$60:N$170, MATCH($A$3&$C33, Workings_risks!$E$60:$E$170,0)) -> 604349.2726 | N33: =INDEX(Workings_risks!O$60:O$170, MATCH($A$3&$C33, Workings_risks!$E$60:$E$170,0)) -> 675819.0119 | O33: =INDEX(Workings_risks!P$60:P$170, MATCH($A$3&$C33, Workings_risks!$E$60:$E$170,0)) -> 757998.1619 | P33: =INDEX(Workings_risks!Q$60:Q$170, MATCH($A$3&$C33, Workings_risks!$E$60:$E$170,0)) -> 852073.9996 | Q33: =INDEX(Workings_risks!R$60:R$170, MATCH($A$3&$C33, Workings_risks!$E$60:$E$170,0)) -> 955232.6216 | R33: =INDEX(Workings_risks!S$60:S$170, MATCH($A$3&$C33, Workings_risks!$E$60:$E$170,0)) -> 1065000.259 | S33: =INDEX(Workings_risks!T$60:T$170, MATCH($A$3&$C33, Workings_risks!$E$60:$E$170,0)) -> 1180739.401 | T33: =INDEX(Workings_risks!U$60:U$170, MATCH($A$3&$C33, Workings_risks!$E$60:$E$170,0)) -> 1308951.354 | U33: =INDEX(Workings_risks!V$60:V$170, MATCH($A$3&$C33, Workings_risks!$E$60:$E$170,0)) -> 1448399.316 | V33: =INDEX(Workings_risks!W$60:W$170, MATCH($A$3&$C33, Workings_risks!$E$60:$E$170,0)) -> 1591930.297 | W33: =INDEX(Workings_risks!X$60:X$170, MATCH($A$3&$C33, Workings_risks!$E$60:$E$170,0)) -> 1728209.215 | X33: =INDEX(Workings_risks!Y$60:Y$170, MATCH($A$3&$C33, Workings_risks!$E$60:$E$170,0)) -> 1859485.857 | Y33: =INDEX(Workings_risks!Z$60:Z$170, MATCH($A$3&$C33, Workings_risks!$E$60:$E$170,0)) -> 1988021.971 | Z33: =INDEX(Workings_risks!AA$60:AA$170, MATCH($A$3&$C33, Workings_risks!$E$60:$E$170,0)) -> 2109013.344 | AA33: =INDEX(Workings_risks!AB$60:AB$170, MATCH($A$3&$C33, Workings_risks!$E$60:$E$170,0)) -> 2219787.504 | AB33: =INDEX(Workings_risks!AC$60:AC$170, MATCH($A$3&$C33, Workings_risks!$E$60:$E$170,0)) -> 2316410.778 | AC33: =INDEX(Workings_risks!AD$60:AD$170, MATCH($A$3&$C33, Workings_risks!$E$60:$E$170,0)) -> 2413864.336 | AD33: =INDEX(Workings_risks!AE$60:AE$170, MATCH($A$3&$C33, Workings_risks!$E$60:$E$170,0)) -> 2513312.527 | AE33: =INDEX(Workings_risks!AF$60:AF$170, MATCH($A$3&$C33, Workings_risks!$E$60:$E$170,0)) -> 2613024.579 | AF33: =INDEX(Workings_risks!AG$60:AG$170, MATCH($A$3&$C33, Workings_risks!$E$60:$E$170,0)) -> 2714836.498 | AG33: =INDEX(Workings_risks!AH$60:AH$170, MATCH($A$3&$C33, Workings_risks!$E$60:$E$170,0)) -> 2817130.126
G34: =input_dollars -> 2023-12-31 | I34: 0 | J34: 0 | K34: 0 | L34: 0 | M34: 0 | N34: 0 | O34: 0 | P34: 0 | Q34: 0 | R34: 0 | S34: 0 | T34: 0 | U34: 0 | V34: 0 | W34: 0 | X34: 0 | Y34: 0 | Z34: 0 | AA34: 0 | AB34: 0 | AC34: 0 | AD34: 0 | AE34: 0 | AF34: 0 | AG34: 0
C36: Total risk cost | I36: =SUM(I28:I34) -> 6880862.532 | J36: =SUM(J28:J34) -> 7578765.619 | K36: 8389507.767 | L36: 9320967.473 | M36: 10389927.29 | N36: 11618629.67 | O36: 13031447.45 | P36: 14648792.18 | Q36: 16422287.46 | R36: 18309404.43 | S36: 20299183.07 | T36: 22503393.33 | U36: 24900772.22 | V36: 27368346.05 | W36: 29711242.97 | X36: 31968141.14 | Y36: 34177924.36 | Z36: 36257998.96 | AA36: 38162419.98 | AB36: 39823560.06 | AC36: =SUM(AC28:AC34) -> 41498974.3 | AD36: =SUM(AD28:AD34) -> 43208680.13 | AE36: =SUM(AE28:AE34) -> 44922922.23 | AF36: =SUM(AF28:AF34) -> 46673265.1 | AG36: =SUM(AG28:AG34) -> 48431889.46
A38: OTHER BENEFITS
C41: Reduction in CO2 emissions | G41: MWh | I41: 0 | J41: 0 | K41: 0 | L41: 0 | M41: 0 | N41: 0 | O41: 0 | P41: 0 | Q41: 0 | R41: 0 | S41: 0 | T41: 0 | U41: 0 | V41: 0 | W41: 0 | X41: 0 | Y41: 0 | Z41: 0 | AA41: 0 | AB41: 0 | AC41: 0 | AD41: 0 | AE41: 0 | AF41: 0 | AG41: 0
C42: Value of reduction in CO2 emissions | G42: $ | I42: =I41*I7 -> 0 | J42: 0 | K42: 0 | L42: 0 | M42: 0 | N42: 0 | O42: 0 | P42: 0 | Q42: 0 | R42: 0 | S42: 0 | T42: 0 | U42: 0 | V42: 0 | W42: 0 | X42: 0 | Y42: 0 | Z42: 0 | AA42: 0 | AB42: 0 | AC42: 0 | AD42: 0 | AE42: 0 | AF42: 0 | AG42: 0
C45: Reliability in worst-served areas | D45: $/MWh | E45: =Assumptions!G94 -> 151432.8174 | G45: MWh | I45: 0 | J45: 0 | K45: 0 | L45: 0 | M45: 0 | N45: 0 | O45: 0 | P45: 0 | Q45: 0 | R45: 0 | S45: 0 | T45: 0 | U45: 0 | V45: 0 | W45: 0 | X45: 0 | Y45: 0 | Z45: 0 | AA45: 0 | AB45: 0 | AC45: 0 | AD45: 0 | AE45: 0 | AF45: 0 | AG45: 0
C46: Network resilience | D46: $/MWh | E46: =Assumptions!G95 -> 24590 | G46: MWh | I46: 0 | J46: 0 | K46: 0 | L46: 0 | M46: 0 | N46: 0 | O46: 0 | P46: 0 | Q46: 0 | R46: 0 | S46: 0 | T46: 0 | U46: 0 | V46: 0 | W46: 0 | X46: 0 | Y46: 0 | Z46: 0 | AA46: 0 | AB46: 0 | AC46: 0 | AD46: 0 | AE46: 0 | AF46: 0 | AG46: 0
C47: Enabling solar exports | D47: $/MWh | E47: =Assumptions!G96 -> 88.35771951 | G47: MWh | I47: 0 | J47: 0 | K47: 0 | L47: 0 | M47: 0 | N47: 0 | O47: 0 | P47: 0 | Q47: 0 | R47: 0 | S47: 0 | T47: 0 | U47: 0 | V47: 0 | W47: 0 | X47: 0 | Y47: 0 | Z47: 0 | AA47: 0 | AB47: 0 | AC47: 0 | AD47: 0 | AE47: 0 | AF47: 0 | AG47: 0
C48: Aesthetics | D48: $/customer | E48: =Assumptions!G97 -> 0 | G48: customers | I48: 0 | J48: 0 | K48: 0 | L48: 0 | M48: 0 | N48: 0 | O48: 0 | P48: 0 | Q48: 0 | R48: 0 | S48: 0 | T48: 0 | U48: 0 | V48: 0 | W48: 0 | X48: 0 | Y48: 0 | Z48: 0 | AA48: 0 | AB48: 0 | AC48: 0 | AD48: 0 | AE48: 0 | AF48: 0 | AG48: 0
C49: Customer value of time (res) | D49: $/customer min | E49: =Assumptions!G98 -> 0.3518133654 | G49: mins | I49: 0 | J49: 0 | K49: 0 | L49: 0 | M49: 0 | N49: 0 | O49: 0 | P49: 0 | Q49: 0 | R49: 0 | S49: 0 | T49: 0 | U49: 0 | V49: 0 | W49: 0 | X49: 0 | Y49: 0 | Z49: 0 | AA49: 0 | AB49: 0 | AC49: 0 | AD49: 0 | AE49: 0 | AF49: 0 | AG49: 0
C50: Customer value of time (bus) | D50: $/customer min | E50: =Assumptions!G99 -> 0.3518133654 | G50: mins | I50: 0 | J50: 0 | K50: 0 | L50: 0 | M50: 0 | N50: 0 | O50: 0 | P50: 0 | Q50: 0 | R50: 0 | S50: 0 | T50: 0 | U50: 0 | V50: 0 | W50: 0 | X50: 0 | Y50: 0 | Z50: 0 | AA50: 0 | AB50: 0 | AC50: 0 | AD50: 0 | AE50: 0 | AF50: 0 | AG50: 0
C51: Communication | D51: $/customer | E51: =Assumptions!G100 -> 0 | G51: customers | I51: 0 | J51: 0 | K51: 0 | L51: 0 | M51: 0 | N51: 0 | O51: 0 | P51: 0 | Q51: 0 | R51: 0 | S51: 0 | T51: 0 | U51: 0 | V51: 0 | W51: 0 | X51: 0 | Y51: 0 | Z51: 0 | AA51: 0 | AB51: 0 | AC51: 0 | AD51: 0 | AE51: 0 | AF51: 0 | AG51: 0
C52: Information accessibility | D52: $/customer | E52: =Assumptions!G101 -> 0 | G52: customers | I52: 0 | J52: 0 | K52: 0 | L52: 0 | M52: 0 | N52: 0 | O52: 0 | P52: 0 | Q52: 0 | R52: 0 | S52: 0 | T52: 0 | U52: 0 | V52: 0 | W52: 0 | X52: 0 | Y52: 0 | Z52: 0 | AA52: 0 | AB52: 0 | AC52: 0 | AD52: 0 | AE52: 0 | AF52: 0 | AG52: 0
C54: Other benefits 1 | G54: =input_dollars -> 2023-12-31 | I54: 0 | J54: 0 | K54: 0 | L54: 0 | M54: 0 | N54: 0 | O54: 0 | P54: 0 | Q54: 0 | R54: 0 | S54: 0 | T54: 0 | U54: 0 | V54: 0 | W54: 0 | X54: 0 | Y54: 0 | Z54: 0 | AA54: 0 | AB54: 0 | AC54: 0 | AD54: 0 | AE54: 0 | AF54: 0 | AG54: 0
C55: Other benefits 2 | G55: =input_dollars -> 2023-12-31 | I55: 0 | J55: 0 | K55: 0 | L55: 0 | M55: 0 | N55: 0 | O55: 0 | P55: 0 | Q55: 0 | R55: 0 | S55: 0 | T55: 0 | U55: 0 | V55: 0 | W55: 0 | X55: 0 | Y55: 0 | Z55: 0 | AA55: 0 | AB55: 0 | AC55: 0 | AD55: 0 | AE55: 0 | AF55: 0 | AG55: 0
C57: Total other benefits | G57: =input_dollars -> 2023-12-31 | I57: =SUMPRODUCT((I$45:I$52)*($E$45:$E$52))+SUM(I54:I55)+I42 -> 0 | J57: =SUMPRODUCT((J$45:J$52)*($E$45:$E$52))+SUM(J54:J55)+J42 -> 0 | K57: =SUMPRODUCT((K$45:K$52)*($E$45:$E$52))+SUM(K54:K55)+K42 -> 0 | L57: =SUMPRODUCT((L$45:L$52)*($E$45:$E$52))+SUM(L54:L55)+L42 -> 0 | M57: =SUMPRODUCT((M$45:M$52)*($E$45:$E$52))+SUM(M54:M55)+M42 -> 0 | N57: =SUMPRODUCT((N$45:N$52)*($E$45:$E$52))+SUM(N54:N55)+N42 -> 0 | O57: =SUMPRODUCT((O$45:O$52)*($E$45:$E$52))+SUM(O54:O55)+O42 -> 0 | P57: =SUMPRODUCT((P$45:P$52)*($E$45:$E$52))+SUM(P54:P55)+P42 -> 0 | Q57: =SUMPRODUCT((Q$45:Q$52)*($E$45:$E$52))+SUM(Q54:Q55)+Q42 -> 0 | R57: =SUMPRODUCT((R$45:R$52)*($E$45:$E$52))+SUM(R54:R55)+R42 -> 0 | S57: =SUMPRODUCT((S$45:S$52)*($E$45:$E$52))+SUM(S54:S55)+S42 -> 0 | T57: =SUMPRODUCT((T$45:T$52)*($E$45:$E$52))+SUM(T54:T55)+T42 -> 0 | U57: =SUMPRODUCT((U$45:U$52)*($E$45:$E$52))+SUM(U54:U55)+U42 -> 0 | V57: =SUMPRODUCT((V$45:V$52)*($E$45:$E$52))+SUM(V54:V55)+V42 -> 0 | W57: =SUMPRODUCT((W$45:W$52)*($E$45:$E$52))+SUM(W54:W55)+W42 -> 0 | X57: =SUMPRODUCT((X$45:X$52)*($E$45:$E$52))+SUM(X54:X55)+X42 -> 0 | Y57: =SUMPRODUCT((Y$45:Y$52)*($E$45:$E$52))+SUM(Y54:Y55)+Y42 -> 0 | Z57: =SUMPRODUCT((Z$45:Z$52)*($E$45:$E$52))+SUM(Z54:Z55)+Z42 -> 0 | AA57: =SUMPRODUCT((AA$45:AA$52)*($E$45:$E$52))+SUM(AA54:AA55)+AA42 -> 0 | AB57: =SUMPRODUCT((AB$45:AB$52)*($E$45:$E$52))+SUM(AB54:AB55)+AB42 -> 0 | AC57: =SUMPRODUCT((AC$45:AC$52)*($E$45:$E$52))+SUM(AC54:AC55)+AC42 -> 0 | AD57: =SUMPRODUCT((AD$45:AD$52)*($E$45:$E$52))+SUM(AD54:AD55)+AD42 -> 0 | AE57: =SUMPRODUCT((AE$45:AE$52)*($E$45:$E$52))+SUM(AE54:AE55)+AE42 -> 0 | AF57: =SUMPRODUCT((AF$45:AF$52)*($E$45:$E$52))+SUM(AF54:AF55)+AF42 -> 0 | AG57: =SUMPRODUCT((AG$45:AG$52)*($E$45:$E$52))+SUM(AG54:AG55)+AG42 -> 0
A60: SUMMARY
C64: Risks mitigated vs base case | G64: =input_dollars -> 2023-12-31
C66: Capital expenditure
C67: =C14 -> < Enter description > | G67: =input_dollars -> 2023-12-31 | I67: =-I14 -> 0 | J67: 0 | K67: 0 | L67: 0 | M67: 0 | N67: 0 | O67: 0 | P67: 0 | Q67: 0 | R67: 0 | S67: 0 | T67: 0 | U67: 0 | V67: 0 | W67: 0 | X67: 0 | Y67: 0 | Z67: 0 | AA67: 0 | AB67: 0 | AC67: 0 | AD67: 0 | AE67: 0 | AF67: 0 | AG67: 0
C68: =C15 -> < Enter description > | G68: =input_dollars -> 2023-12-31 | I68: =-I15 -> 0 | J68: 0 | K68: 0 | L68: 0 | M68: 0 | N68: 0 | O68: 0 | P68: 0 | Q68: 0 | R68: 0 | S68: 0 | T68: 0 | U68: 0 | V68: 0 | W68: 0 | X68: 0 | Y68: 0 | Z68: 0 | AA68: 0 | AB68: 0 | AC68: 0 | AD68: 0 | AE68: 0 | AF68: 0 | AG68: 0
C69: =C16 -> < Enter description > | G69: =input_dollars -> 2023-12-31 | I69: =-I16 -> 0 | J69: 0 | K69: 0 | L69: 0 | M69: 0 | N69: 0 | O69: 0 | P69: 0 | Q69: 0 | R69: 0 | S69: 0 | T69: 0 | U69: 0 | V69: 0 | W69: 0 | X69: 0 | Y69: 0 | Z69: 0 | AA69: 0 | AB69: 0 | AC69: 0 | AD69: 0 | AE69: 0 | AF69: 0 | AG69: 0
C71: Cumulative capex
C72: =C14 -> < Enter description > | G72: =input_dollars -> 2023-12-31 | I72: =SUMPRODUCT(($I67:I67))-SUMPRODUCT(($I67:I67)*($I$6:I$6<=(I$6-$E14))) -> 0 | J72: =SUMPRODUCT(($I67:J67))-SUMPRODUCT(($I67:J67)*($I$6:J$6<=(J$6-$E14))) -> 0 | K72: =SUMPRODUCT(($I67:K67))-SUMPRODUCT(($I67:K67)*($I$6:K$6<=(K$6-$E14))) -> 0 | L72: =SUMPRODUCT(($I67:L67))-SUMPRODUCT(($I67:L67)*($I$6:L$6<=(L$6-$E14))) -> 0 | M72: =SUMPRODUCT(($I67:M67))-SUMPRODUCT(($I67:M67)*($I$6:M$6<=(M$6-$E14))) -> 0 | N72: =SUMPRODUCT(($I67:N67))-SUMPRODUCT(($I67:N67)*($I$6:N$6<=(N$6-$E14))) -> 0 | O72: =SUMPRODUCT(($I67:O67))-SUMPRODUCT(($I67:O67)*($I$6:O$6<=(O$6-$E14))) -> 0 | P72: =SUMPRODUCT(($I67:P67))-SUMPRODUCT(($I67:P67)*($I$6:P$6<=(P$6-$E14))) -> 0 | Q72: =SUMPRODUCT(($I67:Q67))-SUMPRODUCT(($I67:Q67)*($I$6:Q$6<=(Q$6-$E14))) -> 0 | R72: =SUMPRODUCT(($I67:R67))-SUMPRODUCT(($I67:R67)*($I$6:R$6<=(R$6-$E14))) -> 0 | S72: =SUMPRODUCT(($I67:S67))-SUMPRODUCT(($I67:S67)*($I$6:S$6<=(S$6-$E14))) -> 0 | T72: =SUMPRODUCT(($I67:T67))-SUMPRODUCT(($I67:T67)*($I$6:T$6<=(T$6-$E14))) -> 0 | U72: =SUMPRODUCT(($I67:U67))-SUMPRODUCT(($I67:U67)*($I$6:U$6<=(U$6-$E14))) -> 0 | V72: =SUMPRODUCT(($I67:V67))-SUMPRODUCT(($I67:V67)*($I$6:V$6<=(V$6-$E14))) -> 0 | W72: =SUMPRODUCT(($I67:W67))-SUMPRODUCT(($I67:W67)*($I$6:W$6<=(W$6-$E14))) -> 0 | X72: =SUMPRODUCT(($I67:X67))-SUMPRODUCT(($I67:X67)*($I$6:X$6<=(X$6-$E14))) -> 0 | Y72: =SUMPRODUCT(($I67:Y67))-SUMPRODUCT(($I67:Y67)*($I$6:Y$6<=(Y$6-$E14))) -> 0 | Z72: =SUMPRODUCT(($I67:Z67))-SUMPRODUCT(($I67:Z67)*($I$6:Z$6<=(Z$6-$E14))) -> 0 | AA72: =SUMPRODUCT(($I67:AA67))-SUMPRODUCT(($I67:AA67)*($I$6:AA$6<=(AA$6-$E14))) -> 0 | AB72: =SUMPRODUCT(($I67:AB67))-SUMPRODUCT(($I67:AB67)*($I$6:AB$6<=(AB$6-$E14))) -> 0 | AC72: =SUMPRODUCT(($I67:AC67))-SUMPRODUCT(($I67:AC67)*($I$6:AC$6<=(AC$6-$E14))) -> 0 | AD72: =SUMPRODUCT(($I67:AD67))-SUMPRODUCT(($I67:AD67)*($I$6:AD$6<=(AD$6-$E14))) -> 0 | AE72: =SUMPRODUCT(($I67:AE67))-SUMPRODUCT(($I67:AE67)*($I$6:AE$6<=(AE$6-$E14))) -> 0 | AF72: =SUMPRODUCT(($I67:AF67))-SUMPRODUCT(($I67:AF67)*($I$6:AF$6<=(AF$6-$E14))) -> 0 | AG72: =SUMPRODUCT(($I67:AG67))-SUMPRODUCT(($I67:AG67)*($I$6:AG$6<=(AG$6-$E14))) -> 0
C73: =C15 -> < Enter description > | G73: =input_dollars -> 2023-12-31 | I73: =SUMPRODUCT(($I68:I68))-SUMPRODUCT(($I68:I68)*($I$6:I$6<=(I$6-$E15))) -> 0 | J73: =SUMPRODUCT(($I68:J68))-SUMPRODUCT(($I68:J68)*($I$6:J$6<=(J$6-$E15))) -> 0 | K73: =SUMPRODUCT(($I68:K68))-SUMPRODUCT(($I68:K68)*($I$6:K$6<=(K$6-$E15))) -> 0 | L73: =SUMPRODUCT(($I68:L68))-SUMPRODUCT(($I68:L68)*($I$6:L$6<=(L$6-$E15))) -> 0 | M73: =SUMPRODUCT(($I68:M68))-SUMPRODUCT(($I68:M68)*($I$6:M$6<=(M$6-$E15))) -> 0 | N73: =SUMPRODUCT(($I68:N68))-SUMPRODUCT(($I68:N68)*($I$6:N$6<=(N$6-$E15))) -> 0 | O73: =SUMPRODUCT(($I68:O68))-SUMPRODUCT(($I68:O68)*($I$6:O$6<=(O$6-$E15))) -> 0 | P73: =SUMPRODUCT(($I68:P68))-SUMPRODUCT(($I68:P68)*($I$6:P$6<=(P$6-$E15))) -> 0 | Q73: =SUMPRODUCT(($I68:Q68))-SUMPRODUCT(($I68:Q68)*($I$6:Q$6<=(Q$6-$E15))) -> 0 | R73: =SUMPRODUCT(($I68:R68))-SUMPRODUCT(($I68:R68)*($I$6:R$6<=(R$6-$E15))) -> 0 | S73: =SUMPRODUCT(($I68:S68))-SUMPRODUCT(($I68:S68)*($I$6:S$6<=(S$6-$E15))) -> 0 | T73: =SUMPRODUCT(($I68:T68))-SUMPRODUCT(($I68:T68)*($I$6:T$6<=(T$6-$E15))) -> 0 | U73: =SUMPRODUCT(($I68:U68))-SUMPRODUCT(($I68:U68)*($I$6:U$6<=(U$6-$E15))) -> 0 | V73: =SUMPRODUCT(($I68:V68))-SUMPRODUCT(($I68:V68)*($I$6:V$6<=(V$6-$E15))) -> 0 | W73: =SUMPRODUCT(($I68:W68))-SUMPRODUCT(($I68:W68)*($I$6:W$6<=(W$6-$E15))) -> 0 | X73: =SUMPRODUCT(($I68:X68))-SUMPRODUCT(($I68:X68)*($I$6:X$6<=(X$6-$E15))) -> 0 | Y73: =SUMPRODUCT(($I68:Y68))-SUMPRODUCT(($I68:Y68)*($I$6:Y$6<=(Y$6-$E15))) -> 0 | Z73: =SUMPRODUCT(($I68:Z68))-SUMPRODUCT(($I68:Z68)*($I$6:Z$6<=(Z$6-$E15))) -> 0 | AA73: =SUMPRODUCT(($I68:AA68))-SUMPRODUCT(($I68:AA68)*($I$6:AA$6<=(AA$6-$E15))) -> 0 | AB73: =SUMPRODUCT(($I68:AB68))-SUMPRODUCT(($I68:AB68)*($I$6:AB$6<=(AB$6-$E15))) -> 0 | AC73: =SUMPRODUCT(($I68:AC68))-SUMPRODUCT(($I68:AC68)*($I$6:AC$6<=(AC$6-$E15))) -> 0 | AD73: =SUMPRODUCT(($I68:AD68))-SUMPRODUCT(($I68:AD68)*($I$6:AD$6<=(AD$6-$E15))) -> 0 | AE73: =SUMPRODUCT(($I68:AE68))-SUMPRODUCT(($I68:AE68)*($I$6:AE$6<=(AE$6-$E15))) -> 0 | AF73: =SUMPRODUCT(($I68:AF68))-SUMPRODUCT(($I68:AF68)*($I$6:AF$6<=(AF$6-$E15))) -> 0 | AG73: =SUMPRODUCT(($I68:AG68))-SUMPRODUCT(($I68:AG68)*($I$6:AG$6<=(AG$6-$E15))) -> 0
C74: =C16 -> < Enter description > | G74: =input_dollars -> 2023-12-31 | I74: =SUMPRODUCT(($I69:I69))-SUMPRODUCT(($I69:I69)*($I$6:I$6<=(I$6-$E16))) -> 0 | J74: =SUMPRODUCT(($I69:J69))-SUMPRODUCT(($I69:J69)*($I$6:J$6<=(J$6-$E16))) -> 0 | K74: =SUMPRODUCT(($I69:K69))-SUMPRODUCT(($I69:K69)*($I$6:K$6<=(K$6-$E16))) -> 0 | L74: =SUMPRODUCT(($I69:L69))-SUMPRODUCT(($I69:L69)*($I$6:L$6<=(L$6-$E16))) -> 0 | M74: =SUMPRODUCT(($I69:M69))-SUMPRODUCT(($I69:M69)*($I$6:M$6<=(M$6-$E16))) -> 0 | N74: =SUMPRODUCT(($I69:N69))-SUMPRODUCT(($I69:N69)*($I$6:N$6<=(N$6-$E16))) -> 0 | O74: =SUMPRODUCT(($I69:O69))-SUMPRODUCT(($I69:O69)*($I$6:O$6<=(O$6-$E16))) -> 0 | P74: =SUMPRODUCT(($I69:P69))-SUMPRODUCT(($I69:P69)*($I$6:P$6<=(P$6-$E16))) -> 0 | Q74: =SUMPRODUCT(($I69:Q69))-SUMPRODUCT(($I69:Q69)*($I$6:Q$6<=(Q$6-$E16))) -> 0 | R74: =SUMPRODUCT(($I69:R69))-SUMPRODUCT(($I69:R69)*($I$6:R$6<=(R$6-$E16))) -> 0 | S74: =SUMPRODUCT(($I69:S69))-SUMPRODUCT(($I69:S69)*($I$6:S$6<=(S$6-$E16))) -> 0 | T74: =SUMPRODUCT(($I69:T69))-SUMPRODUCT(($I69:T69)*($I$6:T$6<=(T$6-$E16))) -> 0 | U74: =SUMPRODUCT(($I69:U69))-SUMPRODUCT(($I69:U69)*($I$6:U$6<=(U$6-$E16))) -> 0 | V74: =SUMPRODUCT(($I69:V69))-SUMPRODUCT(($I69:V69)*($I$6:V$6<=(V$6-$E16))) -> 0 | W74: =SUMPRODUCT(($I69:W69))-SUMPRODUCT(($I69:W69)*($I$6:W$6<=(W$6-$E16))) -> 0 | X74: =SUMPRODUCT(($I69:X69))-SUMPRODUCT(($I69:X69)*($I$6:X$6<=(X$6-$E16))) -> 0 | Y74: =SUMPRODUCT(($I69:Y69))-SUMPRODUCT(($I69:Y69)*($I$6:Y$6<=(Y$6-$E16))) -> 0 | Z74: =SUMPRODUCT(($I69:Z69))-SUMPRODUCT(($I69:Z69)*($I$6:Z$6<=(Z$6-$E16))) -> 0 | AA74: =SUMPRODUCT(($I69:AA69))-SUMPRODUCT(($I69:AA69)*($I$6:AA$6<=(AA$6-$E16))) -> 0 | AB74: =SUMPRODUCT(($I69:AB69))-SUMPRODUCT(($I69:AB69)*($I$6:AB$6<=(AB$6-$E16))) -> 0 | AC74: =SUMPRODUCT(($I69:AC69))-SUMPRODUCT(($I69:AC69)*($I$6:AC$6<=(AC$6-$E16))) -> 0 | AD74: =SUMPRODUCT(($I69:AD69))-SUMPRODUCT(($I69:AD69)*($I$6:AD$6<=(AD$6-$E16))) -> 0 | AE74: =SUMPRODUCT(($I69:AE69))-SUMPRODUCT(($I69:AE69)*($I$6:AE$6<=(AE$6-$E16))) -> 0 | AF74: =SUMPRODUCT(($I69:AF69))-SUMPRODUCT(($I69:AF69)*($I$6:AF$6<=(AF$6-$E16))) -> 0 | AG74: =SUMPRODUCT(($I69:AG69))-SUMPRODUCT(($I69:AG69)*($I$6:AG$6<=(AG$6-$E16))) -> 0
C76: Annualised capex
C77: =$C$76&" - "&C14 -> Annualised capex - < Enter description > | G77: =input_dollars -> 2023-12-31 | I77: =IF($E14=0,0,-PMT(real_disc, $E14,H72,)) -> 0 | J77: 0 | K77: 0 | L77: 0 | M77: 0 | N77: 0 | O77: 0 | P77: 0 | Q77: 0 | R77: 0 | S77: 0 | T77: 0 | U77: 0 | V77: 0 | W77: 0 | X77: 0 | Y77: 0 | Z77: 0 | AA77: 0 | AB77: 0 | AC77: 0 | AD77: 0 | AE77: 0 | AF77: 0 | AG77: 0
C78: =$C$76&" - "&C15 -> Annualised capex - < Enter description > | G78: =input_dollars -> 2023-12-31 | I78: =IF($E15=0,0,-PMT(real_disc, $E15,H73,)) -> 0 | J78: 0 | K78: 0 | L78: 0 | M78: 0 | N78: 0 | O78: 0 | P78: 0 | Q78: 0 | R78: 0 | S78: 0 | T78: 0 | U78: 0 | V78: 0 | W78: 0 | X78: 0 | Y78: 0 | Z78: 0 | AA78: 0 | AB78: 0 | AC78: 0 | AD78: 0 | AE78: 0 | AF78: 0 | AG78: 0
C79: =$C$76&" - "&C16 -> Annualised capex - < Enter description > | G79: =input_dollars -> 2023-12-31 | I79: =IF($E16=0,0,-PMT(real_disc, $E16,H74,)) -> 0 | J79: 0 | K79: 0 | L79: 0 | M79: 0 | N79: 0 | O79: 0 | P79: 0 | Q79: 0 | R79: 0 | S79: 0 | T79: 0 | U79: 0 | V79: 0 | W79: 0 | X79: 0 | Y79: 0 | Z79: 0 | AA79: 0 | AB79: 0 | AC79: 0 | AD79: 0 | AE79: 0 | AF79: 0 | AG79: 0
C80: Total annualised capex | G80: =input_dollars -> 2023-12-31 | I80: =SUM(I77:I79) -> 0 | J80: =SUM(J77:J79) -> 0 | K80: 0 | L80: 0 | M80: 0 | N80: 0 | O80: 0 | P80: 0 | Q80: 0 | R80: 0 | S80: 0 | T80: 0 | U80: 0 | V80: 0 | W80: 0 | X80: 0 | Y80: 0 | Z80: 0 | AA80: 0 | AB80: 0 | AC80: =SUM(AC77:AC79) -> 0 | AD80: =SUM(AD77:AD79) -> 0 | AE80: =SUM(AE77:AE79) -> 0 | AF80: =SUM(AF77:AF79) -> 0 | AG80: =SUM(AG77:AG79) -> 0
C82: Annualised capex | G82: =input_dollars -> 2023-12-31 | I82: =I80 -> 0 | J82: =J80 -> 0 | K82: 0 | L82: 0 | M82: 0 | N82: 0 | O82: 0 | P82: 0 | Q82: 0 | R82: 0 | S82: 0 | T82: 0 | U82: 0 | V82: 0 | W82: 0 | X82: 0 | Y82: 0 | Z82: 0 | AA82: 0 | AB82: 0 | AC82: =AC80 -> 0 | AD82: =AD80 -> 0 | AE82: =AE80 -> 0 | AF82: =AF80 -> 0 | AG82: =AG80 -> 0
C83: Operating expenditure | G83: 2023-12-31 | I83: =-I19 -> 0 | J83: 0 | K83: 0 | L83: 0 | M83: 0 | N83: 0 | O83: 0 | P83: 0 | Q83: 0 | R83: 0 | S83: 0 | T83: 0 | U83: 0 | V83: 0 | W83: 0 | X83: 0 | Y83: 0 | Z83: 0 | AA83: 0 | AB83: 0 | AC83: 0 | AD83: 0 | AE83: 0 | AF83: 0 | AG83: 0
C84: Risk mitigated | G84: 2023-12-31 | I84: =I64 -> 0 | J84: =J64 -> 0 | K84: 0 | L84: 0 | M84: 0 | N84: 0 | O84: 0 | P84: 0 | Q84: 0 | R84: 0 | S84: 0 | T84: 0 | U84: 0 | V84: 0 | W84: 0 | X84: 0 | Y84: 0 | Z84: 0 | AA84: 0 | AB84: 0 | AC84: =AC64 -> 0 | AD84: =AD64 -> 0 | AE84: =AE64 -> 0 | AF84: =AF64 -> 0 | AG84: =AG64 -> 0
C85: Other benefits value | G85: 2023-12-31 | I85: =I57 -> 0 | J85: 0 | K85: 0 | L85: 0 | M85: 0 | N85: 0 | O85: 0 | P85: 0 | Q85: 0 | R85: 0 | S85: 0 | T85: 0 | U85: 0 | V85: 0 | W85: 0 | X85: 0 | Y85: 0 | Z85: 0 | AA85: 0 | AB85: 0 | AC85: 0 | AD85: 0 | AE85: 0 | AF85: 0 | AG85: 0
C87: Net benefits | G87: 2023-12-31 | I87: =SUM(I82:I86) -> 0 | J87: 0 | K87: 0 | L87: 0 | M87: 0 | N87: 0 | O87: 0 | P87: 0 | Q87: 0 | R87: 0 | S87: 0 | T87: 0 | U87: 0 | V87: 0 | W87: 0 | X87: 0 | Y87: 0 | Z87: 0 | AA87: 0 | AB87: 0 | AC87: =SUM(AC82:AC86) -> 0 | AD87: =SUM(AD82:AD86) -> 0 | AE87: =SUM(AE82:AE86) -> 0 | AF87: =SUM(AF82:AF86) -> 0 | AG87: =SUM(AG82:AG86) -> 0
A102: SENSITIVITIES
A106: NPV | C106: Net benefits | G106: =PROPER($A$3)&A106 -> Option 1 (Base Case)NPV | I106: =I87 -> 0 | J106: =J87 -> 0 | K106: 0 | L106: 0 | M106: 0 | N106: 0 | O106: 0 | P106: 0 | Q106: 0 | R106: 0 | S106: 0 | T106: 0 | U106: 0 | V106: 0 | W106: 0 | X106: 0 | Y106: 0 | Z106: 0 | AA106: 0 | AB106: 0 | AC106: 0 | AD106: 0 | AE106: 0 | AF106: 0 | AG106: 0
C107: Total annualised capex | I107: =I82 -> 0 | J107: =J82 -> 0 | K107: 0 | L107: 0 | M107: 0 | N107: 0 | O107: 0 | P107: 0 | Q107: 0 | R107: 0 | S107: 0 | T107: 0 | U107: 0 | V107: 0 | W107: 0 | X107: 0 | Y107: 0 | Z107: 0 | AA107: 0 | AB107: 0 | AC107: 0 | AD107: 0 | AE107: 0 | AF107: 0 | AG107: 0
C108: Total benefits | I108: =SUM(I84:I85) -> 0 | J108: =SUM(J84:J85) -> 0 | K108: 0 | L108: 0 | M108: 0 | N108: 0 | O108: 0 | P108: 0 | Q108: 0 | R108: 0 | S108: 0 | T108: 0 | U108: 0 | V108: 0 | W108: 0 | X108: 0 | Y108: 0 | Z108: 0 | AA108: 0 | AB108: 0 | AC108: 0 | AD108: 0 | AE108: 0 | AF108: 0 | AG108: 0
D109: =Assumptions!G110 -> Capex | E109: =Assumptions!H110 -> Total benefits
A110: ="sens"&Assumptions!B111 -> sens1 | C110: =Assumptions!C111 -> Capex 10% higher | D110: =Assumptions!G111 -> 0.1 | E110: =Assumptions!H111 -> 0 | G110: =PROPER($A$3)&A110 -> Option 1 (Base Case)sens1 | I110: =I$106+IF($C110<>0,SUMPRODUCT((I$107:I$108)*TRANSPOSE(($D110:$E110))),0) -> 0 | J110: =J$106+IF($C110<>0,SUMPRODUCT((J$107:J$108)*TRANSPOSE(($D110:$E110))),0) -> 0 | K110: =K$106+IF($C110<>0,SUMPRODUCT((K$107:K$108)*TRANSPOSE(($D110:$E110))),0) -> 0 | L110: =L$106+IF($C110<>0,SUMPRODUCT((L$107:L$108)*TRANSPOSE(($D110:$E110))),0) -> 0 | M110: =M$106+IF($C110<>0,SUMPRODUCT((M$107:M$108)*TRANSPOSE(($D110:$E110))),0) -> 0 | N110: =N$106+IF($C110<>0,SUMPRODUCT((N$107:N$108)*TRANSPOSE(($D110:$E110))),0) -> 0 | O110: =O$106+IF($C110<>0,SUMPRODUCT((O$107:O$108)*TRANSPOSE(($D110:$E110))),0) -> 0 | P110: =P$106+IF($C110<>0,SUMPRODUCT((P$107:P$108)*TRANSPOSE(($D110:$E110))),0) -> 0 | Q110: =Q$106+IF($C110<>0,SUMPRODUCT((Q$107:Q$108)*TRANSPOSE(($D110:$E110))),0) -> 0 | R110: =R$106+IF($C110<>0,SUMPRODUCT((R$107:R$108)*TRANSPOSE(($D110:$E110))),0) -> 0 | S110: =S$106+IF($C110<>0,SUMPRODUCT((S$107:S$108)*TRANSPOSE(($D110:$E110))),0) -> 0 | T110: =T$106+IF($C110<>0,SUMPRODUCT((T$107:T$108)*TRANSPOSE(($D110:$E110))),0) -> 0 | U110: =U$106+IF($C110<>0,SUMPRODUCT((U$107:U$108)*TRANSPOSE(($D110:$E110))),0) -> 0 | V110: =V$106+IF($C110<>0,SUMPRODUCT((V$107:V$108)*TRANSPOSE(($D110:$E110))),0) -> 0 | W110: =W$106+IF($C110<>0,SUMPRODUCT((W$107:W$108)*TRANSPOSE(($D110:$E110))),0) -> 0 | X110: =X$106+IF($C110<>0,SUMPRODUCT((X$107:X$108)*TRANSPOSE(($D110:$E110))),0) -> 0 | Y110: =Y$106+IF($C110<>0,SUMPRODUCT((Y$107:Y$108)*TRANSPOSE(($D110:$E110))),0) -> 0 | Z110: =Z$106+IF($C110<>0,SUMPRODUCT((Z$107:Z$108)*TRANSPOSE(($D110:$E110))),0) -> 0 | AA110: =AA$106+IF($C110<>0,SUMPRODUCT((AA$107:AA$108)*TRANSPOSE(($D110:$E110))),0) -> 0 | AB110: =AB$106+IF($C110<>0,SUMPRODUCT((AB$107:AB$108)*TRANSPOSE(($D110:$E110))),0) -> 0 | AC110: =AC$106+IF($C110<>0,SUMPRODUCT((AC$107:AC$108)*TRANSPOSE(($D110:$E110))),0) -> 0 | AD110: =AD$106+IF($C110<>0,SUMPRODUCT((AD$107:AD$108)*TRANSPOSE(($D110:$E110))),0) -> 0 | AE110: =AE$106+IF($C110<>0,SUMPRODUCT((AE$107:AE$108)*TRANSPOSE(($D110:$E110))),0) -> 0 | AF110: =AF$106+IF($C110<>0,SUMPRODUCT((AF$107:AF$108)*TRANSPOSE(($D110:$E110))),0) -> 0 | AG110: =AG$106+IF($C110<>0,SUMPRODUCT((AG$107:AG$108)*TRANSPOSE(($D110:$E110))),0) -> 0
A111: ="sens"&Assumptions!B112 -> sens2 | C111: =Assumptions!C112 -> Capex 10% lower | D111: =Assumptions!G112 -> -0.1 | E111: =Assumptions!H112 -> 0 | G111: =PROPER($A$3)&A111 -> Option 1 (Base Case)sens2 | I111: =I$106+IF($C111<>0,SUMPRODUCT((I$107:I$108)*TRANSPOSE(($D111:$E111))),0) -> 0 | J111: =J$106+IF($C111<>0,SUMPRODUCT((J$107:J$108)*TRANSPOSE(($D111:$E111))),0) -> 0 | K111: =K$106+IF($C111<>0,SUMPRODUCT((K$107:K$108)*TRANSPOSE(($D111:$E111))),0) -> 0 | L111: =L$106+IF($C111<>0,SUMPRODUCT((L$107:L$108)*TRANSPOSE(($D111:$E111))),0) -> 0 | M111: =M$106+IF($C111<>0,SUMPRODUCT((M$107:M$108)*TRANSPOSE(($D111:$E111))),0) -> 0 | N111: =N$106+IF($C111<>0,SUMPRODUCT((N$107:N$108)*TRANSPOSE(($D111:$E111))),0) -> 0 | O111: =O$106+IF($C111<>0,SUMPRODUCT((O$107:O$108)*TRANSPOSE(($D111:$E111))),0) -> 0 | P111: =P$106+IF($C111<>0,SUMPRODUCT((P$107:P$108)*TRANSPOSE(($D111:$E111))),0) -> 0 | Q111: =Q$106+IF($C111<>0,SUMPRODUCT((Q$107:Q$108)*TRANSPOSE(($D111:$E111))),0) -> 0 | R111: =R$106+IF($C111<>0,SUMPRODUCT((R$107:R$108)*TRANSPOSE(($D111:$E111))),0) -> 0 | S111: =S$106+IF($C111<>0,SUMPRODUCT((S$107:S$108)*TRANSPOSE(($D111:$E111))),0) -> 0 | T111: =T$106+IF($C111<>0,SUMPRODUCT((T$107:T$108)*TRANSPOSE(($D111:$E111))),0) -> 0 | U111: =U$106+IF($C111<>0,SUMPRODUCT((U$107:U$108)*TRANSPOSE(($D111:$E111))),0) -> 0 | V111: =V$106+IF($C111<>0,SUMPRODUCT((V$107:V$108)*TRANSPOSE(($D111:$E111))),0) -> 0 | W111: =W$106+IF($C111<>0,SUMPRODUCT((W$107:W$108)*TRANSPOSE(($D111:$E111))),0) -> 0 | X111: =X$106+IF($C111<>0,SUMPRODUCT((X$107:X$108)*TRANSPOSE(($D111:$E111))),0) -> 0 | Y111: =Y$106+IF($C111<>0,SUMPRODUCT((Y$107:Y$108)*TRANSPOSE(($D111:$E111))),0) -> 0 | Z111: =Z$106+IF($C111<>0,SUMPRODUCT((Z$107:Z$108)*TRANSPOSE(($D111:$E111))),0) -> 0 | AA111: =AA$106+IF($C111<>0,SUMPRODUCT((AA$107:AA$108)*TRANSPOSE(($D111:$E111))),0) -> 0 | AB111: =AB$106+IF($C111<>0,SUMPRODUCT((AB$107:AB$108)*TRANSPOSE(($D111:$E111))),0) -> 0 | AC111: =AC$106+IF($C111<>0,SUMPRODUCT((AC$107:AC$108)*TRANSPOSE(($D111:$E111))),0) -> 0 | AD111: =AD$106+IF($C111<>0,SUMPRODUCT((AD$107:AD$108)*TRANSPOSE(($D111:$E111))),0) -> 0 | AE111: =AE$106+IF($C111<>0,SUMPRODUCT((AE$107:AE$108)*TRANSPOSE(($D111:$E111))),0) -> 0 | AF111: =AF$106+IF($C111<>0,SUMPRODUCT((AF$107:AF$108)*TRANSPOSE(($D111:$E111))),0) -> 0 | AG111: =AG$106+IF($C111<>0,SUMPRODUCT((AG$107:AG$108)*TRANSPOSE(($D111:$E111))),0) -> 0
A112: ="sens"&Assumptions!B113 -> sens3 | C112: =Assumptions!C113 -> Total benefits 10% higher | D112: =Assumptions!G113 -> 0 | E112: =Assumptions!H113 -> 0.1 | G112: Option 1 (Base Case)sens3 | I112: =I$106+IF($C112<>0,SUMPRODUCT((I$107:I$108)*TRANSPOSE(($D112:$E112))),0) -> 0 | J112: =J$106+IF($C112<>0,SUMPRODUCT((J$107:J$108)*TRANSPOSE(($D112:$E112))),0) -> 0 | K112: =K$106+IF($C112<>0,SUMPRODUCT((K$107:K$108)*TRANSPOSE(($D112:$E112))),0) -> 0 | L112: =L$106+IF($C112<>0,SUMPRODUCT((L$107:L$108)*TRANSPOSE(($D112:$E112))),0) -> 0 | M112: =M$106+IF($C112<>0,SUMPRODUCT((M$107:M$108)*TRANSPOSE(($D112:$E112))),0) -> 0 | N112: =N$106+IF($C112<>0,SUMPRODUCT((N$107:N$108)*TRANSPOSE(($D112:$E112))),0) -> 0 | O112: =O$106+IF($C112<>0,SUMPRODUCT((O$107:O$108)*TRANSPOSE(($D112:$E112))),0) -> 0 | P112: =P$106+IF($C112<>0,SUMPRODUCT((P$107:P$108)*TRANSPOSE(($D112:$E112))),0) -> 0 | Q112: =Q$106+IF($C112<>0,SUMPRODUCT((Q$107:Q$108)*TRANSPOSE(($D112:$E112))),0) -> 0 | R112: =R$106+IF($C112<>0,SUMPRODUCT((R$107:R$108)*TRANSPOSE(($D112:$E112))),0) -> 0 | S112: =S$106+IF($C112<>0,SUMPRODUCT((S$107:S$108)*TRANSPOSE(($D112:$E112))),0) -> 0 | T112: =T$106+IF($C112<>0,SUMPRODUCT((T$107:T$108)*TRANSPOSE(($D112:$E112))),0) -> 0 | U112: =U$106+IF($C112<>0,SUMPRODUCT((U$107:U$108)*TRANSPOSE(($D112:$E112))),0) -> 0 | V112: =V$106+IF($C112<>0,SUMPRODUCT((V$107:V$108)*TRANSPOSE(($D112:$E112))),0) -> 0 | W112: =W$106+IF($C112<>0,SUMPRODUCT((W$107:W$108)*TRANSPOSE(($D112:$E112))),0) -> 0 | X112: =X$106+IF($C112<>0,SUMPRODUCT((X$107:X$108)*TRANSPOSE(($D112:$E112))),0) -> 0 | Y112: =Y$106+IF($C112<>0,SUMPRODUCT((Y$107:Y$108)*TRANSPOSE(($D112:$E112))),0) -> 0 | Z112: =Z$106+IF($C112<>0,SUMPRODUCT((Z$107:Z$108)*TRANSPOSE(($D112:$E112))),0) -> 0 | AA112: =AA$106+IF($C112<>0,SUMPRODUCT((AA$107:AA$108)*TRANSPOSE(($D112:$E112))),0) -> 0 | AB112: =AB$106+IF($C112<>0,SUMPRODUCT((AB$107:AB$108)*TRANSPOSE(($D112:$E112))),0) -> 0 | AC112: =AC$106+IF($C112<>0,SUMPRODUCT((AC$107:AC$108)*TRANSPOSE(($D112:$E112))),0) -> 0 | AD112: =AD$106+IF($C112<>0,SUMPRODUCT((AD$107:AD$108)*TRANSPOSE(($D112:$E112))),0) -> 0 | AE112: =AE$106+IF($C112<>0,SUMPRODUCT((AE$107:AE$108)*TRANSPOSE(($D112:$E112))),0) -> 0 | AF112: =AF$106+IF($C112<>0,SUMPRODUCT((AF$107:AF$108)*TRANSPOSE(($D112:$E112))),0) -> 0 | AG112: =AG$106+IF($C112<>0,SUMPRODUCT((AG$107:AG$108)*TRANSPOSE(($D112:$E112))),0) -> 0
A113: ="sens"&Assumptions!B114 -> sens4 | C113: =Assumptions!C114 -> Total benefits 10% lower | D113: =Assumptions!G114 -> 0 | E113: =Assumptions!H114 -> -0.1 | G113: Option 1 (Base Case)sens4 | I113: =I$106+IF($C113<>0,SUMPRODUCT((I$107:I$108)*TRANSPOSE(($D113:$E113))),0) -> 0 | J113: =J$106+IF($C113<>0,SUMPRODUCT((J$107:J$108)*TRANSPOSE(($D113:$E113))),0) -> 0 | K113: =K$106+IF($C113<>0,SUMPRODUCT((K$107:K$108)*TRANSPOSE(($D113:$E113))),0) -> 0 | L113: =L$106+IF($C113<>0,SUMPRODUCT((L$107:L$108)*TRANSPOSE(($D113:$E113))),0) -> 0 | M113: =M$106+IF($C113<>0,SUMPRODUCT((M$107:M$108)*TRANSPOSE(($D113:$E113))),0) -> 0 | N113: =N$106+IF($C113<>0,SUMPRODUCT((N$107:N$108)*TRANSPOSE(($D113:$E113))),0) -> 0 | O113: =O$106+IF($C113<>0,SUMPRODUCT((O$107:O$108)*TRANSPOSE(($D113:$E113))),0) -> 0 | P113: =P$106+IF($C113<>0,SUMPRODUCT((P$107:P$108)*TRANSPOSE(($D113:$E113))),0) -> 0 | Q113: =Q$106+IF($C113<>0,SUMPRODUCT((Q$107:Q$108)*TRANSPOSE(($D113:$E113))),0) -> 0 | R113: =R$106+IF($C113<>0,SUMPRODUCT((R$107:R$108)*TRANSPOSE(($D113:$E113))),0) -> 0 | S113: =S$106+IF($C113<>0,SUMPRODUCT((S$107:S$108)*TRANSPOSE(($D113:$E113))),0) -> 0 | T113: =T$106+IF($C113<>0,SUMPRODUCT((T$107:T$108)*TRANSPOSE(($D113:$E113))),0) -> 0 | U113: =U$106+IF($C113<>0,SUMPRODUCT((U$107:U$108)*TRANSPOSE(($D113:$E113))),0) -> 0 | V113: =V$106+IF($C113<>0,SUMPRODUCT((V$107:V$108)*TRANSPOSE(($D113:$E113))),0) -> 0 | W113: =W$106+IF($C113<>0,SUMPRODUCT((W$107:W$108)*TRANSPOSE(($D113:$E113))),0) -> 0 | X113: =X$106+IF($C113<>0,SUMPRODUCT((X$107:X$108)*TRANSPOSE(($D113:$E113))),0) -> 0 | Y113: =Y$106+IF($C113<>0,SUMPRODUCT((Y$107:Y$108)*TRANSPOSE(($D113:$E113))),0) -> 0 | Z113: =Z$106+IF($C113<>0,SUMPRODUCT((Z$107:Z$108)*TRANSPOSE(($D113:$E113))),0) -> 0 | AA113: =AA$106+IF($C113<>0,SUMPRODUCT((AA$107:AA$108)*TRANSPOSE(($D113:$E113))),0) -> 0 | AB113: =AB$106+IF($C113<>0,SUMPRODUCT((AB$107:AB$108)*TRANSPOSE(($D113:$E113))),0) -> 0 | AC113: =AC$106+IF($C113<>0,SUMPRODUCT((AC$107:AC$108)*TRANSPOSE(($D113:$E113))),0) -> 0 | AD113: =AD$106+IF($C113<>0,SUMPRODUCT((AD$107:AD$108)*TRANSPOSE(($D113:$E113))),0) -> 0 | AE113: =AE$106+IF($C113<>0,SUMPRODUCT((AE$107:AE$108)*TRANSPOSE(($D113:$E113))),0) -> 0 | AF113: =AF$106+IF($C113<>0,SUMPRODUCT((AF$107:AF$108)*TRANSPOSE(($D113:$E113))),0) -> 0 | AG113: =AG$106+IF($C113<>0,SUMPRODUCT((AG$107:AG$108)*TRANSPOSE(($D113:$E113))),0) -> 0
A114: ="sens"&Assumptions!B115 -> sens5 | C114: =Assumptions!C115 -> Capex 10% higher & total benefits 10% lower | D114: =Assumptions!G115 -> 0.1 | E114: =Assumptions!H115 -> -0.1 | G114: Option 1 (Base Case)sens5 | I114: =I$106+IF($C114<>0,SUMPRODUCT((I$107:I$108)*TRANSPOSE(($D114:$E114))),0) -> 0 | J114: =J$106+IF($C114<>0,SUMPRODUCT((J$107:J$108)*TRANSPOSE(($D114:$E114))),0) -> 0 | K114: =K$106+IF($C114<>0,SUMPRODUCT((K$107:K$108)*TRANSPOSE(($D114:$E114))),0) -> 0 | L114: =L$106+IF($C114<>0,SUMPRODUCT((L$107:L$108)*TRANSPOSE(($D114:$E114))),0) -> 0 | M114: =M$106+IF($C114<>0,SUMPRODUCT((M$107:M$108)*TRANSPOSE(($D114:$E114))),0) -> 0 | N114: =N$106+IF($C114<>0,SUMPRODUCT((N$107:N$108)*TRANSPOSE(($D114:$E114))),0) -> 0 | O114: =O$106+IF($C114<>0,SUMPRODUCT((O$107:O$108)*TRANSPOSE(($D114:$E114))),0) -> 0 | P114: =P$106+IF($C114<>0,SUMPRODUCT((P$107:P$108)*TRANSPOSE(($D114:$E114))),0) -> 0 | Q114: =Q$106+IF($C114<>0,SUMPRODUCT((Q$107:Q$108)*TRANSPOSE(($D114:$E114))),0) -> 0 | R114: =R$106+IF($C114<>0,SUMPRODUCT((R$107:R$108)*TRANSPOSE(($D114:$E114))),0) -> 0 | S114: =S$106+IF($C114<>0,SUMPRODUCT((S$107:S$108)*TRANSPOSE(($D114:$E114))),0) -> 0 | T114: =T$106+IF($C114<>0,SUMPRODUCT((T$107:T$108)*TRANSPOSE(($D114:$E114))),0) -> 0 | U114: =U$106+IF($C114<>0,SUMPRODUCT((U$107:U$108)*TRANSPOSE(($D114:$E114))),0) -> 0 | V114: =V$106+IF($C114<>0,SUMPRODUCT((V$107:V$108)*TRANSPOSE(($D114:$E114))),0) -> 0 | W114: =W$106+IF($C114<>0,SUMPRODUCT((W$107:W$108)*TRANSPOSE(($D114:$E114))),0) -> 0 | X114: =X$106+IF($C114<>0,SUMPRODUCT((X$107:X$108)*TRANSPOSE(($D114:$E114))),0) -> 0 | Y114: =Y$106+IF($C114<>0,SUMPRODUCT((Y$107:Y$108)*TRANSPOSE(($D114:$E114))),0) -> 0 | Z114: =Z$106+IF($C114<>0,SUMPRODUCT((Z$107:Z$108)*TRANSPOSE(($D114:$E114))),0) -> 0 | AA114: =AA$106+IF($C114<>0,SUMPRODUCT((AA$107:AA$108)*TRANSPOSE(($D114:$E114))),0) -> 0 | AB114: =AB$106+IF($C114<>0,SUMPRODUCT((AB$107:AB$108)*TRANSPOSE(($D114:$E114))),0) -> 0 | AC114: =AC$106+IF($C114<>0,SUMPRODUCT((AC$107:AC$108)*TRANSPOSE(($D114:$E114))),0) -> 0 | AD114: =AD$106+IF($C114<>0,SUMPRODUCT((AD$107:AD$108)*TRANSPOSE(($D114:$E114))),0) -> 0 | AE114: =AE$106+IF($C114<>0,SUMPRODUCT((AE$107:AE$108)*TRANSPOSE(($D114:$E114))),0) -> 0 | AF114: =AF$106+IF($C114<>0,SUMPRODUCT((AF$107:AF$108)*TRANSPOSE(($D114:$E114))),0) -> 0 | AG114: =AG$106+IF($C114<>0,SUMPRODUCT((AG$107:AG$108)*TRANSPOSE(($D114:$E114))),0) -> 0
A115: ="sens"&Assumptions!B116 -> sens | C115: =Assumptions!C116 -> 0 | D115: =Assumptions!G116 -> 0 | E115: =Assumptions!H116 -> 0 | G115: Option 1 (Base Case)sens | I115: =I$106+IF($C115<>0,SUMPRODUCT((I$107:I$108)*TRANSPOSE(($D115:$E115))),0) -> 0 | J115: =J$106+IF($C115<>0,SUMPRODUCT((J$107:J$108)*TRANSPOSE(($D115:$E115))),0) -> 0 | K115: =K$106+IF($C115<>0,SUMPRODUCT((K$107:K$108)*TRANSPOSE(($D115:$E115))),0) -> 0 | L115: =L$106+IF($C115<>0,SUMPRODUCT((L$107:L$108)*TRANSPOSE(($D115:$E115))),0) -> 0 | M115: =M$106+IF($C115<>0,SUMPRODUCT((M$107:M$108)*TRANSPOSE(($D115:$E115))),0) -> 0 | N115: =N$106+IF($C115<>0,SUMPRODUCT((N$107:N$108)*TRANSPOSE(($D115:$E115))),0) -> 0 | O115: =O$106+IF($C115<>0,SUMPRODUCT((O$107:O$108)*TRANSPOSE(($D115:$E115))),0) -> 0 | P115: =P$106+IF($C115<>0,SUMPRODUCT((P$107:P$108)*TRANSPOSE(($D115:$E115))),0) -> 0 | Q115: =Q$106+IF($C115<>0,SUMPRODUCT((Q$107:Q$108)*TRANSPOSE(($D115:$E115))),0) -> 0 | R115: =R$106+IF($C115<>0,SUMPRODUCT((R$107:R$108)*TRANSPOSE(($D115:$E115))),0) -> 0 | S115: =S$106+IF($C115<>0,SUMPRODUCT((S$107:S$108)*TRANSPOSE(($D115:$E115))),0) -> 0 | T115: =T$106+IF($C115<>0,SUMPRODUCT((T$107:T$108)*TRANSPOSE(($D115:$E115))),0) -> 0 | U115: =U$106+IF($C115<>0,SUMPRODUCT((U$107:U$108)*TRANSPOSE(($D115:$E115))),0) -> 0 | V115: =V$106+IF($C115<>0,SUMPRODUCT((V$107:V$108)*TRANSPOSE(($D115:$E115))),0) -> 0 | W115: =W$106+IF($C115<>0,SUMPRODUCT((W$107:W$108)*TRANSPOSE(($D115:$E115))),0) -> 0 | X115: =X$106+IF($C115<>0,SUMPRODUCT((X$107:X$108)*TRANSPOSE(($D115:$E115))),0) -> 0 | Y115: =Y$106+IF($C115<>0,SUMPRODUCT((Y$107:Y$108)*TRANSPOSE(($D115:$E115))),0) -> 0 | Z115: =Z$106+IF($C115<>0,SUMPRODUCT((Z$107:Z$108)*TRANSPOSE(($D115:$E115))),0) -> 0 | AA115: =AA$106+IF($C115<>0,SUMPRODUCT((AA$107:AA$108)*TRANSPOSE(($D115:$E115))),0) -> 0 | AB115: =AB$106+IF($C115<>0,SUMPRODUCT((AB$107:AB$108)*TRANSPOSE(($D115:$E115))),0) -> 0 | AC115: =AC$106+IF($C115<>0,SUMPRODUCT((AC$107:AC$108)*TRANSPOSE(($D115:$E115))),0) -> 0 | AD115: =AD$106+IF($C115<>0,SUMPRODUCT((AD$107:AD$108)*TRANSPOSE(($D115:$E115))),0) -> 0 | AE115: =AE$106+IF($C115<>0,SUMPRODUCT((AE$107:AE$108)*TRANSPOSE(($D115:$E115))),0) -> 0 | AF115: =AF$106+IF($C115<>0,SUMPRODUCT((AF$107:AF$108)*TRANSPOSE(($D115:$E115))),0) -> 0 | AG115: =AG$106+IF($C115<>0,SUMPRODUCT((AG$107:AG$108)*TRANSPOSE(($D115:$E115))),0) -> 0
A116: ="sens"&Assumptions!B117 -> sens | C116: =Assumptions!C117 -> 0 | D116: =Assumptions!G117 -> 0 | E116: =Assumptions!H117 -> 0 | G116: Option 1 (Base Case)sens | I116: =I$106+IF($C116<>0,SUMPRODUCT((I$107:I$108)*TRANSPOSE(($D116:$E116))),0) -> 0 | J116: =J$106+IF($C116<>0,SUMPRODUCT((J$107:J$108)*TRANSPOSE(($D116:$E116))),0) -> 0 | K116: =K$106+IF($C116<>0,SUMPRODUCT((K$107:K$108)*TRANSPOSE(($D116:$E116))),0) -> 0 | L116: =L$106+IF($C116<>0,SUMPRODUCT((L$107:L$108)*TRANSPOSE(($D116:$E116))),0) -> 0 | M116: =M$106+IF($C116<>0,SUMPRODUCT((M$107:M$108)*TRANSPOSE(($D116:$E116))),0) -> 0 | N116: =N$106+IF($C116<>0,SUMPRODUCT((N$107:N$108)*TRANSPOSE(($D116:$E116))),0) -> 0 | O116: =O$106+IF($C116<>0,SUMPRODUCT((O$107:O$108)*TRANSPOSE(($D116:$E116))),0) -> 0 | P116: =P$106+IF($C116<>0,SUMPRODUCT((P$107:P$108)*TRANSPOSE(($D116:$E116))),0) -> 0 | Q116: =Q$106+IF($C116<>0,SUMPRODUCT((Q$107:Q$108)*TRANSPOSE(($D116:$E116))),0) -> 0 | R116: =R$106+IF($C116<>0,SUMPRODUCT((R$107:R$108)*TRANSPOSE(($D116:$E116))),0) -> 0 | S116: =S$106+IF($C116<>0,SUMPRODUCT((S$107:S$108)*TRANSPOSE(($D116:$E116))),0) -> 0 | T116: =T$106+IF($C116<>0,SUMPRODUCT((T$107:T$108)*TRANSPOSE(($D116:$E116))),0) -> 0 | U116: =U$106+IF($C116<>0,SUMPRODUCT((U$107:U$108)*TRANSPOSE(($D116:$E116))),0) -> 0 | V116: =V$106+IF($C116<>0,SUMPRODUCT((V$107:V$108)*TRANSPOSE(($D116:$E116))),0) -> 0 | W116: =W$106+IF($C116<>0,SUMPRODUCT((W$107:W$108)*TRANSPOSE(($D116:$E116))),0) -> 0 | X116: =X$106+IF($C116<>0,SUMPRODUCT((X$107:X$108)*TRANSPOSE(($D116:$E116))),0) -> 0 | Y116: =Y$106+IF($C116<>0,SUMPRODUCT((Y$107:Y$108)*TRANSPOSE(($D116:$E116))),0) -> 0 | Z116: =Z$106+IF($C116<>0,SUMPRODUCT((Z$107:Z$108)*TRANSPOSE(($D116:$E116))),0) -> 0 | AA116: =AA$106+IF($C116<>0,SUMPRODUCT((AA$107:AA$108)*TRANSPOSE(($D116:$E116))),0) -> 0 | AB116: =AB$106+IF($C116<>0,SUMPRODUCT((AB$107:AB$108)*TRANSPOSE(($D116:$E116))),0) -> 0 | AC116: =AC$106+IF($C116<>0,SUMPRODUCT((AC$107:AC$108)*TRANSPOSE(($D116:$E116))),0) -> 0 | AD116: =AD$106+IF($C116<>0,SUMPRODUCT((AD$107:AD$108)*TRANSPOSE(($D116:$E116))),0) -> 0 | AE116: =AE$106+IF($C116<>0,SUMPRODUCT((AE$107:AE$108)*TRANSPOSE(($D116:$E116))),0) -> 0 | AF116: =AF$106+IF($C116<>0,SUMPRODUCT((AF$107:AF$108)*TRANSPOSE(($D116:$E116))),0) -> 0 | AG116: =AG$106+IF($C116<>0,SUMPRODUCT((AG$107:AG$108)*TRANSPOSE(($D116:$E116))),0) -> 0
A117: ="sens"&Assumptions!B118 -> sens | C117: =Assumptions!C118 -> 0 | D117: =Assumptions!G118 -> 0 | E117: =Assumptions!H118 -> 0 | G117: Option 1 (Base Case)sens | I117: =I$106+IF($C117<>0,SUMPRODUCT((I$107:I$108)*TRANSPOSE(($D117:$E117))),0) -> 0 | J117: =J$106+IF($C117<>0,SUMPRODUCT((J$107:J$108)*TRANSPOSE(($D117:$E117))),0) -> 0 | K117: =K$106+IF($C117<>0,SUMPRODUCT((K$107:K$108)*TRANSPOSE(($D117:$E117))),0) -> 0 | L117: =L$106+IF($C117<>0,SUMPRODUCT((L$107:L$108)*TRANSPOSE(($D117:$E117))),0) -> 0 | M117: =M$106+IF($C117<>0,SUMPRODUCT((M$107:M$108)*TRANSPOSE(($D117:$E117))),0) -> 0 | N117: =N$106+IF($C117<>0,SUMPRODUCT((N$107:N$108)*TRANSPOSE(($D117:$E117))),0) -> 0 | O117: =O$106+IF($C117<>0,SUMPRODUCT((O$107:O$108)*TRANSPOSE(($D117:$E117))),0) -> 0 | P117: =P$106+IF($C117<>0,SUMPRODUCT((P$107:P$108)*TRANSPOSE(($D117:$E117))),0) -> 0 | Q117: =Q$106+IF($C117<>0,SUMPRODUCT((Q$107:Q$108)*TRANSPOSE(($D117:$E117))),0) -> 0 | R117: =R$106+IF($C117<>0,SUMPRODUCT((R$107:R$108)*TRANSPOSE(($D117:$E117))),0) -> 0 | S117: =S$106+IF($C117<>0,SUMPRODUCT((S$107:S$108)*TRANSPOSE(($D117:$E117))),0) -> 0 | T117: =T$106+IF($C117<>0,SUMPRODUCT((T$107:T$108)*TRANSPOSE(($D117:$E117))),0) -> 0 | U117: =U$106+IF($C117<>0,SUMPRODUCT((U$107:U$108)*TRANSPOSE(($D117:$E117))),0) -> 0 | V117: =V$106+IF($C117<>0,SUMPRODUCT((V$107:V$108)*TRANSPOSE(($D117:$E117))),0) -> 0 | W117: =W$106+IF($C117<>0,SUMPRODUCT((W$107:W$108)*TRANSPOSE(($D117:$E117))),0) -> 0 | X117: =X$106+IF($C117<>0,SUMPRODUCT((X$107:X$108)*TRANSPOSE(($D117:$E117))),0) -> 0 | Y117: =Y$106+IF($C117<>0,SUMPRODUCT((Y$107:Y$108)*TRANSPOSE(($D117:$E117))),0) -> 0 | Z117: =Z$106+IF($C117<>0,SUMPRODUCT((Z$107:Z$108)*TRANSPOSE(($D117:$E117))),0) -> 0 | AA117: =AA$106+IF($C117<>0,SUMPRODUCT((AA$107:AA$108)*TRANSPOSE(($D117:$E117))),0) -> 0 | AB117: =AB$106+IF($C117<>0,SUMPRODUCT((AB$107:AB$108)*TRANSPOSE(($D117:$E117))),0) -> 0 | AC117: =AC$106+IF($C117<>0,SUMPRODUCT((AC$107:AC$108)*TRANSPOSE(($D117:$E117))),0) -> 0 | AD117: =AD$106+IF($C117<>0,SUMPRODUCT((AD$107:AD$108)*TRANSPOSE(($D117:$E117))),0) -> 0 | AE117: =AE$106+IF($C117<>0,SUMPRODUCT((AE$107:AE$108)*TRANSPOSE(($D117:$E117))),0) -> 0 | AF117: =AF$106+IF($C117<>0,SUMPRODUCT((AF$107:AF$108)*TRANSPOSE(($D117:$E117))),0) -> 0 | AG117: =AG$106+IF($C117<>0,SUMPRODUCT((AG$107:AG$108)*TRANSPOSE(($D117:$E117))),0) -> 0

Sheet Option2
A1: =bus -> CitiPower
A2: =proj -> HV cable replacement
A3: OPTION 2 | C3: =INDEX(Assumptions!$E$14:$E$18, MATCH(A3,_xlfn.ANCHORARRAY( Assumptions!$C$14),0)) -> Replace highest 5 delta risk cable sections
A4: =(INDEX(Data!$D$9:$D$13, MATCH(A3, options,0))) -> 
A6: ='Option1 (base case)'!A6 -> Count | I6: ='Option1 (base case)'!I6 -> 1 | J6: ='Option1 (base case)'!J6 -> 2 | K6: ='Option1 (base case)'!K6 -> 3 | L6: ='Option1 (base case)'!L6 -> 4 | M6: ='Option1 (base case)'!M6 -> 5 | N6: ='Option1 (base case)'!N6 -> 6 | O6: ='Option1 (base case)'!O6 -> 7 | P6: ='Option1 (base case)'!P6 -> 8 | Q6: ='Option1 (base case)'!Q6 -> 9 | R6: ='Option1 (base case)'!R6 -> 10 | S6: ='Option1 (base case)'!S6 -> 11 | T6: ='Option1 (base case)'!T6 -> 12 | U6: ='Option1 (base case)'!U6 -> 13 | V6: ='Option1 (base case)'!V6 -> 14 | W6: ='Option1 (base case)'!W6 -> 15 | X6: ='Option1 (base case)'!X6 -> 16 | Y6: ='Option1 (base case)'!Y6 -> 17 | Z6: ='Option1 (base case)'!Z6 -> 18 | AA6: ='Option1 (base case)'!AA6 -> 19 | AB6: ='Option1 (base case)'!AB6 -> 20 | AC6: ='Option1 (base case)'!AC6 -> 21 | AD6: ='Option1 (base case)'!AD6 -> 22 | AE6: ='Option1 (base case)'!AE6 -> 23 | AF6: ='Option1 (base case)'!AF6 -> 24 | AG6: ='Option1 (base case)'!AG6 -> 25
A7: ='Option1 (base case)'!A7 -> Value of CO2 reductions | G7: $/MWh | I7: ='Option1 (base case)'!I7 -> 24.7304868 | J7: ='Option1 (base case)'!J7 -> 22.34074009 | K7: ='Option1 (base case)'!K7 -> 20.19632912 | L7: ='Option1 (base case)'!L7 -> 18.06294208 | M7: ='Option1 (base case)'!M7 -> 15.91339762 | N7: ='Option1 (base case)'!N7 -> 13.71506943 | O7: ='Option1 (base case)'!O7 -> 13.71506943 | P7: ='Option1 (base case)'!P7 -> 13.71506943 | Q7: ='Option1 (base case)'!Q7 -> 13.71506943 | R7: ='Option1 (base case)'!R7 -> 13.71506943 | S7: ='Option1 (base case)'!S7 -> 13.71506943 | T7: ='Option1 (base case)'!T7 -> 13.71506943 | U7: ='Option1 (base case)'!U7 -> 13.71506943 | V7: ='Option1 (base case)'!V7 -> 13.71506943 | W7: ='Option1 (base case)'!W7 -> 13.71506943 | X7: ='Option1 (base case)'!X7 -> 13.71506943 | Y7: ='Option1 (base case)'!Y7 -> 13.71506943 | Z7: ='Option1 (base case)'!Z7 -> 13.71506943 | AA7: ='Option1 (base case)'!AA7 -> 13.71506943 | AB7: ='Option1 (base case)'!AB7 -> 13.71506943 | AC7: ='Option1 (base case)'!AC7 -> 13.71506943 | AD7: ='Option1 (base case)'!AD7 -> 13.71506943 | AE7: ='Option1 (base case)'!AE7 -> 13.71506943 | AF7: ='Option1 (base case)'!AF7 -> 13.71506943 | AG7: ='Option1 (base case)'!AG7 -> 13.71506943
G9: Units | I9: ='Option1 (base case)'!I9 -> 2026-27 | J9: ='Option1 (base case)'!J9 -> 2027-28 | K9: ='Option1 (base case)'!K9 -> 2028-29 | L9: ='Option1 (base case)'!L9 -> 2029-30 | M9: ='Option1 (base case)'!M9 -> 2030-31 | N9: ='Option1 (base case)'!N9 -> 2031-32 | O9: ='Option1 (base case)'!O9 -> 2032-33 | P9: ='Option1 (base case)'!P9 -> 2033-34 | Q9: ='Option1 (base case)'!Q9 -> 2034-35 | R9: ='Option1 (base case)'!R9 -> 2035-36 | S9: ='Option1 (base case)'!S9 -> 2036-37 | T9: ='Option1 (base case)'!T9 -> 2037-38 | U9: ='Option1 (base case)'!U9 -> 2038-39 | V9: ='Option1 (base case)'!V9 -> 2039-40 | W9: ='Option1 (base case)'!W9 -> 2040-41 | X9: ='Option1 (base case)'!X9 -> 2041-42 | Y9: ='Option1 (base case)'!Y9 -> 2042-43 | Z9: ='Option1 (base case)'!Z9 -> 2043-44 | AA9: ='Option1 (base case)'!AA9 -> 2044-45 | AB9: ='Option1 (base case)'!AB9 -> 2045-46 | AC9: ='Option1 (base case)'!AC9 -> 2046-47 | AD9: ='Option1 (base case)'!AD9 -> 2047-48 | AE9: ='Option1 (base case)'!AE9 -> 2048-49 | AF9: ='Option1 (base case)'!AF9 -> 2049-50 | AG9: ='Option1 (base case)'!AG9 -> 2050-51
A11: INVESTMENT & OPERATING COST
C13: Capex | E13: Asset life (yrs)
C14: Cable replacement | E14: 60 | G14: =input_dollars -> 2023-12-31 | I14: =Workings_costs!E43 -> 726732.496 | J14: =Workings_costs!F43 -> 726732.496 | K14: =Workings_costs!G43 -> 726732.496 | L14: =Workings_costs!H43 -> 726732.496 | M14: =Workings_costs!I43 -> 726732.496 | N14: 0 | O14: 0 | P14: 0 | Q14: 0 | R14: 0 | S14: 0 | T14: 0 | U14: 0 | V14: 0 | W14: 0 | X14: 0 | Y14: 0 | Z14: 0 | AA14: 0 | AB14: 0 | AC14: 0 | AD14: 0 | AE14: 0 | AF14: 0 | AG14: 0
E15: 0 | G15: =input_dollars -> 2023-12-31 | I15: 0 | J15: 0 | K15: 0 | L15: 0 | M15: 0 | N15: 0 | O15: 0 | P15: 0 | Q15: 0 | R15: 0 | S15: 0 | T15: 0 | U15: 0 | V15: 0 | W15: 0 | X15: 0 | Y15: 0 | Z15: 0 | AA15: 0 | AB15: 0 | AC15: 0 | AD15: 0 | AE15: 0 | AF15: 0 | AG15: 0
E16: 0 | G16: =input_dollars -> 2023-12-31 | I16: 0 | J16: 0 | K16: 0 | L16: 0 | M16: 0 | N16: 0 | O16: 0 | P16: 0 | Q16: 0 | R16: 0 | S16: 0 | T16: 0 | U16: 0 | V16: 0 | W16: 0 | X16: 0 | Y16: 0 | Z16: 0 | AA16: 0 | AB16: 0 | AC16: 0 | AD16: 0 | AE16: 0 | AF16: 0 | AG16: 0
C17: Capital expenditure | G17: =input_dollars -> 2023-12-31 | I17: =SUM(I14:I16) -> 726732.496 | J17: 726732.496 | K17: 726732.496 | L17: 726732.496 | M17: 726732.496 | N17: 0 | O17: 0 | P17: 0 | Q17: 0 | R17: =SUM(R14:R16) -> 0 | S17: 0 | T17: 0 | U17: 0 | V17: 0 | W17: 0 | X17: 0 | Y17: 0 | Z17: 0 | AA17: 0 | AB17: 0 | AC17: 0 | AD17: 0 | AE17: 0 | AF17: 0 | AG17: 0
C19: Operating expenditure | G19: =input_dollars -> 2023-12-31 | I19: 0 | J19: 0 | K19: 0 | L19: 0 | M19: 0 | N19: 0 | O19: 0 | P19: 0 | Q19: 0 | R19: 0 | S19: 0 | T19: 0 | U19: 0 | V19: 0 | W19: 0 | X19: 0 | Y19: 0 | Z19: 0 | AA19: 0 | AB19: 0 | AC19: 0 | AD19: 0 | AE19: 0 | AF19: 0 | AG19: 0
A22: RISK ASSUMPTIONS
C24: PoF (major) | I24: 0 | J24: 0 | K24: 0 | L24: 0 | M24: 0 | N24: 0 | O24: 0 | P24: 0 | Q24: 0 | R24: 0 | S24: 0 | T24: 0 | U24: 0 | V24: 0 | W24: 0 | X24: 0 | Y24: 0 | Z24: 0 | AA24: 0 | AB24: 0 | AC24: 0 | AD24: 0 | AE24: 0 | AF24: 0 | AG24: 0
C25: PoF (reparable) | I25: 0 | J25: 0 | K25: 0 | L25: 0 | M25: 0 | N25: 0 | O25: 0 | P25: 0 | Q25: 0 | R25: 0 | S25: 0 | T25: 0 | U25: 0 | V25: 0 | W25: 0 | X25: 0 | Y25: 0 | Z25: 0 | AA25: 0 | AB25: 0 | AC25: 0 | AD25: 0 | AE25: 0 | AF25: 0 | AG25: 0
C27: Energy at risk (weighted) | G27: MWh | I27: =INDEX(Workings_risks!J$60:J$232, MATCH($A$3&$C27, Workings_risks!$E$60:$E$232,0)) -> 88.15459738 | J27: =INDEX(Workings_risks!K$60:K$232, MATCH($A$3&$C27, Workings_risks!$E$60:$E$232,0)) -> 97.0221413 | K27: =INDEX(Workings_risks!L$60:L$232, MATCH($A$3&$C27, Workings_risks!$E$60:$E$232,0)) -> 107.3106931 | L27: =INDEX(Workings_risks!M$60:M$232, MATCH($A$3&$C27, Workings_risks!$E$60:$E$232,0)) -> 119.1148702 | M27: =INDEX(Workings_risks!N$60:N$232, MATCH($A$3&$C27, Workings_risks!$E$60:$E$232,0)) -> 132.6417845 | N27: =INDEX(Workings_risks!O$60:O$232, MATCH($A$3&$C27, Workings_risks!$E$60:$E$232,0)) -> 148.1665209 | O27: =INDEX(Workings_risks!P$60:P$232, MATCH($A$3&$C27, Workings_risks!$E$60:$E$232,0)) -> 166.1496861 | P27: =INDEX(Workings_risks!Q$60:Q$232, MATCH($A$3&$C27, Workings_risks!$E$60:$E$232,0)) -> 186.7319979 | Q27: =INDEX(Workings_risks!R$60:R$232, MATCH($A$3&$C27, Workings_risks!$E$60:$E$232,0)) -> 209.3738959 | R27: =INDEX(Workings_risks!S$60:S$232, MATCH($A$3&$C27, Workings_risks!$E$60:$E$232,0)) -> 233.5190789 | S27: =INDEX(Workings_risks!T$60:T$232, MATCH($A$3&$C27, Workings_risks!$E$60:$E$232,0)) -> 258.9920056 | T27: =INDEX(Workings_risks!U$60:U$232, MATCH($A$3&$C27, Workings_risks!$E$60:$E$232,0)) -> 287.2096801 | U27: =INDEX(Workings_risks!V$60:V$232, MATCH($A$3&$C27, Workings_risks!$E$60:$E$232,0)) -> 317.8993713 | V27: =INDEX(Workings_risks!W$60:W$232, MATCH($A$3&$C27, Workings_risks!$E$60:$E$232,0)) -> 349.4858182 | W27: =INDEX(Workings_risks!X$60:X$232, MATCH($A$3&$C27, Workings_risks!$E$60:$E$232,0)) -> 379.5019875 | X27: =INDEX(Workings_risks!Y$60:Y$232, MATCH($A$3&$C27, Workings_risks!$E$60:$E$232,0)) -> 408.4163785 | Y27: =INDEX(Workings_risks!Z$60:Z$232, MATCH($A$3&$C27, Workings_risks!$E$60:$E$232,0)) -> 436.7271533 | Z27: =INDEX(Workings_risks!AA$60:AA$232, MATCH($A$3&$C27, Workings_risks!$E$60:$E$232,0)) -> 463.3761581 | AA27: =INDEX(Workings_risks!AB$60:AB$232, MATCH($A$3&$C27, Workings_risks!$E$60:$E$232,0)) -> 487.7747663 | AB27: =INDEX(Workings_risks!AC$60:AC$232, MATCH($A$3&$C27, Workings_risks!$E$60:$E$232,0)) -> 509.0565655 | AC27: =INDEX(Workings_risks!AD$60:AD$232, MATCH($A$3&$C27, Workings_risks!$E$60:$E$232,0)) -> 530.5212391 | AD27: =INDEX(Workings_risks!AE$60:AE$232, MATCH($A$3&$C27, Workings_risks!$E$60:$E$232,0)) -> 552.4252413 | AE27: =INDEX(Workings_risks!AF$60:AF$232, MATCH($A$3&$C27, Workings_risks!$E$60:$E$232,0)) -> 574.3873604 | AF27: =INDEX(Workings_risks!AG$60:AG$232, MATCH($A$3&$C27, Workings_risks!$E$60:$E$232,0)) -> 596.8119867 | AG27: =INDEX(Workings_risks!AH$60:AH$232, MATCH($A$3&$C27, Workings_risks!$E$60:$E$232,0)) -> 619.3427118
C28: Energy at risk value | D28: $/MWh | E28: =Assumptions!H41*vcr_esc -> 36935.21398 | F28: =IF(AND(SUM(I27:AG27)<>0, E28=0), "!", "") ->  | G28: =input_dollars -> 2023-12-31 | I28: =I27*$E$28 -> 3256008.917 | J28: =J27*$E$28 -> 3583533.549 | K28: 3963543.412 | L28: 4399533.22 | M28: 4899152.693 | N28: 5472562.152 | O28: 6136774.208 | P28: 6896986.299 | Q28: 7733269.648 | R28: 8625077.146 | S28: 9565925.145 | T28: 10608150.99 | U28: 11741681.3 | V28: 12908333.48 | W28: 14016987.12 | X28: 15084946.33 | Y28: 16130610.86 | Z28: 17114897.55 | AA28: 18016065.36 | AB28: 18802113.17 | AC28: 19594915.48 | AD28: 20403944.49 | AE28: 21215120.06 | AF28: 22043378.43 | AG28: 22875555.59
C30: ='Option1 (base case)'!C30 -> Safety consequence | D30: (after DF) | G30: =input_dollars -> 2023-12-31 | I30: =INDEX(Workings_risks!J$60:J$170, MATCH($A$3&$C30, Workings_risks!$E$60:$E$170,0)) -> 937071.2295 | J30: =INDEX(Workings_risks!K$60:K$170, MATCH($A$3&$C30, Workings_risks!$E$60:$E$170,0)) -> 1031412.72 | K30: =INDEX(Workings_risks!L$60:L$170, MATCH($A$3&$C30, Workings_risks!$E$60:$E$170,0)) -> 1140886.318 | L30: =INDEX(Workings_risks!M$60:M$170, MATCH($A$3&$C30, Workings_risks!$E$60:$E$170,0)) -> 1266504.715 | M30: =INDEX(Workings_risks!N$60:N$170, MATCH($A$3&$C30, Workings_risks!$E$60:$E$170,0)) -> 1410478.135 | N30: =INDEX(Workings_risks!O$60:O$170, MATCH($A$3&$C30, Workings_risks!$E$60:$E$170,0)) -> 1575741.51 | O30: =INDEX(Workings_risks!P$60:P$170, MATCH($A$3&$C30, Workings_risks!$E$60:$E$170,0)) -> 1767028.511 | P30: =INDEX(Workings_risks!Q$60:Q$170, MATCH($A$3&$C30, Workings_risks!$E$60:$E$170,0)) -> 1985967.266 | Q30: =INDEX(Workings_risks!R$60:R$170, MATCH($A$3&$C30, Workings_risks!$E$60:$E$170,0)) -> 2226734.446 | R30: =INDEX(Workings_risks!S$60:S$170, MATCH($A$3&$C30, Workings_risks!$E$60:$E$170,0)) -> 2483429.179 | S30: =INDEX(Workings_risks!T$60:T$170, MATCH($A$3&$C30, Workings_risks!$E$60:$E$170,0)) -> 2754223.965 | T30: =INDEX(Workings_risks!U$60:U$170, MATCH($A$3&$C30, Workings_risks!$E$60:$E$170,0)) -> 3054197.733 | U30: =INDEX(Workings_risks!V$60:V$170, MATCH($A$3&$C30, Workings_risks!$E$60:$E$170,0)) -> 3380451.738 | V30: =INDEX(Workings_risks!W$60:W$170, MATCH($A$3&$C30, Workings_risks!$E$60:$E$170,0)) -> 3716240.928 | W30: =INDEX(Workings_risks!X$60:X$170, MATCH($A$3&$C30, Workings_risks!$E$60:$E$170,0)) -> 4035308.674 | X30: =INDEX(Workings_risks!Y$60:Y$170, MATCH($A$3&$C30, Workings_risks!$E$60:$E$170,0)) -> 4342664.668 | Y30: =INDEX(Workings_risks!Z$60:Z$170, MATCH($A$3&$C30, Workings_risks!$E$60:$E$170,0)) -> 4643604.305 | Z30: =INDEX(Workings_risks!AA$60:AA$170, MATCH($A$3&$C30, Workings_risks!$E$60:$E$170,0)) -> 4926879.556 | AA30: =INDEX(Workings_risks!AB$60:AB$170, MATCH($A$3&$C30, Workings_risks!$E$60:$E$170,0)) -> 5186233.401 | AB30: =INDEX(Workings_risks!AC$60:AC$170, MATCH($A$3&$C30, Workings_risks!$E$60:$E$170,0)) -> 5412455.995 | AC30: =INDEX(Workings_risks!AD$60:AD$170, MATCH($A$3&$C30, Workings_risks!$E$60:$E$170,0)) -> 5640622.519 | AD30: =INDEX(Workings_risks!AE$60:AE$170, MATCH($A$3&$C30, Workings_risks!$E$60:$E$170,0)) -> 5873459.047 | AE30: =INDEX(Workings_risks!AF$60:AF$170, MATCH($A$3&$C30, Workings_risks!$E$60:$E$170,0)) -> 6106913.348 | AF30: =INDEX(Workings_risks!AG$60:AG$170, MATCH($A$3&$C30, Workings_risks!$E$60:$E$170,0)) -> 6345284.037 | AG30: =INDEX(Workings_risks!AH$60:AH$170, MATCH($A$3&$C30, Workings_risks!$E$60:$E$170,0)) -> 6584782.542
C31: ='Option1 (base case)'!C31 -> Unplanned replacements | G31: =input_dollars -> 2023-12-31 | I31: =INDEX(Workings_risks!J$60:J$170, MATCH($A$3&$C31, Workings_risks!$E$60:$E$170,0)) -> 2159114.733 | J31: =INDEX(Workings_risks!K$60:K$170, MATCH($A$3&$C31, Workings_risks!$E$60:$E$170,0)) -> 2365771.596 | K31: =INDEX(Workings_risks!L$60:L$170, MATCH($A$3&$C31, Workings_risks!$E$60:$E$170,0)) -> 2603711.474 | L31: =INDEX(Workings_risks!M$60:M$170, MATCH($A$3&$C31, Workings_risks!$E$60:$E$170,0)) -> 2874348.81 | M31: =INDEX(Workings_risks!N$60:N$170, MATCH($A$3&$C31, Workings_risks!$E$60:$E$170,0)) -> 3181627.437 | N31: =INDEX(Workings_risks!O$60:O$170, MATCH($A$3&$C31, Workings_risks!$E$60:$E$170,0)) -> 3530873.486 | O31: =INDEX(Workings_risks!P$60:P$170, MATCH($A$3&$C31, Workings_risks!$E$60:$E$170,0)) -> 3954569.406 | P31: =INDEX(Workings_risks!Q$60:Q$170, MATCH($A$3&$C31, Workings_risks!$E$60:$E$170,0)) -> 4438900.139 | Q31: =INDEX(Workings_risks!R$60:R$170, MATCH($A$3&$C31, Workings_risks!$E$60:$E$170,0)) -> 4982114.382 | R31: =INDEX(Workings_risks!S$60:S$170, MATCH($A$3&$C31, Workings_risks!$E$60:$E$170,0)) -> 5568952.065 | S31: =INDEX(Workings_risks!T$60:T$170, MATCH($A$3&$C31, Workings_risks!$E$60:$E$170,0)) -> 6190093.908 | T31: =INDEX(Workings_risks!U$60:U$170, MATCH($A$3&$C31, Workings_risks!$E$60:$E$170,0)) -> 6878110.118 | U31: =INDEX(Workings_risks!V$60:V$170, MATCH($A$3&$C31, Workings_risks!$E$60:$E$170,0)) -> 7626275.251 | V31: =INDEX(Workings_risks!W$60:W$170, MATCH($A$3&$C31, Workings_risks!$E$60:$E$170,0)) -> 8396039.476 | W31: =INDEX(Workings_risks!X$60:X$170, MATCH($A$3&$C31, Workings_risks!$E$60:$E$170,0)) -> 9131206.505 | X31: =INDEX(Workings_risks!Y$60:Y$170, MATCH($A$3&$C31, Workings_risks!$E$60:$E$170,0)) -> 9839388.374 | Y31: =INDEX(Workings_risks!Z$60:Z$170, MATCH($A$3&$C31, Workings_risks!$E$60:$E$170,0)) -> 10532786.25 | Z31: =INDEX(Workings_risks!AA$60:AA$170, MATCH($A$3&$C31, Workings_risks!$E$60:$E$170,0)) -> 11185483.45 | AA31: =INDEX(Workings_risks!AB$60:AB$170, MATCH($A$3&$C31, Workings_risks!$E$60:$E$170,0)) -> 11783063.11 | AB31: =INDEX(Workings_risks!AC$60:AC$170, MATCH($A$3&$C31, Workings_risks!$E$60:$E$170,0)) -> 12304304.75 | AC31: =INDEX(Workings_risks!AD$60:AD$170, MATCH($A$3&$C31, Workings_risks!$E$60:$E$170,0)) -> 12830025.4 | AD31: =INDEX(Workings_risks!AE$60:AE$170, MATCH($A$3&$C31, Workings_risks!$E$60:$E$170,0)) -> 13366506.26 | AE31: =INDEX(Workings_risks!AF$60:AF$170, MATCH($A$3&$C31, Workings_risks!$E$60:$E$170,0)) -> 13904410.54 | AF31: =INDEX(Workings_risks!AG$60:AG$170, MATCH($A$3&$C31, Workings_risks!$E$60:$E$170,0)) -> 14453642.71 | AG31: =INDEX(Workings_risks!AH$60:AH$170, MATCH($A$3&$C31, Workings_risks!$E$60:$E$170,0)) -> 15005473.49
C32: ='Option1 (base case)'!C32 -> Environmental consequence | D32: (after DF) | G32: =input_dollars -> 2023-12-31 | I32: =INDEX(Workings_risks!J$60:J$170, MATCH($A$3&$C32, Workings_risks!$E$60:$E$170,0)) -> 128429.5992 | J32: =INDEX(Workings_risks!K$60:K$170, MATCH($A$3&$C32, Workings_risks!$E$60:$E$170,0)) -> 141355.0941 | K32: =INDEX(Workings_risks!L$60:L$170, MATCH($A$3&$C32, Workings_risks!$E$60:$E$170,0)) -> 156353.0349 | L32: =INDEX(Workings_risks!M$60:M$170, MATCH($A$3&$C32, Workings_risks!$E$60:$E$170,0)) -> 173561.8374 | M32: =INDEX(Workings_risks!N$60:N$170, MATCH($A$3&$C32, Workings_risks!$E$60:$E$170,0)) -> 193283.9496 | N32: =INDEX(Workings_risks!O$60:O$170, MATCH($A$3&$C32, Workings_risks!$E$60:$E$170,0)) -> 215921.0258 | O32: =INDEX(Workings_risks!P$60:P$170, MATCH($A$3&$C32, Workings_risks!$E$60:$E$170,0)) -> 242130.71 | P32: =INDEX(Workings_risks!Q$60:Q$170, MATCH($A$3&$C32, Workings_risks!$E$60:$E$170,0)) -> 272128.9188 | Q32: =INDEX(Workings_risks!R$60:R$170, MATCH($A$3&$C32, Workings_risks!$E$60:$E$170,0)) -> 305122.3389 | R32: =INDEX(Workings_risks!S$60:S$170, MATCH($A$3&$C32, Workings_risks!$E$60:$E$170,0)) -> 340301.5459 | S32: =INDEX(Workings_risks!T$60:T$170, MATCH($A$3&$C32, Workings_risks!$E$60:$E$170,0)) -> 377413.9723 | T32: =INDEX(Workings_risks!U$60:U$170, MATCH($A$3&$C32, Workings_risks!$E$60:$E$170,0)) -> 418525.3554 | U32: =INDEX(Workings_risks!V$60:V$170, MATCH($A$3&$C32, Workings_risks!$E$60:$E$170,0)) -> 463238.3907 | V32: =INDEX(Workings_risks!W$60:W$170, MATCH($A$3&$C32, Workings_risks!$E$60:$E$170,0)) -> 509258.1112 | W32: =INDEX(Workings_risks!X$60:X$170, MATCH($A$3&$C32, Workings_risks!$E$60:$E$170,0)) -> 552987.7034 | X32: =INDEX(Workings_risks!Y$60:Y$170, MATCH($A$3&$C32, Workings_risks!$E$60:$E$170,0)) -> 595112.1502 | Y32: =INDEX(Workings_risks!Z$60:Z$170, MATCH($A$3&$C32, Workings_risks!$E$60:$E$170,0)) -> 636357.2079 | Z32: =INDEX(Workings_risks!AA$60:AA$170, MATCH($A$3&$C32, Workings_risks!$E$60:$E$170,0)) -> 675181.2864 | AA32: =INDEX(Workings_risks!AB$60:AB$170, MATCH($A$3&$C32, Workings_risks!$E$60:$E$170,0)) -> 710726.8343 | AB32: =INDEX(Workings_risks!AC$60:AC$170, MATCH($A$3&$C32, Workings_risks!$E$60:$E$170,0)) -> 741731.6035 | AC32: =INDEX(Workings_risks!AD$60:AD$170, MATCH($A$3&$C32, Workings_risks!$E$60:$E$170,0)) -> 773002.7965 | AD32: =INDEX(Workings_risks!AE$60:AE$170, MATCH($A$3&$C32, Workings_risks!$E$60:$E$170,0)) -> 804914.0333 | AE32: =INDEX(Workings_risks!AF$60:AF$170, MATCH($A$3&$C32, Workings_risks!$E$60:$E$170,0)) -> 836909.9385 | AF32: =INDEX(Workings_risks!AG$60:AG$170, MATCH($A$3&$C32, Workings_risks!$E$60:$E$170,0)) -> 869579.6558 | AG32: =INDEX(Workings_risks!AH$60:AH$170, MATCH($A$3&$C32, Workings_risks!$E$60:$E$170,0)) -> 902403.945
C33: ='Option1 (base case)'!C33 -> Response cost | G33: =input_dollars -> 2023-12-31 | I33: =INDEX(Workings_risks!J$60:J$170, MATCH($A$3&$C33, Workings_risks!$E$60:$E$170,0)) -> 400238.0528 | J33: =INDEX(Workings_risks!K$60:K$170, MATCH($A$3&$C33, Workings_risks!$E$60:$E$170,0)) -> 440797.8393 | K33: =INDEX(Workings_risks!L$60:L$170, MATCH($A$3&$C33, Workings_risks!$E$60:$E$170,0)) -> 487909.4043 | L33: =INDEX(Workings_risks!M$60:M$170, MATCH($A$3&$C33, Workings_risks!$E$60:$E$170,0)) -> 542028.0112 | M33: =INDEX(Workings_risks!N$60:N$170, MATCH($A$3&$C33, Workings_risks!$E$60:$E$170,0)) -> 604126.0923 | N33: =INDEX(Workings_risks!O$60:O$170, MATCH($A$3&$C33, Workings_risks!$E$60:$E$170,0)) -> 675492.7264 | O33: =INDEX(Workings_risks!P$60:P$170, MATCH($A$3&$C33, Workings_risks!$E$60:$E$170,0)) -> 757616.1365 | P33: =INDEX(Workings_risks!Q$60:Q$170, MATCH($A$3&$C33, Workings_risks!$E$60:$E$170,0)) -> 851626.1723 | Q33: =INDEX(Workings_risks!R$60:R$170, MATCH($A$3&$C33, Workings_risks!$E$60:$E$170,0)) -> 954747.0693 | R33: =INDEX(Workings_risks!S$60:S$170, MATCH($A$3&$C33, Workings_risks!$E$60:$E$170,0)) -> 1064499.619 | S33: =INDEX(Workings_risks!T$60:T$170, MATCH($A$3&$C33, Workings_risks!$E$60:$E$170,0)) -> 1180229.611 | T33: =INDEX(Workings_risks!U$60:U$170, MATCH($A$3&$C33, Workings_risks!$E$60:$E$170,0)) -> 1308431.246 | U33: =INDEX(Workings_risks!V$60:V$170, MATCH($A$3&$C33, Workings_risks!$E$60:$E$170,0)) -> 1447867.57 | V33: =INDEX(Workings_risks!W$60:W$170, MATCH($A$3&$C33, Workings_risks!$E$60:$E$170,0)) -> 1591385.701 | W33: =INDEX(Workings_risks!X$60:X$170, MATCH($A$3&$C33, Workings_risks!$E$60:$E$170,0)) -> 1727664.619 | X33: =INDEX(Workings_risks!Y$60:Y$170, MATCH($A$3&$C33, Workings_risks!$E$60:$E$170,0)) -> 1858941.261 | Y33: =INDEX(Workings_risks!Z$60:Z$170, MATCH($A$3&$C33, Workings_risks!$E$60:$E$170,0)) -> 1987477.375 | Z33: =INDEX(Workings_risks!AA$60:AA$170, MATCH($A$3&$C33, Workings_risks!$E$60:$E$170,0)) -> 2108468.748 | AA33: =INDEX(Workings_risks!AB$60:AB$170, MATCH($A$3&$C33, Workings_risks!$E$60:$E$170,0)) -> 2219242.908 | AB33: =INDEX(Workings_risks!AC$60:AC$170, MATCH($A$3&$C33, Workings_risks!$E$60:$E$170,0)) -> 2315866.182 | AC33: =INDEX(Workings_risks!AD$60:AD$170, MATCH($A$3&$C33, Workings_risks!$E$60:$E$170,0)) -> 2413319.74 | AD33: =INDEX(Workings_risks!AE$60:AE$170, MATCH($A$3&$C33, Workings_risks!$E$60:$E$170,0)) -> 2512767.931 | AE33: =INDEX(Workings_risks!AF$60:AF$170, MATCH($A$3&$C33, Workings_risks!$E$60:$E$170,0)) -> 2612479.982 | AF33: =INDEX(Workings_risks!AG$60:AG$170, MATCH($A$3&$C33, Workings_risks!$E$60:$E$170,0)) -> 2714291.902 | AG33: =INDEX(Workings_risks!AH$60:AH$170, MATCH($A$3&$C33, Workings_risks!$E$60:$E$170,0)) -> 2816585.53
G34: =input_dollars -> 2023-12-31 | I34: 0 | J34: 0 | K34: 0 | L34: 0 | M34: 0 | N34: 0 | O34: 0 | P34: 0 | Q34: 0 | R34: 0 | S34: 0 | T34: 0 | U34: 0 | V34: 0 | W34: 0 | X34: 0 | Y34: 0 | Z34: 0 | AA34: 0 | AB34: 0 | AC34: 0 | AD34: 0 | AE34: 0 | AF34: 0 | AG34: 0
C36: Total risk cost | I36: =SUM(I28:I34) -> 6880862.532 | J36: =SUM(J28:J34) -> 7562870.799 | K36: 8352403.643 | L36: 9255976.594 | M36: 10288668.31 | N36: 11470590.9 | O36: 12858118.97 | P36: 14445608.79 | Q36: 16201987.88 | R36: 18082259.55 | S36: 20067886.6 | T36: 22267415.44 | U36: 24659514.25 | V36: 27121257.7 | W36: 29464154.62 | X36: 31721052.79 | Y36: 33930836 | Z36: 36010910.6 | AA36: 37915331.62 | AB36: 39576471.7 | AC36: 41251885.95 | AD36: 42961591.77 | AE36: 44675833.87 | AF36: 46426176.74 | AG36: 48184801.1
A38: OTHER BENEFITS
C41: Reduction in CO2 emissions | G41: MWh | I41: 0 | J41: 0 | K41: 0 | L41: 0 | M41: 0 | N41: 0 | O41: 0 | P41: 0 | Q41: 0 | R41: 0 | S41: 0 | T41: 0 | U41: 0 | V41: 0 | W41: 0 | X41: 0 | Y41: 0 | Z41: 0 | AA41: 0 | AB41: 0 | AC41: 0 | AD41: 0 | AE41: 0 | AF41: 0 | AG41: 0
C42: Value of reduction in CO2 emissions | G42: $ | I42: =I41*I7 -> 0 | J42: 0 | K42: 0 | L42: 0 | M42: 0 | N42: 0 | O42: 0 | P42: 0 | Q42: 0 | R42: 0 | S42: 0 | T42: 0 | U42: 0 | V42: 0 | W42: 0 | X42: 0 | Y42: 0 | Z42: 0 | AA42: 0 | AB42: 0 | AC42: 0 | AD42: 0 | AE42: 0 | AF42: 0 | AG42: 0
C45: Reliability in worst-served areas | D45: $/MWh | E45: =Assumptions!G94 -> 151432.8174 | G45: MWh | I45: 0 | J45: 0 | K45: 0 | L45: 0 | M45: 0 | N45: 0 | O45: 0 | P45: 0 | Q45: 0 | R45: 0 | S45: 0 | T45: 0 | U45: 0 | V45: 0 | W45: 0 | X45: 0 | Y45: 0 | Z45: 0 | AA45: 0 | AB45: 0 | AC45: 0 | AD45: 0 | AE45: 0 | AF45: 0 | AG45: 0
C46: Network resilience | D46: $/MWh | E46: =Assumptions!G95 -> 24590 | G46: MWh | I46: 0 | J46: 0 | K46: 0 | L46: 0 | M46: 0 | N46: 0 | O46: 0 | P46: 0 | Q46: 0 | R46: 0 | S46: 0 | T46: 0 | U46: 0 | V46: 0 | W46: 0 | X46: 0 | Y46: 0 | Z46: 0 | AA46: 0 | AB46: 0 | AC46: 0 | AD46: 0 | AE46: 0 | AF46: 0 | AG46: 0
C47: Enabling solar exports | D47: $/MWh | E47: =Assumptions!G96 -> 88.35771951 | G47: MWh | I47: 0 | J47: 0 | K47: 0 | L47: 0 | M47: 0 | N47: 0 | O47: 0 | P47: 0 | Q47: 0 | R47: 0 | S47: 0 | T47: 0 | U47: 0 | V47: 0 | W47: 0 | X47: 0 | Y47: 0 | Z47: 0 | AA47: 0 | AB47: 0 | AC47: 0 | AD47: 0 | AE47: 0 | AF47: 0 | AG47: 0
C48: Aesthetics | D48: $/customer | E48: =Assumptions!G97 -> 0 | G48: customers | I48: 0 | J48: 0 | K48: 0 | L48: 0 | M48: 0 | N48: 0 | O48: 0 | P48: 0 | Q48: 0 | R48: 0 | S48: 0 | T48: 0 | U48: 0 | V48: 0 | W48: 0 | X48: 0 | Y48: 0 | Z48: 0 | AA48: 0 | AB48: 0 | AC48: 0 | AD48: 0 | AE48: 0 | AF48: 0 | AG48: 0
C49: Customer value of time (res) | D49: $/customer min | E49: =Assumptions!G98 -> 0.3518133654 | G49: mins | I49: 0 | J49: 0 | K49: 0 | L49: 0 | M49: 0 | N49: 0 | O49: 0 | P49: 0 | Q49: 0 | R49: 0 | S49: 0 | T49: 0 | U49: 0 | V49: 0 | W49: 0 | X49: 0 | Y49: 0 | Z49: 0 | AA49: 0 | AB49: 0 | AC49: 0 | AD49: 0 | AE49: 0 | AF49: 0 | AG49: 0
C50: Customer value of time (bus) | D50: $/customer min | E50: =Assumptions!G99 -> 0.3518133654 | G50: mins | I50: 0 | J50: 0 | K50: 0 | L50: 0 | M50: 0 | N50: 0 | O50: 0 | P50: 0 | Q50: 0 | R50: 0 | S50: 0 | T50: 0 | U50: 0 | V50: 0 | W50: 0 | X50: 0 | Y50: 0 | Z50: 0 | AA50: 0 | AB50: 0 | AC50: 0 | AD50: 0 | AE50: 0 | AF50: 0 | AG50: 0
C51: Communication | D51: $/customer | E51: =Assumptions!G100 -> 0 | G51: customers | I51: 0 | J51: 0 | K51: 0 | L51: 0 | M51: 0 | N51: 0 | O51: 0 | P51: 0 | Q51: 0 | R51: 0 | S51: 0 | T51: 0 | U51: 0 | V51: 0 | W51: 0 | X51: 0 | Y51: 0 | Z51: 0 | AA51: 0 | AB51: 0 | AC51: 0 | AD51: 0 | AE51: 0 | AF51: 0 | AG51: 0
C52: Information accessibility | D52: $/customer | E52: =Assumptions!G101 -> 0 | G52: customers | I52: 0 | J52: 0 | K52: 0 | L52: 0 | M52: 0 | N52: 0 | O52: 0 | P52: 0 | Q52: 0 | R52: 0 | S52: 0 | T52: 0 | U52: 0 | V52: 0 | W52: 0 | X52: 0 | Y52: 0 | Z52: 0 | AA52: 0 | AB52: 0 | AC52: 0 | AD52: 0 | AE52: 0 | AF52: 0 | AG52: 0
C54: Other benefits 1 | G54: =input_dollars -> 2023-12-31 | I54: 0 | J54: 0 | K54: 0 | L54: 0 | M54: 0 | N54: 0 | O54: 0 | P54: 0 | Q54: 0 | R54: 0 | S54: 0 | T54: 0 | U54: 0 | V54: 0 | W54: 0 | X54: 0 | Y54: 0 | Z54: 0 | AA54: 0 | AB54: 0 | AC54: 0 | AD54: 0 | AE54: 0 | AF54: 0 | AG54: 0
C55: Other benefits 2 | G55: =input_dollars -> 2023-12-31 | I55: 0 | J55: 0 | K55: 0 | L55: 0 | M55: 0 | N55: 0 | O55: 0 | P55: 0 | Q55: 0 | R55: 0 | S55: 0 | T55: 0 | U55: 0 | V55: 0 | W55: 0 | X55: 0 | Y55: 0 | Z55: 0 | AA55: 0 | AB55: 0 | AC55: 0 | AD55: 0 | AE55: 0 | AF55: 0 | AG55: 0
C57: Total other benefits | G57: =input_dollars -> 2023-12-31 | I57: =SUMPRODUCT((I$45:I$52)*($E$45:$E$52))+SUM(I54:I55)+I42 -> 0 | J57: =SUMPRODUCT((J$45:J$52)*($E$45:$E$52))+SUM(J54:J55)+J42 -> 0 | K57: =SUMPRODUCT((K$45:K$52)*($E$45:$E$52))+SUM(K54:K55)+K42 -> 0 | L57: =SUMPRODUCT((L$45:L$52)*($E$45:$E$52))+SUM(L54:L55)+L42 -> 0 | M57: =SUMPRODUCT((M$45:M$52)*($E$45:$E$52))+SUM(M54:M55)+M42 -> 0 | N57: =SUMPRODUCT((N$45:N$52)*($E$45:$E$52))+SUM(N54:N55)+N42 -> 0 | O57: =SUMPRODUCT((O$45:O$52)*($E$45:$E$52))+SUM(O54:O55)+O42 -> 0 | P57: =SUMPRODUCT((P$45:P$52)*($E$45:$E$52))+SUM(P54:P55)+P42 -> 0 | Q57: =SUMPRODUCT((Q$45:Q$52)*($E$45:$E$52))+SUM(Q54:Q55)+Q42 -> 0 | R57: =SUMPRODUCT((R$45:R$52)*($E$45:$E$52))+SUM(R54:R55)+R42 -> 0 | S57: =SUMPRODUCT((S$45:S$52)*($E$45:$E$52))+SUM(S54:S55)+S42 -> 0 | T57: =SUMPRODUCT((T$45:T$52)*($E$45:$E$52))+SUM(T54:T55)+T42 -> 0 | U57: =SUMPRODUCT((U$45:U$52)*($E$45:$E$52))+SUM(U54:U55)+U42 -> 0 | V57: =SUMPRODUCT((V$45:V$52)*($E$45:$E$52))+SUM(V54:V55)+V42 -> 0 | W57: =SUMPRODUCT((W$45:W$52)*($E$45:$E$52))+SUM(W54:W55)+W42 -> 0 | X57: =SUMPRODUCT((X$45:X$52)*($E$45:$E$52))+SUM(X54:X55)+X42 -> 0 | Y57: =SUMPRODUCT((Y$45:Y$52)*($E$45:$E$52))+SUM(Y54:Y55)+Y42 -> 0 | Z57: =SUMPRODUCT((Z$45:Z$52)*($E$45:$E$52))+SUM(Z54:Z55)+Z42 -> 0 | AA57: =SUMPRODUCT((AA$45:AA$52)*($E$45:$E$52))+SUM(AA54:AA55)+AA42 -> 0 | AB57: =SUMPRODUCT((AB$45:AB$52)*($E$45:$E$52))+SUM(AB54:AB55)+AB42 -> 0 | AC57: =SUMPRODUCT((AC$45:AC$52)*($E$45:$E$52))+SUM(AC54:AC55)+AC42 -> 0 | AD57: =SUMPRODUCT((AD$45:AD$52)*($E$45:$E$52))+SUM(AD54:AD55)+AD42 -> 0 | AE57: =SUMPRODUCT((AE$45:AE$52)*($E$45:$E$52))+SUM(AE54:AE55)+AE42 -> 0 | AF57: =SUMPRODUCT((AF$45:AF$52)*($E$45:$E$52))+SUM(AF54:AF55)+AF42 -> 0 | AG57: =SUMPRODUCT((AG$45:AG$52)*($E$45:$E$52))+SUM(AG54:AG55)+AG42 -> 0
A60: SUMMARY
C64: ='Option1 (base case)'!C64 -> Risks mitigated vs base case | G64: =input_dollars -> 2023-12-31 | I64: =(1-INDEX(Data!$C$9:$C$13, MATCH($A$3, options,0)))*('Option1 (base case)'!I36-I36) -> 0 | J64: =(1-INDEX(Data!$C$9:$C$13, MATCH($A$3, options,0)))*('Option1 (base case)'!J36-J36) -> 15894.82017 | K64: =(1-INDEX(Data!$C$9:$C$13, MATCH($A$3, options,0)))*('Option1 (base case)'!K36-K36) -> 37104.12324 | L64: =(1-INDEX(Data!$C$9:$C$13, MATCH($A$3, options,0)))*('Option1 (base case)'!L36-L36) -> 64990.87868 | M64: =(1-INDEX(Data!$C$9:$C$13, MATCH($A$3, options,0)))*('Option1 (base case)'!M36-M36) -> 101258.9793 | N64: =(1-INDEX(Data!$C$9:$C$13, MATCH($A$3, options,0)))*('Option1 (base case)'!N36-N36) -> 148038.7744 | O64: =(1-INDEX(Data!$C$9:$C$13, MATCH($A$3, options,0)))*('Option1 (base case)'!O36-O36) -> 173328.4749 | P64: =(1-INDEX(Data!$C$9:$C$13, MATCH($A$3, options,0)))*('Option1 (base case)'!P36-P36) -> 203183.385 | Q64: =(1-INDEX(Data!$C$9:$C$13, MATCH($A$3, options,0)))*('Option1 (base case)'!Q36-Q36) -> 220299.5728 | R64: =(1-INDEX(Data!$C$9:$C$13, MATCH($A$3, options,0)))*('Option1 (base case)'!R36-R36) -> 227144.8748 | S64: =(1-INDEX(Data!$C$9:$C$13, MATCH($A$3, options,0)))*('Option1 (base case)'!S36-S36) -> 231296.471 | T64: =(1-INDEX(Data!$C$9:$C$13, MATCH($A$3, options,0)))*('Option1 (base case)'!T36-T36) -> 235977.8846 | U64: =(1-INDEX(Data!$C$9:$C$13, MATCH($A$3, options,0)))*('Option1 (base case)'!U36-U36) -> 241257.9655 | V64: =(1-INDEX(Data!$C$9:$C$13, MATCH($A$3, options,0)))*('Option1 (base case)'!V36-V36) -> 247088.3587 | W64: =(1-INDEX(Data!$C$9:$C$13, MATCH($A$3, options,0)))*('Option1 (base case)'!W36-W36) -> 247088.3587 | X64: =(1-INDEX(Data!$C$9:$C$13, MATCH($A$3, options,0)))*('Option1 (base case)'!X36-X36) -> 247088.3587 | Y64: =(1-INDEX(Data!$C$9:$C$13, MATCH($A$3, options,0)))*('Option1 (base case)'!Y36-Y36) -> 247088.3587 | Z64: =(1-INDEX(Data!$C$9:$C$13, MATCH($A$3, options,0)))*('Option1 (base case)'!Z36-Z36) -> 247088.3587 | AA64: =(1-INDEX(Data!$C$9:$C$13, MATCH($A$3, options,0)))*('Option1 (base case)'!AA36-AA36) -> 247088.3587 | AB64: =(1-INDEX(Data!$C$9:$C$13, MATCH($A$3, options,0)))*('Option1 (base case)'!AB36-AB36) -> 247088.3587 | AC64: =(1-INDEX(Data!$C$9:$C$13, MATCH($A$3, options,0)))*('Option1 (base case)'!AC36-AC36) -> 247088.3587 | AD64: =(1-INDEX(Data!$C$9:$C$13, MATCH($A$3, options,0)))*('Option1 (base case)'!AD36-AD36) -> 247088.3587 | AE64: =(1-INDEX(Data!$C$9:$C$13, MATCH($A$3, options,0)))*('Option1 (base case)'!AE36-AE36) -> 247088.3587 | AF64: =(1-INDEX(Data!$C$9:$C$13, MATCH($A$3, options,0)))*('Option1 (base case)'!AF36-AF36) -> 247088.3587 | AG64: =(1-INDEX(Data!$C$9:$C$13, MATCH($A$3, options,0)))*('Option1 (base case)'!AG36-AG36) -> 247088.3587
C66: Capital expenditure
C67: =C14 -> Cable replacement | G67: =input_dollars -> 2023-12-31 | I67: =-I14 -> -726732.496 | J67: -726732.496 | K67: -726732.496 | L67: -726732.496 | M67: -726732.496 | N67: 0 | O67: 0 | P67: 0 | Q67: 0 | R67: 0 | S67: 0 | T67: 0 | U67: 0 | V67: 0 | W67: 0 | X67: 0 | Y67: 0 | Z67: 0 | AA67: 0 | AB67: 0 | AC67: 0 | AD67: 0 | AE67: 0 | AF67: 0 | AG67: 0
C68: =C15 -> 0 | G68: =input_dollars -> 2023-12-31 | I68: =-I15 -> 0 | J68: 0 | K68: 0 | L68: 0 | M68: 0 | N68: 0 | O68: 0 | P68: 0 | Q68: 0 | R68: 0 | S68: 0 | T68: 0 | U68: 0 | V68: 0 | W68: 0 | X68: 0 | Y68: 0 | Z68: 0 | AA68: 0 | AB68: 0 | AC68: 0 | AD68: 0 | AE68: 0 | AF68: 0 | AG68: 0
C69: =C16 -> 0 | G69: =input_dollars -> 2023-12-31 | I69: =-I16 -> 0 | J69: 0 | K69: 0 | L69: 0 | M69: 0 | N69: 0 | O69: 0 | P69: 0 | Q69: 0 | R69: 0 | S69: 0 | T69: 0 | U69: 0 | V69: 0 | W69: 0 | X69: 0 | Y69: 0 | Z69: 0 | AA69: 0 | AB69: 0 | AC69: 0 | AD69: 0 | AE69: 0 | AF69: 0 | AG69: 0
C71: Cumulative capex
C72: =C14 -> Cable replacement | G72: =input_dollars -> 2023-12-31 | I72: =SUMPRODUCT(($I67:I67))-SUMPRODUCT(($I67:I67)*($I$6:I$6<=(I$6-$E14))) -> -726732.496 | J72: =SUMPRODUCT(($I67:J67))-SUMPRODUCT(($I67:J67)*($I$6:J$6<=(J$6-$E14))) -> -1453464.992 | K72: =SUMPRODUCT(($I67:K67))-SUMPRODUCT(($I67:K67)*($I$6:K$6<=(K$6-$E14))) -> -2180197.488 | L72: =SUMPRODUCT(($I67:L67))-SUMPRODUCT(($I67:L67)*($I$6:L$6<=(L$6-$E14))) -> -2906929.984 | M72: =SUMPRODUCT(($I67:M67))-SUMPRODUCT(($I67:M67)*($I$6:M$6<=(M$6-$E14))) -> -3633662.48 | N72: =SUMPRODUCT(($I67:N67))-SUMPRODUCT(($I67:N67)*($I$6:N$6<=(N$6-$E14))) -> -3633662.48 | O72: =SUMPRODUCT(($I67:O67))-SUMPRODUCT(($I67:O67)*($I$6:O$6<=(O$6-$E14))) -> -3633662.48 | P72: =SUMPRODUCT(($I67:P67))-SUMPRODUCT(($I67:P67)*($I$6:P$6<=(P$6-$E14))) -> -3633662.48 | Q72: =SUMPRODUCT(($I67:Q67))-SUMPRODUCT(($I67:Q67)*($I$6:Q$6<=(Q$6-$E14))) -> -3633662.48 | R72: =SUMPRODUCT(($I67:R67))-SUMPRODUCT(($I67:R67)*($I$6:R$6<=(R$6-$E14))) -> -3633662.48 | S72: =SUMPRODUCT(($I67:S67))-SUMPRODUCT(($I67:S67)*($I$6:S$6<=(S$6-$E14))) -> -3633662.48 | T72: =SUMPRODUCT(($I67:T67))-SUMPRODUCT(($I67:T67)*($I$6:T$6<=(T$6-$E14))) -> -3633662.48 | U72: =SUMPRODUCT(($I67:U67))-SUMPRODUCT(($I67:U67)*($I$6:U$6<=(U$6-$E14))) -> -3633662.48 | V72: =SUMPRODUCT(($I67:V67))-SUMPRODUCT(($I67:V67)*($I$6:V$6<=(V$6-$E14))) -> -3633662.48 | W72: =SUMPRODUCT(($I67:W67))-SUMPRODUCT(($I67:W67)*($I$6:W$6<=(W$6-$E14))) -> -3633662.48 | X72: =SUMPRODUCT(($I67:X67))-SUMPRODUCT(($I67:X67)*($I$6:X$6<=(X$6-$E14))) -> -3633662.48 | Y72: =SUMPRODUCT(($I67:Y67))-SUMPRODUCT(($I67:Y67)*($I$6:Y$6<=(Y$6-$E14))) -> -3633662.48 | Z72: =SUMPRODUCT(($I67:Z67))-SUMPRODUCT(($I67:Z67)*($I$6:Z$6<=(Z$6-$E14))) -> -3633662.48 | AA72: =SUMPRODUCT(($I67:AA67))-SUMPRODUCT(($I67:AA67)*($I$6:AA$6<=(AA$6-$E14))) -> -3633662.48 | AB72: =SUMPRODUCT(($I67:AB67))-SUMPRODUCT(($I67:AB67)*($I$6:AB$6<=(AB$6-$E14))) -> -3633662.48 | AC72: =SUMPRODUCT(($I67:AC67))-SUMPRODUCT(($I67:AC67)*($I$6:AC$6<=(AC$6-$E14))) -> -3633662.48 | AD72: =SUMPRODUCT(($I67:AD67))-SUMPRODUCT(($I67:AD67)*($I$6:AD$6<=(AD$6-$E14))) -> -3633662.48 | AE72: =SUMPRODUCT(($I67:AE67))-SUMPRODUCT(($I67:AE67)*($I$6:AE$6<=(AE$6-$E14))) -> -3633662.48 | AF72: =SUMPRODUCT(($I67:AF67))-SUMPRODUCT(($I67:AF67)*($I$6:AF$6<=(AF$6-$E14))) -> -3633662.48 | AG72: =SUMPRODUCT(($I67:AG67))-SUMPRODUCT(($I67:AG67)*($I$6:AG$6<=(AG$6-$E14))) -> -3633662.48
C73: =C15 -> 0 | G73: =input_dollars -> 2023-12-31 | I73: =SUMPRODUCT(($I68:I68))-SUMPRODUCT(($I68:I68)*($I$6:I$6<=(I$6-$E15))) -> 0 | J73: =SUMPRODUCT(($I68:J68))-SUMPRODUCT(($I68:J68)*($I$6:J$6<=(J$6-$E15))) -> 0 | K73: =SUMPRODUCT(($I68:K68))-SUMPRODUCT(($I68:K68)*($I$6:K$6<=(K$6-$E15))) -> 0 | L73: =SUMPRODUCT(($I68:L68))-SUMPRODUCT(($I68:L68)*($I$6:L$6<=(L$6-$E15))) -> 0 | M73: =SUMPRODUCT(($I68:M68))-SUMPRODUCT(($I68:M68)*($I$6:M$6<=(M$6-$E15))) -> 0 | N73: =SUMPRODUCT(($I68:N68))-SUMPRODUCT(($I68:N68)*($I$6:N$6<=(N$6-$E15))) -> 0 | O73: =SUMPRODUCT(($I68:O68))-SUMPRODUCT(($I68:O68)*($I$6:O$6<=(O$6-$E15))) -> 0 | P73: =SUMPRODUCT(($I68:P68))-SUMPRODUCT(($I68:P68)*($I$6:P$6<=(P$6-$E15))) -> 0 | Q73: =SUMPRODUCT(($I68:Q68))-SUMPRODUCT(($I68:Q68)*($I$6:Q$6<=(Q$6-$E15))) -> 0 | R73: =SUMPRODUCT(($I68:R68))-SUMPRODUCT(($I68:R68)*($I$6:R$6<=(R$6-$E15))) -> 0 | S73: =SUMPRODUCT(($I68:S68))-SUMPRODUCT(($I68:S68)*($I$6:S$6<=(S$6-$E15))) -> 0 | T73: =SUMPRODUCT(($I68:T68))-SUMPRODUCT(($I68:T68)*($I$6:T$6<=(T$6-$E15))) -> 0 | U73: =SUMPRODUCT(($I68:U68))-SUMPRODUCT(($I68:U68)*($I$6:U$6<=(U$6-$E15))) -> 0 | V73: =SUMPRODUCT(($I68:V68))-SUMPRODUCT(($I68:V68)*($I$6:V$6<=(V$6-$E15))) -> 0 | W73: =SUMPRODUCT(($I68:W68))-SUMPRODUCT(($I68:W68)*($I$6:W$6<=(W$6-$E15))) -> 0 | X73: =SUMPRODUCT(($I68:X68))-SUMPRODUCT(($I68:X68)*($I$6:X$6<=(X$6-$E15))) -> 0 | Y73: =SUMPRODUCT(($I68:Y68))-SUMPRODUCT(($I68:Y68)*($I$6:Y$6<=(Y$6-$E15))) -> 0 | Z73: =SUMPRODUCT(($I68:Z68))-SUMPRODUCT(($I68:Z68)*($I$6:Z$6<=(Z$6-$E15))) -> 0 | AA73: =SUMPRODUCT(($I68:AA68))-SUMPRODUCT(($I68:AA68)*($I$6:AA$6<=(AA$6-$E15))) -> 0 | AB73: =SUMPRODUCT(($I68:AB68))-SUMPRODUCT(($I68:AB68)*($I$6:AB$6<=(AB$6-$E15))) -> 0 | AC73: =SUMPRODUCT(($I68:AC68))-SUMPRODUCT(($I68:AC68)*($I$6:AC$6<=(AC$6-$E15))) -> 0 | AD73: =SUMPRODUCT(($I68:AD68))-SUMPRODUCT(($I68:AD68)*($I$6:AD$6<=(AD$6-$E15))) -> 0 | AE73: =SUMPRODUCT(($I68:AE68))-SUMPRODUCT(($I68:AE68)*($I$6:AE$6<=(AE$6-$E15))) -> 0 | AF73: =SUMPRODUCT(($I68:AF68))-SUMPRODUCT(($I68:AF68)*($I$6:AF$6<=(AF$6-$E15))) -> 0 | AG73: =SUMPRODUCT(($I68:AG68))-SUMPRODUCT(($I68:AG68)*($I$6:AG$6<=(AG$6-$E15))) -> 0
C74: =C16 -> 0 | G74: =input_dollars -> 2023-12-31 | I74: =SUMPRODUCT(($I69:I69))-SUMPRODUCT(($I69:I69)*($I$6:I$6<=(I$6-$E16))) -> 0 | J74: =SUMPRODUCT(($I69:J69))-SUMPRODUCT(($I69:J69)*($I$6:J$6<=(J$6-$E16))) -> 0 | K74: =SUMPRODUCT(($I69:K69))-SUMPRODUCT(($I69:K69)*($I$6:K$6<=(K$6-$E16))) -> 0 | L74: =SUMPRODUCT(($I69:L69))-SUMPRODUCT(($I69:L69)*($I$6:L$6<=(L$6-$E16))) -> 0 | M74: =SUMPRODUCT(($I69:M69))-SUMPRODUCT(($I69:M69)*($I$6:M$6<=(M$6-$E16))) -> 0 | N74: =SUMPRODUCT(($I69:N69))-SUMPRODUCT(($I69:N69)*($I$6:N$6<=(N$6-$E16))) -> 0 | O74: =SUMPRODUCT(($I69:O69))-SUMPRODUCT(($I69:O69)*($I$6:O$6<=(O$6-$E16))) -> 0 | P74: =SUMPRODUCT(($I69:P69))-SUMPRODUCT(($I69:P69)*($I$6:P$6<=(P$6-$E16))) -> 0 | Q74: =SUMPRODUCT(($I69:Q69))-SUMPRODUCT(($I69:Q69)*($I$6:Q$6<=(Q$6-$E16))) -> 0 | R74: =SUMPRODUCT(($I69:R69))-SUMPRODUCT(($I69:R69)*($I$6:R$6<=(R$6-$E16))) -> 0 | S74: =SUMPRODUCT(($I69:S69))-SUMPRODUCT(($I69:S69)*($I$6:S$6<=(S$6-$E16))) -> 0 | T74: =SUMPRODUCT(($I69:T69))-SUMPRODUCT(($I69:T69)*($I$6:T$6<=(T$6-$E16))) -> 0 | U74: =SUMPRODUCT(($I69:U69))-SUMPRODUCT(($I69:U69)*($I$6:U$6<=(U$6-$E16))) -> 0 | V74: =SUMPRODUCT(($I69:V69))-SUMPRODUCT(($I69:V69)*($I$6:V$6<=(V$6-$E16))) -> 0 | W74: =SUMPRODUCT(($I69:W69))-SUMPRODUCT(($I69:W69)*($I$6:W$6<=(W$6-$E16))) -> 0 | X74: =SUMPRODUCT(($I69:X69))-SUMPRODUCT(($I69:X69)*($I$6:X$6<=(X$6-$E16))) -> 0 | Y74: =SUMPRODUCT(($I69:Y69))-SUMPRODUCT(($I69:Y69)*($I$6:Y$6<=(Y$6-$E16))) -> 0 | Z74: =SUMPRODUCT(($I69:Z69))-SUMPRODUCT(($I69:Z69)*($I$6:Z$6<=(Z$6-$E16))) -> 0 | AA74: =SUMPRODUCT(($I69:AA69))-SUMPRODUCT(($I69:AA69)*($I$6:AA$6<=(AA$6-$E16))) -> 0 | AB74: =SUMPRODUCT(($I69:AB69))-SUMPRODUCT(($I69:AB69)*($I$6:AB$6<=(AB$6-$E16))) -> 0 | AC74: =SUMPRODUCT(($I69:AC69))-SUMPRODUCT(($I69:AC69)*($I$6:AC$6<=(AC$6-$E16))) -> 0 | AD74: =SUMPRODUCT(($I69:AD69))-SUMPRODUCT(($I69:AD69)*($I$6:AD$6<=(AD$6-$E16))) -> 0 | AE74: =SUMPRODUCT(($I69:AE69))-SUMPRODUCT(($I69:AE69)*($I$6:AE$6<=(AE$6-$E16))) -> 0 | AF74: =SUMPRODUCT(($I69:AF69))-SUMPRODUCT(($I69:AF69)*($I$6:AF$6<=(AF$6-$E16))) -> 0 | AG74: =SUMPRODUCT(($I69:AG69))-SUMPRODUCT(($I69:AG69)*($I$6:AG$6<=(AG$6-$E16))) -> 0
C76: Annualised capex
C77: =$C$76&" - "&C14 -> Annualised capex - Cable replacement | G77: =input_dollars -> 2023-12-31 | I77: =IF($E14=0,0,-PMT(real_disc, $E14,H72,)) -> 0 | J77: -29133.70383 | K77: -58267.40767 | L77: -87401.1115 | M77: -116534.8153 | N77: -145668.5192 | O77: -145668.5192 | P77: -145668.5192 | Q77: -145668.5192 | R77: -145668.5192 | S77: -145668.5192 | T77: -145668.5192 | U77: -145668.5192 | V77: -145668.5192 | W77: -145668.5192 | X77: -145668.5192 | Y77: -145668.5192 | Z77: -145668.5192 | AA77: -145668.5192 | AB77: -145668.5192 | AC77: -145668.5192 | AD77: -145668.5192 | AE77: -145668.5192 | AF77: -145668.5192 | AG77: -145668.5192
C78: =$C$76&" - "&C15 -> Annualised capex - | G78: =input_dollars -> 2023-12-31 | I78: =IF($E15=0,0,-PMT(real_disc, $E15,H73,)) -> 0 | J78: 0 | K78: 0 | L78: 0 | M78: 0 | N78: 0 | O78: 0 | P78: 0 | Q78: 0 | R78: 0 | S78: 0 | T78: 0 | U78: 0 | V78: 0 | W78: 0 | X78: 0 | Y78: 0 | Z78: 0 | AA78: 0 | AB78: 0 | AC78: 0 | AD78: 0 | AE78: 0 | AF78: 0 | AG78: 0
C79: =$C$76&" - "&C16 -> Annualised capex - | G79: =input_dollars -> 2023-12-31 | I79: =IF($E16=0,0,-PMT(real_disc, $E16,H74,)) -> 0 | J79: 0 | K79: 0 | L79: 0 | M79: 0 | N79: 0 | O79: 0 | P79: 0 | Q79: 0 | R79: 0 | S79: 0 | T79: 0 | U79: 0 | V79: 0 | W79: 0 | X79: 0 | Y79: 0 | Z79: 0 | AA79: 0 | AB79: 0 | AC79: 0 | AD79: 0 | AE79: 0 | AF79: 0 | AG79: 0
C80: Total annualised capex | G80: =input_dollars -> 2023-12-31 | I80: =SUM(I77:I79) -> 0 | J80: =SUM(J77:J79) -> -29133.70383 | K80: -58267.40767 | L80: -87401.1115 | M80: -116534.8153 | N80: -145668.5192 | O80: -145668.5192 | P80: -145668.5192 | Q80: -145668.5192 | R80: -145668.5192 | S80: -145668.5192 | T80: -145668.5192 | U80: -145668.5192 | V80: -145668.5192 | W80: -145668.5192 | X80: -145668.5192 | Y80: -145668.5192 | Z80: -145668.5192 | AA80: -145668.5192 | AB80: -145668.5192 | AC80: =SUM(AC77:AC79) -> -145668.5192 | AD80: =SUM(AD77:AD79) -> -145668.5192 | AE80: =SUM(AE77:AE79) -> -145668.5192 | AF80: =SUM(AF77:AF79) -> -145668.5192 | AG80: =SUM(AG77:AG79) -> -145668.5192
C82: Annualised capex | G82: =input_dollars -> 2023-12-31 | I82: =I80 -> 0 | J82: =J80 -> -29133.70383 | K82: -58267.40767 | L82: -87401.1115 | M82: -116534.8153 | N82: -145668.5192 | O82: -145668.5192 | P82: -145668.5192 | Q82: -145668.5192 | R82: -145668.5192 | S82: -145668.5192 | T82: -145668.5192 | U82: -145668.5192 | V82: -145668.5192 | W82: -145668.5192 | X82: -145668.5192 | Y82: -145668.5192 | Z82: -145668.5192 | AA82: -145668.5192 | AB82: -145668.5192 | AC82: =AC80 -> -145668.5192 | AD82: =AD80 -> -145668.5192 | AE82: =AE80 -> -145668.5192 | AF82: =AF80 -> -145668.5192 | AG82: =AG80 -> -145668.5192
C83: Operating expenditure | G83: 2023-12-31 | I83: =-I19 -> 0 | J83: 0 | K83: 0 | L83: 0 | M83: 0 | N83: 0 | O83: 0 | P83: 0 | Q83: 0 | R83: 0 | S83: 0 | T83: 0 | U83: 0 | V83: 0 | W83: 0 | X83: 0 | Y83: 0 | Z83: 0 | AA83: 0 | AB83: 0 | AC83: 0 | AD83: 0 | AE83: 0 | AF83: 0 | AG83: 0
C84: Risk mitigated | G84: 2023-12-31 | I84: =I64 -> 0 | J84: =J64 -> 15894.82017 | K84: 37104.12324 | L84: 64990.87868 | M84: 101258.9793 | N84: 148038.7744 | O84: 173328.4749 | P84: 203183.385 | Q84: 220299.5728 | R84: 227144.8748 | S84: 231296.471 | T84: 235977.8846 | U84: 241257.9655 | V84: 247088.3587 | W84: 247088.3587 | X84: 247088.3587 | Y84: 247088.3587 | Z84: 247088.3587 | AA84: 247088.3587 | AB84: 247088.3587 | AC84: =AC64 -> 247088.3587 | AD84: =AD64 -> 247088.3587 | AE84: =AE64 -> 247088.3587 | AF84: =AF64 -> 247088.3587 | AG84: =AG64 -> 247088.3587
C85: Other benefits value | G85: 2023-12-31 | I85: =I57 -> 0 | J85: 0 | K85: 0 | L85: 0 | M85: 0 | N85: 0 | O85: 0 | P85: 0 | Q85: 0 | R85: 0 | S85: 0 | T85: 0 | U85: 0 | V85: 0 | W85: 0 | X85: 0 | Y85: 0 | Z85: 0 | AA85: 0 | AB85: 0 | AC85: 0 | AD85: 0 | AE85: 0 | AF85: 0 | AG85: 0
C87: Net benefits | G87: 2023-12-31 | I87: =SUM(I82:I86) -> 0 | J87: -13238.88366 | K87: -21163.28442 | L87: -22410.23282 | M87: -15275.83605 | N87: 2370.255257 | O87: 27659.95571 | P87: 57514.86585 | Q87: 74631.05368 | R87: 81476.35566 | S87: 85627.95185 | T87: 90309.36544 | U87: 95589.44637 | V87: 101419.8395 | W87: 101419.8395 | X87: 101419.8395 | Y87: 101419.8395 | Z87: 101419.8395 | AA87: 101419.8395 | AB87: 101419.8395 | AC87: =SUM(AC82:AC86) -> 101419.8395 | AD87: =SUM(AD82:AD86) -> 101419.8395 | AE87: =SUM(AE82:AE86) -> 101419.8395 | AF87: =SUM(AF82:AF86) -> 101419.8395 | AG87: =SUM(AG82:AG86) -> 101419.8395
C90: First capex year | G90: =IF(SUM($I17:$AG17)=0,0,(INDEX(I$6:AG$6,MATCH(TRUE,INDEX($I17:$AG17<>0,),0)))) -> 1
C92: First year | G92: =IF(_xlfn.MINIFS($G$90:$G$91, $G$90:$G$91, ">"&0)=0, $A$4, _xlfn.MINIFS($G$90:$G$91, $G$90:$G$91, ">"&0)) -> 1
A102: SENSITIVITIES
A106: NPV | C106: Net benefits | G106: =PROPER($A$3)&A106 -> Option 2NPV | I106: =I87 -> 0 | J106: =J87 -> -13238.88366 | K106: -21163.28442 | L106: -22410.23282 | M106: -15275.83605 | N106: 2370.255257 | O106: 27659.95571 | P106: 57514.86585 | Q106: 74631.05368 | R106: 81476.35566 | S106: 85627.95185 | T106: 90309.36544 | U106: 95589.44637 | V106: 101419.8395 | W106: 101419.8395 | X106: 101419.8395 | Y106: 101419.8395 | Z106: 101419.8395 | AA106: 101419.8395 | AB106: 101419.8395 | AC106: 101419.8395 | AD106: 101419.8395 | AE106: 101419.8395 | AF106: 101419.8395 | AG106: 101419.8395
C107: Total annualised capex | I107: =I82 -> 0 | J107: =J82 -> -29133.70383 | K107: -58267.40767 | L107: -87401.1115 | M107: -116534.8153 | N107: -145668.5192 | O107: -145668.5192 | P107: -145668.5192 | Q107: -145668.5192 | R107: -145668.5192 | S107: -145668.5192 | T107: -145668.5192 | U107: -145668.5192 | V107: -145668.5192 | W107: -145668.5192 | X107: -145668.5192 | Y107: -145668.5192 | Z107: -145668.5192 | AA107: -145668.5192 | AB107: -145668.5192 | AC107: -145668.5192 | AD107: -145668.5192 | AE107: -145668.5192 | AF107: -145668.5192 | AG107: -145668.5192
C108: Total benefits | I108: =SUM(I84:I85) -> 0 | J108: =SUM(J84:J85) -> 15894.82017 | K108: 37104.12324 | L108: 64990.87868 | M108: 101258.9793 | N108: 148038.7744 | O108: 173328.4749 | P108: 203183.385 | Q108: 220299.5728 | R108: 227144.8748 | S108: 231296.471 | T108: 235977.8846 | U108: 241257.9655 | V108: 247088.3587 | W108: 247088.3587 | X108: 247088.3587 | Y108: 247088.3587 | Z108: 247088.3587 | AA108: 247088.3587 | AB108: 247088.3587 | AC108: 247088.3587 | AD108: 247088.3587 | AE108: 247088.3587 | AF108: 247088.3587 | AG108: 247088.3587
D109: =Assumptions!G110 -> Capex | E109: =Assumptions!H110 -> Total benefits
A110: ="sens"&Assumptions!B111 -> sens1 | C110: =Assumptions!C111 -> Capex 10% higher | D110: =Assumptions!G111 -> 0.1 | E110: =Assumptions!H111 -> 0 | G110: =PROPER($A$3)&A110 -> Option 2sens1 | I110: =I$106+IF($C110<>0,SUMPRODUCT((I$107:I$108)*TRANSPOSE(($D110:$E110))),0) -> 0 | J110: =J$106+IF($C110<>0,SUMPRODUCT((J$107:J$108)*TRANSPOSE(($D110:$E110))),0) -> -16152.25404 | K110: =K$106+IF($C110<>0,SUMPRODUCT((K$107:K$108)*TRANSPOSE(($D110:$E110))),0) -> -26990.02519 | L110: =L$106+IF($C110<>0,SUMPRODUCT((L$107:L$108)*TRANSPOSE(($D110:$E110))),0) -> -31150.34397 | M110: =M$106+IF($C110<>0,SUMPRODUCT((M$107:M$108)*TRANSPOSE(($D110:$E110))),0) -> -26929.31758 | N110: =N$106+IF($C110<>0,SUMPRODUCT((N$107:N$108)*TRANSPOSE(($D110:$E110))),0) -> -12196.59666 | O110: =O$106+IF($C110<>0,SUMPRODUCT((O$107:O$108)*TRANSPOSE(($D110:$E110))),0) -> 13093.10379 | P110: =P$106+IF($C110<>0,SUMPRODUCT((P$107:P$108)*TRANSPOSE(($D110:$E110))),0) -> 42948.01393 | Q110: =Q$106+IF($C110<>0,SUMPRODUCT((Q$107:Q$108)*TRANSPOSE(($D110:$E110))),0) -> 60064.20177 | R110: =R$106+IF($C110<>0,SUMPRODUCT((R$107:R$108)*TRANSPOSE(($D110:$E110))),0) -> 66909.50374 | S110: =S$106+IF($C110<>0,SUMPRODUCT((S$107:S$108)*TRANSPOSE(($D110:$E110))),0) -> 71061.09993 | T110: =T$106+IF($C110<>0,SUMPRODUCT((T$107:T$108)*TRANSPOSE(($D110:$E110))),0) -> 75742.51352 | U110: =U$106+IF($C110<>0,SUMPRODUCT((U$107:U$108)*TRANSPOSE(($D110:$E110))),0) -> 81022.59445 | V110: =V$106+IF($C110<>0,SUMPRODUCT((V$107:V$108)*TRANSPOSE(($D110:$E110))),0) -> 86852.9876 | W110: =W$106+IF($C110<>0,SUMPRODUCT((W$107:W$108)*TRANSPOSE(($D110:$E110))),0) -> 86852.9876 | X110: =X$106+IF($C110<>0,SUMPRODUCT((X$107:X$108)*TRANSPOSE(($D110:$E110))),0) -> 86852.9876 | Y110: =Y$106+IF($C110<>0,SUMPRODUCT((Y$107:Y$108)*TRANSPOSE(($D110:$E110))),0) -> 86852.9876 | Z110: =Z$106+IF($C110<>0,SUMPRODUCT((Z$107:Z$108)*TRANSPOSE(($D110:$E110))),0) -> 86852.9876 | AA110: =AA$106+IF($C110<>0,SUMPRODUCT((AA$107:AA$108)*TRANSPOSE(($D110:$E110))),0) -> 86852.9876 | AB110: =AB$106+IF($C110<>0,SUMPRODUCT((AB$107:AB$108)*TRANSPOSE(($D110:$E110))),0) -> 86852.9876 | AC110: =AC$106+IF($C110<>0,SUMPRODUCT((AC$107:AC$108)*TRANSPOSE(($D110:$E110))),0) -> 86852.9876 | AD110: =AD$106+IF($C110<>0,SUMPRODUCT((AD$107:AD$108)*TRANSPOSE(($D110:$E110))),0) -> 86852.9876 | AE110: =AE$106+IF($C110<>0,SUMPRODUCT((AE$107:AE$108)*TRANSPOSE(($D110:$E110))),0) -> 86852.9876 | AF110: =AF$106+IF($C110<>0,SUMPRODUCT((AF$107:AF$108)*TRANSPOSE(($D110:$E110))),0) -> 86852.9876 | AG110: =AG$106+IF($C110<>0,SUMPRODUCT((AG$107:AG$108)*TRANSPOSE(($D110:$E110))),0) -> 86852.9876
A111: ="sens"&Assumptions!B112 -> sens2 | C111: =Assumptions!C112 -> Capex 10% lower | D111: =Assumptions!G112 -> -0.1 | E111: =Assumptions!H112 -> 0 | G111: =PROPER($A$3)&A111 -> Option 2sens2 | I111: =I$106+IF($C111<>0,SUMPRODUCT((I$107:I$108)*TRANSPOSE(($D111:$E111))),0) -> 0 | J111: =J$106+IF($C111<>0,SUMPRODUCT((J$107:J$108)*TRANSPOSE(($D111:$E111))),0) -> -10325.51328 | K111: =K$106+IF($C111<>0,SUMPRODUCT((K$107:K$108)*TRANSPOSE(($D111:$E111))),0) -> -15336.54366 | L111: =L$106+IF($C111<>0,SUMPRODUCT((L$107:L$108)*TRANSPOSE(($D111:$E111))),0) -> -13670.12167 | M111: =M$106+IF($C111<>0,SUMPRODUCT((M$107:M$108)*TRANSPOSE(($D111:$E111))),0) -> -3622.354518 | N111: =N$106+IF($C111<>0,SUMPRODUCT((N$107:N$108)*TRANSPOSE(($D111:$E111))),0) -> 16937.10717 | O111: =O$106+IF($C111<>0,SUMPRODUCT((O$107:O$108)*TRANSPOSE(($D111:$E111))),0) -> 42226.80762 | P111: =P$106+IF($C111<>0,SUMPRODUCT((P$107:P$108)*TRANSPOSE(($D111:$E111))),0) -> 72081.71776 | Q111: =Q$106+IF($C111<>0,SUMPRODUCT((Q$107:Q$108)*TRANSPOSE(($D111:$E111))),0) -> 89197.9056 | R111: =R$106+IF($C111<>0,SUMPRODUCT((R$107:R$108)*TRANSPOSE(($D111:$E111))),0) -> 96043.20757 | S111: =S$106+IF($C111<>0,SUMPRODUCT((S$107:S$108)*TRANSPOSE(($D111:$E111))),0) -> 100194.8038 | T111: =T$106+IF($C111<>0,SUMPRODUCT((T$107:T$108)*TRANSPOSE(($D111:$E111))),0) -> 104876.2174 | U111: =U$106+IF($C111<>0,SUMPRODUCT((U$107:U$108)*TRANSPOSE(($D111:$E111))),0) -> 110156.2983 | V111: =V$106+IF($C111<>0,SUMPRODUCT((V$107:V$108)*TRANSPOSE(($D111:$E111))),0) -> 115986.6914 | W111: =W$106+IF($C111<>0,SUMPRODUCT((W$107:W$108)*TRANSPOSE(($D111:$E111))),0) -> 115986.6914 | X111: =X$106+IF($C111<>0,SUMPRODUCT((X$107:X$108)*TRANSPOSE(($D111:$E111))),0) -> 115986.6914 | Y111: =Y$106+IF($C111<>0,SUMPRODUCT((Y$107:Y$108)*TRANSPOSE(($D111:$E111))),0) -> 115986.6914 | Z111: =Z$106+IF($C111<>0,SUMPRODUCT((Z$107:Z$108)*TRANSPOSE(($D111:$E111))),0) -> 115986.6914 | AA111: =AA$106+IF($C111<>0,SUMPRODUCT((AA$107:AA$108)*TRANSPOSE(($D111:$E111))),0) -> 115986.6914 | AB111: =AB$106+IF($C111<>0,SUMPRODUCT((AB$107:AB$108)*TRANSPOSE(($D111:$E111))),0) -> 115986.6914 | AC111: =AC$106+IF($C111<>0,SUMPRODUCT((AC$107:AC$108)*TRANSPOSE(($D111:$E111))),0) -> 115986.6914 | AD111: =AD$106+IF($C111<>0,SUMPRODUCT((AD$107:AD$108)*TRANSPOSE(($D111:$E111))),0) -> 115986.6914 | AE111: =AE$106+IF($C111<>0,SUMPRODUCT((AE$107:AE$108)*TRANSPOSE(($D111:$E111))),0) -> 115986.6914 | AF111: =AF$106+IF($C111<>0,SUMPRODUCT((AF$107:AF$108)*TRANSPOSE(($D111:$E111))),0) -> 115986.6914 | AG111: =AG$106+IF($C111<>0,SUMPRODUCT((AG$107:AG$108)*TRANSPOSE(($D111:$E111))),0) -> 115986.6914
A112: ="sens"&Assumptions!B113 -> sens3 | C112: =Assumptions!C113 -> Total benefits 10% higher | D112: =Assumptions!G113 -> 0 | E112: =Assumptions!H113 -> 0.1 | G112: Option 2sens3 | I112: =I$106+IF($C112<>0,SUMPRODUCT((I$107:I$108)*TRANSPOSE(($D112:$E112))),0) -> 0 | J112: =J$106+IF($C112<>0,SUMPRODUCT((J$107:J$108)*TRANSPOSE(($D112:$E112))),0) -> -11649.40164 | K112: =K$106+IF($C112<>0,SUMPRODUCT((K$107:K$108)*TRANSPOSE(($D112:$E112))),0) -> -17452.8721 | L112: =L$106+IF($C112<>0,SUMPRODUCT((L$107:L$108)*TRANSPOSE(($D112:$E112))),0) -> -15911.14495 | M112: =M$106+IF($C112<>0,SUMPRODUCT((M$107:M$108)*TRANSPOSE(($D112:$E112))),0) -> -5149.938123 | N112: =N$106+IF($C112<>0,SUMPRODUCT((N$107:N$108)*TRANSPOSE(($D112:$E112))),0) -> 17174.1327 | O112: =O$106+IF($C112<>0,SUMPRODUCT((O$107:O$108)*TRANSPOSE(($D112:$E112))),0) -> 44992.80319 | P112: =P$106+IF($C112<>0,SUMPRODUCT((P$107:P$108)*TRANSPOSE(($D112:$E112))),0) -> 77833.20435 | Q112: =Q$106+IF($C112<>0,SUMPRODUCT((Q$107:Q$108)*TRANSPOSE(($D112:$E112))),0) -> 96661.01097 | R112: =R$106+IF($C112<>0,SUMPRODUCT((R$107:R$108)*TRANSPOSE(($D112:$E112))),0) -> 104190.8431 | S112: =S$106+IF($C112<>0,SUMPRODUCT((S$107:S$108)*TRANSPOSE(($D112:$E112))),0) -> 108757.5989 | T112: =T$106+IF($C112<>0,SUMPRODUCT((T$107:T$108)*TRANSPOSE(($D112:$E112))),0) -> 113907.1539 | U112: =U$106+IF($C112<>0,SUMPRODUCT((U$107:U$108)*TRANSPOSE(($D112:$E112))),0) -> 119715.2429 | V112: =V$106+IF($C112<>0,SUMPRODUCT((V$107:V$108)*TRANSPOSE(($D112:$E112))),0) -> 126128.6754 | W112: =W$106+IF($C112<>0,SUMPRODUCT((W$107:W$108)*TRANSPOSE(($D112:$E112))),0) -> 126128.6754 | X112: =X$106+IF($C112<>0,SUMPRODUCT((X$107:X$108)*TRANSPOSE(($D112:$E112))),0) -> 126128.6754 | Y112: =Y$106+IF($C112<>0,SUMPRODUCT((Y$107:Y$108)*TRANSPOSE(($D112:$E112))),0) -> 126128.6754 | Z112: =Z$106+IF($C112<>0,SUMPRODUCT((Z$107:Z$108)*TRANSPOSE(($D112:$E112))),0) -> 126128.6754 | AA112: =AA$106+IF($C112<>0,SUMPRODUCT((AA$107:AA$108)*TRANSPOSE(($D112:$E112))),0) -> 126128.6754 | AB112: =AB$106+IF($C112<>0,SUMPRODUCT((AB$107:AB$108)*TRANSPOSE(($D112:$E112))),0) -> 126128.6754 | AC112: =AC$106+IF($C112<>0,SUMPRODUCT((AC$107:AC$108)*TRANSPOSE(($D112:$E112))),0) -> 126128.6754 | AD112: =AD$106+IF($C112<>0,SUMPRODUCT((AD$107:AD$108)*TRANSPOSE(($D112:$E112))),0) -> 126128.6754 | AE112: =AE$106+IF($C112<>0,SUMPRODUCT((AE$107:AE$108)*TRANSPOSE(($D112:$E112))),0) -> 126128.6754 | AF112: =AF$106+IF($C112<>0,SUMPRODUCT((AF$107:AF$108)*TRANSPOSE(($D112:$E112))),0) -> 126128.6754 | AG112: =AG$106+IF($C112<>0,SUMPRODUCT((AG$107:AG$108)*TRANSPOSE(($D112:$E112))),0) -> 126128.6754
A113: ="sens"&Assumptions!B114 -> sens4 | C113: =Assumptions!C114 -> Total benefits 10% lower | D113: =Assumptions!G114 -> 0 | E113: =Assumptions!H114 -> -0.1 | G113: Option 2sens4 | I113: =I$106+IF($C113<>0,SUMPRODUCT((I$107:I$108)*TRANSPOSE(($D113:$E113))),0) -> 0 | J113: =J$106+IF($C113<>0,SUMPRODUCT((J$107:J$108)*TRANSPOSE(($D113:$E113))),0) -> -14828.36568 | K113: =K$106+IF($C113<>0,SUMPRODUCT((K$107:K$108)*TRANSPOSE(($D113:$E113))),0) -> -24873.69675 | L113: =L$106+IF($C113<>0,SUMPRODUCT((L$107:L$108)*TRANSPOSE(($D113:$E113))),0) -> -28909.32069 | M113: =M$106+IF($C113<>0,SUMPRODUCT((M$107:M$108)*TRANSPOSE(($D113:$E113))),0) -> -25401.73398 | N113: =N$106+IF($C113<>0,SUMPRODUCT((N$107:N$108)*TRANSPOSE(($D113:$E113))),0) -> -12433.62219 | O113: =O$106+IF($C113<>0,SUMPRODUCT((O$107:O$108)*TRANSPOSE(($D113:$E113))),0) -> 10327.10822 | P113: =P$106+IF($C113<>0,SUMPRODUCT((P$107:P$108)*TRANSPOSE(($D113:$E113))),0) -> 37196.52735 | Q113: =Q$106+IF($C113<>0,SUMPRODUCT((Q$107:Q$108)*TRANSPOSE(($D113:$E113))),0) -> 52601.0964 | R113: =R$106+IF($C113<>0,SUMPRODUCT((R$107:R$108)*TRANSPOSE(($D113:$E113))),0) -> 58761.86817 | S113: =S$106+IF($C113<>0,SUMPRODUCT((S$107:S$108)*TRANSPOSE(($D113:$E113))),0) -> 62498.30475 | T113: =T$106+IF($C113<>0,SUMPRODUCT((T$107:T$108)*TRANSPOSE(($D113:$E113))),0) -> 66711.57698 | U113: =U$106+IF($C113<>0,SUMPRODUCT((U$107:U$108)*TRANSPOSE(($D113:$E113))),0) -> 71463.64982 | V113: =V$106+IF($C113<>0,SUMPRODUCT((V$107:V$108)*TRANSPOSE(($D113:$E113))),0) -> 76711.00365 | W113: =W$106+IF($C113<>0,SUMPRODUCT((W$107:W$108)*TRANSPOSE(($D113:$E113))),0) -> 76711.00365 | X113: =X$106+IF($C113<>0,SUMPRODUCT((X$107:X$108)*TRANSPOSE(($D113:$E113))),0) -> 76711.00365 | Y113: =Y$106+IF($C113<>0,SUMPRODUCT((Y$107:Y$108)*TRANSPOSE(($D113:$E113))),0) -> 76711.00365 | Z113: =Z$106+IF($C113<>0,SUMPRODUCT((Z$107:Z$108)*TRANSPOSE(($D113:$E113))),0) -> 76711.00365 | AA113: =AA$106+IF($C113<>0,SUMPRODUCT((AA$107:AA$108)*TRANSPOSE(($D113:$E113))),0) -> 76711.00365 | AB113: =AB$106+IF($C113<>0,SUMPRODUCT((AB$107:AB$108)*TRANSPOSE(($D113:$E113))),0) -> 76711.00365 | AC113: =AC$106+IF($C113<>0,SUMPRODUCT((AC$107:AC$108)*TRANSPOSE(($D113:$E113))),0) -> 76711.00365 | AD113: =AD$106+IF($C113<>0,SUMPRODUCT((AD$107:AD$108)*TRANSPOSE(($D113:$E113))),0) -> 76711.00365 | AE113: =AE$106+IF($C113<>0,SUMPRODUCT((AE$107:AE$108)*TRANSPOSE(($D113:$E113))),0) -> 76711.00365 | AF113: =AF$106+IF($C113<>0,SUMPRODUCT((AF$107:AF$108)*TRANSPOSE(($D113:$E113))),0) -> 76711.00365 | AG113: =AG$106+IF($C113<>0,SUMPRODUCT((AG$107:AG$108)*TRANSPOSE(($D113:$E113))),0) -> 76711.00365
A114: ="sens"&Assumptions!B115 -> sens5 | C114: =Assumptions!C115 -> Capex 10% higher & total benefits 10% lower | D114: =Assumptions!G115 -> 0.1 | E114: =Assumptions!H115 -> -0.1 | G114: Option 2sens5 | I114: =I$106+IF($C114<>0,SUMPRODUCT((I$107:I$108)*TRANSPOSE(($D114:$E114))),0) -> 0 | J114: =J$106+IF($C114<>0,SUMPRODUCT((J$107:J$108)*TRANSPOSE(($D114:$E114))),0) -> -17741.73606 | K114: =K$106+IF($C114<>0,SUMPRODUCT((K$107:K$108)*TRANSPOSE(($D114:$E114))),0) -> -30700.43751 | L114: =L$106+IF($C114<>0,SUMPRODUCT((L$107:L$108)*TRANSPOSE(($D114:$E114))),0) -> -37649.43184 | M114: =M$106+IF($C114<>0,SUMPRODUCT((M$107:M$108)*TRANSPOSE(($D114:$E114))),0) -> -37055.21551 | N114: =N$106+IF($C114<>0,SUMPRODUCT((N$107:N$108)*TRANSPOSE(($D114:$E114))),0) -> -27000.4741 | O114: =O$106+IF($C114<>0,SUMPRODUCT((O$107:O$108)*TRANSPOSE(($D114:$E114))),0) -> -4239.743698 | P114: =P$106+IF($C114<>0,SUMPRODUCT((P$107:P$108)*TRANSPOSE(($D114:$E114))),0) -> 22629.67543 | Q114: =Q$106+IF($C114<>0,SUMPRODUCT((Q$107:Q$108)*TRANSPOSE(($D114:$E114))),0) -> 38034.24448 | R114: =R$106+IF($C114<>0,SUMPRODUCT((R$107:R$108)*TRANSPOSE(($D114:$E114))),0) -> 44195.01626 | S114: =S$106+IF($C114<>0,SUMPRODUCT((S$107:S$108)*TRANSPOSE(($D114:$E114))),0) -> 47931.45283 | T114: =T$106+IF($C114<>0,SUMPRODUCT((T$107:T$108)*TRANSPOSE(($D114:$E114))),0) -> 52144.72506 | U114: =U$106+IF($C114<>0,SUMPRODUCT((U$107:U$108)*TRANSPOSE(($D114:$E114))),0) -> 56896.7979 | V114: =V$106+IF($C114<>0,SUMPRODUCT((V$107:V$108)*TRANSPOSE(($D114:$E114))),0) -> 62144.15173 | W114: =W$106+IF($C114<>0,SUMPRODUCT((W$107:W$108)*TRANSPOSE(($D114:$E114))),0) -> 62144.15173 | X114: =X$106+IF($C114<>0,SUMPRODUCT((X$107:X$108)*TRANSPOSE(($D114:$E114))),0) -> 62144.15173 | Y114: =Y$106+IF($C114<>0,SUMPRODUCT((Y$107:Y$108)*TRANSPOSE(($D114:$E114))),0) -> 62144.15173 | Z114: =Z$106+IF($C114<>0,SUMPRODUCT((Z$107:Z$108)*TRANSPOSE(($D114:$E114))),0) -> 62144.15173 | AA114: =AA$106+IF($C114<>0,SUMPRODUCT((AA$107:AA$108)*TRANSPOSE(($D114:$E114))),0) -> 62144.15173 | AB114: =AB$106+IF($C114<>0,SUMPRODUCT((AB$107:AB$108)*TRANSPOSE(($D114:$E114))),0) -> 62144.15173 | AC114: =AC$106+IF($C114<>0,SUMPRODUCT((AC$107:AC$108)*TRANSPOSE(($D114:$E114))),0) -> 62144.15173 | AD114: =AD$106+IF($C114<>0,SUMPRODUCT((AD$107:AD$108)*TRANSPOSE(($D114:$E114))),0) -> 62144.15173 | AE114: =AE$106+IF($C114<>0,SUMPRODUCT((AE$107:AE$108)*TRANSPOSE(($D114:$E114))),0) -> 62144.15173 | AF114: =AF$106+IF($C114<>0,SUMPRODUCT((AF$107:AF$108)*TRANSPOSE(($D114:$E114))),0) -> 62144.15173 | AG114: =AG$106+IF($C114<>0,SUMPRODUCT((AG$107:AG$108)*TRANSPOSE(($D114:$E114))),0) -> 62144.15173
A115: ="sens"&Assumptions!B116 -> sens | C115: =Assumptions!C116 -> 0 | D115: =Assumptions!G116 -> 0 | E115: =Assumptions!H116 -> 0 | G115: Option 2sens | I115: =I$106+IF($C115<>0,SUMPRODUCT((I$107:I$108)*TRANSPOSE(($D115:$E115))),0) -> 0 | J115: =J$106+IF($C115<>0,SUMPRODUCT((J$107:J$108)*TRANSPOSE(($D115:$E115))),0) -> -13238.88366 | K115: =K$106+IF($C115<>0,SUMPRODUCT((K$107:K$108)*TRANSPOSE(($D115:$E115))),0) -> -21163.28442 | L115: =L$106+IF($C115<>0,SUMPRODUCT((L$107:L$108)*TRANSPOSE(($D115:$E115))),0) -> -22410.23282 | M115: =M$106+IF($C115<>0,SUMPRODUCT((M$107:M$108)*TRANSPOSE(($D115:$E115))),0) -> -15275.83605 | N115: =N$106+IF($C115<>0,SUMPRODUCT((N$107:N$108)*TRANSPOSE(($D115:$E115))),0) -> 2370.255257 | O115: =O$106+IF($C115<>0,SUMPRODUCT((O$107:O$108)*TRANSPOSE(($D115:$E115))),0) -> 27659.95571 | P115: =P$106+IF($C115<>0,SUMPRODUCT((P$107:P$108)*TRANSPOSE(($D115:$E115))),0) -> 57514.86585 | Q115: =Q$106+IF($C115<>0,SUMPRODUCT((Q$107:Q$108)*TRANSPOSE(($D115:$E115))),0) -> 74631.05368 | R115: =R$106+IF($C115<>0,SUMPRODUCT((R$107:R$108)*TRANSPOSE(($D115:$E115))),0) -> 81476.35566 | S115: =S$106+IF($C115<>0,SUMPRODUCT((S$107:S$108)*TRANSPOSE(($D115:$E115))),0) -> 85627.95185 | T115: =T$106+IF($C115<>0,SUMPRODUCT((T$107:T$108)*TRANSPOSE(($D115:$E115))),0) -> 90309.36544 | U115: =U$106+IF($C115<>0,SUMPRODUCT((U$107:U$108)*TRANSPOSE(($D115:$E115))),0) -> 95589.44637 | V115: =V$106+IF($C115<>0,SUMPRODUCT((V$107:V$108)*TRANSPOSE(($D115:$E115))),0) -> 101419.8395 | W115: =W$106+IF($C115<>0,SUMPRODUCT((W$107:W$108)*TRANSPOSE(($D115:$E115))),0) -> 101419.8395 | X115: =X$106+IF($C115<>0,SUMPRODUCT((X$107:X$108)*TRANSPOSE(($D115:$E115))),0) -> 101419.8395 | Y115: =Y$106+IF($C115<>0,SUMPRODUCT((Y$107:Y$108)*TRANSPOSE(($D115:$E115))),0) -> 101419.8395 | Z115: =Z$106+IF($C115<>0,SUMPRODUCT((Z$107:Z$108)*TRANSPOSE(($D115:$E115))),0) -> 101419.8395 | AA115: =AA$106+IF($C115<>0,SUMPRODUCT((AA$107:AA$108)*TRANSPOSE(($D115:$E115))),0) -> 101419.8395 | AB115: =AB$106+IF($C115<>0,SUMPRODUCT((AB$107:AB$108)*TRANSPOSE(($D115:$E115))),0) -> 101419.8395 | AC115: =AC$106+IF($C115<>0,SUMPRODUCT((AC$107:AC$108)*TRANSPOSE(($D115:$E115))),0) -> 101419.8395 | AD115: =AD$106+IF($C115<>0,SUMPRODUCT((AD$107:AD$108)*TRANSPOSE(($D115:$E115))),0) -> 101419.8395 | AE115: =AE$106+IF($C115<>0,SUMPRODUCT((AE$107:AE$108)*TRANSPOSE(($D115:$E115))),0) -> 101419.8395 | AF115: =AF$106+IF($C115<>0,SUMPRODUCT((AF$107:AF$108)*TRANSPOSE(($D115:$E115))),0) -> 101419.8395 | AG115: =AG$106+IF($C115<>0,SUMPRODUCT((AG$107:AG$108)*TRANSPOSE(($D115:$E115))),0) -> 101419.8395
A116: ="sens"&Assumptions!B117 -> sens | C116: =Assumptions!C117 -> 0 | D116: =Assumptions!G117 -> 0 | E116: =Assumptions!H117 -> 0 | G116: Option 2sens | I116: =I$106+IF($C116<>0,SUMPRODUCT((I$107:I$108)*TRANSPOSE(($D116:$E116))),0) -> 0 | J116: =J$106+IF($C116<>0,SUMPRODUCT((J$107:J$108)*TRANSPOSE(($D116:$E116))),0) -> -13238.88366 | K116: =K$106+IF($C116<>0,SUMPRODUCT((K$107:K$108)*TRANSPOSE(($D116:$E116))),0) -> -21163.28442 | L116: =L$106+IF($C116<>0,SUMPRODUCT((L$107:L$108)*TRANSPOSE(($D116:$E116))),0) -> -22410.23282 | M116: =M$106+IF($C116<>0,SUMPRODUCT((M$107:M$108)*TRANSPOSE(($D116:$E116))),0) -> -15275.83605 | N116: =N$106+IF($C116<>0,SUMPRODUCT((N$107:N$108)*TRANSPOSE(($D116:$E116))),0) -> 2370.255257 | O116: =O$106+IF($C116<>0,SUMPRODUCT((O$107:O$108)*TRANSPOSE(($D116:$E116))),0) -> 27659.95571 | P116: =P$106+IF($C116<>0,SUMPRODUCT((P$107:P$108)*TRANSPOSE(($D116:$E116))),0) -> 57514.86585 | Q116: =Q$106+IF($C116<>0,SUMPRODUCT((Q$107:Q$108)*TRANSPOSE(($D116:$E116))),0) -> 74631.05368 | R116: =R$106+IF($C116<>0,SUMPRODUCT((R$107:R$108)*TRANSPOSE(($D116:$E116))),0) -> 81476.35566 | S116: =S$106+IF($C116<>0,SUMPRODUCT((S$107:S$108)*TRANSPOSE(($D116:$E116))),0) -> 85627.95185 | T116: =T$106+IF($C116<>0,SUMPRODUCT((T$107:T$108)*TRANSPOSE(($D116:$E116))),0) -> 90309.36544 | U116: =U$106+IF($C116<>0,SUMPRODUCT((U$107:U$108)*TRANSPOSE(($D116:$E116))),0) -> 95589.44637 | V116: =V$106+IF($C116<>0,SUMPRODUCT((V$107:V$108)*TRANSPOSE(($D116:$E116))),0) -> 101419.8395 | W116: =W$106+IF($C116<>0,SUMPRODUCT((W$107:W$108)*TRANSPOSE(($D116:$E116))),0) -> 101419.8395 | X116: =X$106+IF($C116<>0,SUMPRODUCT((X$107:X$108)*TRANSPOSE(($D116:$E116))),0) -> 101419.8395 | Y116: =Y$106+IF($C116<>0,SUMPRODUCT((Y$107:Y$108)*TRANSPOSE(($D116:$E116))),0) -> 101419.8395 | Z116: =Z$106+IF($C116<>0,SUMPRODUCT((Z$107:Z$108)*TRANSPOSE(($D116:$E116))),0) -> 101419.8395 | AA116: =AA$106+IF($C116<>0,SUMPRODUCT((AA$107:AA$108)*TRANSPOSE(($D116:$E116))),0) -> 101419.8395 | AB116: =AB$106+IF($C116<>0,SUMPRODUCT((AB$107:AB$108)*TRANSPOSE(($D116:$E116))),0) -> 101419.8395 | AC116: =AC$106+IF($C116<>0,SUMPRODUCT((AC$107:AC$108)*TRANSPOSE(($D116:$E116))),0) -> 101419.8395 | AD116: =AD$106+IF($C116<>0,SUMPRODUCT((AD$107:AD$108)*TRANSPOSE(($D116:$E116))),0) -> 101419.8395 | AE116: =AE$106+IF($C116<>0,SUMPRODUCT((AE$107:AE$108)*TRANSPOSE(($D116:$E116))),0) -> 101419.8395 | AF116: =AF$106+IF($C116<>0,SUMPRODUCT((AF$107:AF$108)*TRANSPOSE(($D116:$E116))),0) -> 101419.8395 | AG116: =AG$106+IF($C116<>0,SUMPRODUCT((AG$107:AG$108)*TRANSPOSE(($D116:$E116))),0) -> 101419.8395
A117: ="sens"&Assumptions!B118 -> sens | C117: =Assumptions!C118 -> 0 | D117: =Assumptions!G118 -> 0 | E117: =Assumptions!H118 -> 0 | G117: Option 2sens | I117: =I$106+IF($C117<>0,SUMPRODUCT((I$107:I$108)*TRANSPOSE(($D117:$E117))),0) -> 0 | J117: =J$106+IF($C117<>0,SUMPRODUCT((J$107:J$108)*TRANSPOSE(($D117:$E117))),0) -> -13238.88366 | K117: =K$106+IF($C117<>0,SUMPRODUCT((K$107:K$108)*TRANSPOSE(($D117:$E117))),0) -> -21163.28442 | L117: =L$106+IF($C117<>0,SUMPRODUCT((L$107:L$108)*TRANSPOSE(($D117:$E117))),0) -> -22410.23282 | M117: =M$106+IF($C117<>0,SUMPRODUCT((M$107:M$108)*TRANSPOSE(($D117:$E117))),0) -> -15275.83605 | N117: =N$106+IF($C117<>0,SUMPRODUCT((N$107:N$108)*TRANSPOSE(($D117:$E117))),0) -> 2370.255257 | O117: =O$106+IF($C117<>0,SUMPRODUCT((O$107:O$108)*TRANSPOSE(($D117:$E117))),0) -> 27659.95571 | P117: =P$106+IF($C117<>0,SUMPRODUCT((P$107:P$108)*TRANSPOSE(($D117:$E117))),0) -> 57514.86585 | Q117: =Q$106+IF($C117<>0,SUMPRODUCT((Q$107:Q$108)*TRANSPOSE(($D117:$E117))),0) -> 74631.05368 | R117: =R$106+IF($C117<>0,SUMPRODUCT((R$107:R$108)*TRANSPOSE(($D117:$E117))),0) -> 81476.35566 | S117: =S$106+IF($C117<>0,SUMPRODUCT((S$107:S$108)*TRANSPOSE(($D117:$E117))),0) -> 85627.95185 | T117: =T$106+IF($C117<>0,SUMPRODUCT((T$107:T$108)*TRANSPOSE(($D117:$E117))),0) -> 90309.36544 | U117: =U$106+IF($C117<>0,SUMPRODUCT((U$107:U$108)*TRANSPOSE(($D117:$E117))),0) -> 95589.44637 | V117: =V$106+IF($C117<>0,SUMPRODUCT((V$107:V$108)*TRANSPOSE(($D117:$E117))),0) -> 101419.8395 | W117: =W$106+IF($C117<>0,SUMPRODUCT((W$107:W$108)*TRANSPOSE(($D117:$E117))),0) -> 101419.8395 | X117: =X$106+IF($C117<>0,SUMPRODUCT((X$107:X$108)*TRANSPOSE(($D117:$E117))),0) -> 101419.8395 | Y117: =Y$106+IF($C117<>0,SUMPRODUCT((Y$107:Y$108)*TRANSPOSE(($D117:$E117))),0) -> 101419.8395 | Z117: =Z$106+IF($C117<>0,SUMPRODUCT((Z$107:Z$108)*TRANSPOSE(($D117:$E117))),0) -> 101419.8395 | AA117: =AA$106+IF($C117<>0,SUMPRODUCT((AA$107:AA$108)*TRANSPOSE(($D117:$E117))),0) -> 101419.8395 | AB117: =AB$106+IF($C117<>0,SUMPRODUCT((AB$107:AB$108)*TRANSPOSE(($D117:$E117))),0) -> 101419.8395 | AC117: =AC$106+IF($C117<>0,SUMPRODUCT((AC$107:AC$108)*TRANSPOSE(($D117:$E117))),0) -> 101419.8395 | AD117: =AD$106+IF($C117<>0,SUMPRODUCT((AD$107:AD$108)*TRANSPOSE(($D117:$E117))),0) -> 101419.8395 | AE117: =AE$106+IF($C117<>0,SUMPRODUCT((AE$107:AE$108)*TRANSPOSE(($D117:$E117))),0) -> 101419.8395 | AF117: =AF$106+IF($C117<>0,SUMPRODUCT((AF$107:AF$108)*TRANSPOSE(($D117:$E117))),0) -> 101419.8395 | AG117: =AG$106+IF($C117<>0,SUMPRODUCT((AG$107:AG$108)*TRANSPOSE(($D117:$E117))),0) -> 101419.8395

Sheet Option3
A1: =bus -> CitiPower
A2: =proj -> HV cable replacement
A3: OPTION 3 | C3: =INDEX(Assumptions!$E$14:$E$18, MATCH(A3,_xlfn.ANCHORARRAY( Assumptions!$C$14),0)) -> Replace highest 10 delta risk cable sections
A4: =(INDEX(Data!$D$9:$D$13, MATCH(A3, options,0))) -> 
A6: ='Option1 (base case)'!A6 -> Count | I6: ='Option1 (base case)'!I6 -> 1 | J6: ='Option1 (base case)'!J6 -> 2 | K6: ='Option1 (base case)'!K6 -> 3 | L6: ='Option1 (base case)'!L6 -> 4 | M6: ='Option1 (base case)'!M6 -> 5 | N6: ='Option1 (base case)'!N6 -> 6 | O6: ='Option1 (base case)'!O6 -> 7 | P6: ='Option1 (base case)'!P6 -> 8 | Q6: ='Option1 (base case)'!Q6 -> 9 | R6: ='Option1 (base case)'!R6 -> 10 | S6: ='Option1 (base case)'!S6 -> 11 | T6: ='Option1 (base case)'!T6 -> 12 | U6: ='Option1 (base case)'!U6 -> 13 | V6: ='Option1 (base case)'!V6 -> 14 | W6: ='Option1 (base case)'!W6 -> 15 | X6: ='Option1 (base case)'!X6 -> 16 | Y6: ='Option1 (base case)'!Y6 -> 17 | Z6: ='Option1 (base case)'!Z6 -> 18 | AA6: ='Option1 (base case)'!AA6 -> 19 | AB6: ='Option1 (base case)'!AB6 -> 20 | AC6: ='Option1 (base case)'!AC6 -> 21 | AD6: ='Option1 (base case)'!AD6 -> 22 | AE6: ='Option1 (base case)'!AE6 -> 23 | AF6: ='Option1 (base case)'!AF6 -> 24 | AG6: ='Option1 (base case)'!AG6 -> 25
A7: ='Option1 (base case)'!A7 -> Value of CO2 reductions | G7: $/MWh | I7: ='Option1 (base case)'!I7 -> 24.7304868 | J7: ='Option1 (base case)'!J7 -> 22.34074009 | K7: ='Option1 (base case)'!K7 -> 20.19632912 | L7: ='Option1 (base case)'!L7 -> 18.06294208 | M7: ='Option1 (base case)'!M7 -> 15.91339762 | N7: ='Option1 (base case)'!N7 -> 13.71506943 | O7: ='Option1 (base case)'!O7 -> 13.71506943 | P7: ='Option1 (base case)'!P7 -> 13.71506943 | Q7: ='Option1 (base case)'!Q7 -> 13.71506943 | R7: ='Option1 (base case)'!R7 -> 13.71506943 | S7: ='Option1 (base case)'!S7 -> 13.71506943 | T7: ='Option1 (base case)'!T7 -> 13.71506943 | U7: ='Option1 (base case)'!U7 -> 13.71506943 | V7: ='Option1 (base case)'!V7 -> 13.71506943 | W7: ='Option1 (base case)'!W7 -> 13.71506943 | X7: ='Option1 (base case)'!X7 -> 13.71506943 | Y7: ='Option1 (base case)'!Y7 -> 13.71506943 | Z7: ='Option1 (base case)'!Z7 -> 13.71506943 | AA7: ='Option1 (base case)'!AA7 -> 13.71506943 | AB7: ='Option1 (base case)'!AB7 -> 13.71506943 | AC7: ='Option1 (base case)'!AC7 -> 13.71506943 | AD7: ='Option1 (base case)'!AD7 -> 13.71506943 | AE7: ='Option1 (base case)'!AE7 -> 13.71506943 | AF7: ='Option1 (base case)'!AF7 -> 13.71506943 | AG7: ='Option1 (base case)'!AG7 -> 13.71506943
G9: Units | I9: ='Option1 (base case)'!I9 -> 2026-27 | J9: ='Option1 (base case)'!J9 -> 2027-28 | K9: ='Option1 (base case)'!K9 -> 2028-29 | L9: ='Option1 (base case)'!L9 -> 2029-30 | M9: ='Option1 (base case)'!M9 -> 2030-31 | N9: ='Option1 (base case)'!N9 -> 2031-32 | O9: ='Option1 (base case)'!O9 -> 2032-33 | P9: ='Option1 (base case)'!P9 -> 2033-34 | Q9: ='Option1 (base case)'!Q9 -> 2034-35 | R9: ='Option1 (base case)'!R9 -> 2035-36 | S9: ='Option1 (base case)'!S9 -> 2036-37 | T9: ='Option1 (base case)'!T9 -> 2037-38 | U9: ='Option1 (base case)'!U9 -> 2038-39 | V9: ='Option1 (base case)'!V9 -> 2039-40 | W9: ='Option1 (base case)'!W9 -> 2040-41 | X9: ='Option1 (base case)'!X9 -> 2041-42 | Y9: ='Option1 (base case)'!Y9 -> 2042-43 | Z9: ='Option1 (base case)'!Z9 -> 2043-44 | AA9: ='Option1 (base case)'!AA9 -> 2044-45 | AB9: ='Option1 (base case)'!AB9 -> 2045-46 | AC9: ='Option1 (base case)'!AC9 -> 2046-47 | AD9: ='Option1 (base case)'!AD9 -> 2047-48 | AE9: ='Option1 (base case)'!AE9 -> 2048-49 | AF9: ='Option1 (base case)'!AF9 -> 2049-50 | AG9: ='Option1 (base case)'!AG9 -> 2050-51
A11: INVESTMENT & OPERATING COST
C13: Capex | E13: Asset life (yrs)
C14: Cable replacement | E14: 60 | G14: =input_dollars -> 2023-12-31 | I14: =Workings_costs!E45 -> 1446609.584 | J14: =Workings_costs!F45 -> 1446609.584 | K14: =Workings_costs!G45 -> 1446609.584 | L14: =Workings_costs!H45 -> 1446609.584 | M14: =Workings_costs!I45 -> 1446609.584 | N14: 0 | O14: 0 | P14: 0 | Q14: 0 | R14: 0 | S14: 0 | T14: 0 | U14: 0 | V14: 0 | W14: 0 | X14: 0 | Y14: 0 | Z14: 0 | AA14: 0 | AB14: 0 | AC14: 0 | AD14: 0 | AE14: 0 | AF14: 0 | AG14: 0
E15: 0 | G15: =input_dollars -> 2023-12-31 | I15: 0 | J15: 0 | K15: 0 | L15: 0 | M15: 0 | N15: 0 | O15: 0 | P15: 0 | Q15: 0 | R15: 0 | S15: 0 | T15: 0 | U15: 0 | V15: 0 | W15: 0 | X15: 0 | Y15: 0 | Z15: 0 | AA15: 0 | AB15: 0 | AC15: 0 | AD15: 0 | AE15: 0 | AF15: 0 | AG15: 0
E16: 0 | G16: =input_dollars -> 2023-12-31 | I16: 0 | J16: 0 | K16: 0 | L16: 0 | M16: 0 | N16: 0 | O16: 0 | P16: 0 | Q16: 0 | R16: 0 | S16: 0 | T16: 0 | U16: 0 | V16: 0 | W16: 0 | X16: 0 | Y16: 0 | Z16: 0 | AA16: 0 | AB16: 0 | AC16: 0 | AD16: 0 | AE16: 0 | AF16: 0 | AG16: 0
C17: Capital expenditure | G17: =input_dollars -> 2023-12-31 | I17: =SUM(I14:I16) -> 1446609.584 | J17: 1446609.584 | K17: 1446609.584 | L17: 1446609.584 | M17: 1446609.584 | N17: 0 | O17: 0 | P17: 0 | Q17: 0 | R17: =SUM(R14:R16) -> 0 | S17: 0 | T17: 0 | U17: 0 | V17: 0 | W17: 0 | X17: 0 | Y17: 0 | Z17: 0 | AA17: 0 | AB17: 0 | AC17: =SUM(AC14:AC16) -> 0 | AD17: =SUM(AD14:AD16) -> 0 | AE17: =SUM(AE14:AE16) -> 0 | AF17: =SUM(AF14:AF16) -> 0 | AG17: =SUM(AG14:AG16) -> 0
C19: Operating expenditure | G19: =input_dollars -> 2023-12-31 | I19: 0 | J19: 0 | K19: 0 | L19: 0 | M19: 0 | N19: 0 | O19: 0 | P19: 0 | Q19: 0 | R19: 0 | S19: 0 | T19: 0 | U19: 0 | V19: 0 | W19: 0 | X19: 0 | Y19: 0 | Z19: 0 | AA19: 0 | AB19: 0 | AC19: 0 | AD19: 0 | AE19: 0 | AF19: 0 | AG19: 0
A22: RISK ASSUMPTIONS
C24: PoF (major) | I24: 0 | J24: 0 | K24: 0 | L24: 0 | M24: 0 | N24: 0 | O24: 0 | P24: 0 | Q24: 0 | R24: 0 | S24: 0 | T24: 0 | U24: 0 | V24: 0 | W24: 0 | X24: 0 | Y24: 0 | Z24: 0 | AA24: 0 | AB24: 0 | AC24: 0 | AD24: 0 | AE24: 0 | AF24: 0 | AG24: 0
C25: PoF (reparable) | I25: 0 | J25: 0 | K25: 0 | L25: 0 | M25: 0 | N25: 0 | O25: 0 | P25: 0 | Q25: 0 | R25: 0 | S25: 0 | T25: 0 | U25: 0 | V25: 0 | W25: 0 | X25: 0 | Y25: 0 | Z25: 0 | AA25: 0 | AB25: 0 | AC25: 0 | AD25: 0 | AE25: 0 | AF25: 0 | AG25: 0
C27: Energy at risk (weighted) | G27: MWh | I27: =INDEX(Workings_risks!J$60:J$232, MATCH($A$3&$C27, Workings_risks!$E$60:$E$232,0)) -> 88.15459738 | J27: =INDEX(Workings_risks!K$60:K$232, MATCH($A$3&$C27, Workings_risks!$E$60:$E$232,0)) -> 96.97499512 | K27: =INDEX(Workings_risks!L$60:L$232, MATCH($A$3&$C27, Workings_risks!$E$60:$E$232,0)) -> 107.2024286 | L27: =INDEX(Workings_risks!M$60:M$232, MATCH($A$3&$C27, Workings_risks!$E$60:$E$232,0)) -> 118.92854 | M27: =INDEX(Workings_risks!N$60:N$232, MATCH($A$3&$C27, Workings_risks!$E$60:$E$232,0)) -> 132.3568708 | N27: =INDEX(Workings_risks!O$60:O$232, MATCH($A$3&$C27, Workings_risks!$E$60:$E$232,0)) -> 147.758225 | O27: =INDEX(Workings_risks!P$60:P$232, MATCH($A$3&$C27, Workings_risks!$E$60:$E$232,0)) -> 165.68168 | P27: =INDEX(Workings_risks!Q$60:Q$232, MATCH($A$3&$C27, Workings_risks!$E$60:$E$232,0)) -> 186.1955748 | Q27: =INDEX(Workings_risks!R$60:R$232, MATCH($A$3&$C27, Workings_risks!$E$60:$E$232,0)) -> 208.7503991 | R27: =INDEX(Workings_risks!S$60:S$232, MATCH($A$3&$C27, Workings_risks!$E$60:$E$232,0)) -> 232.8121174 | S27: =INDEX(Workings_risks!T$60:T$232, MATCH($A$3&$C27, Workings_risks!$E$60:$E$232,0)) -> 258.2445198 | T27: =INDEX(Workings_risks!U$60:U$232, MATCH($A$3&$C27, Workings_risks!$E$60:$E$232,0)) -> 286.4164984 | U27: =INDEX(Workings_risks!V$60:V$232, MATCH($A$3&$C27, Workings_risks!$E$60:$E$232,0)) -> 317.0546499 | V27: =INDEX(Workings_risks!W$60:W$232, MATCH($A$3&$C27, Workings_risks!$E$60:$E$232,0)) -> 348.5841856 | W27: =INDEX(Workings_risks!X$60:X$232, MATCH($A$3&$C27, Workings_risks!$E$60:$E$232,0)) -> 378.6003549 | X27: =INDEX(Workings_risks!Y$60:Y$232, MATCH($A$3&$C27, Workings_risks!$E$60:$E$232,0)) -> 407.5147458 | Y27: =INDEX(Workings_risks!Z$60:Z$232, MATCH($A$3&$C27, Workings_risks!$E$60:$E$232,0)) -> 435.8255206 | Z27: =INDEX(Workings_risks!AA$60:AA$232, MATCH($A$3&$C27, Workings_risks!$E$60:$E$232,0)) -> 462.4745254 | AA27: =INDEX(Workings_risks!AB$60:AB$232, MATCH($A$3&$C27, Workings_risks!$E$60:$E$232,0)) -> 486.8731336 | AB27: =INDEX(Workings_risks!AC$60:AC$232, MATCH($A$3&$C27, Workings_risks!$E$60:$E$232,0)) -> 508.1549328 | AC27: =INDEX(Workings_risks!AD$60:AD$232, MATCH($A$3&$C27, Workings_risks!$E$60:$E$232,0)) -> 529.6196064 | AD27: =INDEX(Workings_risks!AE$60:AE$232, MATCH($A$3&$C27, Workings_risks!$E$60:$E$232,0)) -> 551.5236086 | AE27: =INDEX(Workings_risks!AF$60:AF$232, MATCH($A$3&$C27, Workings_risks!$E$60:$E$232,0)) -> 573.4857277 | AF27: =INDEX(Workings_risks!AG$60:AG$232, MATCH($A$3&$C27, Workings_risks!$E$60:$E$232,0)) -> 595.910354 | AG27: =INDEX(Workings_risks!AH$60:AH$232, MATCH($A$3&$C27, Workings_risks!$E$60:$E$232,0)) -> 618.4410791
C28: Energy at risk value | D28: $/MWh | E28: =Assumptions!H41*vcr_esc -> 36935.21398 | F28: =IF(AND(SUM(I27:AG27)<>0, E28=0), "!", "") ->  | G28: =input_dollars -> 2023-12-31 | I28: =I27*$E$28 -> 3256008.917 | J28: =J27*$E$28 -> 3581792.195 | K28: 3959544.64 | L28: 4392651.072 | M28: 4888629.345 | N28: 5457481.656 | O28: 6119488.304 | P28: 6877173.397 | Q28: 7710240.658 | R28: 8598965.373 | S28: 9538316.597 | T28: 10578854.65 | U28: 11710481.34 | V28: 12875031.48 | W28: 13983685.12 | X28: 15051644.34 | Y28: 16097308.86 | Z28: 17081595.56 | AA28: 17982763.37 | AB28: 18768811.18 | AC28: 19561613.49 | AD28: 20370642.5 | AE28: 21181818.06 | AF28: 22010076.44 | AG28: 22842253.59
C30: ='Option1 (base case)'!C30 -> Safety consequence | D30: (after DF) | G30: =input_dollars -> 2023-12-31 | I30: =INDEX(Workings_risks!J$60:J$170, MATCH($A$3&$C30, Workings_risks!$E$60:$E$170,0)) -> 937071.2295 | J30: =INDEX(Workings_risks!K$60:K$170, MATCH($A$3&$C30, Workings_risks!$E$60:$E$170,0)) -> 1030832.12 | K30: =INDEX(Workings_risks!L$60:L$170, MATCH($A$3&$C30, Workings_risks!$E$60:$E$170,0)) -> 1139550.015 | L30: =INDEX(Workings_risks!M$60:M$170, MATCH($A$3&$C30, Workings_risks!$E$60:$E$170,0)) -> 1264199.155 | M30: =INDEX(Workings_risks!N$60:N$170, MATCH($A$3&$C30, Workings_risks!$E$60:$E$170,0)) -> 1406943.282 | N30: =INDEX(Workings_risks!O$60:O$170, MATCH($A$3&$C30, Workings_risks!$E$60:$E$170,0)) -> 1570661.152 | O30: =INDEX(Workings_risks!P$60:P$170, MATCH($A$3&$C30, Workings_risks!$E$60:$E$170,0)) -> 1761186.882 | P30: =INDEX(Workings_risks!Q$60:Q$170, MATCH($A$3&$C30, Workings_risks!$E$60:$E$170,0)) -> 1979248.944 | Q30: =INDEX(Workings_risks!R$60:R$170, MATCH($A$3&$C30, Workings_risks!$E$60:$E$170,0)) -> 2219005.379 | R30: =INDEX(Workings_risks!S$60:S$170, MATCH($A$3&$C30, Workings_risks!$E$60:$E$170,0)) -> 2474779.349 | S30: =INDEX(Workings_risks!T$60:T$170, MATCH($A$3&$C30, Workings_risks!$E$60:$E$170,0)) -> 2745122.916 | T30: =INDEX(Workings_risks!U$60:U$170, MATCH($A$3&$C30, Workings_risks!$E$60:$E$170,0)) -> 3044587.88 | U30: =INDEX(Workings_risks!V$60:V$170, MATCH($A$3&$C30, Workings_risks!$E$60:$E$170,0)) -> 3370268.015 | V30: =INDEX(Workings_risks!W$60:W$170, MATCH($A$3&$C30, Workings_risks!$E$60:$E$170,0)) -> 3705423.525 | W30: =INDEX(Workings_risks!X$60:X$170, MATCH($A$3&$C30, Workings_risks!$E$60:$E$170,0)) -> 4024491.27 | X30: =INDEX(Workings_risks!Y$60:Y$170, MATCH($A$3&$C30, Workings_risks!$E$60:$E$170,0)) -> 4331847.264 | Y30: =INDEX(Workings_risks!Z$60:Z$170, MATCH($A$3&$C30, Workings_risks!$E$60:$E$170,0)) -> 4632786.901 | Z30: =INDEX(Workings_risks!AA$60:AA$170, MATCH($A$3&$C30, Workings_risks!$E$60:$E$170,0)) -> 4916062.153 | AA30: =INDEX(Workings_risks!AB$60:AB$170, MATCH($A$3&$C30, Workings_risks!$E$60:$E$170,0)) -> 5175415.997 | AB30: =INDEX(Workings_risks!AC$60:AC$170, MATCH($A$3&$C30, Workings_risks!$E$60:$E$170,0)) -> 5401638.592 | AC30: =INDEX(Workings_risks!AD$60:AD$170, MATCH($A$3&$C30, Workings_risks!$E$60:$E$170,0)) -> 5629805.116 | AD30: =INDEX(Workings_risks!AE$60:AE$170, MATCH($A$3&$C30, Workings_risks!$E$60:$E$170,0)) -> 5862641.643 | AE30: =INDEX(Workings_risks!AF$60:AF$170, MATCH($A$3&$C30, Workings_risks!$E$60:$E$170,0)) -> 6096095.944 | AF30: =INDEX(Workings_risks!AG$60:AG$170, MATCH($A$3&$C30, Workings_risks!$E$60:$E$170,0)) -> 6334466.633 | AG30: =INDEX(Workings_risks!AH$60:AH$170, MATCH($A$3&$C30, Workings_risks!$E$60:$E$170,0)) -> 6573965.139
C31: ='Option1 (base case)'!C31 -> Unplanned replacements | G31: =input_dollars -> 2023-12-31 | I31: =INDEX(Workings_risks!J$60:J$170, MATCH($A$3&$C31, Workings_risks!$E$60:$E$170,0)) -> 2159114.733 | J31: =INDEX(Workings_risks!K$60:K$170, MATCH($A$3&$C31, Workings_risks!$E$60:$E$170,0)) -> 2356113.98 | K31: =INDEX(Workings_risks!L$60:L$170, MATCH($A$3&$C31, Workings_risks!$E$60:$E$170,0)) -> 2581493.231 | L31: =INDEX(Workings_risks!M$60:M$170, MATCH($A$3&$C31, Workings_risks!$E$60:$E$170,0)) -> 2836033.08 | M31: =INDEX(Workings_risks!N$60:N$170, MATCH($A$3&$C31, Workings_risks!$E$60:$E$170,0)) -> 3122912.146 | N31: =INDEX(Workings_risks!O$60:O$170, MATCH($A$3&$C31, Workings_risks!$E$60:$E$170,0)) -> 3446533.072 | O31: =INDEX(Workings_risks!P$60:P$170, MATCH($A$3&$C31, Workings_risks!$E$60:$E$170,0)) -> 3857648.32 | P31: =INDEX(Workings_risks!Q$60:Q$170, MATCH($A$3&$C31, Workings_risks!$E$60:$E$170,0)) -> 4327504.452 | Q31: =INDEX(Workings_risks!R$60:R$170, MATCH($A$3&$C31, Workings_risks!$E$60:$E$170,0)) -> 4853711.093 | R31: =INDEX(Workings_risks!S$60:S$170, MATCH($A$3&$C31, Workings_risks!$E$60:$E$170,0)) -> 5424893.674 | S31: =INDEX(Workings_risks!T$60:T$170, MATCH($A$3&$C31, Workings_risks!$E$60:$E$170,0)) -> 6038378.463 | T31: =INDEX(Workings_risks!U$60:U$170, MATCH($A$3&$C31, Workings_risks!$E$60:$E$170,0)) -> 6717760.442 | U31: =INDEX(Workings_risks!V$60:V$170, MATCH($A$3&$C31, Workings_risks!$E$60:$E$170,0)) -> 7456187.184 | V31: =INDEX(Workings_risks!W$60:W$170, MATCH($A$3&$C31, Workings_risks!$E$60:$E$170,0)) -> 8215198.042 | W31: =INDEX(Workings_risks!X$60:X$170, MATCH($A$3&$C31, Workings_risks!$E$60:$E$170,0)) -> 8950365.07 | X31: =INDEX(Workings_risks!Y$60:Y$170, MATCH($A$3&$C31, Workings_risks!$E$60:$E$170,0)) -> 9658546.939 | Y31: =INDEX(Workings_risks!Z$60:Z$170, MATCH($A$3&$C31, Workings_risks!$E$60:$E$170,0)) -> 10351944.82 | Z31: =INDEX(Workings_risks!AA$60:AA$170, MATCH($A$3&$C31, Workings_risks!$E$60:$E$170,0)) -> 11004642.02 | AA31: =INDEX(Workings_risks!AB$60:AB$170, MATCH($A$3&$C31, Workings_risks!$E$60:$E$170,0)) -> 11602221.68 | AB31: =INDEX(Workings_risks!AC$60:AC$170, MATCH($A$3&$C31, Workings_risks!$E$60:$E$170,0)) -> 12123463.31 | AC31: =INDEX(Workings_risks!AD$60:AD$170, MATCH($A$3&$C31, Workings_risks!$E$60:$E$170,0)) -> 12649183.97 | AD31: =INDEX(Workings_risks!AE$60:AE$170, MATCH($A$3&$C31, Workings_risks!$E$60:$E$170,0)) -> 13185664.83 | AE31: =INDEX(Workings_risks!AF$60:AF$170, MATCH($A$3&$C31, Workings_risks!$E$60:$E$170,0)) -> 13723569.1 | AF31: =INDEX(Workings_risks!AG$60:AG$170, MATCH($A$3&$C31, Workings_risks!$E$60:$E$170,0)) -> 14272801.28 | AG31: =INDEX(Workings_risks!AH$60:AH$170, MATCH($A$3&$C31, Workings_risks!$E$60:$E$170,0)) -> 14824632.06
C32: ='Option1 (base case)'!C32 -> Environmental consequence | D32: (after DF) | G32: =input_dollars -> 2023-12-31 | I32: =INDEX(Workings_risks!J$60:J$170, MATCH($A$3&$C32, Workings_risks!$E$60:$E$170,0)) -> 128429.5992 | J32: =INDEX(Workings_risks!K$60:K$170, MATCH($A$3&$C32, Workings_risks!$E$60:$E$170,0)) -> 141271.8776 | K32: =INDEX(Workings_risks!L$60:L$170, MATCH($A$3&$C32, Workings_risks!$E$60:$E$170,0)) -> 156161.5047 | L32: =INDEX(Workings_risks!M$60:M$170, MATCH($A$3&$C32, Workings_risks!$E$60:$E$170,0)) -> 173231.3853 | M32: =INDEX(Workings_risks!N$60:N$170, MATCH($A$3&$C32, Workings_risks!$E$60:$E$170,0)) -> 192777.3049 | N32: =INDEX(Workings_risks!O$60:O$170, MATCH($A$3&$C32, Workings_risks!$E$60:$E$170,0)) -> 215192.8663 | O32: =INDEX(Workings_risks!P$60:P$170, MATCH($A$3&$C32, Workings_risks!$E$60:$E$170,0)) -> 241293.4387 | P32: =INDEX(Workings_risks!Q$60:Q$170, MATCH($A$3&$C32, Workings_risks!$E$60:$E$170,0)) -> 271165.9926 | Q32: =INDEX(Workings_risks!R$60:R$170, MATCH($A$3&$C32, Workings_risks!$E$60:$E$170,0)) -> 304014.5441 | R32: =INDEX(Workings_risks!S$60:S$170, MATCH($A$3&$C32, Workings_risks!$E$60:$E$170,0)) -> 339061.7797 | S32: =INDEX(Workings_risks!T$60:T$170, MATCH($A$3&$C32, Workings_risks!$E$60:$E$170,0)) -> 376109.5335 | T32: =INDEX(Workings_risks!U$60:U$170, MATCH($A$3&$C32, Workings_risks!$E$60:$E$170,0)) -> 417147.9907 | U32: =INDEX(Workings_risks!V$60:V$170, MATCH($A$3&$C32, Workings_risks!$E$60:$E$170,0)) -> 461778.7741 | V32: =INDEX(Workings_risks!W$60:W$170, MATCH($A$3&$C32, Workings_risks!$E$60:$E$170,0)) -> 507707.6701 | W32: =INDEX(Workings_risks!X$60:X$170, MATCH($A$3&$C32, Workings_risks!$E$60:$E$170,0)) -> 551437.2623 | X32: =INDEX(Workings_risks!Y$60:Y$170, MATCH($A$3&$C32, Workings_risks!$E$60:$E$170,0)) -> 593561.7091 | Y32: =INDEX(Workings_risks!Z$60:Z$170, MATCH($A$3&$C32, Workings_risks!$E$60:$E$170,0)) -> 634806.7668 | Z32: =INDEX(Workings_risks!AA$60:AA$170, MATCH($A$3&$C32, Workings_risks!$E$60:$E$170,0)) -> 673630.8453 | AA32: =INDEX(Workings_risks!AB$60:AB$170, MATCH($A$3&$C32, Workings_risks!$E$60:$E$170,0)) -> 709176.3932 | AB32: =INDEX(Workings_risks!AC$60:AC$170, MATCH($A$3&$C32, Workings_risks!$E$60:$E$170,0)) -> 740181.1624 | AC32: =INDEX(Workings_risks!AD$60:AD$170, MATCH($A$3&$C32, Workings_risks!$E$60:$E$170,0)) -> 771452.3554 | AD32: =INDEX(Workings_risks!AE$60:AE$170, MATCH($A$3&$C32, Workings_risks!$E$60:$E$170,0)) -> 803363.5922 | AE32: =INDEX(Workings_risks!AF$60:AF$170, MATCH($A$3&$C32, Workings_risks!$E$60:$E$170,0)) -> 835359.4975 | AF32: =INDEX(Workings_risks!AG$60:AG$170, MATCH($A$3&$C32, Workings_risks!$E$60:$E$170,0)) -> 868029.2147 | AG32: =INDEX(Workings_risks!AH$60:AH$170, MATCH($A$3&$C32, Workings_risks!$E$60:$E$170,0)) -> 900853.5039
C33: ='Option1 (base case)'!C33 -> Response cost | G33: =input_dollars -> 2023-12-31 | I33: =INDEX(Workings_risks!J$60:J$170, MATCH($A$3&$C33, Workings_risks!$E$60:$E$170,0)) -> 400238.0528 | J33: =INDEX(Workings_risks!K$60:K$170, MATCH($A$3&$C33, Workings_risks!$E$60:$E$170,0)) -> 440768.8869 | K33: =INDEX(Workings_risks!L$60:L$170, MATCH($A$3&$C33, Workings_risks!$E$60:$E$170,0)) -> 487842.7678 | L33: =INDEX(Workings_risks!M$60:M$170, MATCH($A$3&$C33, Workings_risks!$E$60:$E$170,0)) -> 541913.0413 | M33: =INDEX(Workings_risks!N$60:N$170, MATCH($A$3&$C33, Workings_risks!$E$60:$E$170,0)) -> 603949.8221 | N33: =INDEX(Workings_risks!O$60:O$170, MATCH($A$3&$C33, Workings_risks!$E$60:$E$170,0)) -> 675239.3876 | O33: =INDEX(Workings_risks!P$60:P$170, MATCH($A$3&$C33, Workings_risks!$E$60:$E$170,0)) -> 757324.8358 | P33: =INDEX(Workings_risks!Q$60:Q$170, MATCH($A$3&$C33, Workings_risks!$E$60:$E$170,0)) -> 851291.1542 | Q33: =INDEX(Workings_risks!R$60:R$170, MATCH($A$3&$C33, Workings_risks!$E$60:$E$170,0)) -> 954361.649 | R33: =INDEX(Workings_risks!S$60:S$170, MATCH($A$3&$C33, Workings_risks!$E$60:$E$170,0)) -> 1064068.284 | S33: =INDEX(Workings_risks!T$60:T$170, MATCH($A$3&$C33, Workings_risks!$E$60:$E$170,0)) -> 1179775.775 | T33: =INDEX(Workings_risks!U$60:U$170, MATCH($A$3&$C33, Workings_risks!$E$60:$E$170,0)) -> 1307952.038 | U33: =INDEX(Workings_risks!V$60:V$170, MATCH($A$3&$C33, Workings_risks!$E$60:$E$170,0)) -> 1447359.745 | V33: =INDEX(Workings_risks!W$60:W$170, MATCH($A$3&$C33, Workings_risks!$E$60:$E$170,0)) -> 1590846.276 | W33: =INDEX(Workings_risks!X$60:X$170, MATCH($A$3&$C33, Workings_risks!$E$60:$E$170,0)) -> 1727125.194 | X33: =INDEX(Workings_risks!Y$60:Y$170, MATCH($A$3&$C33, Workings_risks!$E$60:$E$170,0)) -> 1858401.837 | Y33: =INDEX(Workings_risks!Z$60:Z$170, MATCH($A$3&$C33, Workings_risks!$E$60:$E$170,0)) -> 1986937.951 | Z33: =INDEX(Workings_risks!AA$60:AA$170, MATCH($A$3&$C33, Workings_risks!$E$60:$E$170,0)) -> 2107929.324 | AA33: =INDEX(Workings_risks!AB$60:AB$170, MATCH($A$3&$C33, Workings_risks!$E$60:$E$170,0)) -> 2218703.483 | AB33: =INDEX(Workings_risks!AC$60:AC$170, MATCH($A$3&$C33, Workings_risks!$E$60:$E$170,0)) -> 2315326.758 | AC33: =INDEX(Workings_risks!AD$60:AD$170, MATCH($A$3&$C33, Workings_risks!$E$60:$E$170,0)) -> 2412780.316 | AD33: =INDEX(Workings_risks!AE$60:AE$170, MATCH($A$3&$C33, Workings_risks!$E$60:$E$170,0)) -> 2512228.507 | AE33: =INDEX(Workings_risks!AF$60:AF$170, MATCH($A$3&$C33, Workings_risks!$E$60:$E$170,0)) -> 2611940.558 | AF33: =INDEX(Workings_risks!AG$60:AG$170, MATCH($A$3&$C33, Workings_risks!$E$60:$E$170,0)) -> 2713752.478 | AG33: =INDEX(Workings_risks!AH$60:AH$170, MATCH($A$3&$C33, Workings_risks!$E$60:$E$170,0)) -> 2816046.105
G34: =input_dollars -> 2023-12-31 | I34: 0 | J34: 0 | K34: 0 | L34: 0 | M34: 0 | N34: 0 | O34: 0 | P34: 0 | Q34: 0 | R34: 0 | S34: 0 | T34: 0 | U34: 0 | V34: 0 | W34: 0 | X34: 0 | Y34: 0 | Z34: 0 | AA34: 0 | AB34: 0 | AC34: 0 | AD34: 0 | AE34: 0 | AF34: 0 | AG34: 0
C36: Total risk cost | I36: =SUM(I28:I34) -> 6880862.532 | J36: =SUM(J28:J34) -> 7550779.06 | K36: 8324592.158 | L36: 9208027.733 | M36: 10215211.9 | N36: 11365108.13 | O36: 12736941.78 | P36: 14306383.94 | Q36: 16041333.32 | R36: 17901768.46 | S36: 19877703.28 | T36: 22066303 | U36: 24446075.05 | V36: 26894207 | W36: 29237103.92 | X36: 31494002.09 | Y36: 33703785.3 | Z36: 35783859.9 | AA36: 37688280.92 | AB36: 39349421 | AC36: =SUM(AC28:AC34) -> 41024835.25 | AD36: =SUM(AD28:AD34) -> 42734541.07 | AE36: =SUM(AE28:AE34) -> 44448783.17 | AF36: =SUM(AF28:AF34) -> 46199126.04 | AG36: =SUM(AG28:AG34) -> 47957750.4
A38: OTHER BENEFITS
C41: Reduction in CO2 emissions | G41: MWh | I41: 0 | J41: 0 | K41: 0 | L41: 0 | M41: 0 | N41: 0 | O41: 0 | P41: 0 | Q41: 0 | R41: 0 | S41: 0 | T41: 0 | U41: 0 | V41: 0 | W41: 0 | X41: 0 | Y41: 0 | Z41: 0 | AA41: 0 | AB41: 0 | AC41: 0 | AD41: 0 | AE41: 0 | AF41: 0 | AG41: 0
C42: Value of reduction in CO2 emissions | G42: $ | I42: =I41*I7 -> 0 | J42: 0 | K42: 0 | L42: 0 | M42: 0 | N42: 0 | O42: 0 | P42: 0 | Q42: 0 | R42: 0 | S42: 0 | T42: 0 | U42: 0 | V42: 0 | W42: 0 | X42: 0 | Y42: 0 | Z42: 0 | AA42: 0 | AB42: 0 | AC42: 0 | AD42: 0 | AE42: 0 | AF42: 0 | AG42: 0
C45: Reliability in worst-served areas | D45: $/MWh | E45: =Assumptions!G94 -> 151432.8174 | G45: MWh | I45: 0 | J45: 0 | K45: 0 | L45: 0 | M45: 0 | N45: 0 | O45: 0 | P45: 0 | Q45: 0 | R45: 0 | S45: 0 | T45: 0 | U45: 0 | V45: 0 | W45: 0 | X45: 0 | Y45: 0 | Z45: 0 | AA45: 0 | AB45: 0 | AC45: 0 | AD45: 0 | AE45: 0 | AF45: 0 | AG45: 0
C46: Network resilience | D46: $/MWh | E46: =Assumptions!G95 -> 24590 | G46: MWh | I46: 0 | J46: 0 | K46: 0 | L46: 0 | M46: 0 | N46: 0 | O46: 0 | P46: 0 | Q46: 0 | R46: 0 | S46: 0 | T46: 0 | U46: 0 | V46: 0 | W46: 0 | X46: 0 | Y46: 0 | Z46: 0 | AA46: 0 | AB46: 0 | AC46: 0 | AD46: 0 | AE46: 0 | AF46: 0 | AG46: 0
C47: Enabling solar exports | D47: $/MWh | E47: =Assumptions!G96 -> 88.35771951 | G47: MWh | I47: 0 | J47: 0 | K47: 0 | L47: 0 | M47: 0 | N47: 0 | O47: 0 | P47: 0 | Q47: 0 | R47: 0 | S47: 0 | T47: 0 | U47: 0 | V47: 0 | W47: 0 | X47: 0 | Y47: 0 | Z47: 0 | AA47: 0 | AB47: 0 | AC47: 0 | AD47: 0 | AE47: 0 | AF47: 0 | AG47: 0
C48: Aesthetics | D48: $/customer | E48: =Assumptions!G97 -> 0 | G48: customers | I48: 0 | J48: 0 | K48: 0 | L48: 0 | M48: 0 | N48: 0 | O48: 0 | P48: 0 | Q48: 0 | R48: 0 | S48: 0 | T48: 0 | U48: 0 | V48: 0 | W48: 0 | X48: 0 | Y48: 0 | Z48: 0 | AA48: 0 | AB48: 0 | AC48: 0 | AD48: 0 | AE48: 0 | AF48: 0 | AG48: 0
C49: Customer value of time (res) | D49: $/customer min | E49: =Assumptions!G98 -> 0.3518133654 | G49: mins | I49: 0 | J49: 0 | K49: 0 | L49: 0 | M49: 0 | N49: 0 | O49: 0 | P49: 0 | Q49: 0 | R49: 0 | S49: 0 | T49: 0 | U49: 0 | V49: 0 | W49: 0 | X49: 0 | Y49: 0 | Z49: 0 | AA49: 0 | AB49: 0 | AC49: 0 | AD49: 0 | AE49: 0 | AF49: 0 | AG49: 0
C50: Customer value of time (bus) | D50: $/customer min | E50: =Assumptions!G99 -> 0.3518133654 | G50: mins | I50: 0 | J50: 0 | K50: 0 | L50: 0 | M50: 0 | N50: 0 | O50: 0 | P50: 0 | Q50: 0 | R50: 0 | S50: 0 | T50: 0 | U50: 0 | V50: 0 | W50: 0 | X50: 0 | Y50: 0 | Z50: 0 | AA50: 0 | AB50: 0 | AC50: 0 | AD50: 0 | AE50: 0 | AF50: 0 | AG50: 0
C51: Communication | D51: $/customer | E51: =Assumptions!G100 -> 0 | G51: customers | I51: 0 | J51: 0 | K51: 0 | L51: 0 | M51: 0 | N51: 0 | O51: 0 | P51: 0 | Q51: 0 | R51: 0 | S51: 0 | T51: 0 | U51: 0 | V51: 0 | W51: 0 | X51: 0 | Y51: 0 | Z51: 0 | AA51: 0 | AB51: 0 | AC51: 0 | AD51: 0 | AE51: 0 | AF51: 0 | AG51: 0
C52: Information accessibility | D52: $/customer | E52: =Assumptions!G101 -> 0 | G52: customers | I52: 0 | J52: 0 | K52: 0 | L52: 0 | M52: 0 | N52: 0 | O52: 0 | P52: 0 | Q52: 0 | R52: 0 | S52: 0 | T52: 0 | U52: 0 | V52: 0 | W52: 0 | X52: 0 | Y52: 0 | Z52: 0 | AA52: 0 | AB52: 0 | AC52: 0 | AD52: 0 | AE52: 0 | AF52: 0 | AG52: 0
C54: Other benefits 1 | G54: =input_dollars -> 2023-12-31 | I54: 0 | J54: 0 | K54: 0 | L54: 0 | M54: 0 | N54: 0 | O54: 0 | P54: 0 | Q54: 0 | R54: 0 | S54: 0 | T54: 0 | U54: 0 | V54: 0 | W54: 0 | X54: 0 | Y54: 0 | Z54: 0 | AA54: 0 | AB54: 0 | AC54: 0 | AD54: 0 | AE54: 0 | AF54: 0 | AG54: 0
C55: Other benefits 2 | G55: =input_dollars -> 2023-12-31 | I55: 0 | J55: 0 | K55: 0 | L55: 0 | M55: 0 | N55: 0 | O55: 0 | P55: 0 | Q55: 0 | R55: 0 | S55: 0 | T55: 0 | U55: 0 | V55: 0 | W55: 0 | X55: 0 | Y55: 0 | Z55: 0 | AA55: 0 | AB55: 0 | AC55: 0 | AD55: 0 | AE55: 0 | AF55: 0 | AG55: 0
C57: Total other benefits | G57: =input_dollars -> 2023-12-31 | I57: =SUMPRODUCT((I$45:I$52)*($E$45:$E$52))+SUM(I54:I55)+I42 -> 0 | J57: =SUMPRODUCT((J$45:J$52)*($E$45:$E$52))+SUM(J54:J55)+J42 -> 0 | K57: =SUMPRODUCT((K$45:K$52)*($E$45:$E$52))+SUM(K54:K55)+K42 -> 0 | L57: =SUMPRODUCT((L$45:L$52)*($E$45:$E$52))+SUM(L54:L55)+L42 -> 0 | M57: =SUMPRODUCT((M$45:M$52)*($E$45:$E$52))+SUM(M54:M55)+M42 -> 0 | N57: =SUMPRODUCT((N$45:N$52)*($E$45:$E$52))+SUM(N54:N55)+N42 -> 0 | O57: =SUMPRODUCT((O$45:O$52)*($E$45:$E$52))+SUM(O54:O55)+O42 -> 0 | P57: =SUMPRODUCT((P$45:P$52)*($E$45:$E$52))+SUM(P54:P55)+P42 -> 0 | Q57: =SUMPRODUCT((Q$45:Q$52)*($E$45:$E$52))+SUM(Q54:Q55)+Q42 -> 0 | R57: =SUMPRODUCT((R$45:R$52)*($E$45:$E$52))+SUM(R54:R55)+R42 -> 0 | S57: =SUMPRODUCT((S$45:S$52)*($E$45:$E$52))+SUM(S54:S55)+S42 -> 0 | T57: =SUMPRODUCT((T$45:T$52)*($E$45:$E$52))+SUM(T54:T55)+T42 -> 0 | U57: =SUMPRODUCT((U$45:U$52)*($E$45:$E$52))+SUM(U54:U55)+U42 -> 0 | V57: =SUMPRODUCT((V$45:V$52)*($E$45:$E$52))+SUM(V54:V55)+V42 -> 0 | W57: =SUMPRODUCT((W$45:W$52)*($E$45:$E$52))+SUM(W54:W55)+W42 -> 0 | X57: =SUMPRODUCT((X$45:X$52)*($E$45:$E$52))+SUM(X54:X55)+X42 -> 0 | Y57: =SUMPRODUCT((Y$45:Y$52)*($E$45:$E$52))+SUM(Y54:Y55)+Y42 -> 0 | Z57: =SUMPRODUCT((Z$45:Z$52)*($E$45:$E$52))+SUM(Z54:Z55)+Z42 -> 0 | AA57: =SUMPRODUCT((AA$45:AA$52)*($E$45:$E$52))+SUM(AA54:AA55)+AA42 -> 0 | AB57: =SUMPRODUCT((AB$45:AB$52)*($E$45:$E$52))+SUM(AB54:AB55)+AB42 -> 0 | AC57: =SUMPRODUCT((AC$45:AC$52)*($E$45:$E$52))+SUM(AC54:AC55)+AC42 -> 0 | AD57: =SUMPRODUCT((AD$45:AD$52)*($E$45:$E$52))+SUM(AD54:AD55)+AD42 -> 0 | AE57: =SUMPRODUCT((AE$45:AE$52)*($E$45:$E$52))+SUM(AE54:AE55)+AE42 -> 0 | AF57: =SUMPRODUCT((AF$45:AF$52)*($E$45:$E$52))+SUM(AF54:AF55)+AF42 -> 0 | AG57: =SUMPRODUCT((AG$45:AG$52)*($E$45:$E$52))+SUM(AG54:AG55)+AG42 -> 0
A60: SUMMARY
C64: ='Option1 (base case)'!C64 -> Risks mitigated vs base case | G64: =input_dollars -> 2023-12-31 | I64: =(1-INDEX(Data!$C$9:$C$13, MATCH($A$3, options,0)))*('Option1 (base case)'!I36-I36) -> 0 | J64: =(1-INDEX(Data!$C$9:$C$13, MATCH($A$3, options,0)))*('Option1 (base case)'!J36-J36) -> 27986.55879 | K64: =(1-INDEX(Data!$C$9:$C$13, MATCH($A$3, options,0)))*('Option1 (base case)'!K36-K36) -> 64915.60845 | L64: =(1-INDEX(Data!$C$9:$C$13, MATCH($A$3, options,0)))*('Option1 (base case)'!L36-L36) -> 112939.7393 | M64: =(1-INDEX(Data!$C$9:$C$13, MATCH($A$3, options,0)))*('Option1 (base case)'!M36-M36) -> 174715.3857 | N64: =(1-INDEX(Data!$C$9:$C$13, MATCH($A$3, options,0)))*('Option1 (base case)'!N36-N36) -> 253521.5417 | O64: =(1-INDEX(Data!$C$9:$C$13, MATCH($A$3, options,0)))*('Option1 (base case)'!O36-O36) -> 294505.6667 | P64: =(1-INDEX(Data!$C$9:$C$13, MATCH($A$3, options,0)))*('Option1 (base case)'!P36-P36) -> 342408.2406 | Q64: =(1-INDEX(Data!$C$9:$C$13, MATCH($A$3, options,0)))*('Option1 (base case)'!Q36-Q36) -> 380954.134 | R64: =(1-INDEX(Data!$C$9:$C$13, MATCH($A$3, options,0)))*('Option1 (base case)'!R36-R36) -> 407635.9685 | S64: =(1-INDEX(Data!$C$9:$C$13, MATCH($A$3, options,0)))*('Option1 (base case)'!S36-S36) -> 421479.7872 | T64: =(1-INDEX(Data!$C$9:$C$13, MATCH($A$3, options,0)))*('Option1 (base case)'!T36-T36) -> 437090.323 | U64: =(1-INDEX(Data!$C$9:$C$13, MATCH($A$3, options,0)))*('Option1 (base case)'!U36-U36) -> 454697.1615 | V64: =(1-INDEX(Data!$C$9:$C$13, MATCH($A$3, options,0)))*('Option1 (base case)'!V36-V36) -> 474139.0585 | W64: =(1-INDEX(Data!$C$9:$C$13, MATCH($A$3, options,0)))*('Option1 (base case)'!W36-W36) -> 474139.0585 | X64: =(1-INDEX(Data!$C$9:$C$13, MATCH($A$3, options,0)))*('Option1 (base case)'!X36-X36) -> 474139.0585 | Y64: =(1-INDEX(Data!$C$9:$C$13, MATCH($A$3, options,0)))*('Option1 (base case)'!Y36-Y36) -> 474139.0585 | Z64: =(1-INDEX(Data!$C$9:$C$13, MATCH($A$3, options,0)))*('Option1 (base case)'!Z36-Z36) -> 474139.0585 | AA64: =(1-INDEX(Data!$C$9:$C$13, MATCH($A$3, options,0)))*('Option1 (base case)'!AA36-AA36) -> 474139.0585 | AB64: =(1-INDEX(Data!$C$9:$C$13, MATCH($A$3, options,0)))*('Option1 (base case)'!AB36-AB36) -> 474139.0585 | AC64: =(1-INDEX(Data!$C$9:$C$13, MATCH($A$3, options,0)))*('Option1 (base case)'!AC36-AC36) -> 474139.0585 | AD64: =(1-INDEX(Data!$C$9:$C$13, MATCH($A$3, options,0)))*('Option1 (base case)'!AD36-AD36) -> 474139.0585 | AE64: =(1-INDEX(Data!$C$9:$C$13, MATCH($A$3, options,0)))*('Option1 (base case)'!AE36-AE36) -> 474139.0585 | AF64: =(1-INDEX(Data!$C$9:$C$13, MATCH($A$3, options,0)))*('Option1 (base case)'!AF36-AF36) -> 474139.0585 | AG64: =(1-INDEX(Data!$C$9:$C$13, MATCH($A$3, options,0)))*('Option1 (base case)'!AG36-AG36) -> 474139.0585
C66: Capital expenditure
C67: =C14 -> Cable replacement | G67: =input_dollars -> 2023-12-31 | I67: =-I14 -> -1446609.584 | J67: -1446609.584 | K67: -1446609.584 | L67: -1446609.584 | M67: -1446609.584 | N67: 0 | O67: 0 | P67: 0 | Q67: 0 | R67: 0 | S67: 0 | T67: 0 | U67: 0 | V67: 0 | W67: 0 | X67: 0 | Y67: 0 | Z67: 0 | AA67: 0 | AB67: 0 | AC67: 0 | AD67: 0 | AE67: 0 | AF67: 0 | AG67: 0
C68: =C15 -> 0 | G68: =input_dollars -> 2023-12-31 | I68: =-I15 -> 0 | J68: 0 | K68: 0 | L68: 0 | M68: 0 | N68: 0 | O68: 0 | P68: 0 | Q68: 0 | R68: 0 | S68: 0 | T68: 0 | U68: 0 | V68: 0 | W68: 0 | X68: 0 | Y68: 0 | Z68: 0 | AA68: 0 | AB68: 0 | AC68: 0 | AD68: 0 | AE68: 0 | AF68: 0 | AG68: 0
C69: =C16 -> 0 | G69: =input_dollars -> 2023-12-31 | I69: =-I16 -> 0 | J69: 0 | K69: 0 | L69: 0 | M69: 0 | N69: 0 | O69: 0 | P69: 0 | Q69: 0 | R69: 0 | S69: 0 | T69: 0 | U69: 0 | V69: 0 | W69: 0 | X69: 0 | Y69: 0 | Z69: 0 | AA69: 0 | AB69: 0 | AC69: 0 | AD69: 0 | AE69: 0 | AF69: 0 | AG69: 0
C71: Cumulative capex
C72: =C14 -> Cable replacement | G72: =input_dollars -> 2023-12-31 | I72: =SUMPRODUCT(($I67:I67))-SUMPRODUCT(($I67:I67)*($I$6:I$6<=(I$6-$E14))) -> -1446609.584 | J72: =SUMPRODUCT(($I67:J67))-SUMPRODUCT(($I67:J67)*($I$6:J$6<=(J$6-$E14))) -> -2893219.168 | K72: =SUMPRODUCT(($I67:K67))-SUMPRODUCT(($I67:K67)*($I$6:K$6<=(K$6-$E14))) -> -4339828.752 | L72: =SUMPRODUCT(($I67:L67))-SUMPRODUCT(($I67:L67)*($I$6:L$6<=(L$6-$E14))) -> -5786438.336 | M72: =SUMPRODUCT(($I67:M67))-SUMPRODUCT(($I67:M67)*($I$6:M$6<=(M$6-$E14))) -> -7233047.92 | N72: =SUMPRODUCT(($I67:N67))-SUMPRODUCT(($I67:N67)*($I$6:N$6<=(N$6-$E14))) -> -7233047.92 | O72: =SUMPRODUCT(($I67:O67))-SUMPRODUCT(($I67:O67)*($I$6:O$6<=(O$6-$E14))) -> -7233047.92 | P72: =SUMPRODUCT(($I67:P67))-SUMPRODUCT(($I67:P67)*($I$6:P$6<=(P$6-$E14))) -> -7233047.92 | Q72: =SUMPRODUCT(($I67:Q67))-SUMPRODUCT(($I67:Q67)*($I$6:Q$6<=(Q$6-$E14))) -> -7233047.92 | R72: =SUMPRODUCT(($I67:R67))-SUMPRODUCT(($I67:R67)*($I$6:R$6<=(R$6-$E14))) -> -7233047.92 | S72: =SUMPRODUCT(($I67:S67))-SUMPRODUCT(($I67:S67)*($I$6:S$6<=(S$6-$E14))) -> -7233047.92 | T72: =SUMPRODUCT(($I67:T67))-SUMPRODUCT(($I67:T67)*($I$6:T$6<=(T$6-$E14))) -> -7233047.92 | U72: =SUMPRODUCT(($I67:U67))-SUMPRODUCT(($I67:U67)*($I$6:U$6<=(U$6-$E14))) -> -7233047.92 | V72: =SUMPRODUCT(($I67:V67))-SUMPRODUCT(($I67:V67)*($I$6:V$6<=(V$6-$E14))) -> -7233047.92 | W72: =SUMPRODUCT(($I67:W67))-SUMPRODUCT(($I67:W67)*($I$6:W$6<=(W$6-$E14))) -> -7233047.92 | X72: =SUMPRODUCT(($I67:X67))-SUMPRODUCT(($I67:X67)*($I$6:X$6<=(X$6-$E14))) -> -7233047.92 | Y72: =SUMPRODUCT(($I67:Y67))-SUMPRODUCT(($I67:Y67)*($I$6:Y$6<=(Y$6-$E14))) -> -7233047.92 | Z72: =SUMPRODUCT(($I67:Z67))-SUMPRODUCT(($I67:Z67)*($I$6:Z$6<=(Z$6-$E14))) -> -7233047.92 | AA72: =SUMPRODUCT(($I67:AA67))-SUMPRODUCT(($I67:AA67)*($I$6:AA$6<=(AA$6-$E14))) -> -7233047.92 | AB72: =SUMPRODUCT(($I67:AB67))-SUMPRODUCT(($I67:AB67)*($I$6:AB$6<=(AB$6-$E14))) -> -7233047.92 | AC72: =SUMPRODUCT(($I67:AC67))-SUMPRODUCT(($I67:AC67)*($I$6:AC$6<=(AC$6-$E14))) -> -7233047.92 | AD72: =SUMPRODUCT(($I67:AD67))-SUMPRODUCT(($I67:AD67)*($I$6:AD$6<=(AD$6-$E14))) -> -7233047.92 | AE72: =SUMPRODUCT(($I67:AE67))-SUMPRODUCT(($I67:AE67)*($I$6:AE$6<=(AE$6-$E14))) -> -7233047.92 | AF72: =SUMPRODUCT(($I67:AF67))-SUMPRODUCT(($I67:AF67)*($I$6:AF$6<=(AF$6-$E14))) -> -7233047.92 | AG72: =SUMPRODUCT(($I67:AG67))-SUMPRODUCT(($I67:AG67)*($I$6:AG$6<=(AG$6-$E14))) -> -7233047.92
C73: =C15 -> 0 | G73: =input_dollars -> 2023-12-31 | I73: =SUMPRODUCT(($I68:I68))-SUMPRODUCT(($I68:I68)*($I$6:I$6<=(I$6-$E15))) -> 0 | J73: =SUMPRODUCT(($I68:J68))-SUMPRODUCT(($I68:J68)*($I$6:J$6<=(J$6-$E15))) -> 0 | K73: =SUMPRODUCT(($I68:K68))-SUMPRODUCT(($I68:K68)*($I$6:K$6<=(K$6-$E15))) -> 0 | L73: =SUMPRODUCT(($I68:L68))-SUMPRODUCT(($I68:L68)*($I$6:L$6<=(L$6-$E15))) -> 0 | M73: =SUMPRODUCT(($I68:M68))-SUMPRODUCT(($I68:M68)*($I$6:M$6<=(M$6-$E15))) -> 0 | N73: =SUMPRODUCT(($I68:N68))-SUMPRODUCT(($I68:N68)*($I$6:N$6<=(N$6-$E15))) -> 0 | O73: =SUMPRODUCT(($I68:O68))-SUMPRODUCT(($I68:O68)*($I$6:O$6<=(O$6-$E15))) -> 0 | P73: =SUMPRODUCT(($I68:P68))-SUMPRODUCT(($I68:P68)*($I$6:P$6<=(P$6-$E15))) -> 0 | Q73: =SUMPRODUCT(($I68:Q68))-SUMPRODUCT(($I68:Q68)*($I$6:Q$6<=(Q$6-$E15))) -> 0 | R73: =SUMPRODUCT(($I68:R68))-SUMPRODUCT(($I68:R68)*($I$6:R$6<=(R$6-$E15))) -> 0 | S73: =SUMPRODUCT(($I68:S68))-SUMPRODUCT(($I68:S68)*($I$6:S$6<=(S$6-$E15))) -> 0 | T73: =SUMPRODUCT(($I68:T68))-SUMPRODUCT(($I68:T68)*($I$6:T$6<=(T$6-$E15))) -> 0 | U73: =SUMPRODUCT(($I68:U68))-SUMPRODUCT(($I68:U68)*($I$6:U$6<=(U$6-$E15))) -> 0 | V73: =SUMPRODUCT(($I68:V68))-SUMPRODUCT(($I68:V68)*($I$6:V$6<=(V$6-$E15))) -> 0 | W73: =SUMPRODUCT(($I68:W68))-SUMPRODUCT(($I68:W68)*($I$6:W$6<=(W$6-$E15))) -> 0 | X73: =SUMPRODUCT(($I68:X68))-SUMPRODUCT(($I68:X68)*($I$6:X$6<=(X$6-$E15))) -> 0 | Y73: =SUMPRODUCT(($I68:Y68))-SUMPRODUCT(($I68:Y68)*($I$6:Y$6<=(Y$6-$E15))) -> 0 | Z73: =SUMPRODUCT(($I68:Z68))-SUMPRODUCT(($I68:Z68)*($I$6:Z$6<=(Z$6-$E15))) -> 0 | AA73: =SUMPRODUCT(($I68:AA68))-SUMPRODUCT(($I68:AA68)*($I$6:AA$6<=(AA$6-$E15))) -> 0 | AB73: =SUMPRODUCT(($I68:AB68))-SUMPRODUCT(($I68:AB68)*($I$6:AB$6<=(AB$6-$E15))) -> 0 | AC73: =SUMPRODUCT(($I68:AC68))-SUMPRODUCT(($I68:AC68)*($I$6:AC$6<=(AC$6-$E15))) -> 0 | AD73: =SUMPRODUCT(($I68:AD68))-SUMPRODUCT(($I68:AD68)*($I$6:AD$6<=(AD$6-$E15))) -> 0 | AE73: =SUMPRODUCT(($I68:AE68))-SUMPRODUCT(($I68:AE68)*($I$6:AE$6<=(AE$6-$E15))) -> 0 | AF73: =SUMPRODUCT(($I68:AF68))-SUMPRODUCT(($I68:AF68)*($I$6:AF$6<=(AF$6-$E15))) -> 0 | AG73: =SUMPRODUCT(($I68:AG68))-SUMPRODUCT(($I68:AG68)*($I$6:AG$6<=(AG$6-$E15))) -> 0
C74: =C16 -> 0 | G74: =input_dollars -> 2023-12-31 | I74: =SUMPRODUCT(($I69:I69))-SUMPRODUCT(($I69:I69)*($I$6:I$6<=(I$6-$E16))) -> 0 | J74: =SUMPRODUCT(($I69:J69))-SUMPRODUCT(($I69:J69)*($I$6:J$6<=(J$6-$E16))) -> 0 | K74: =SUMPRODUCT(($I69:K69))-SUMPRODUCT(($I69:K69)*($I$6:K$6<=(K$6-$E16))) -> 0 | L74: =SUMPRODUCT(($I69:L69))-SUMPRODUCT(($I69:L69)*($I$6:L$6<=(L$6-$E16))) -> 0 | M74: =SUMPRODUCT(($I69:M69))-SUMPRODUCT(($I69:M69)*($I$6:M$6<=(M$6-$E16))) -> 0 | N74: =SUMPRODUCT(($I69:N69))-SUMPRODUCT(($I69:N69)*($I$6:N$6<=(N$6-$E16))) -> 0 | O74: =SUMPRODUCT(($I69:O69))-SUMPRODUCT(($I69:O69)*($I$6:O$6<=(O$6-$E16))) -> 0 | P74: =SUMPRODUCT(($I69:P69))-SUMPRODUCT(($I69:P69)*($I$6:P$6<=(P$6-$E16))) -> 0 | Q74: =SUMPRODUCT(($I69:Q69))-SUMPRODUCT(($I69:Q69)*($I$6:Q$6<=(Q$6-$E16))) -> 0 | R74: =SUMPRODUCT(($I69:R69))-SUMPRODUCT(($I69:R69)*($I$6:R$6<=(R$6-$E16))) -> 0 | S74: =SUMPRODUCT(($I69:S69))-SUMPRODUCT(($I69:S69)*($I$6:S$6<=(S$6-$E16))) -> 0 | T74: =SUMPRODUCT(($I69:T69))-SUMPRODUCT(($I69:T69)*($I$6:T$6<=(T$6-$E16))) -> 0 | U74: =SUMPRODUCT(($I69:U69))-SUMPRODUCT(($I69:U69)*($I$6:U$6<=(U$6-$E16))) -> 0 | V74: =SUMPRODUCT(($I69:V69))-SUMPRODUCT(($I69:V69)*($I$6:V$6<=(V$6-$E16))) -> 0 | W74: =SUMPRODUCT(($I69:W69))-SUMPRODUCT(($I69:W69)*($I$6:W$6<=(W$6-$E16))) -> 0 | X74: =SUMPRODUCT(($I69:X69))-SUMPRODUCT(($I69:X69)*($I$6:X$6<=(X$6-$E16))) -> 0 | Y74: =SUMPRODUCT(($I69:Y69))-SUMPRODUCT(($I69:Y69)*($I$6:Y$6<=(Y$6-$E16))) -> 0 | Z74: =SUMPRODUCT(($I69:Z69))-SUMPRODUCT(($I69:Z69)*($I$6:Z$6<=(Z$6-$E16))) -> 0 | AA74: =SUMPRODUCT(($I69:AA69))-SUMPRODUCT(($I69:AA69)*($I$6:AA$6<=(AA$6-$E16))) -> 0 | AB74: =SUMPRODUCT(($I69:AB69))-SUMPRODUCT(($I69:AB69)*($I$6:AB$6<=(AB$6-$E16))) -> 0 | AC74: =SUMPRODUCT(($I69:AC69))-SUMPRODUCT(($I69:AC69)*($I$6:AC$6<=(AC$6-$E16))) -> 0 | AD74: =SUMPRODUCT(($I69:AD69))-SUMPRODUCT(($I69:AD69)*($I$6:AD$6<=(AD$6-$E16))) -> 0 | AE74: =SUMPRODUCT(($I69:AE69))-SUMPRODUCT(($I69:AE69)*($I$6:AE$6<=(AE$6-$E16))) -> 0 | AF74: =SUMPRODUCT(($I69:AF69))-SUMPRODUCT(($I69:AF69)*($I$6:AF$6<=(AF$6-$E16))) -> 0 | AG74: =SUMPRODUCT(($I69:AG69))-SUMPRODUCT(($I69:AG69)*($I$6:AG$6<=(AG$6-$E16))) -> 0
C76: Annualised capex
C77: =$C$76&" - "&C14 -> Annualised capex - Cable replacement | G77: =input_dollars -> 2023-12-31 | I77: =IF($E14=0,0,-PMT(real_disc, $E14,H72,)) -> 0 | J77: -57992.58381 | K77: -115985.1676 | L77: -173977.7514 | M77: -231970.3352 | N77: -289962.9191 | O77: -289962.9191 | P77: -289962.9191 | Q77: -289962.9191 | R77: -289962.9191 | S77: -289962.9191 | T77: -289962.9191 | U77: -289962.9191 | V77: -289962.9191 | W77: -289962.9191 | X77: -289962.9191 | Y77: -289962.9191 | Z77: -289962.9191 | AA77: -289962.9191 | AB77: -289962.9191 | AC77: -289962.9191 | AD77: -289962.9191 | AE77: -289962.9191 | AF77: -289962.9191 | AG77: -289962.9191
C78: =$C$76&" - "&C15 -> Annualised capex - | G78: =input_dollars -> 2023-12-31 | I78: =IF($E15=0,0,-PMT(real_disc, $E15,H73,)) -> 0 | J78: 0 | K78: 0 | L78: 0 | M78: 0 | N78: 0 | O78: 0 | P78: 0 | Q78: 0 | R78: 0 | S78: 0 | T78: 0 | U78: 0 | V78: 0 | W78: 0 | X78: 0 | Y78: 0 | Z78: 0 | AA78: 0 | AB78: 0 | AC78: 0 | AD78: 0 | AE78: 0 | AF78: 0 | AG78: 0
C79: =$C$76&" - "&C16 -> Annualised capex - | G79: =input_dollars -> 2023-12-31 | I79: =IF($E16=0,0,-PMT(real_disc, $E16,H74,)) -> 0 | J79: 0 | K79: 0 | L79: 0 | M79: 0 | N79: 0 | O79: 0 | P79: 0 | Q79: 0 | R79: 0 | S79: 0 | T79: 0 | U79: 0 | V79: 0 | W79: 0 | X79: 0 | Y79: 0 | Z79: 0 | AA79: 0 | AB79: 0 | AC79: 0 | AD79: 0 | AE79: 0 | AF79: 0 | AG79: 0
C80: Total annualised capex | G80: =input_dollars -> 2023-12-31 | I80: =SUM(I77:I79) -> 0 | J80: =SUM(J77:J79) -> -57992.58381 | K80: -115985.1676 | L80: -173977.7514 | M80: -231970.3352 | N80: -289962.9191 | O80: -289962.9191 | P80: -289962.9191 | Q80: -289962.9191 | R80: -289962.9191 | S80: -289962.9191 | T80: -289962.9191 | U80: -289962.9191 | V80: -289962.9191 | W80: -289962.9191 | X80: -289962.9191 | Y80: -289962.9191 | Z80: -289962.9191 | AA80: -289962.9191 | AB80: -289962.9191 | AC80: =SUM(AC77:AC79) -> -289962.9191 | AD80: =SUM(AD77:AD79) -> -289962.9191 | AE80: =SUM(AE77:AE79) -> -289962.9191 | AF80: =SUM(AF77:AF79) -> -289962.9191 | AG80: =SUM(AG77:AG79) -> -289962.9191
C82: Annualised capex | G82: =input_dollars -> 2023-12-31 | I82: =I80 -> 0 | J82: =J80 -> -57992.58381 | K82: -115985.1676 | L82: -173977.7514 | M82: -231970.3352 | N82: -289962.9191 | O82: -289962.9191 | P82: -289962.9191 | Q82: -289962.9191 | R82: -289962.9191 | S82: -289962.9191 | T82: -289962.9191 | U82: -289962.9191 | V82: -289962.9191 | W82: -289962.9191 | X82: -289962.9191 | Y82: -289962.9191 | Z82: -289962.9191 | AA82: -289962.9191 | AB82: -289962.9191 | AC82: =AC80 -> -289962.9191 | AD82: =AD80 -> -289962.9191 | AE82: =AE80 -> -289962.9191 | AF82: =AF80 -> -289962.9191 | AG82: =AG80 -> -289962.9191
C83: Operating expenditure | G83: 2023-12-31 | I83: =-I19 -> 0 | J83: 0 | K83: 0 | L83: 0 | M83: 0 | N83: 0 | O83: 0 | P83: 0 | Q83: 0 | R83: 0 | S83: 0 | T83: 0 | U83: 0 | V83: 0 | W83: 0 | X83: 0 | Y83: 0 | Z83: 0 | AA83: 0 | AB83: 0 | AC83: 0 | AD83: 0 | AE83: 0 | AF83: 0 | AG83: 0
C84: Risk mitigated | G84: 2023-12-31 | I84: =I64 -> 0 | J84: 27986.55879 | K84: 64915.60845 | L84: 112939.7393 | M84: 174715.3857 | N84: 253521.5417 | O84: 294505.6667 | P84: 342408.2406 | Q84: 380954.134 | R84: 407635.9685 | S84: 421479.7872 | T84: 437090.323 | U84: 454697.1615 | V84: 474139.0585 | W84: 474139.0585 | X84: 474139.0585 | Y84: 474139.0585 | Z84: 474139.0585 | AA84: 474139.0585 | AB84: 474139.0585 | AC84: 474139.0585 | AD84: 474139.0585 | AE84: 474139.0585 | AF84: 474139.0585 | AG84: 474139.0585
C85: Other benefits value | G85: 2023-12-31 | I85: =I57 -> 0 | J85: 0 | K85: 0 | L85: 0 | M85: 0 | N85: 0 | O85: 0 | P85: 0 | Q85: 0 | R85: 0 | S85: 0 | T85: 0 | U85: 0 | V85: 0 | W85: 0 | X85: 0 | Y85: 0 | Z85: 0 | AA85: 0 | AB85: 0 | AC85: 0 | AD85: 0 | AE85: 0 | AF85: 0 | AG85: 0
C87: Net benefits | G87: 2023-12-31 | I87: =SUM(I82:I86) -> 0 | J87: -30006.02502 | K87: -51069.55917 | L87: -61038.01209 | M87: -57254.94952 | N87: -36441.37734 | O87: 4542.747656 | P87: 52445.32156 | Q87: 90991.21499 | R87: 117673.0494 | S87: 131516.8682 | T87: 147127.404 | U87: 164734.2424 | V87: 184176.1395 | W87: 184176.1395 | X87: 184176.1395 | Y87: 184176.1395 | Z87: 184176.1395 | AA87: 184176.1395 | AB87: 184176.1395 | AC87: =SUM(AC82:AC86) -> 184176.1395 | AD87: =SUM(AD82:AD86) -> 184176.1395 | AE87: =SUM(AE82:AE86) -> 184176.1395 | AF87: =SUM(AF82:AF86) -> 184176.1395 | AG87: =SUM(AG82:AG86) -> 184176.1395
C90: First capex year | G90: =IF(SUM($I17:$AG17)=0,0,(INDEX(I$6:AG$6,MATCH(TRUE,INDEX($I17:$AG17<>0,),0)))) -> 1
C92: First year | G92: =IF(_xlfn.MINIFS($G$90:$G$91, $G$90:$G$91, ">"&0)=0, $A$4, _xlfn.MINIFS($G$90:$G$91, $G$90:$G$91, ">"&0)) -> 1
A102: SENSITIVITIES
A106: NPV | C106: Net benefits | G106: =PROPER($A$3)&A106 -> Option 3NPV | I106: =I87 -> 0 | J106: =J87 -> -30006.02502 | K106: -51069.55917 | L106: -61038.01209 | M106: -57254.94952 | N106: -36441.37734 | O106: 4542.747656 | P106: 52445.32156 | Q106: 90991.21499 | R106: 117673.0494 | S106: 131516.8682 | T106: 147127.404 | U106: 164734.2424 | V106: 184176.1395 | W106: 184176.1395 | X106: 184176.1395 | Y106: 184176.1395 | Z106: 184176.1395 | AA106: 184176.1395 | AB106: 184176.1395 | AC106: 184176.1395 | AD106: 184176.1395 | AE106: 184176.1395 | AF106: 184176.1395 | AG106: 184176.1395
C107: Total annualised capex | I107: =I82 -> 0 | J107: =J82 -> -57992.58381 | K107: -115985.1676 | L107: -173977.7514 | M107: -231970.3352 | N107: -289962.9191 | O107: -289962.9191 | P107: -289962.9191 | Q107: -289962.9191 | R107: -289962.9191 | S107: -289962.9191 | T107: -289962.9191 | U107: -289962.9191 | V107: -289962.9191 | W107: -289962.9191 | X107: -289962.9191 | Y107: -289962.9191 | Z107: -289962.9191 | AA107: -289962.9191 | AB107: -289962.9191 | AC107: -289962.9191 | AD107: -289962.9191 | AE107: -289962.9191 | AF107: -289962.9191 | AG107: -289962.9191
C108: Total benefits | I108: =SUM(I84:I85) -> 0 | J108: =SUM(J84:J85) -> 27986.55879 | K108: 64915.60845 | L108: 112939.7393 | M108: 174715.3857 | N108: 253521.5417 | O108: 294505.6667 | P108: 342408.2406 | Q108: 380954.134 | R108: 407635.9685 | S108: 421479.7872 | T108: 437090.323 | U108: 454697.1615 | V108: 474139.0585 | W108: 474139.0585 | X108: 474139.0585 | Y108: 474139.0585 | Z108: 474139.0585 | AA108: 474139.0585 | AB108: 474139.0585 | AC108: 474139.0585 | AD108: 474139.0585 | AE108: 474139.0585 | AF108: 474139.0585 | AG108: 474139.0585
D109: =Assumptions!G110 -> Capex | E109: =Assumptions!H110 -> Total benefits
A110: ="sens"&Assumptions!B111 -> sens1 | C110: =Assumptions!C111 -> Capex 10% higher | D110: =Assumptions!G111 -> 0.1 | E110: =Assumptions!H111 -> 0 | G110: =PROPER($A$3)&A110 -> Option 3sens1 | I110: =I$106+IF($C110<>0,SUMPRODUCT((I$107:I$108)*TRANSPOSE(($D110:$E110))),0) -> 0 | J110: =J$106+IF($C110<>0,SUMPRODUCT((J$107:J$108)*TRANSPOSE(($D110:$E110))),0) -> -35805.2834 | K110: =K$106+IF($C110<>0,SUMPRODUCT((K$107:K$108)*TRANSPOSE(($D110:$E110))),0) -> -62668.07594 | L110: =L$106+IF($C110<>0,SUMPRODUCT((L$107:L$108)*TRANSPOSE(($D110:$E110))),0) -> -78435.78723 | M110: =M$106+IF($C110<>0,SUMPRODUCT((M$107:M$108)*TRANSPOSE(($D110:$E110))),0) -> -80451.98305 | N110: =N$106+IF($C110<>0,SUMPRODUCT((N$107:N$108)*TRANSPOSE(($D110:$E110))),0) -> -65437.66924 | O110: =O$106+IF($C110<>0,SUMPRODUCT((O$107:O$108)*TRANSPOSE(($D110:$E110))),0) -> -24453.54425 | P110: =P$106+IF($C110<>0,SUMPRODUCT((P$107:P$108)*TRANSPOSE(($D110:$E110))),0) -> 23449.02965 | Q110: =Q$106+IF($C110<>0,SUMPRODUCT((Q$107:Q$108)*TRANSPOSE(($D110:$E110))),0) -> 61994.92308 | R110: =R$106+IF($C110<>0,SUMPRODUCT((R$107:R$108)*TRANSPOSE(($D110:$E110))),0) -> 88676.75752 | S110: =S$106+IF($C110<>0,SUMPRODUCT((S$107:S$108)*TRANSPOSE(($D110:$E110))),0) -> 102520.5763 | T110: =T$106+IF($C110<>0,SUMPRODUCT((T$107:T$108)*TRANSPOSE(($D110:$E110))),0) -> 118131.1121 | U110: =U$106+IF($C110<>0,SUMPRODUCT((U$107:U$108)*TRANSPOSE(($D110:$E110))),0) -> 135737.9505 | V110: =V$106+IF($C110<>0,SUMPRODUCT((V$107:V$108)*TRANSPOSE(($D110:$E110))),0) -> 155179.8476 | W110: =W$106+IF($C110<>0,SUMPRODUCT((W$107:W$108)*TRANSPOSE(($D110:$E110))),0) -> 155179.8476 | X110: =X$106+IF($C110<>0,SUMPRODUCT((X$107:X$108)*TRANSPOSE(($D110:$E110))),0) -> 155179.8476 | Y110: =Y$106+IF($C110<>0,SUMPRODUCT((Y$107:Y$108)*TRANSPOSE(($D110:$E110))),0) -> 155179.8476 | Z110: =Z$106+IF($C110<>0,SUMPRODUCT((Z$107:Z$108)*TRANSPOSE(($D110:$E110))),0) -> 155179.8476 | AA110: =AA$106+IF($C110<>0,SUMPRODUCT((AA$107:AA$108)*TRANSPOSE(($D110:$E110))),0) -> 155179.8476 | AB110: =AB$106+IF($C110<>0,SUMPRODUCT((AB$107:AB$108)*TRANSPOSE(($D110:$E110))),0) -> 155179.8476 | AC110: =AC$106+IF($C110<>0,SUMPRODUCT((AC$107:AC$108)*TRANSPOSE(($D110:$E110))),0) -> 155179.8476 | AD110: =AD$106+IF($C110<>0,SUMPRODUCT((AD$107:AD$108)*TRANSPOSE(($D110:$E110))),0) -> 155179.8476 | AE110: =AE$106+IF($C110<>0,SUMPRODUCT((AE$107:AE$108)*TRANSPOSE(($D110:$E110))),0) -> 155179.8476 | AF110: =AF$106+IF($C110<>0,SUMPRODUCT((AF$107:AF$108)*TRANSPOSE(($D110:$E110))),0) -> 155179.8476 | AG110: =AG$106+IF($C110<>0,SUMPRODUCT((AG$107:AG$108)*TRANSPOSE(($D110:$E110))),0) -> 155179.8476
A111: ="sens"&Assumptions!B112 -> sens2 | C111: =Assumptions!C112 -> Capex 10% lower | D111: =Assumptions!G112 -> -0.1 | E111: =Assumptions!H112 -> 0 | G111: =PROPER($A$3)&A111 -> Option 3sens2 | I111: =I$106+IF($C111<>0,SUMPRODUCT((I$107:I$108)*TRANSPOSE(($D111:$E111))),0) -> 0 | J111: =J$106+IF($C111<>0,SUMPRODUCT((J$107:J$108)*TRANSPOSE(($D111:$E111))),0) -> -24206.76664 | K111: =K$106+IF($C111<>0,SUMPRODUCT((K$107:K$108)*TRANSPOSE(($D111:$E111))),0) -> -39471.04241 | L111: =L$106+IF($C111<>0,SUMPRODUCT((L$107:L$108)*TRANSPOSE(($D111:$E111))),0) -> -43640.23695 | M111: =M$106+IF($C111<>0,SUMPRODUCT((M$107:M$108)*TRANSPOSE(($D111:$E111))),0) -> -34057.916 | N111: =N$106+IF($C111<>0,SUMPRODUCT((N$107:N$108)*TRANSPOSE(($D111:$E111))),0) -> -7445.085433 | O111: =O$106+IF($C111<>0,SUMPRODUCT((O$107:O$108)*TRANSPOSE(($D111:$E111))),0) -> 33539.03956 | P111: =P$106+IF($C111<>0,SUMPRODUCT((P$107:P$108)*TRANSPOSE(($D111:$E111))),0) -> 81441.61347 | Q111: =Q$106+IF($C111<>0,SUMPRODUCT((Q$107:Q$108)*TRANSPOSE(($D111:$E111))),0) -> 119987.5069 | R111: =R$106+IF($C111<>0,SUMPRODUCT((R$107:R$108)*TRANSPOSE(($D111:$E111))),0) -> 146669.3413 | S111: =S$106+IF($C111<>0,SUMPRODUCT((S$107:S$108)*TRANSPOSE(($D111:$E111))),0) -> 160513.1601 | T111: =T$106+IF($C111<>0,SUMPRODUCT((T$107:T$108)*TRANSPOSE(($D111:$E111))),0) -> 176123.6959 | U111: =U$106+IF($C111<>0,SUMPRODUCT((U$107:U$108)*TRANSPOSE(($D111:$E111))),0) -> 193730.5343 | V111: =V$106+IF($C111<>0,SUMPRODUCT((V$107:V$108)*TRANSPOSE(($D111:$E111))),0) -> 213172.4314 | W111: =W$106+IF($C111<>0,SUMPRODUCT((W$107:W$108)*TRANSPOSE(($D111:$E111))),0) -> 213172.4314 | X111: =X$106+IF($C111<>0,SUMPRODUCT((X$107:X$108)*TRANSPOSE(($D111:$E111))),0) -> 213172.4314 | Y111: =Y$106+IF($C111<>0,SUMPRODUCT((Y$107:Y$108)*TRANSPOSE(($D111:$E111))),0) -> 213172.4314 | Z111: =Z$106+IF($C111<>0,SUMPRODUCT((Z$107:Z$108)*TRANSPOSE(($D111:$E111))),0) -> 213172.4314 | AA111: =AA$106+IF($C111<>0,SUMPRODUCT((AA$107:AA$108)*TRANSPOSE(($D111:$E111))),0) -> 213172.4314 | AB111: =AB$106+IF($C111<>0,SUMPRODUCT((AB$107:AB$108)*TRANSPOSE(($D111:$E111))),0) -> 213172.4314 | AC111: =AC$106+IF($C111<>0,SUMPRODUCT((AC$107:AC$108)*TRANSPOSE(($D111:$E111))),0) -> 213172.4314 | AD111: =AD$106+IF($C111<>0,SUMPRODUCT((AD$107:AD$108)*TRANSPOSE(($D111:$E111))),0) -> 213172.4314 | AE111: =AE$106+IF($C111<>0,SUMPRODUCT((AE$107:AE$108)*TRANSPOSE(($D111:$E111))),0) -> 213172.4314 | AF111: =AF$106+IF($C111<>0,SUMPRODUCT((AF$107:AF$108)*TRANSPOSE(($D111:$E111))),0) -> 213172.4314 | AG111: =AG$106+IF($C111<>0,SUMPRODUCT((AG$107:AG$108)*TRANSPOSE(($D111:$E111))),0) -> 213172.4314
A112: ="sens"&Assumptions!B113 -> sens3 | C112: =Assumptions!C113 -> Total benefits 10% higher | D112: =Assumptions!G113 -> 0 | E112: =Assumptions!H113 -> 0.1 | G112: Option 3sens3 | I112: =I$106+IF($C112<>0,SUMPRODUCT((I$107:I$108)*TRANSPOSE(($D112:$E112))),0) -> 0 | J112: =J$106+IF($C112<>0,SUMPRODUCT((J$107:J$108)*TRANSPOSE(($D112:$E112))),0) -> -27207.36914 | K112: =K$106+IF($C112<>0,SUMPRODUCT((K$107:K$108)*TRANSPOSE(($D112:$E112))),0) -> -44577.99833 | L112: =L$106+IF($C112<>0,SUMPRODUCT((L$107:L$108)*TRANSPOSE(($D112:$E112))),0) -> -49744.03816 | M112: =M$106+IF($C112<>0,SUMPRODUCT((M$107:M$108)*TRANSPOSE(($D112:$E112))),0) -> -39783.41095 | N112: =N$106+IF($C112<>0,SUMPRODUCT((N$107:N$108)*TRANSPOSE(($D112:$E112))),0) -> -11089.22317 | O112: =O$106+IF($C112<>0,SUMPRODUCT((O$107:O$108)*TRANSPOSE(($D112:$E112))),0) -> 33993.31433 | P112: =P$106+IF($C112<>0,SUMPRODUCT((P$107:P$108)*TRANSPOSE(($D112:$E112))),0) -> 86686.14562 | Q112: =Q$106+IF($C112<>0,SUMPRODUCT((Q$107:Q$108)*TRANSPOSE(($D112:$E112))),0) -> 129086.6284 | R112: =R$106+IF($C112<>0,SUMPRODUCT((R$107:R$108)*TRANSPOSE(($D112:$E112))),0) -> 158436.6463 | S112: =S$106+IF($C112<>0,SUMPRODUCT((S$107:S$108)*TRANSPOSE(($D112:$E112))),0) -> 173664.8469 | T112: =T$106+IF($C112<>0,SUMPRODUCT((T$107:T$108)*TRANSPOSE(($D112:$E112))),0) -> 190836.4363 | U112: =U$106+IF($C112<>0,SUMPRODUCT((U$107:U$108)*TRANSPOSE(($D112:$E112))),0) -> 210203.9586 | V112: =V$106+IF($C112<>0,SUMPRODUCT((V$107:V$108)*TRANSPOSE(($D112:$E112))),0) -> 231590.0453 | W112: =W$106+IF($C112<>0,SUMPRODUCT((W$107:W$108)*TRANSPOSE(($D112:$E112))),0) -> 231590.0453 | X112: =X$106+IF($C112<>0,SUMPRODUCT((X$107:X$108)*TRANSPOSE(($D112:$E112))),0) -> 231590.0453 | Y112: =Y$106+IF($C112<>0,SUMPRODUCT((Y$107:Y$108)*TRANSPOSE(($D112:$E112))),0) -> 231590.0453 | Z112: =Z$106+IF($C112<>0,SUMPRODUCT((Z$107:Z$108)*TRANSPOSE(($D112:$E112))),0) -> 231590.0453 | AA112: =AA$106+IF($C112<>0,SUMPRODUCT((AA$107:AA$108)*TRANSPOSE(($D112:$E112))),0) -> 231590.0453 | AB112: =AB$106+IF($C112<>0,SUMPRODUCT((AB$107:AB$108)*TRANSPOSE(($D112:$E112))),0) -> 231590.0453 | AC112: =AC$106+IF($C112<>0,SUMPRODUCT((AC$107:AC$108)*TRANSPOSE(($D112:$E112))),0) -> 231590.0453 | AD112: =AD$106+IF($C112<>0,SUMPRODUCT((AD$107:AD$108)*TRANSPOSE(($D112:$E112))),0) -> 231590.0453 | AE112: =AE$106+IF($C112<>0,SUMPRODUCT((AE$107:AE$108)*TRANSPOSE(($D112:$E112))),0) -> 231590.0453 | AF112: =AF$106+IF($C112<>0,SUMPRODUCT((AF$107:AF$108)*TRANSPOSE(($D112:$E112))),0) -> 231590.0453 | AG112: =AG$106+IF($C112<>0,SUMPRODUCT((AG$107:AG$108)*TRANSPOSE(($D112:$E112))),0) -> 231590.0453
A113: ="sens"&Assumptions!B114 -> sens4 | C113: =Assumptions!C114 -> Total benefits 10% lower | D113: =Assumptions!G114 -> 0 | E113: =Assumptions!H114 -> -0.1 | G113: Option 3sens4 | I113: =I$106+IF($C113<>0,SUMPRODUCT((I$107:I$108)*TRANSPOSE(($D113:$E113))),0) -> 0 | J113: =J$106+IF($C113<>0,SUMPRODUCT((J$107:J$108)*TRANSPOSE(($D113:$E113))),0) -> -32804.6809 | K113: =K$106+IF($C113<>0,SUMPRODUCT((K$107:K$108)*TRANSPOSE(($D113:$E113))),0) -> -57561.12002 | L113: =L$106+IF($C113<>0,SUMPRODUCT((L$107:L$108)*TRANSPOSE(($D113:$E113))),0) -> -72331.98602 | M113: =M$106+IF($C113<>0,SUMPRODUCT((M$107:M$108)*TRANSPOSE(($D113:$E113))),0) -> -74726.4881 | N113: =N$106+IF($C113<>0,SUMPRODUCT((N$107:N$108)*TRANSPOSE(($D113:$E113))),0) -> -61793.53151 | O113: =O$106+IF($C113<>0,SUMPRODUCT((O$107:O$108)*TRANSPOSE(($D113:$E113))),0) -> -24907.81902 | P113: =P$106+IF($C113<>0,SUMPRODUCT((P$107:P$108)*TRANSPOSE(($D113:$E113))),0) -> 18204.4975 | Q113: =Q$106+IF($C113<>0,SUMPRODUCT((Q$107:Q$108)*TRANSPOSE(($D113:$E113))),0) -> 52895.80158 | R113: =R$106+IF($C113<>0,SUMPRODUCT((R$107:R$108)*TRANSPOSE(($D113:$E113))),0) -> 76909.45258 | S113: =S$106+IF($C113<>0,SUMPRODUCT((S$107:S$108)*TRANSPOSE(($D113:$E113))),0) -> 89368.88944 | T113: =T$106+IF($C113<>0,SUMPRODUCT((T$107:T$108)*TRANSPOSE(($D113:$E113))),0) -> 103418.3717 | U113: =U$106+IF($C113<>0,SUMPRODUCT((U$107:U$108)*TRANSPOSE(($D113:$E113))),0) -> 119264.5263 | V113: =V$106+IF($C113<>0,SUMPRODUCT((V$107:V$108)*TRANSPOSE(($D113:$E113))),0) -> 136762.2336 | W113: =W$106+IF($C113<>0,SUMPRODUCT((W$107:W$108)*TRANSPOSE(($D113:$E113))),0) -> 136762.2336 | X113: =X$106+IF($C113<>0,SUMPRODUCT((X$107:X$108)*TRANSPOSE(($D113:$E113))),0) -> 136762.2336 | Y113: =Y$106+IF($C113<>0,SUMPRODUCT((Y$107:Y$108)*TRANSPOSE(($D113:$E113))),0) -> 136762.2336 | Z113: =Z$106+IF($C113<>0,SUMPRODUCT((Z$107:Z$108)*TRANSPOSE(($D113:$E113))),0) -> 136762.2336 | AA113: =AA$106+IF($C113<>0,SUMPRODUCT((AA$107:AA$108)*TRANSPOSE(($D113:$E113))),0) -> 136762.2336 | AB113: =AB$106+IF($C113<>0,SUMPRODUCT((AB$107:AB$108)*TRANSPOSE(($D113:$E113))),0) -> 136762.2336 | AC113: =AC$106+IF($C113<>0,SUMPRODUCT((AC$107:AC$108)*TRANSPOSE(($D113:$E113))),0) -> 136762.2336 | AD113: =AD$106+IF($C113<>0,SUMPRODUCT((AD$107:AD$108)*TRANSPOSE(($D113:$E113))),0) -> 136762.2336 | AE113: =AE$106+IF($C113<>0,SUMPRODUCT((AE$107:AE$108)*TRANSPOSE(($D113:$E113))),0) -> 136762.2336 | AF113: =AF$106+IF($C113<>0,SUMPRODUCT((AF$107:AF$108)*TRANSPOSE(($D113:$E113))),0) -> 136762.2336 | AG113: =AG$106+IF($C113<>0,SUMPRODUCT((AG$107:AG$108)*TRANSPOSE(($D113:$E113))),0) -> 136762.2336
A114: ="sens"&Assumptions!B115 -> sens5 | C114: =Assumptions!C115 -> Capex 10% higher & total benefits 10% lower | D114: =Assumptions!G115 -> 0.1 | E114: =Assumptions!H115 -> -0.1 | G114: Option 3sens5 | I114: =I$106+IF($C114<>0,SUMPRODUCT((I$107:I$108)*TRANSPOSE(($D114:$E114))),0) -> 0 | J114: =J$106+IF($C114<>0,SUMPRODUCT((J$107:J$108)*TRANSPOSE(($D114:$E114))),0) -> -38603.93928 | K114: =K$106+IF($C114<>0,SUMPRODUCT((K$107:K$108)*TRANSPOSE(($D114:$E114))),0) -> -69159.63678 | L114: =L$106+IF($C114<>0,SUMPRODUCT((L$107:L$108)*TRANSPOSE(($D114:$E114))),0) -> -89729.76117 | M114: =M$106+IF($C114<>0,SUMPRODUCT((M$107:M$108)*TRANSPOSE(($D114:$E114))),0) -> -97923.52162 | N114: =N$106+IF($C114<>0,SUMPRODUCT((N$107:N$108)*TRANSPOSE(($D114:$E114))),0) -> -90789.82342 | O114: =O$106+IF($C114<>0,SUMPRODUCT((O$107:O$108)*TRANSPOSE(($D114:$E114))),0) -> -53904.11092 | P114: =P$106+IF($C114<>0,SUMPRODUCT((P$107:P$108)*TRANSPOSE(($D114:$E114))),0) -> -10791.79441 | Q114: =Q$106+IF($C114<>0,SUMPRODUCT((Q$107:Q$108)*TRANSPOSE(($D114:$E114))),0) -> 23899.50968 | R114: =R$106+IF($C114<>0,SUMPRODUCT((R$107:R$108)*TRANSPOSE(($D114:$E114))),0) -> 47913.16068 | S114: =S$106+IF($C114<>0,SUMPRODUCT((S$107:S$108)*TRANSPOSE(($D114:$E114))),0) -> 60372.59753 | T114: =T$106+IF($C114<>0,SUMPRODUCT((T$107:T$108)*TRANSPOSE(($D114:$E114))),0) -> 74422.07978 | U114: =U$106+IF($C114<>0,SUMPRODUCT((U$107:U$108)*TRANSPOSE(($D114:$E114))),0) -> 90268.23435 | V114: =V$106+IF($C114<>0,SUMPRODUCT((V$107:V$108)*TRANSPOSE(($D114:$E114))),0) -> 107765.9417 | W114: =W$106+IF($C114<>0,SUMPRODUCT((W$107:W$108)*TRANSPOSE(($D114:$E114))),0) -> 107765.9417 | X114: =X$106+IF($C114<>0,SUMPRODUCT((X$107:X$108)*TRANSPOSE(($D114:$E114))),0) -> 107765.9417 | Y114: =Y$106+IF($C114<>0,SUMPRODUCT((Y$107:Y$108)*TRANSPOSE(($D114:$E114))),0) -> 107765.9417 | Z114: =Z$106+IF($C114<>0,SUMPRODUCT((Z$107:Z$108)*TRANSPOSE(($D114:$E114))),0) -> 107765.9417 | AA114: =AA$106+IF($C114<>0,SUMPRODUCT((AA$107:AA$108)*TRANSPOSE(($D114:$E114))),0) -> 107765.9417 | AB114: =AB$106+IF($C114<>0,SUMPRODUCT((AB$107:AB$108)*TRANSPOSE(($D114:$E114))),0) -> 107765.9417 | AC114: =AC$106+IF($C114<>0,SUMPRODUCT((AC$107:AC$108)*TRANSPOSE(($D114:$E114))),0) -> 107765.9417 | AD114: =AD$106+IF($C114<>0,SUMPRODUCT((AD$107:AD$108)*TRANSPOSE(($D114:$E114))),0) -> 107765.9417 | AE114: =AE$106+IF($C114<>0,SUMPRODUCT((AE$107:AE$108)*TRANSPOSE(($D114:$E114))),0) -> 107765.9417 | AF114: =AF$106+IF($C114<>0,SUMPRODUCT((AF$107:AF$108)*TRANSPOSE(($D114:$E114))),0) -> 107765.9417 | AG114: =AG$106+IF($C114<>0,SUMPRODUCT((AG$107:AG$108)*TRANSPOSE(($D114:$E114))),0) -> 107765.9417
A115: ="sens"&Assumptions!B116 -> sens | C115: =Assumptions!C116 -> 0 | D115: =Assumptions!G116 -> 0 | E115: =Assumptions!H116 -> 0 | G115: Option 3sens | I115: =I$106+IF($C115<>0,SUMPRODUCT((I$107:I$108)*TRANSPOSE(($D115:$E115))),0) -> 0 | J115: =J$106+IF($C115<>0,SUMPRODUCT((J$107:J$108)*TRANSPOSE(($D115:$E115))),0) -> -30006.02502 | K115: =K$106+IF($C115<>0,SUMPRODUCT((K$107:K$108)*TRANSPOSE(($D115:$E115))),0) -> -51069.55917 | L115: =L$106+IF($C115<>0,SUMPRODUCT((L$107:L$108)*TRANSPOSE(($D115:$E115))),0) -> -61038.01209 | M115: =M$106+IF($C115<>0,SUMPRODUCT((M$107:M$108)*TRANSPOSE(($D115:$E115))),0) -> -57254.94952 | N115: =N$106+IF($C115<>0,SUMPRODUCT((N$107:N$108)*TRANSPOSE(($D115:$E115))),0) -> -36441.37734 | O115: =O$106+IF($C115<>0,SUMPRODUCT((O$107:O$108)*TRANSPOSE(($D115:$E115))),0) -> 4542.747656 | P115: =P$106+IF($C115<>0,SUMPRODUCT((P$107:P$108)*TRANSPOSE(($D115:$E115))),0) -> 52445.32156 | Q115: =Q$106+IF($C115<>0,SUMPRODUCT((Q$107:Q$108)*TRANSPOSE(($D115:$E115))),0) -> 90991.21499 | R115: =R$106+IF($C115<>0,SUMPRODUCT((R$107:R$108)*TRANSPOSE(($D115:$E115))),0) -> 117673.0494 | S115: =S$106+IF($C115<>0,SUMPRODUCT((S$107:S$108)*TRANSPOSE(($D115:$E115))),0) -> 131516.8682 | T115: =T$106+IF($C115<>0,SUMPRODUCT((T$107:T$108)*TRANSPOSE(($D115:$E115))),0) -> 147127.404 | U115: =U$106+IF($C115<>0,SUMPRODUCT((U$107:U$108)*TRANSPOSE(($D115:$E115))),0) -> 164734.2424 | V115: =V$106+IF($C115<>0,SUMPRODUCT((V$107:V$108)*TRANSPOSE(($D115:$E115))),0) -> 184176.1395 | W115: =W$106+IF($C115<>0,SUMPRODUCT((W$107:W$108)*TRANSPOSE(($D115:$E115))),0) -> 184176.1395 | X115: =X$106+IF($C115<>0,SUMPRODUCT((X$107:X$108)*TRANSPOSE(($D115:$E115))),0) -> 184176.1395 | Y115: =Y$106+IF($C115<>0,SUMPRODUCT((Y$107:Y$108)*TRANSPOSE(($D115:$E115))),0) -> 184176.1395 | Z115: =Z$106+IF($C115<>0,SUMPRODUCT((Z$107:Z$108)*TRANSPOSE(($D115:$E115))),0) -> 184176.1395 | AA115: =AA$106+IF($C115<>0,SUMPRODUCT((AA$107:AA$108)*TRANSPOSE(($D115:$E115))),0) -> 184176.1395 | AB115: =AB$106+IF($C115<>0,SUMPRODUCT((AB$107:AB$108)*TRANSPOSE(($D115:$E115))),0) -> 184176.1395 | AC115: =AC$106+IF($C115<>0,SUMPRODUCT((AC$107:AC$108)*TRANSPOSE(($D115:$E115))),0) -> 184176.1395 | AD115: =AD$106+IF($C115<>0,SUMPRODUCT((AD$107:AD$108)*TRANSPOSE(($D115:$E115))),0) -> 184176.1395 | AE115: =AE$106+IF($C115<>0,SUMPRODUCT((AE$107:AE$108)*TRANSPOSE(($D115:$E115))),0) -> 184176.1395 | AF115: =AF$106+IF($C115<>0,SUMPRODUCT((AF$107:AF$108)*TRANSPOSE(($D115:$E115))),0) -> 184176.1395 | AG115: =AG$106+IF($C115<>0,SUMPRODUCT((AG$107:AG$108)*TRANSPOSE(($D115:$E115))),0) -> 184176.1395
A116: ="sens"&Assumptions!B117 -> sens | C116: =Assumptions!C117 -> 0 | D116: =Assumptions!G117 -> 0 | E116: =Assumptions!H117 -> 0 | G116: Option 3sens | I116: =I$106+IF($C116<>0,SUMPRODUCT((I$107:I$108)*TRANSPOSE(($D116:$E116))),0) -> 0 | J116: =J$106+IF($C116<>0,SUMPRODUCT((J$107:J$108)*TRANSPOSE(($D116:$E116))),0) -> -30006.02502 | K116: =K$106+IF($C116<>0,SUMPRODUCT((K$107:K$108)*TRANSPOSE(($D116:$E116))),0) -> -51069.55917 | L116: =L$106+IF($C116<>0,SUMPRODUCT((L$107:L$108)*TRANSPOSE(($D116:$E116))),0) -> -61038.01209 | M116: =M$106+IF($C116<>0,SUMPRODUCT((M$107:M$108)*TRANSPOSE(($D116:$E116))),0) -> -57254.94952 | N116: =N$106+IF($C116<>0,SUMPRODUCT((N$107:N$108)*TRANSPOSE(($D116:$E116))),0) -> -36441.37734 | O116: =O$106+IF($C116<>0,SUMPRODUCT((O$107:O$108)*TRANSPOSE(($D116:$E116))),0) -> 4542.747656 | P116: =P$106+IF($C116<>0,SUMPRODUCT((P$107:P$108)*TRANSPOSE(($D116:$E116))),0) -> 52445.32156 | Q116: =Q$106+IF($C116<>0,SUMPRODUCT((Q$107:Q$108)*TRANSPOSE(($D116:$E116))),0) -> 90991.21499 | R116: =R$106+IF($C116<>0,SUMPRODUCT((R$107:R$108)*TRANSPOSE(($D116:$E116))),0) -> 117673.0494 | S116: =S$106+IF($C116<>0,SUMPRODUCT((S$107:S$108)*TRANSPOSE(($D116:$E116))),0) -> 131516.8682 | T116: =T$106+IF($C116<>0,SUMPRODUCT((T$107:T$108)*TRANSPOSE(($D116:$E116))),0) -> 147127.404 | U116: =U$106+IF($C116<>0,SUMPRODUCT((U$107:U$108)*TRANSPOSE(($D116:$E116))),0) -> 164734.2424 | V116: =V$106+IF($C116<>0,SUMPRODUCT((V$107:V$108)*TRANSPOSE(($D116:$E116))),0) -> 184176.1395 | W116: =W$106+IF($C116<>0,SUMPRODUCT((W$107:W$108)*TRANSPOSE(($D116:$E116))),0) -> 184176.1395 | X116: =X$106+IF($C116<>0,SUMPRODUCT((X$107:X$108)*TRANSPOSE(($D116:$E116))),0) -> 184176.1395 | Y116: =Y$106+IF($C116<>0,SUMPRODUCT((Y$107:Y$108)*TRANSPOSE(($D116:$E116))),0) -> 184176.1395 | Z116: =Z$106+IF($C116<>0,SUMPRODUCT((Z$107:Z$108)*TRANSPOSE(($D116:$E116))),0) -> 184176.1395 | AA116: =AA$106+IF($C116<>0,SUMPRODUCT((AA$107:AA$108)*TRANSPOSE(($D116:$E116))),0) -> 184176.1395 | AB116: =AB$106+IF($C116<>0,SUMPRODUCT((AB$107:AB$108)*TRANSPOSE(($D116:$E116))),0) -> 184176.1395 | AC116: =AC$106+IF($C116<>0,SUMPRODUCT((AC$107:AC$108)*TRANSPOSE(($D116:$E116))),0) -> 184176.1395 | AD116: =AD$106+IF($C116<>0,SUMPRODUCT((AD$107:AD$108)*TRANSPOSE(($D116:$E116))),0) -> 184176.1395 | AE116: =AE$106+IF($C116<>0,SUMPRODUCT((AE$107:AE$108)*TRANSPOSE(($D116:$E116))),0) -> 184176.1395 | AF116: =AF$106+IF($C116<>0,SUMPRODUCT((AF$107:AF$108)*TRANSPOSE(($D116:$E116))),0) -> 184176.1395 | AG116: =AG$106+IF($C116<>0,SUMPRODUCT((AG$107:AG$108)*TRANSPOSE(($D116:$E116))),0) -> 184176.1395
A117: ="sens"&Assumptions!B118 -> sens | C117: =Assumptions!C118 -> 0 | D117: =Assumptions!G118 -> 0 | E117: =Assumptions!H118 -> 0 | G117: Option 3sens | I117: =I$106+IF($C117<>0,SUMPRODUCT((I$107:I$108)*TRANSPOSE(($D117:$E117))),0) -> 0 | J117: =J$106+IF($C117<>0,SUMPRODUCT((J$107:J$108)*TRANSPOSE(($D117:$E117))),0) -> -30006.02502 | K117: =K$106+IF($C117<>0,SUMPRODUCT((K$107:K$108)*TRANSPOSE(($D117:$E117))),0) -> -51069.55917 | L117: =L$106+IF($C117<>0,SUMPRODUCT((L$107:L$108)*TRANSPOSE(($D117:$E117))),0) -> -61038.01209 | M117: =M$106+IF($C117<>0,SUMPRODUCT((M$107:M$108)*TRANSPOSE(($D117:$E117))),0) -> -57254.94952 | N117: =N$106+IF($C117<>0,SUMPRODUCT((N$107:N$108)*TRANSPOSE(($D117:$E117))),0) -> -36441.37734 | O117: =O$106+IF($C117<>0,SUMPRODUCT((O$107:O$108)*TRANSPOSE(($D117:$E117))),0) -> 4542.747656 | P117: =P$106+IF($C117<>0,SUMPRODUCT((P$107:P$108)*TRANSPOSE(($D117:$E117))),0) -> 52445.32156 | Q117: =Q$106+IF($C117<>0,SUMPRODUCT((Q$107:Q$108)*TRANSPOSE(($D117:$E117))),0) -> 90991.21499 | R117: =R$106+IF($C117<>0,SUMPRODUCT((R$107:R$108)*TRANSPOSE(($D117:$E117))),0) -> 117673.0494 | S117: =S$106+IF($C117<>0,SUMPRODUCT((S$107:S$108)*TRANSPOSE(($D117:$E117))),0) -> 131516.8682 | T117: =T$106+IF($C117<>0,SUMPRODUCT((T$107:T$108)*TRANSPOSE(($D117:$E117))),0) -> 147127.404 | U117: =U$106+IF($C117<>0,SUMPRODUCT((U$107:U$108)*TRANSPOSE(($D117:$E117))),0) -> 164734.2424 | V117: =V$106+IF($C117<>0,SUMPRODUCT((V$107:V$108)*TRANSPOSE(($D117:$E117))),0) -> 184176.1395 | W117: =W$106+IF($C117<>0,SUMPRODUCT((W$107:W$108)*TRANSPOSE(($D117:$E117))),0) -> 184176.1395 | X117: =X$106+IF($C117<>0,SUMPRODUCT((X$107:X$108)*TRANSPOSE(($D117:$E117))),0) -> 184176.1395 | Y117: =Y$106+IF($C117<>0,SUMPRODUCT((Y$107:Y$108)*TRANSPOSE(($D117:$E117))),0) -> 184176.1395 | Z117: =Z$106+IF($C117<>0,SUMPRODUCT((Z$107:Z$108)*TRANSPOSE(($D117:$E117))),0) -> 184176.1395 | AA117: =AA$106+IF($C117<>0,SUMPRODUCT((AA$107:AA$108)*TRANSPOSE(($D117:$E117))),0) -> 184176.1395 | AB117: =AB$106+IF($C117<>0,SUMPRODUCT((AB$107:AB$108)*TRANSPOSE(($D117:$E117))),0) -> 184176.1395 | AC117: =AC$106+IF($C117<>0,SUMPRODUCT((AC$107:AC$108)*TRANSPOSE(($D117:$E117))),0) -> 184176.1395 | AD117: =AD$106+IF($C117<>0,SUMPRODUCT((AD$107:AD$108)*TRANSPOSE(($D117:$E117))),0) -> 184176.1395 | AE117: =AE$106+IF($C117<>0,SUMPRODUCT((AE$107:AE$108)*TRANSPOSE(($D117:$E117))),0) -> 184176.1395 | AF117: =AF$106+IF($C117<>0,SUMPRODUCT((AF$107:AF$108)*TRANSPOSE(($D117:$E117))),0) -> 184176.1395 | AG117: =AG$106+IF($C117<>0,SUMPRODUCT((AG$107:AG$108)*TRANSPOSE(($D117:$E117))),0) -> 184176.1395

Sheet Option4
A1: =bus -> CitiPower
A2: =proj -> HV cable replacement
A3: OPTION 4 | C3: =INDEX(Assumptions!$E$14:$E$18, MATCH(A3,_xlfn.ANCHORARRAY( Assumptions!$C$14),0)) -> Monitor highest delta risk cable sections and replace those with high partial discharge
A4: =(INDEX(Data!$D$9:$D$13, MATCH(A3, options,0))) -> 
A6: ='Option1 (base case)'!A6 -> Count | I6: ='Option1 (base case)'!I6 -> 1 | J6: ='Option1 (base case)'!J6 -> 2 | K6: ='Option1 (base case)'!K6 -> 3 | L6: ='Option1 (base case)'!L6 -> 4 | M6: ='Option1 (base case)'!M6 -> 5 | N6: ='Option1 (base case)'!N6 -> 6 | O6: ='Option1 (base case)'!O6 -> 7 | P6: ='Option1 (base case)'!P6 -> 8 | Q6: ='Option1 (base case)'!Q6 -> 9 | R6: ='Option1 (base case)'!R6 -> 10 | S6: ='Option1 (base case)'!S6 -> 11 | T6: ='Option1 (base case)'!T6 -> 12 | U6: ='Option1 (base case)'!U6 -> 13 | V6: ='Option1 (base case)'!V6 -> 14 | W6: ='Option1 (base case)'!W6 -> 15 | X6: ='Option1 (base case)'!X6 -> 16 | Y6: ='Option1 (base case)'!Y6 -> 17 | Z6: ='Option1 (base case)'!Z6 -> 18 | AA6: ='Option1 (base case)'!AA6 -> 19 | AB6: ='Option1 (base case)'!AB6 -> 20 | AC6: ='Option1 (base case)'!AC6 -> 21 | AD6: ='Option1 (base case)'!AD6 -> 22 | AE6: ='Option1 (base case)'!AE6 -> 23 | AF6: ='Option1 (base case)'!AF6 -> 24 | AG6: ='Option1 (base case)'!AG6 -> 25
A7: ='Option1 (base case)'!A7 -> Value of CO2 reductions | G7: $/MWh | I7: ='Option1 (base case)'!I7 -> 24.7304868 | J7: ='Option1 (base case)'!J7 -> 22.34074009 | K7: ='Option1 (base case)'!K7 -> 20.19632912 | L7: ='Option1 (base case)'!L7 -> 18.06294208 | M7: ='Option1 (base case)'!M7 -> 15.91339762 | N7: ='Option1 (base case)'!N7 -> 13.71506943 | O7: ='Option1 (base case)'!O7 -> 13.71506943 | P7: ='Option1 (base case)'!P7 -> 13.71506943 | Q7: ='Option1 (base case)'!Q7 -> 13.71506943 | R7: ='Option1 (base case)'!R7 -> 13.71506943 | S7: ='Option1 (base case)'!S7 -> 13.71506943 | T7: ='Option1 (base case)'!T7 -> 13.71506943 | U7: ='Option1 (base case)'!U7 -> 13.71506943 | V7: ='Option1 (base case)'!V7 -> 13.71506943 | W7: ='Option1 (base case)'!W7 -> 13.71506943 | X7: ='Option1 (base case)'!X7 -> 13.71506943 | Y7: ='Option1 (base case)'!Y7 -> 13.71506943 | Z7: ='Option1 (base case)'!Z7 -> 13.71506943 | AA7: ='Option1 (base case)'!AA7 -> 13.71506943 | AB7: ='Option1 (base case)'!AB7 -> 13.71506943 | AC7: ='Option1 (base case)'!AC7 -> 13.71506943 | AD7: ='Option1 (base case)'!AD7 -> 13.71506943 | AE7: ='Option1 (base case)'!AE7 -> 13.71506943 | AF7: ='Option1 (base case)'!AF7 -> 13.71506943 | AG7: ='Option1 (base case)'!AG7 -> 13.71506943
G9: Units | I9: ='Option1 (base case)'!I9 -> 2026-27 | J9: ='Option1 (base case)'!J9 -> 2027-28 | K9: ='Option1 (base case)'!K9 -> 2028-29 | L9: ='Option1 (base case)'!L9 -> 2029-30 | M9: ='Option1 (base case)'!M9 -> 2030-31 | N9: ='Option1 (base case)'!N9 -> 2031-32 | O9: ='Option1 (base case)'!O9 -> 2032-33 | P9: ='Option1 (base case)'!P9 -> 2033-34 | Q9: ='Option1 (base case)'!Q9 -> 2034-35 | R9: ='Option1 (base case)'!R9 -> 2035-36 | S9: ='Option1 (base case)'!S9 -> 2036-37 | T9: ='Option1 (base case)'!T9 -> 2037-38 | U9: ='Option1 (base case)'!U9 -> 2038-39 | V9: ='Option1 (base case)'!V9 -> 2039-40 | W9: ='Option1 (base case)'!W9 -> 2040-41 | X9: ='Option1 (base case)'!X9 -> 2041-42 | Y9: ='Option1 (base case)'!Y9 -> 2042-43 | Z9: ='Option1 (base case)'!Z9 -> 2043-44 | AA9: ='Option1 (base case)'!AA9 -> 2044-45 | AB9: ='Option1 (base case)'!AB9 -> 2045-46 | AC9: ='Option1 (base case)'!AC9 -> 2046-47 | AD9: ='Option1 (base case)'!AD9 -> 2047-48 | AE9: ='Option1 (base case)'!AE9 -> 2048-49 | AF9: ='Option1 (base case)'!AF9 -> 2049-50 | AG9: ='Option1 (base case)'!AG9 -> 2050-51
A11: INVESTMENT & OPERATING COST
C13: Capex | E13: Asset life (yrs)
C14: Condition assessment of top 30 delta risk cable sections | E14: 1 | G14: =input_dollars -> 2023-12-31 | I14: =Workings_costs!E50 -> 1000000 | J14: =Workings_costs!F50 -> 1000000 | K14: =Workings_costs!G50 -> 1000000 | L14: =Workings_costs!H50 -> 1000000 | M14: =Workings_costs!I50 -> 1000000 | N14: 0 | O14: 0 | P14: 0 | Q14: 0 | R14: 0 | S14: 0 | T14: 0 | U14: 0 | V14: 0 | W14: 0 | X14: 0 | Y14: 0 | Z14: 0 | AA14: 0 | AB14: 0 | AC14: 0 | AD14: 0 | AE14: 0 | AF14: 0 | AG14: 0
C15: Replacement of poor condition cable sections | E15: 60 | G15: =input_dollars -> 2023-12-31 | I15: =Workings_costs!E51 -> 0 | J15: =Workings_costs!F51 -> 462722.1147 | K15: =Workings_costs!G51 -> 462722.1147 | L15: =Workings_costs!H51 -> 462722.1147 | M15: =Workings_costs!I51 -> 462722.1147 | N15: 0 | O15: 0 | P15: 0 | Q15: 0 | R15: 0 | S15: 0 | T15: 0 | U15: 0 | V15: 0 | W15: 0 | X15: 0 | Y15: 0 | Z15: 0 | AA15: 0 | AB15: 0 | AC15: 0 | AD15: 0 | AE15: 0 | AF15: 0 | AG15: 0
E16: 0 | G16: =input_dollars -> 2023-12-31 | I16: 0 | J16: 0 | K16: 0 | L16: 0 | M16: 0 | N16: 0 | O16: 0 | P16: 0 | Q16: 0 | R16: 0 | S16: 0 | T16: 0 | U16: 0 | V16: 0 | W16: 0 | X16: 0 | Y16: 0 | Z16: 0 | AA16: 0 | AB16: 0 | AC16: 0 | AD16: 0 | AE16: 0 | AF16: 0 | AG16: 0
C17: Capital expenditure | G17: =input_dollars -> 2023-12-31 | I17: =SUM(I14:I16) -> 1000000 | J17: 1462722.115 | K17: 1462722.115 | L17: 1462722.115 | M17: 1462722.115 | N17: 0 | O17: 0 | P17: 0 | Q17: 0 | R17: =SUM(R14:R16) -> 0 | S17: 0 | T17: 0 | U17: 0 | V17: 0 | W17: 0 | X17: 0 | Y17: 0 | Z17: 0 | AA17: 0 | AB17: 0 | AC17: 0 | AD17: 0 | AE17: 0 | AF17: 0 | AG17: 0
C19: Operating expenditure | G19: =input_dollars -> 2023-12-31 | I19: 0 | J19: 0 | K19: 0 | L19: 0 | M19: 0 | N19: 0 | O19: 0 | P19: 0 | Q19: 0 | R19: 0 | S19: 0 | T19: 0 | U19: 0 | V19: 0 | W19: 0 | X19: 0 | Y19: 0 | Z19: 0 | AA19: 0 | AB19: 0 | AC19: 0 | AD19: 0 | AE19: 0 | AF19: 0 | AG19: 0
A22: RISK ASSUMPTIONS
C24: PoF (major) | I24: 0 | J24: 0 | K24: 0 | L24: 0 | M24: 0 | N24: 0 | O24: 0 | P24: 0 | Q24: 0 | R24: 0 | S24: 0 | T24: 0 | U24: 0 | V24: 0 | W24: 0 | X24: 0 | Y24: 0 | Z24: 0 | AA24: 0 | AB24: 0 | AC24: 0 | AD24: 0 | AE24: 0 | AF24: 0 | AG24: 0
C25: PoF (reparable) | I25: 0 | J25: 0 | K25: 0 | L25: 0 | M25: 0 | N25: 0 | O25: 0 | P25: 0 | Q25: 0 | R25: 0 | S25: 0 | T25: 0 | U25: 0 | V25: 0 | W25: 0 | X25: 0 | Y25: 0 | Z25: 0 | AA25: 0 | AB25: 0 | AC25: 0 | AD25: 0 | AE25: 0 | AF25: 0 | AG25: 0
C27: Energy at risk (weighted) | G27: MWh | I27: =INDEX(Workings_risks!J$60:J$232, MATCH($A$3&$C27, Workings_risks!$E$60:$E$232,0)) -> 86.49250075 | J27: =INDEX(Workings_risks!K$60:K$232, MATCH($A$3&$C27, Workings_risks!$E$60:$E$232,0)) -> 95.20807506 | K27: =INDEX(Workings_risks!L$60:L$232, MATCH($A$3&$C27, Workings_risks!$E$60:$E$232,0)) -> 105.3340387 | L27: =INDEX(Workings_risks!M$60:M$232, MATCH($A$3&$C27, Workings_risks!$E$60:$E$232,0)) -> 116.9651858 | M27: =INDEX(Workings_risks!N$60:N$232, MATCH($A$3&$C27, Workings_risks!$E$60:$E$232,0)) -> 130.309223 | N27: =INDEX(Workings_risks!O$60:O$232, MATCH($A$3&$C27, Workings_risks!$E$60:$E$232,0)) -> 148.5520686 | O27: =INDEX(Workings_risks!P$60:P$232, MATCH($A$3&$C27, Workings_risks!$E$60:$E$232,0)) -> 166.6048525 | P27: =INDEX(Workings_risks!Q$60:Q$232, MATCH($A$3&$C27, Workings_risks!$E$60:$E$232,0)) -> 187.2713904 | Q27: =INDEX(Workings_risks!R$60:R$232, MATCH($A$3&$C27, Workings_risks!$E$60:$E$232,0)) -> 209.9479578 | R27: =INDEX(Workings_risks!S$60:S$232, MATCH($A$3&$C27, Workings_risks!$E$60:$E$232,0)) -> 234.0927446 | S27: =INDEX(Workings_risks!T$60:T$232, MATCH($A$3&$C27, Workings_risks!$E$60:$E$232,0)) -> 259.5646805 | T27: =INDEX(Workings_risks!U$60:U$232, MATCH($A$3&$C27, Workings_risks!$E$60:$E$232,0)) -> 287.7830058 | U27: =INDEX(Workings_risks!V$60:V$232, MATCH($A$3&$C27, Workings_risks!$E$60:$E$232,0)) -> 318.4754623 | V27: =INDEX(Workings_risks!W$60:W$232, MATCH($A$3&$C27, Workings_risks!$E$60:$E$232,0)) -> 350.0651755 | W27: =INDEX(Workings_risks!X$60:X$232, MATCH($A$3&$C27, Workings_risks!$E$60:$E$232,0)) -> 380.0691104 | X27: =INDEX(Workings_risks!Y$60:Y$232, MATCH($A$3&$C27, Workings_risks!$E$60:$E$232,0)) -> 408.9788842 | Y27: =INDEX(Workings_risks!Z$60:Z$232, MATCH($A$3&$C27, Workings_risks!$E$60:$E$232,0)) -> 437.2878735 | Z27: =INDEX(Workings_risks!AA$60:AA$232, MATCH($A$3&$C27, Workings_risks!$E$60:$E$232,0)) -> 463.9349492 | AA27: =INDEX(Workings_risks!AB$60:AB$232, MATCH($A$3&$C27, Workings_risks!$E$60:$E$232,0)) -> 488.3314728 | AB27: =INDEX(Workings_risks!AC$60:AC$232, MATCH($A$3&$C27, Workings_risks!$E$60:$E$232,0)) -> 509.6110192 | AC27: =INDEX(Workings_risks!AD$60:AD$232, MATCH($A$3&$C27, Workings_risks!$E$60:$E$232,0)) -> 531.0732579 | AD27: =INDEX(Workings_risks!AE$60:AE$232, MATCH($A$3&$C27, Workings_risks!$E$60:$E$232,0)) -> 552.9746284 | AE27: =INDEX(Workings_risks!AF$60:AF$232, MATCH($A$3&$C27, Workings_risks!$E$60:$E$232,0)) -> 574.9339024 | AF27: =INDEX(Workings_risks!AG$60:AG$232, MATCH($A$3&$C27, Workings_risks!$E$60:$E$232,0)) -> 597.3557929 | AG27: =INDEX(Workings_risks!AH$60:AH$232, MATCH($A$3&$C27, Workings_risks!$E$60:$E$232,0)) -> 619.8865181
C28: Energy at risk value | D28: $/MWh | E28: =Assumptions!H41*vcr_esc -> 36935.21398 | F28: =IF(AND(SUM(I27:AG27)<>0, E28=0), "!", "") ->  | G28: =input_dollars -> 2023-12-31 | I28: =I27*$E$28 -> 3194619.023 | J28: =J27*$E$28 -> 3516530.625 | K28: 3890535.26 | L28: 4320134.167 | M28: 4812999.033 | N28: 5486802.442 | O28: 6153585.877 | P28: 6916908.878 | Q28: 7754472.746 | R28: 8646265.612 | S28: 9587077.016 | T28: 10629326.9 | U28: 11762959.35 | V28: 12929732.16 | W28: 14037933.92 | X28: 15105722.6 | Y28: 16151321.18 | Z28: 17135536.62 | AA28: 18036627.44 | AB28: 18822592.04 | AC28: 19615304.42 | AD28: 20424236.22 | AE28: 21235306.71 | AF28: 22063464.03 | AG28: 22895641.19
C30: ='Option1 (base case)'!C30 -> Safety consequence | D30: (after DF) | G30: =input_dollars -> 2023-12-31 | I30: =INDEX(Workings_risks!J$60:J$170, MATCH($A$3&$C30, Workings_risks!$E$60:$E$170,0)) -> 921024.8839 | J30: =INDEX(Workings_risks!K$60:K$170, MATCH($A$3&$C30, Workings_risks!$E$60:$E$170,0)) -> 1013890.383 | K30: =INDEX(Workings_risks!L$60:L$170, MATCH($A$3&$C30, Workings_risks!$E$60:$E$170,0)) -> 1121782.521 | L30: =INDEX(Workings_risks!M$60:M$170, MATCH($A$3&$C30, Workings_risks!$E$60:$E$170,0)) -> 1245714.938 | M30: =INDEX(Workings_risks!N$60:N$170, MATCH($A$3&$C30, Workings_risks!$E$60:$E$170,0)) -> 1387902.652 | N30: =INDEX(Workings_risks!O$60:O$170, MATCH($A$3&$C30, Workings_risks!$E$60:$E$170,0)) -> 1579381.415 | O30: =INDEX(Workings_risks!P$60:P$170, MATCH($A$3&$C30, Workings_risks!$E$60:$E$170,0)) -> 1771326.477 | P30: =INDEX(Workings_risks!Q$60:Q$170, MATCH($A$3&$C30, Workings_risks!$E$60:$E$170,0)) -> 1991061.781 | Q30: =INDEX(Workings_risks!R$60:R$170, MATCH($A$3&$C30, Workings_risks!$E$60:$E$170,0)) -> 2232154.155 | R30: =INDEX(Workings_risks!S$60:S$170, MATCH($A$3&$C30, Workings_risks!$E$60:$E$170,0)) -> 2488841.258 | S30: =INDEX(Workings_risks!T$60:T$170, MATCH($A$3&$C30, Workings_risks!$E$60:$E$170,0)) -> 2759624.172 | T30: =INDEX(Workings_risks!U$60:U$170, MATCH($A$3&$C30, Workings_risks!$E$60:$E$170,0)) -> 3059601.62 | U30: =INDEX(Workings_risks!V$60:V$170, MATCH($A$3&$C30, Workings_risks!$E$60:$E$170,0)) -> 3385879.389 | V30: =INDEX(Workings_risks!W$60:W$170, MATCH($A$3&$C30, Workings_risks!$E$60:$E$170,0)) -> 3721696.871 | W30: =INDEX(Workings_risks!X$60:X$170, MATCH($A$3&$C30, Workings_risks!$E$60:$E$170,0)) -> 4040646.502 | X30: =INDEX(Workings_risks!Y$60:Y$170, MATCH($A$3&$C30, Workings_risks!$E$60:$E$170,0)) -> 4347957.921 | Y30: =INDEX(Workings_risks!Z$60:Z$170, MATCH($A$3&$C30, Workings_risks!$E$60:$E$170,0)) -> 4648880.32 | Z30: =INDEX(Workings_risks!AA$60:AA$170, MATCH($A$3&$C30, Workings_risks!$E$60:$E$170,0)) -> 4932136.948 | AA30: =INDEX(Workings_risks!AB$60:AB$170, MATCH($A$3&$C30, Workings_risks!$E$60:$E$170,0)) -> 5191470.667 | AB30: =INDEX(Workings_risks!AC$60:AC$170, MATCH($A$3&$C30, Workings_risks!$E$60:$E$170,0)) -> 5417671.512 | AC30: =INDEX(Workings_risks!AD$60:AD$170, MATCH($A$3&$C30, Workings_risks!$E$60:$E$170,0)) -> 5645814.53 | AD30: =INDEX(Workings_risks!AE$60:AE$170, MATCH($A$3&$C30, Workings_risks!$E$60:$E$170,0)) -> 5878625.649 | AE30: =INDEX(Workings_risks!AF$60:AF$170, MATCH($A$3&$C30, Workings_risks!$E$60:$E$170,0)) -> 6112052.483 | AF30: =INDEX(Workings_risks!AG$60:AG$170, MATCH($A$3&$C30, Workings_risks!$E$60:$E$170,0)) -> 6350396.76 | AG30: =INDEX(Workings_risks!AH$60:AH$170, MATCH($A$3&$C30, Workings_risks!$E$60:$E$170,0)) -> 6589895.266
C31: ='Option1 (base case)'!C31 -> Unplanned replacements | G31: =input_dollars -> 2023-12-31 | I31: =INDEX(Workings_risks!J$60:J$170, MATCH($A$3&$C31, Workings_risks!$E$60:$E$170,0)) -> 1909352.318 | J31: =INDEX(Workings_risks!K$60:K$170, MATCH($A$3&$C31, Workings_risks!$E$60:$E$170,0)) -> 2094435.198 | K31: =INDEX(Workings_risks!L$60:L$170, MATCH($A$3&$C31, Workings_risks!$E$60:$E$170,0)) -> 2309627.548 | L31: =INDEX(Workings_risks!M$60:M$170, MATCH($A$3&$C31, Workings_risks!$E$60:$E$170,0)) -> 2556478.597 | M31: =INDEX(Workings_risks!N$60:N$170, MATCH($A$3&$C31, Workings_risks!$E$60:$E$170,0)) -> 2839156.886 | N31: =INDEX(Workings_risks!O$60:O$170, MATCH($A$3&$C31, Workings_risks!$E$60:$E$170,0)) -> 3600567.232 | O31: =INDEX(Workings_risks!P$60:P$170, MATCH($A$3&$C31, Workings_risks!$E$60:$E$170,0)) -> 4036733.294 | P31: =INDEX(Workings_risks!Q$60:Q$170, MATCH($A$3&$C31, Workings_risks!$E$60:$E$170,0)) -> 4536091.811 | Q31: =INDEX(Workings_risks!R$60:R$170, MATCH($A$3&$C31, Workings_risks!$E$60:$E$170,0)) -> 5085875.212 | R31: =INDEX(Workings_risks!S$60:S$170, MATCH($A$3&$C31, Workings_risks!$E$60:$E$170,0)) -> 5673197.04 | S31: =INDEX(Workings_risks!T$60:T$170, MATCH($A$3&$C31, Workings_risks!$E$60:$E$170,0)) -> 6294519.732 | T31: =INDEX(Workings_risks!U$60:U$170, MATCH($A$3&$C31, Workings_risks!$E$60:$E$170,0)) -> 6983005.538 | U31: =INDEX(Workings_risks!V$60:V$170, MATCH($A$3&$C31, Workings_risks!$E$60:$E$170,0)) -> 7732005.59 | V31: =INDEX(Workings_risks!W$60:W$170, MATCH($A$3&$C31, Workings_risks!$E$60:$E$170,0)) -> 8502723.69 | W31: =INDEX(Workings_risks!X$60:X$170, MATCH($A$3&$C31, Workings_risks!$E$60:$E$170,0)) -> 9236052.256 | X31: =INDEX(Workings_risks!Y$60:Y$170, MATCH($A$3&$C31, Workings_risks!$E$60:$E$170,0)) -> 9943540.305 | Y31: =INDEX(Workings_risks!Z$60:Z$170, MATCH($A$3&$C31, Workings_risks!$E$60:$E$170,0)) -> 10636669.89 | Z31: =INDEX(Workings_risks!AA$60:AA$170, MATCH($A$3&$C31, Workings_risks!$E$60:$E$170,0)) -> 11289077.2 | AA31: =INDEX(Workings_risks!AB$60:AB$170, MATCH($A$3&$C31, Workings_risks!$E$60:$E$170,0)) -> 11886343.61 | AB31: =INDEX(Workings_risks!AC$60:AC$170, MATCH($A$3&$C31, Workings_risks!$E$60:$E$170,0)) -> 12407246.72 | AC31: =INDEX(Workings_risks!AD$60:AD$170, MATCH($A$3&$C31, Workings_risks!$E$60:$E$170,0)) -> 12932601.49 | AD31: =INDEX(Workings_risks!AE$60:AE$170, MATCH($A$3&$C31, Workings_risks!$E$60:$E$170,0)) -> 13468686.86 | AE31: =INDEX(Workings_risks!AF$60:AF$170, MATCH($A$3&$C31, Workings_risks!$E$60:$E$170,0)) -> 14006163.62 | AF31: =INDEX(Workings_risks!AG$60:AG$170, MATCH($A$3&$C31, Workings_risks!$E$60:$E$170,0)) -> 14554984.69 | AG31: =INDEX(Workings_risks!AH$60:AH$170, MATCH($A$3&$C31, Workings_risks!$E$60:$E$170,0)) -> 15106815.47
C32: ='Option1 (base case)'!C32 -> Environmental consequence | D32: (after DF) | G32: =input_dollars -> 2023-12-31 | I32: =INDEX(Workings_risks!J$60:J$170, MATCH($A$3&$C32, Workings_risks!$E$60:$E$170,0)) -> 126129.7023 | J32: =INDEX(Workings_risks!K$60:K$170, MATCH($A$3&$C32, Workings_risks!$E$60:$E$170,0)) -> 138843.6457 | K32: =INDEX(Workings_risks!L$60:L$170, MATCH($A$3&$C32, Workings_risks!$E$60:$E$170,0)) -> 153614.9185 | L32: =INDEX(Workings_risks!M$60:M$170, MATCH($A$3&$C32, Workings_risks!$E$60:$E$170,0)) -> 170582.0722 | M32: =INDEX(Workings_risks!N$60:N$170, MATCH($A$3&$C32, Workings_risks!$E$60:$E$170,0)) -> 190048.242 | N32: =INDEX(Workings_risks!O$60:O$170, MATCH($A$3&$C32, Workings_risks!$E$60:$E$170,0)) -> 216442.7274 | O32: =INDEX(Workings_risks!P$60:P$170, MATCH($A$3&$C32, Workings_risks!$E$60:$E$170,0)) -> 242746.7306 | P32: =INDEX(Workings_risks!Q$60:Q$170, MATCH($A$3&$C32, Workings_risks!$E$60:$E$170,0)) -> 272859.1075 | Q32: =INDEX(Workings_risks!R$60:R$170, MATCH($A$3&$C32, Workings_risks!$E$60:$E$170,0)) -> 305899.137 | R32: =INDEX(Workings_risks!S$60:S$170, MATCH($A$3&$C32, Workings_risks!$E$60:$E$170,0)) -> 341077.2506 | S32: =INDEX(Workings_risks!T$60:T$170, MATCH($A$3&$C32, Workings_risks!$E$60:$E$170,0)) -> 378187.9753 | T32: =INDEX(Workings_risks!U$60:U$170, MATCH($A$3&$C32, Workings_risks!$E$60:$E$170,0)) -> 419299.8858 | U32: =INDEX(Workings_risks!V$60:V$170, MATCH($A$3&$C32, Workings_risks!$E$60:$E$170,0)) -> 464016.3271 | V32: =INDEX(Workings_risks!W$60:W$170, MATCH($A$3&$C32, Workings_risks!$E$60:$E$170,0)) -> 510040.1027 | W32: =INDEX(Workings_risks!X$60:X$170, MATCH($A$3&$C32, Workings_risks!$E$60:$E$170,0)) -> 553752.7657 | X32: =INDEX(Workings_risks!Y$60:Y$170, MATCH($A$3&$C32, Workings_risks!$E$60:$E$170,0)) -> 595870.8235 | Y32: =INDEX(Workings_risks!Z$60:Z$170, MATCH($A$3&$C32, Workings_risks!$E$60:$E$170,0)) -> 637113.4107 | Z32: =INDEX(Workings_risks!AA$60:AA$170, MATCH($A$3&$C32, Workings_risks!$E$60:$E$170,0)) -> 675934.8198 | AA32: =INDEX(Workings_risks!AB$60:AB$170, MATCH($A$3&$C32, Workings_risks!$E$60:$E$170,0)) -> 711477.4832 | AB32: =INDEX(Workings_risks!AC$60:AC$170, MATCH($A$3&$C32, Workings_risks!$E$60:$E$170,0)) -> 742479.1351 | AC32: =INDEX(Workings_risks!AD$60:AD$170, MATCH($A$3&$C32, Workings_risks!$E$60:$E$170,0)) -> 773746.959 | AD32: =INDEX(Workings_risks!AE$60:AE$170, MATCH($A$3&$C32, Workings_risks!$E$60:$E$170,0)) -> 805654.554 | AE32: =INDEX(Workings_risks!AF$60:AF$170, MATCH($A$3&$C32, Workings_risks!$E$60:$E$170,0)) -> 837646.5225 | AF32: =INDEX(Workings_risks!AG$60:AG$170, MATCH($A$3&$C32, Workings_risks!$E$60:$E$170,0)) -> 870312.4542 | AG32: =INDEX(Workings_risks!AH$60:AH$170, MATCH($A$3&$C32, Workings_risks!$E$60:$E$170,0)) -> 903136.7434
C33: ='Option1 (base case)'!C33 -> Response cost | G33: =input_dollars -> 2023-12-31 | I33: =INDEX(Workings_risks!J$60:J$170, MATCH($A$3&$C33, Workings_risks!$E$60:$E$170,0)) -> 398844.4191 | J33: =INDEX(Workings_risks!K$60:K$170, MATCH($A$3&$C33, Workings_risks!$E$60:$E$170,0)) -> 439250.0321 | K33: =INDEX(Workings_risks!L$60:L$170, MATCH($A$3&$C33, Workings_risks!$E$60:$E$170,0)) -> 486189.5762 | L33: =INDEX(Workings_risks!M$60:M$170, MATCH($A$3&$C33, Workings_risks!$E$60:$E$170,0)) -> 540116.169 | M33: =INDEX(Workings_risks!N$60:N$170, MATCH($A$3&$C33, Workings_risks!$E$60:$E$170,0)) -> 601999.8741 | N33: =INDEX(Workings_risks!O$60:O$170, MATCH($A$3&$C33, Workings_risks!$E$60:$E$170,0)) -> 675566.8589 | O33: =INDEX(Workings_risks!P$60:P$170, MATCH($A$3&$C33, Workings_risks!$E$60:$E$170,0)) -> 757706.0816 | P33: =INDEX(Workings_risks!Q$60:Q$170, MATCH($A$3&$C33, Workings_risks!$E$60:$E$170,0)) -> 851736.4951 | Q33: =INDEX(Workings_risks!R$60:R$170, MATCH($A$3&$C33, Workings_risks!$E$60:$E$170,0)) -> 954857.6559 | R33: =INDEX(Workings_risks!S$60:S$170, MATCH($A$3&$C33, Workings_risks!$E$60:$E$170,0)) -> 1064598.353 | S33: =INDEX(Workings_risks!T$60:T$170, MATCH($A$3&$C33, Workings_risks!$E$60:$E$170,0)) -> 1180320.528 | T33: =INDEX(Workings_risks!U$60:U$170, MATCH($A$3&$C33, Workings_risks!$E$60:$E$170,0)) -> 1308514.829 | U33: =INDEX(Workings_risks!V$60:V$170, MATCH($A$3&$C33, Workings_risks!$E$60:$E$170,0)) -> 1447944.587 | V33: =INDEX(Workings_risks!W$60:W$170, MATCH($A$3&$C33, Workings_risks!$E$60:$E$170,0)) -> 1591455.643 | W33: =INDEX(Workings_risks!X$60:X$170, MATCH($A$3&$C33, Workings_risks!$E$60:$E$170,0)) -> 1727724.303 | X33: =INDEX(Workings_risks!Y$60:Y$170, MATCH($A$3&$C33, Workings_risks!$E$60:$E$170,0)) -> 1858997.074 | Y33: =INDEX(Workings_risks!Z$60:Z$170, MATCH($A$3&$C33, Workings_risks!$E$60:$E$170,0)) -> 1987531.691 | Z33: =INDEX(Workings_risks!AA$60:AA$170, MATCH($A$3&$C33, Workings_risks!$E$60:$E$170,0)) -> 2108521.447 | AA33: =INDEX(Workings_risks!AB$60:AB$170, MATCH($A$3&$C33, Workings_risks!$E$60:$E$170,0)) -> 2219293.858 | AB33: =INDEX(Workings_risks!AC$60:AC$170, MATCH($A$3&$C33, Workings_risks!$E$60:$E$170,0)) -> 2315915.244 | AC33: =INDEX(Workings_risks!AD$60:AD$170, MATCH($A$3&$C33, Workings_risks!$E$60:$E$170,0)) -> 2413366.76 | AD33: =INDEX(Workings_risks!AE$60:AE$170, MATCH($A$3&$C33, Workings_risks!$E$60:$E$170,0)) -> 2512812.744 | AE33: =INDEX(Workings_risks!AF$60:AF$170, MATCH($A$3&$C33, Workings_risks!$E$60:$E$170,0)) -> 2612522.41 | AF33: =INDEX(Workings_risks!AG$60:AG$170, MATCH($A$3&$C33, Workings_risks!$E$60:$E$170,0)) -> 2714332.036 | AG33: =INDEX(Workings_risks!AH$60:AH$170, MATCH($A$3&$C33, Workings_risks!$E$60:$E$170,0)) -> 2816625.663
G34: =input_dollars -> 2023-12-31 | I34: 0 | J34: 0 | K34: 0 | L34: 0 | M34: 0 | N34: 0 | O34: 0 | P34: 0 | Q34: 0 | R34: 0 | S34: 0 | T34: 0 | U34: 0 | V34: 0 | W34: 0 | X34: 0 | Y34: 0 | Z34: 0 | AA34: 0 | AB34: 0 | AC34: 0 | AD34: 0 | AE34: 0 | AF34: 0 | AG34: 0
C36: Total risk cost | I36: =SUM(I28:I34) -> 6549970.347 | J36: =SUM(J28:J34) -> 7202949.884 | K36: 7961749.825 | L36: 8833025.944 | M36: 9832106.688 | N36: 11558760.67 | O36: 12962098.46 | P36: 14568658.07 | Q36: 16333258.91 | R36: 18213979.51 | S36: 20199729.42 | T36: 22399748.77 | U36: 24792805.24 | V36: 27255648.47 | W36: 29596109.75 | X36: 31852088.72 | Y36: 34061516.49 | Z36: 36141207.04 | AA36: 38045213.06 | AB36: 39705904.65 | AC36: 41380834.16 | AD36: 43090016.03 | AE36: 44803691.74 | AF36: 46553489.97 | AG36: 48312114.33
A38: OTHER BENEFITS
C41: Reduction in CO2 emissions | G41: MWh | I41: 0 | J41: 0 | K41: 0 | L41: 0 | M41: 0 | N41: 0 | O41: 0 | P41: 0 | Q41: 0 | R41: 0 | S41: 0 | T41: 0 | U41: 0 | V41: 0 | W41: 0 | X41: 0 | Y41: 0 | Z41: 0 | AA41: 0 | AB41: 0 | AC41: 0 | AD41: 0 | AE41: 0 | AF41: 0 | AG41: 0
C42: Value of reduction in CO2 emissions | G42: $ | I42: =I41*I7 -> 0 | J42: 0 | K42: 0 | L42: 0 | M42: 0 | N42: 0 | O42: 0 | P42: 0 | Q42: 0 | R42: 0 | S42: 0 | T42: 0 | U42: 0 | V42: 0 | W42: 0 | X42: 0 | Y42: 0 | Z42: 0 | AA42: 0 | AB42: 0 | AC42: 0 | AD42: 0 | AE42: 0 | AF42: 0 | AG42: 0
C45: Reliability in worst-served areas | D45: $/MWh | E45: =Assumptions!G94 -> 151432.8174 | G45: MWh | I45: 0 | J45: 0 | K45: 0 | L45: 0 | M45: 0 | N45: 0 | O45: 0 | P45: 0 | Q45: 0 | R45: 0 | S45: 0 | T45: 0 | U45: 0 | V45: 0 | W45: 0 | X45: 0 | Y45: 0 | Z45: 0 | AA45: 0 | AB45: 0 | AC45: 0 | AD45: 0 | AE45: 0 | AF45: 0 | AG45: 0
C46: Network resilience | D46: $/MWh | E46: =Assumptions!G95 -> 24590 | G46: MWh | I46: 0 | J46: 0 | K46: 0 | L46: 0 | M46: 0 | N46: 0 | O46: 0 | P46: 0 | Q46: 0 | R46: 0 | S46: 0 | T46: 0 | U46: 0 | V46: 0 | W46: 0 | X46: 0 | Y46: 0 | Z46: 0 | AA46: 0 | AB46: 0 | AC46: 0 | AD46: 0 | AE46: 0 | AF46: 0 | AG46: 0
C47: Enabling solar exports | D47: $/MWh | E47: =Assumptions!G96 -> 88.35771951 | G47: MWh | I47: 0 | J47: 0 | K47: 0 | L47: 0 | M47: 0 | N47: 0 | O47: 0 | P47: 0 | Q47: 0 | R47: 0 | S47: 0 | T47: 0 | U47: 0 | V47: 0 | W47: 0 | X47: 0 | Y47: 0 | Z47: 0 | AA47: 0 | AB47: 0 | AC47: 0 | AD47: 0 | AE47: 0 | AF47: 0 | AG47: 0
C48: Aesthetics | D48: $/customer | E48: =Assumptions!G97 -> 0 | G48: customers | I48: 0 | J48: 0 | K48: 0 | L48: 0 | M48: 0 | N48: 0 | O48: 0 | P48: 0 | Q48: 0 | R48: 0 | S48: 0 | T48: 0 | U48: 0 | V48: 0 | W48: 0 | X48: 0 | Y48: 0 | Z48: 0 | AA48: 0 | AB48: 0 | AC48: 0 | AD48: 0 | AE48: 0 | AF48: 0 | AG48: 0
C49: Customer value of time (res) | D49: $/customer min | E49: =Assumptions!G98 -> 0.3518133654 | G49: mins | I49: 0 | J49: 0 | K49: 0 | L49: 0 | M49: 0 | N49: 0 | O49: 0 | P49: 0 | Q49: 0 | R49: 0 | S49: 0 | T49: 0 | U49: 0 | V49: 0 | W49: 0 | X49: 0 | Y49: 0 | Z49: 0 | AA49: 0 | AB49: 0 | AC49: 0 | AD49: 0 | AE49: 0 | AF49: 0 | AG49: 0
C50: Customer value of time (bus) | D50: $/customer min | E50: =Assumptions!G99 -> 0.3518133654 | G50: mins | I50: 0 | J50: 0 | K50: 0 | L50: 0 | M50: 0 | N50: 0 | O50: 0 | P50: 0 | Q50: 0 | R50: 0 | S50: 0 | T50: 0 | U50: 0 | V50: 0 | W50: 0 | X50: 0 | Y50: 0 | Z50: 0 | AA50: 0 | AB50: 0 | AC50: 0 | AD50: 0 | AE50: 0 | AF50: 0 | AG50: 0
C51: Communication | D51: $/customer | E51: =Assumptions!G100 -> 0 | G51: customers | I51: 0 | J51: 0 | K51: 0 | L51: 0 | M51: 0 | N51: 0 | O51: 0 | P51: 0 | Q51: 0 | R51: 0 | S51: 0 | T51: 0 | U51: 0 | V51: 0 | W51: 0 | X51: 0 | Y51: 0 | Z51: 0 | AA51: 0 | AB51: 0 | AC51: 0 | AD51: 0 | AE51: 0 | AF51: 0 | AG51: 0
C52: Information accessibility | D52: $/customer | E52: =Assumptions!G101 -> 0 | G52: customers | I52: 0 | J52: 0 | K52: 0 | L52: 0 | M52: 0 | N52: 0 | O52: 0 | P52: 0 | Q52: 0 | R52: 0 | S52: 0 | T52: 0 | U52: 0 | V52: 0 | W52: 0 | X52: 0 | Y52: 0 | Z52: 0 | AA52: 0 | AB52: 0 | AC52: 0 | AD52: 0 | AE52: 0 | AF52: 0 | AG52: 0
C54: Other benefits 1 | G54: =input_dollars -> 2023-12-31 | I54: 0 | J54: 0 | K54: 0 | L54: 0 | M54: 0 | N54: 0 | O54: 0 | P54: 0 | Q54: 0 | R54: 0 | S54: 0 | T54: 0 | U54: 0 | V54: 0 | W54: 0 | X54: 0 | Y54: 0 | Z54: 0 | AA54: 0 | AB54: 0 | AC54: 0 | AD54: 0 | AE54: 0 | AF54: 0 | AG54: 0
C55: Other benefits 2 | G55: =input_dollars -> 2023-12-31 | I55: 0 | J55: 0 | K55: 0 | L55: 0 | M55: 0 | N55: 0 | O55: 0 | P55: 0 | Q55: 0 | R55: 0 | S55: 0 | T55: 0 | U55: 0 | V55: 0 | W55: 0 | X55: 0 | Y55: 0 | Z55: 0 | AA55: 0 | AB55: 0 | AC55: 0 | AD55: 0 | AE55: 0 | AF55: 0 | AG55: 0
C57: Total other benefits | G57: =input_dollars -> 2023-12-31 | I57: =SUMPRODUCT((I$45:I$52)*($E$45:$E$52))+SUM(I54:I55)+I42 -> 0 | J57: =SUMPRODUCT((J$45:J$52)*($E$45:$E$52))+SUM(J54:J55)+J42 -> 0 | K57: =SUMPRODUCT((K$45:K$52)*($E$45:$E$52))+SUM(K54:K55)+K42 -> 0 | L57: =SUMPRODUCT((L$45:L$52)*($E$45:$E$52))+SUM(L54:L55)+L42 -> 0 | M57: =SUMPRODUCT((M$45:M$52)*($E$45:$E$52))+SUM(M54:M55)+M42 -> 0 | N57: =SUMPRODUCT((N$45:N$52)*($E$45:$E$52))+SUM(N54:N55)+N42 -> 0 | O57: =SUMPRODUCT((O$45:O$52)*($E$45:$E$52))+SUM(O54:O55)+O42 -> 0 | P57: =SUMPRODUCT((P$45:P$52)*($E$45:$E$52))+SUM(P54:P55)+P42 -> 0 | Q57: =SUMPRODUCT((Q$45:Q$52)*($E$45:$E$52))+SUM(Q54:Q55)+Q42 -> 0 | R57: =SUMPRODUCT((R$45:R$52)*($E$45:$E$52))+SUM(R54:R55)+R42 -> 0 | S57: =SUMPRODUCT((S$45:S$52)*($E$45:$E$52))+SUM(S54:S55)+S42 -> 0 | T57: =SUMPRODUCT((T$45:T$52)*($E$45:$E$52))+SUM(T54:T55)+T42 -> 0 | U57: =SUMPRODUCT((U$45:U$52)*($E$45:$E$52))+SUM(U54:U55)+U42 -> 0 | V57: =SUMPRODUCT((V$45:V$52)*($E$45:$E$52))+SUM(V54:V55)+V42 -> 0 | W57: =SUMPRODUCT((W$45:W$52)*($E$45:$E$52))+SUM(W54:W55)+W42 -> 0 | X57: =SUMPRODUCT((X$45:X$52)*($E$45:$E$52))+SUM(X54:X55)+X42 -> 0 | Y57: =SUMPRODUCT((Y$45:Y$52)*($E$45:$E$52))+SUM(Y54:Y55)+Y42 -> 0 | Z57: =SUMPRODUCT((Z$45:Z$52)*($E$45:$E$52))+SUM(Z54:Z55)+Z42 -> 0 | AA57: =SUMPRODUCT((AA$45:AA$52)*($E$45:$E$52))+SUM(AA54:AA55)+AA42 -> 0 | AB57: =SUMPRODUCT((AB$45:AB$52)*($E$45:$E$52))+SUM(AB54:AB55)+AB42 -> 0 | AC57: =SUMPRODUCT((AC$45:AC$52)*($E$45:$E$52))+SUM(AC54:AC55)+AC42 -> 0 | AD57: =SUMPRODUCT((AD$45:AD$52)*($E$45:$E$52))+SUM(AD54:AD55)+AD42 -> 0 | AE57: =SUMPRODUCT((AE$45:AE$52)*($E$45:$E$52))+SUM(AE54:AE55)+AE42 -> 0 | AF57: =SUMPRODUCT((AF$45:AF$52)*($E$45:$E$52))+SUM(AF54:AF55)+AF42 -> 0 | AG57: =SUMPRODUCT((AG$45:AG$52)*($E$45:$E$52))+SUM(AG54:AG55)+AG42 -> 0
A60: SUMMARY
C64: ='Option1 (base case)'!C64 -> Risks mitigated vs base case | G64: =input_dollars -> 2023-12-31 | I64: =(1-INDEX(Data!$C$9:$C$13, MATCH($A$3, options,0)))*('Option1 (base case)'!I36-I36) -> 330892.185 | J64: =(1-INDEX(Data!$C$9:$C$13, MATCH($A$3, options,0)))*('Option1 (base case)'!J36-J36) -> 375815.7355 | K64: =(1-INDEX(Data!$C$9:$C$13, MATCH($A$3, options,0)))*('Option1 (base case)'!K36-K36) -> 427757.9421 | L64: =(1-INDEX(Data!$C$9:$C$13, MATCH($A$3, options,0)))*('Option1 (base case)'!L36-L36) -> 487941.5287 | M64: =(1-INDEX(Data!$C$9:$C$13, MATCH($A$3, options,0)))*('Option1 (base case)'!M36-M36) -> 557820.5983 | N64: =(1-INDEX(Data!$C$9:$C$13, MATCH($A$3, options,0)))*('Option1 (base case)'!N36-N36) -> 59869.0001 | O64: =(1-INDEX(Data!$C$9:$C$13, MATCH($A$3, options,0)))*('Option1 (base case)'!O36-O36) -> 69348.98589 | P64: =(1-INDEX(Data!$C$9:$C$13, MATCH($A$3, options,0)))*('Option1 (base case)'!P36-P36) -> 80134.10747 | Q64: =(1-INDEX(Data!$C$9:$C$13, MATCH($A$3, options,0)))*('Option1 (base case)'!Q36-Q36) -> 89028.55205 | R64: =(1-INDEX(Data!$C$9:$C$13, MATCH($A$3, options,0)))*('Option1 (base case)'!R36-R36) -> 95424.91503 | S64: =(1-INDEX(Data!$C$9:$C$13, MATCH($A$3, options,0)))*('Option1 (base case)'!S36-S36) -> 99453.64846 | T64: =(1-INDEX(Data!$C$9:$C$13, MATCH($A$3, options,0)))*('Option1 (base case)'!T36-T36) -> 103644.5574 | U64: =(1-INDEX(Data!$C$9:$C$13, MATCH($A$3, options,0)))*('Option1 (base case)'!U36-U36) -> 107966.9749 | V64: =(1-INDEX(Data!$C$9:$C$13, MATCH($A$3, options,0)))*('Option1 (base case)'!V36-V36) -> 112697.5832 | W64: =(1-INDEX(Data!$C$9:$C$13, MATCH($A$3, options,0)))*('Option1 (base case)'!W36-W36) -> 115133.2292 | X64: =(1-INDEX(Data!$C$9:$C$13, MATCH($A$3, options,0)))*('Option1 (base case)'!X36-X36) -> 116052.4211 | Y64: =(1-INDEX(Data!$C$9:$C$13, MATCH($A$3, options,0)))*('Option1 (base case)'!Y36-Y36) -> 116407.8686 | Z64: =(1-INDEX(Data!$C$9:$C$13, MATCH($A$3, options,0)))*('Option1 (base case)'!Z36-Z36) -> 116791.9205 | AA64: =(1-INDEX(Data!$C$9:$C$13, MATCH($A$3, options,0)))*('Option1 (base case)'!AA36-AA36) -> 117206.9219 | AB64: =(1-INDEX(Data!$C$9:$C$13, MATCH($A$3, options,0)))*('Option1 (base case)'!AB36-AB36) -> 117655.4128 | AC64: =(1-INDEX(Data!$C$9:$C$13, MATCH($A$3, options,0)))*('Option1 (base case)'!AC36-AC36) -> 118140.1436 | AD64: =(1-INDEX(Data!$C$9:$C$13, MATCH($A$3, options,0)))*('Option1 (base case)'!AD36-AD36) -> 118664.0935 | AE64: =(1-INDEX(Data!$C$9:$C$13, MATCH($A$3, options,0)))*('Option1 (base case)'!AE36-AE36) -> 119230.4889 | AF64: =(1-INDEX(Data!$C$9:$C$13, MATCH($A$3, options,0)))*('Option1 (base case)'!AF36-AF36) -> 119775.1245 | AG64: =(1-INDEX(Data!$C$9:$C$13, MATCH($A$3, options,0)))*('Option1 (base case)'!AG36-AG36) -> 119775.1245
C66: Capital expenditure
C67: =C14 -> Condition assessment of top 30 delta risk cable sections | G67: =input_dollars -> 2023-12-31 | I67: =-I14 -> -1000000 | J67: -1000000 | K67: -1000000 | L67: -1000000 | M67: -1000000 | N67: 0 | O67: 0 | P67: 0 | Q67: 0 | R67: 0 | S67: 0 | T67: 0 | U67: 0 | V67: 0 | W67: 0 | X67: 0 | Y67: 0 | Z67: 0 | AA67: 0 | AB67: 0 | AC67: 0 | AD67: 0 | AE67: 0 | AF67: 0 | AG67: 0
C68: =C15 -> Replacement of poor condition cable sections | G68: =input_dollars -> 2023-12-31 | I68: =-I15 -> 0 | J68: -462722.1147 | K68: -462722.1147 | L68: -462722.1147 | M68: -462722.1147 | N68: 0 | O68: 0 | P68: 0 | Q68: 0 | R68: 0 | S68: 0 | T68: 0 | U68: 0 | V68: 0 | W68: 0 | X68: 0 | Y68: 0 | Z68: 0 | AA68: 0 | AB68: 0 | AC68: 0 | AD68: 0 | AE68: 0 | AF68: 0 | AG68: 0
C69: =C16 -> 0 | G69: =input_dollars -> 2023-12-31 | I69: =-I16 -> 0 | J69: 0 | K69: 0 | L69: 0 | M69: 0 | N69: 0 | O69: 0 | P69: 0 | Q69: 0 | R69: 0 | S69: 0 | T69: 0 | U69: 0 | V69: 0 | W69: 0 | X69: 0 | Y69: 0 | Z69: 0 | AA69: 0 | AB69: 0 | AC69: 0 | AD69: 0 | AE69: 0 | AF69: 0 | AG69: 0
C71: Cumulative capex
C72: =C14 -> Condition assessment of top 30 delta risk cable sections | G72: =input_dollars -> 2023-12-31 | I72: =SUMPRODUCT(($I67:I67))-SUMPRODUCT(($I67:I67)*($I$6:I$6<=(I$6-$E14))) -> -1000000 | J72: =SUMPRODUCT(($I67:J67))-SUMPRODUCT(($I67:J67)*($I$6:J$6<=(J$6-$E14))) -> -1000000 | K72: =SUMPRODUCT(($I67:K67))-SUMPRODUCT(($I67:K67)*($I$6:K$6<=(K$6-$E14))) -> -1000000 | L72: =SUMPRODUCT(($I67:L67))-SUMPRODUCT(($I67:L67)*($I$6:L$6<=(L$6-$E14))) -> -1000000 | M72: =SUMPRODUCT(($I67:M67))-SUMPRODUCT(($I67:M67)*($I$6:M$6<=(M$6-$E14))) -> -1000000 | N72: =SUMPRODUCT(($I67:N67))-SUMPRODUCT(($I67:N67)*($I$6:N$6<=(N$6-$E14))) -> 0 | O72: =SUMPRODUCT(($I67:O67))-SUMPRODUCT(($I67:O67)*($I$6:O$6<=(O$6-$E14))) -> 0 | P72: =SUMPRODUCT(($I67:P67))-SUMPRODUCT(($I67:P67)*($I$6:P$6<=(P$6-$E14))) -> 0 | Q72: =SUMPRODUCT(($I67:Q67))-SUMPRODUCT(($I67:Q67)*($I$6:Q$6<=(Q$6-$E14))) -> 0 | R72: =SUMPRODUCT(($I67:R67))-SUMPRODUCT(($I67:R67)*($I$6:R$6<=(R$6-$E14))) -> 0 | S72: =SUMPRODUCT(($I67:S67))-SUMPRODUCT(($I67:S67)*($I$6:S$6<=(S$6-$E14))) -> 0 | T72: =SUMPRODUCT(($I67:T67))-SUMPRODUCT(($I67:T67)*($I$6:T$6<=(T$6-$E14))) -> 0 | U72: =SUMPRODUCT(($I67:U67))-SUMPRODUCT(($I67:U67)*($I$6:U$6<=(U$6-$E14))) -> 0 | V72: =SUMPRODUCT(($I67:V67))-SUMPRODUCT(($I67:V67)*($I$6:V$6<=(V$6-$E14))) -> 0 | W72: =SUMPRODUCT(($I67:W67))-SUMPRODUCT(($I67:W67)*($I$6:W$6<=(W$6-$E14))) -> 0 | X72: =SUMPRODUCT(($I67:X67))-SUMPRODUCT(($I67:X67)*($I$6:X$6<=(X$6-$E14))) -> 0 | Y72: =SUMPRODUCT(($I67:Y67))-SUMPRODUCT(($I67:Y67)*($I$6:Y$6<=(Y$6-$E14))) -> 0 | Z72: =SUMPRODUCT(($I67:Z67))-SUMPRODUCT(($I67:Z67)*($I$6:Z$6<=(Z$6-$E14))) -> 0 | AA72: =SUMPRODUCT(($I67:AA67))-SUMPRODUCT(($I67:AA67)*($I$6:AA$6<=(AA$6-$E14))) -> 0 | AB72: =SUMPRODUCT(($I67:AB67))-SUMPRODUCT(($I67:AB67)*($I$6:AB$6<=(AB$6-$E14))) -> 0 | AC72: =SUMPRODUCT(($I67:AC67))-SUMPRODUCT(($I67:AC67)*($I$6:AC$6<=(AC$6-$E14))) -> 0 | AD72: =SUMPRODUCT(($I67:AD67))-SUMPRODUCT(($I67:AD67)*($I$6:AD$6<=(AD$6-$E14))) -> 0 | AE72: =SUMPRODUCT(($I67:AE67))-SUMPRODUCT(($I67:AE67)*($I$6:AE$6<=(AE$6-$E14))) -> 0 | AF72: =SUMPRODUCT(($I67:AF67))-SUMPRODUCT(($I67:AF67)*($I$6:AF$6<=(AF$6-$E14))) -> 0 | AG72: =SUMPRODUCT(($I67:AG67))-SUMPRODUCT(($I67:AG67)*($I$6:AG$6<=(AG$6-$E14))) -> 0
C73: =C15 -> Replacement of poor condition cable sections | G73: =input_dollars -> 2023-12-31 | I73: =SUMPRODUCT(($I68:I68))-SUMPRODUCT(($I68:I68)*($I$6:I$6<=(I$6-$E15))) -> 0 | J73: =SUMPRODUCT(($I68:J68))-SUMPRODUCT(($I68:J68)*($I$6:J$6<=(J$6-$E15))) -> -462722.1147 | K73: =SUMPRODUCT(($I68:K68))-SUMPRODUCT(($I68:K68)*($I$6:K$6<=(K$6-$E15))) -> -925444.2294 | L73: =SUMPRODUCT(($I68:L68))-SUMPRODUCT(($I68:L68)*($I$6:L$6<=(L$6-$E15))) -> -1388166.344 | M73: =SUMPRODUCT(($I68:M68))-SUMPRODUCT(($I68:M68)*($I$6:M$6<=(M$6-$E15))) -> -1850888.459 | N73: =SUMPRODUCT(($I68:N68))-SUMPRODUCT(($I68:N68)*($I$6:N$6<=(N$6-$E15))) -> -1850888.459 | O73: =SUMPRODUCT(($I68:O68))-SUMPRODUCT(($I68:O68)*($I$6:O$6<=(O$6-$E15))) -> -1850888.459 | P73: =SUMPRODUCT(($I68:P68))-SUMPRODUCT(($I68:P68)*($I$6:P$6<=(P$6-$E15))) -> -1850888.459 | Q73: =SUMPRODUCT(($I68:Q68))-SUMPRODUCT(($I68:Q68)*($I$6:Q$6<=(Q$6-$E15))) -> -1850888.459 | R73: =SUMPRODUCT(($I68:R68))-SUMPRODUCT(($I68:R68)*($I$6:R$6<=(R$6-$E15))) -> -1850888.459 | S73: =SUMPRODUCT(($I68:S68))-SUMPRODUCT(($I68:S68)*($I$6:S$6<=(S$6-$E15))) -> -1850888.459 | T73: =SUMPRODUCT(($I68:T68))-SUMPRODUCT(($I68:T68)*($I$6:T$6<=(T$6-$E15))) -> -1850888.459 | U73: =SUMPRODUCT(($I68:U68))-SUMPRODUCT(($I68:U68)*($I$6:U$6<=(U$6-$E15))) -> -1850888.459 | V73: =SUMPRODUCT(($I68:V68))-SUMPRODUCT(($I68:V68)*($I$6:V$6<=(V$6-$E15))) -> -1850888.459 | W73: =SUMPRODUCT(($I68:W68))-SUMPRODUCT(($I68:W68)*($I$6:W$6<=(W$6-$E15))) -> -1850888.459 | X73: =SUMPRODUCT(($I68:X68))-SUMPRODUCT(($I68:X68)*($I$6:X$6<=(X$6-$E15))) -> -1850888.459 | Y73: =SUMPRODUCT(($I68:Y68))-SUMPRODUCT(($I68:Y68)*($I$6:Y$6<=(Y$6-$E15))) -> -1850888.459 | Z73: =SUMPRODUCT(($I68:Z68))-SUMPRODUCT(($I68:Z68)*($I$6:Z$6<=(Z$6-$E15))) -> -1850888.459 | AA73: =SUMPRODUCT(($I68:AA68))-SUMPRODUCT(($I68:AA68)*($I$6:AA$6<=(AA$6-$E15))) -> -1850888.459 | AB73: =SUMPRODUCT(($I68:AB68))-SUMPRODUCT(($I68:AB68)*($I$6:AB$6<=(AB$6-$E15))) -> -1850888.459 | AC73: =SUMPRODUCT(($I68:AC68))-SUMPRODUCT(($I68:AC68)*($I$6:AC$6<=(AC$6-$E15))) -> -1850888.459 | AD73: =SUMPRODUCT(($I68:AD68))-SUMPRODUCT(($I68:AD68)*($I$6:AD$6<=(AD$6-$E15))) -> -1850888.459 | AE73: =SUMPRODUCT(($I68:AE68))-SUMPRODUCT(($I68:AE68)*($I$6:AE$6<=(AE$6-$E15))) -> -1850888.459 | AF73: =SUMPRODUCT(($I68:AF68))-SUMPRODUCT(($I68:AF68)*($I$6:AF$6<=(AF$6-$E15))) -> -1850888.459 | AG73: =SUMPRODUCT(($I68:AG68))-SUMPRODUCT(($I68:AG68)*($I$6:AG$6<=(AG$6-$E15))) -> -1850888.459
C74: =C16 -> 0 | G74: =input_dollars -> 2023-12-31 | I74: =SUMPRODUCT(($I69:I69))-SUMPRODUCT(($I69:I69)*($I$6:I$6<=(I$6-$E16))) -> 0 | J74: =SUMPRODUCT(($I69:J69))-SUMPRODUCT(($I69:J69)*($I$6:J$6<=(J$6-$E16))) -> 0 | K74: =SUMPRODUCT(($I69:K69))-SUMPRODUCT(($I69:K69)*($I$6:K$6<=(K$6-$E16))) -> 0 | L74: =SUMPRODUCT(($I69:L69))-SUMPRODUCT(($I69:L69)*($I$6:L$6<=(L$6-$E16))) -> 0 | M74: =SUMPRODUCT(($I69:M69))-SUMPRODUCT(($I69:M69)*($I$6:M$6<=(M$6-$E16))) -> 0 | N74: =SUMPRODUCT(($I69:N69))-SUMPRODUCT(($I69:N69)*($I$6:N$6<=(N$6-$E16))) -> 0 | O74: =SUMPRODUCT(($I69:O69))-SUMPRODUCT(($I69:O69)*($I$6:O$6<=(O$6-$E16))) -> 0 | P74: =SUMPRODUCT(($I69:P69))-SUMPRODUCT(($I69:P69)*($I$6:P$6<=(P$6-$E16))) -> 0 | Q74: =SUMPRODUCT(($I69:Q69))-SUMPRODUCT(($I69:Q69)*($I$6:Q$6<=(Q$6-$E16))) -> 0 | R74: =SUMPRODUCT(($I69:R69))-SUMPRODUCT(($I69:R69)*($I$6:R$6<=(R$6-$E16))) -> 0 | S74: =SUMPRODUCT(($I69:S69))-SUMPRODUCT(($I69:S69)*($I$6:S$6<=(S$6-$E16))) -> 0 | T74: =SUMPRODUCT(($I69:T69))-SUMPRODUCT(($I69:T69)*($I$6:T$6<=(T$6-$E16))) -> 0 | U74: =SUMPRODUCT(($I69:U69))-SUMPRODUCT(($I69:U69)*($I$6:U$6<=(U$6-$E16))) -> 0 | V74: =SUMPRODUCT(($I69:V69))-SUMPRODUCT(($I69:V69)*($I$6:V$6<=(V$6-$E16))) -> 0 | W74: =SUMPRODUCT(($I69:W69))-SUMPRODUCT(($I69:W69)*($I$6:W$6<=(W$6-$E16))) -> 0 | X74: =SUMPRODUCT(($I69:X69))-SUMPRODUCT(($I69:X69)*($I$6:X$6<=(X$6-$E16))) -> 0 | Y74: =SUMPRODUCT(($I69:Y69))-SUMPRODUCT(($I69:Y69)*($I$6:Y$6<=(Y$6-$E16))) -> 0 | Z74: =SUMPRODUCT(($I69:Z69))-SUMPRODUCT(($I69:Z69)*($I$6:Z$6<=(Z$6-$E16))) -> 0 | AA74: =SUMPRODUCT(($I69:AA69))-SUMPRODUCT(($I69:AA69)*($I$6:AA$6<=(AA$6-$E16))) -> 0 | AB74: =SUMPRODUCT(($I69:AB69))-SUMPRODUCT(($I69:AB69)*($I$6:AB$6<=(AB$6-$E16))) -> 0 | AC74: =SUMPRODUCT(($I69:AC69))-SUMPRODUCT(($I69:AC69)*($I$6:AC$6<=(AC$6-$E16))) -> 0 | AD74: =SUMPRODUCT(($I69:AD69))-SUMPRODUCT(($I69:AD69)*($I$6:AD$6<=(AD$6-$E16))) -> 0 | AE74: =SUMPRODUCT(($I69:AE69))-SUMPRODUCT(($I69:AE69)*($I$6:AE$6<=(AE$6-$E16))) -> 0 | AF74: =SUMPRODUCT(($I69:AF69))-SUMPRODUCT(($I69:AF69)*($I$6:AF$6<=(AF$6-$E16))) -> 0 | AG74: =SUMPRODUCT(($I69:AG69))-SUMPRODUCT(($I69:AG69)*($I$6:AG$6<=(AG$6-$E16))) -> 0
C76: Annualised capex
C77: =$C$76&" - "&C14 -> Annualised capex - Condition assessment of top 30 delta risk cable sections | G77: =input_dollars -> 2023-12-31 | I77: =IF($E14=0,0,-PMT(real_disc, $E14,H72,)) -> 0 | J77: -1035000 | K77: -1035000 | L77: -1035000 | M77: -1035000 | N77: -1035000 | O77: 0 | P77: 0 | Q77: 0 | R77: 0 | S77: 0 | T77: 0 | U77: 0 | V77: 0 | W77: 0 | X77: 0 | Y77: 0 | Z77: 0 | AA77: 0 | AB77: 0 | AC77: 0 | AD77: 0 | AE77: 0 | AF77: 0 | AG77: 0
C78: =$C$76&" - "&C15 -> Annualised capex - Replacement of poor condition cable sections | G78: =input_dollars -> 2023-12-31 | I78: =IF($E15=0,0,-PMT(real_disc, $E15,H73,)) -> 0 | J78: 0 | K78: -18549.89163 | L78: -37099.78327 | M78: -55649.6749 | N78: -74199.56653 | O78: -74199.56653 | P78: -74199.56653 | Q78: -74199.56653 | R78: -74199.56653 | S78: -74199.56653 | T78: -74199.56653 | U78: -74199.56653 | V78: -74199.56653 | W78: -74199.56653 | X78: -74199.56653 | Y78: -74199.56653 | Z78: -74199.56653 | AA78: -74199.56653 | AB78: -74199.56653 | AC78: -74199.56653 | AD78: -74199.56653 | AE78: -74199.56653 | AF78: -74199.56653 | AG78: -74199.56653
C79: =$C$76&" - "&C16 -> Annualised capex - | G79: =input_dollars -> 2023-12-31 | I79: =IF($E16=0,0,-PMT(real_disc, $E16,H74,)) -> 0 | J79: 0 | K79: 0 | L79: 0 | M79: 0 | N79: 0 | O79: 0 | P79: 0 | Q79: 0 | R79: 0 | S79: 0 | T79: 0 | U79: 0 | V79: 0 | W79: 0 | X79: 0 | Y79: 0 | Z79: 0 | AA79: 0 | AB79: 0 | AC79: 0 | AD79: 0 | AE79: 0 | AF79: 0 | AG79: 0
C80: Total annualised capex | G80: =input_dollars -> 2023-12-31 | I80: =SUM(I77:I79) -> 0 | J80: =SUM(J77:J79) -> -1035000 | K80: -1053549.892 | L80: -1072099.783 | M80: -1090649.675 | N80: -1109199.567 | O80: -74199.56653 | P80: -74199.56653 | Q80: -74199.56653 | R80: -74199.56653 | S80: -74199.56653 | T80: -74199.56653 | U80: -74199.56653 | V80: -74199.56653 | W80: -74199.56653 | X80: -74199.56653 | Y80: -74199.56653 | Z80: -74199.56653 | AA80: -74199.56653 | AB80: -74199.56653 | AC80: =SUM(AC77:AC79) -> -74199.56653 | AD80: =SUM(AD77:AD79) -> -74199.56653 | AE80: =SUM(AE77:AE79) -> -74199.56653 | AF80: =SUM(AF77:AF79) -> -74199.56653 | AG80: =SUM(AG77:AG79) -> -74199.56653
C82: Annualised capex | G82: =input_dollars -> 2023-12-31 | I82: =I80 -> 0 | J82: =J80 -> -1035000 | K82: -1053549.892 | L82: -1072099.783 | M82: -1090649.675 | N82: -1109199.567 | O82: -74199.56653 | P82: -74199.56653 | Q82: -74199.56653 | R82: -74199.56653 | S82: -74199.56653 | T82: -74199.56653 | U82: -74199.56653 | V82: -74199.56653 | W82: -74199.56653 | X82: -74199.56653 | Y82: -74199.56653 | Z82: -74199.56653 | AA82: -74199.56653 | AB82: -74199.56653 | AC82: =AC80 -> -74199.56653 | AD82: =AD80 -> -74199.56653 | AE82: =AE80 -> -74199.56653 | AF82: =AF80 -> -74199.56653 | AG82: =AG80 -> -74199.56653
C83: Operating expenditure | G83: 2023-12-31 | I83: =-I19 -> 0 | J83: 0 | K83: 0 | L83: 0 | M83: 0 | N83: 0 | O83: 0 | P83: 0 | Q83: 0 | R83: 0 | S83: 0 | T83: 0 | U83: 0 | V83: 0 | W83: 0 | X83: 0 | Y83: 0 | Z83: 0 | AA83: 0 | AB83: 0 | AC83: 0 | AD83: 0 | AE83: 0 | AF83: 0 | AG83: 0
C84: Risk mitigated | G84: 2023-12-31 | I84: =I64 -> 330892.185 | J84: =J64 -> 375815.7355 | K84: 427757.9421 | L84: 487941.5287 | M84: 557820.5983 | N84: 59869.0001 | O84: 69348.98589 | P84: 80134.10747 | Q84: 89028.55205 | R84: 95424.91503 | S84: 99453.64846 | T84: 103644.5574 | U84: 107966.9749 | V84: 112697.5832 | W84: 115133.2292 | X84: 116052.4211 | Y84: 116407.8686 | Z84: 116791.9205 | AA84: 117206.9219 | AB84: 117655.4128 | AC84: =AC64 -> 118140.1436 | AD84: =AD64 -> 118664.0935 | AE84: =AE64 -> 119230.4889 | AF84: =AF64 -> 119775.1245 | AG84: =AG64 -> 119775.1245
C85: Other benefits value | G85: 2023-12-31 | I85: =I57 -> 0 | J85: 0 | K85: 0 | L85: 0 | M85: 0 | N85: 0 | O85: 0 | P85: 0 | Q85: 0 | R85: 0 | S85: 0 | T85: 0 | U85: 0 | V85: 0 | W85: 0 | X85: 0 | Y85: 0 | Z85: 0 | AA85: 0 | AB85: 0 | AC85: 0 | AD85: 0 | AE85: 0 | AF85: 0 | AG85: 0
C87: Net benefits | G87: 2023-12-31 | I87: =SUM(I82:I86) -> 330892.185 | J87: -659184.2645 | K87: -625791.9496 | L87: -584158.2545 | M87: -532829.0766 | N87: -1049330.566 | O87: -4850.58064 | P87: 5934.540943 | Q87: 14828.98552 | R87: 21225.3485 | S87: 25254.08193 | T87: 29444.99087 | U87: 33767.40832 | V87: 38498.01667 | W87: 40933.66272 | X87: 41852.85458 | Y87: 42208.30211 | Z87: 42592.35396 | AA87: 43007.3554 | AB87: 43455.84625 | AC87: =SUM(AC82:AC86) -> 43940.5771 | AD87: =SUM(AD82:AD86) -> 44464.52696 | AE87: =SUM(AE82:AE86) -> 45030.92235 | AF87: =SUM(AF82:AF86) -> 45575.55793 | AG87: =SUM(AG82:AG86) -> 45575.55793
C90: First capex year | G90: =IF(SUM($I17:$AG17)=0,0,(INDEX(I$6:AG$6,MATCH(TRUE,INDEX($I17:$AG17<>0,),0)))) -> 1
C92: First year | G92: =IF(_xlfn.MINIFS($G$90:$G$91, $G$90:$G$91, ">"&0)=0, $A$4, _xlfn.MINIFS($G$90:$G$91, $G$90:$G$91, ">"&0)) -> 1
A102: SENSITIVITIES
A106: NPV | C106: Net benefits | G106: =PROPER($A$3)&A106 -> Option 4NPV | I106: =I87 -> 330892.185 | J106: =J87 -> -659184.2645 | K106: -625791.9496 | L106: -584158.2545 | M106: -532829.0766 | N106: -1049330.566 | O106: -4850.58064 | P106: 5934.540943 | Q106: 14828.98552 | R106: 21225.3485 | S106: 25254.08193 | T106: 29444.99087 | U106: 33767.40832 | V106: 38498.01667 | W106: 40933.66272 | X106: 41852.85458 | Y106: 42208.30211 | Z106: 42592.35396 | AA106: 43007.3554 | AB106: 43455.84625 | AC106: 43940.5771 | AD106: 44464.52696 | AE106: 45030.92235 | AF106: 45575.55793 | AG106: 45575.55793
C107: Total annualised capex | I107: =I82 -> 0 | J107: =J82 -> -1035000 | K107: -1053549.892 | L107: -1072099.783 | M107: -1090649.675 | N107: -1109199.567 | O107: -74199.56653 | P107: -74199.56653 | Q107: -74199.56653 | R107: -74199.56653 | S107: -74199.56653 | T107: -74199.56653 | U107: -74199.56653 | V107: -74199.56653 | W107: -74199.56653 | X107: -74199.56653 | Y107: -74199.56653 | Z107: -74199.56653 | AA107: -74199.56653 | AB107: -74199.56653 | AC107: -74199.56653 | AD107: -74199.56653 | AE107: -74199.56653 | AF107: -74199.56653 | AG107: -74199.56653
C108: Total benefits | I108: =SUM(I84:I85) -> 330892.185 | J108: =SUM(J84:J85) -> 375815.7355 | K108: 427757.9421 | L108: 487941.5287 | M108: 557820.5983 | N108: 59869.0001 | O108: 69348.98589 | P108: 80134.10747 | Q108: 89028.55205 | R108: 95424.91503 | S108: 99453.64846 | T108: 103644.5574 | U108: 107966.9749 | V108: 112697.5832 | W108: 115133.2292 | X108: 116052.4211 | Y108: 116407.8686 | Z108: 116791.9205 | AA108: 117206.9219 | AB108: 117655.4128 | AC108: 118140.1436 | AD108: 118664.0935 | AE108: 119230.4889 | AF108: 119775.1245 | AG108: 119775.1245
D109: =Assumptions!G110 -> Capex | E109: =Assumptions!H110 -> Total benefits
A110: ="sens"&Assumptions!B111 -> sens1 | C110: =Assumptions!C111 -> Capex 10% higher | D110: =Assumptions!G111 -> 0.1 | E110: =Assumptions!H111 -> 0 | G110: =PROPER($A$3)&A110 -> Option 4sens1 | I110: =I$106+IF($C110<>0,SUMPRODUCT((I$107:I$108)*TRANSPOSE(($D110:$E110))),0) -> 330892.185 | J110: =J$106+IF($C110<>0,SUMPRODUCT((J$107:J$108)*TRANSPOSE(($D110:$E110))),0) -> -762684.2645 | K110: =K$106+IF($C110<>0,SUMPRODUCT((K$107:K$108)*TRANSPOSE(($D110:$E110))),0) -> -731146.9387 | L110: =L$106+IF($C110<>0,SUMPRODUCT((L$107:L$108)*TRANSPOSE(($D110:$E110))),0) -> -691368.2329 | M110: =M$106+IF($C110<>0,SUMPRODUCT((M$107:M$108)*TRANSPOSE(($D110:$E110))),0) -> -641894.0441 | N110: =N$106+IF($C110<>0,SUMPRODUCT((N$107:N$108)*TRANSPOSE(($D110:$E110))),0) -> -1160250.523 | O110: =O$106+IF($C110<>0,SUMPRODUCT((O$107:O$108)*TRANSPOSE(($D110:$E110))),0) -> -12270.53729 | P110: =P$106+IF($C110<>0,SUMPRODUCT((P$107:P$108)*TRANSPOSE(($D110:$E110))),0) -> -1485.41571 | Q110: =Q$106+IF($C110<>0,SUMPRODUCT((Q$107:Q$108)*TRANSPOSE(($D110:$E110))),0) -> 7409.028865 | R110: =R$106+IF($C110<>0,SUMPRODUCT((R$107:R$108)*TRANSPOSE(($D110:$E110))),0) -> 13805.39185 | S110: =S$106+IF($C110<>0,SUMPRODUCT((S$107:S$108)*TRANSPOSE(($D110:$E110))),0) -> 17834.12528 | T110: =T$106+IF($C110<>0,SUMPRODUCT((T$107:T$108)*TRANSPOSE(($D110:$E110))),0) -> 22025.03422 | U110: =U$106+IF($C110<>0,SUMPRODUCT((U$107:U$108)*TRANSPOSE(($D110:$E110))),0) -> 26347.45167 | V110: =V$106+IF($C110<>0,SUMPRODUCT((V$107:V$108)*TRANSPOSE(($D110:$E110))),0) -> 31078.06002 | W110: =W$106+IF($C110<>0,SUMPRODUCT((W$107:W$108)*TRANSPOSE(($D110:$E110))),0) -> 33513.70606 | X110: =X$106+IF($C110<>0,SUMPRODUCT((X$107:X$108)*TRANSPOSE(($D110:$E110))),0) -> 34432.89792 | Y110: =Y$106+IF($C110<>0,SUMPRODUCT((Y$107:Y$108)*TRANSPOSE(($D110:$E110))),0) -> 34788.34545 | Z110: =Z$106+IF($C110<>0,SUMPRODUCT((Z$107:Z$108)*TRANSPOSE(($D110:$E110))),0) -> 35172.3973 | AA110: =AA$106+IF($C110<>0,SUMPRODUCT((AA$107:AA$108)*TRANSPOSE(($D110:$E110))),0) -> 35587.39875 | AB110: =AB$106+IF($C110<>0,SUMPRODUCT((AB$107:AB$108)*TRANSPOSE(($D110:$E110))),0) -> 36035.8896 | AC110: =AC$106+IF($C110<>0,SUMPRODUCT((AC$107:AC$108)*TRANSPOSE(($D110:$E110))),0) -> 36520.62045 | AD110: =AD$106+IF($C110<>0,SUMPRODUCT((AD$107:AD$108)*TRANSPOSE(($D110:$E110))),0) -> 37044.57031 | AE110: =AE$106+IF($C110<>0,SUMPRODUCT((AE$107:AE$108)*TRANSPOSE(($D110:$E110))),0) -> 37610.9657 | AF110: =AF$106+IF($C110<>0,SUMPRODUCT((AF$107:AF$108)*TRANSPOSE(($D110:$E110))),0) -> 38155.60127 | AG110: =AG$106+IF($C110<>0,SUMPRODUCT((AG$107:AG$108)*TRANSPOSE(($D110:$E110))),0) -> 38155.60127
A111: ="sens"&Assumptions!B112 -> sens2 | C111: =Assumptions!C112 -> Capex 10% lower | D111: =Assumptions!G112 -> -0.1 | E111: =Assumptions!H112 -> 0 | G111: =PROPER($A$3)&A111 -> Option 4sens2 | I111: =I$106+IF($C111<>0,SUMPRODUCT((I$107:I$108)*TRANSPOSE(($D111:$E111))),0) -> 330892.185 | J111: =J$106+IF($C111<>0,SUMPRODUCT((J$107:J$108)*TRANSPOSE(($D111:$E111))),0) -> -555684.2645 | K111: =K$106+IF($C111<>0,SUMPRODUCT((K$107:K$108)*TRANSPOSE(($D111:$E111))),0) -> -520436.9604 | L111: =L$106+IF($C111<>0,SUMPRODUCT((L$107:L$108)*TRANSPOSE(($D111:$E111))),0) -> -476948.2762 | M111: =M$106+IF($C111<>0,SUMPRODUCT((M$107:M$108)*TRANSPOSE(($D111:$E111))),0) -> -423764.1091 | N111: =N$106+IF($C111<>0,SUMPRODUCT((N$107:N$108)*TRANSPOSE(($D111:$E111))),0) -> -938410.6098 | O111: =O$106+IF($C111<>0,SUMPRODUCT((O$107:O$108)*TRANSPOSE(($D111:$E111))),0) -> 2569.376013 | P111: =P$106+IF($C111<>0,SUMPRODUCT((P$107:P$108)*TRANSPOSE(($D111:$E111))),0) -> 13354.4976 | Q111: =Q$106+IF($C111<>0,SUMPRODUCT((Q$107:Q$108)*TRANSPOSE(($D111:$E111))),0) -> 22248.94217 | R111: =R$106+IF($C111<>0,SUMPRODUCT((R$107:R$108)*TRANSPOSE(($D111:$E111))),0) -> 28645.30515 | S111: =S$106+IF($C111<>0,SUMPRODUCT((S$107:S$108)*TRANSPOSE(($D111:$E111))),0) -> 32674.03859 | T111: =T$106+IF($C111<>0,SUMPRODUCT((T$107:T$108)*TRANSPOSE(($D111:$E111))),0) -> 36864.94752 | U111: =U$106+IF($C111<>0,SUMPRODUCT((U$107:U$108)*TRANSPOSE(($D111:$E111))),0) -> 41187.36497 | V111: =V$106+IF($C111<>0,SUMPRODUCT((V$107:V$108)*TRANSPOSE(($D111:$E111))),0) -> 45917.97333 | W111: =W$106+IF($C111<>0,SUMPRODUCT((W$107:W$108)*TRANSPOSE(($D111:$E111))),0) -> 48353.61937 | X111: =X$106+IF($C111<>0,SUMPRODUCT((X$107:X$108)*TRANSPOSE(($D111:$E111))),0) -> 49272.81123 | Y111: =Y$106+IF($C111<>0,SUMPRODUCT((Y$107:Y$108)*TRANSPOSE(($D111:$E111))),0) -> 49628.25876 | Z111: =Z$106+IF($C111<>0,SUMPRODUCT((Z$107:Z$108)*TRANSPOSE(($D111:$E111))),0) -> 50012.31061 | AA111: =AA$106+IF($C111<>0,SUMPRODUCT((AA$107:AA$108)*TRANSPOSE(($D111:$E111))),0) -> 50427.31205 | AB111: =AB$106+IF($C111<>0,SUMPRODUCT((AB$107:AB$108)*TRANSPOSE(($D111:$E111))),0) -> 50875.8029 | AC111: =AC$106+IF($C111<>0,SUMPRODUCT((AC$107:AC$108)*TRANSPOSE(($D111:$E111))),0) -> 51360.53375 | AD111: =AD$106+IF($C111<>0,SUMPRODUCT((AD$107:AD$108)*TRANSPOSE(($D111:$E111))),0) -> 51884.48361 | AE111: =AE$106+IF($C111<>0,SUMPRODUCT((AE$107:AE$108)*TRANSPOSE(($D111:$E111))),0) -> 52450.87901 | AF111: =AF$106+IF($C111<>0,SUMPRODUCT((AF$107:AF$108)*TRANSPOSE(($D111:$E111))),0) -> 52995.51458 | AG111: =AG$106+IF($C111<>0,SUMPRODUCT((AG$107:AG$108)*TRANSPOSE(($D111:$E111))),0) -> 52995.51458
A112: ="sens"&Assumptions!B113 -> sens3 | C112: =Assumptions!C113 -> Total benefits 10% higher | D112: =Assumptions!G113 -> 0 | E112: =Assumptions!H113 -> 0.1 | G112: Option 4sens3 | I112: =I$106+IF($C112<>0,SUMPRODUCT((I$107:I$108)*TRANSPOSE(($D112:$E112))),0) -> 363981.4035 | J112: =J$106+IF($C112<>0,SUMPRODUCT((J$107:J$108)*TRANSPOSE(($D112:$E112))),0) -> -621602.691 | K112: =K$106+IF($C112<>0,SUMPRODUCT((K$107:K$108)*TRANSPOSE(($D112:$E112))),0) -> -583016.1553 | L112: =L$106+IF($C112<>0,SUMPRODUCT((L$107:L$108)*TRANSPOSE(($D112:$E112))),0) -> -535364.1017 | M112: =M$106+IF($C112<>0,SUMPRODUCT((M$107:M$108)*TRANSPOSE(($D112:$E112))),0) -> -477047.0167 | N112: =N$106+IF($C112<>0,SUMPRODUCT((N$107:N$108)*TRANSPOSE(($D112:$E112))),0) -> -1043343.666 | O112: =O$106+IF($C112<>0,SUMPRODUCT((O$107:O$108)*TRANSPOSE(($D112:$E112))),0) -> 2084.317949 | P112: =P$106+IF($C112<>0,SUMPRODUCT((P$107:P$108)*TRANSPOSE(($D112:$E112))),0) -> 13947.95169 | Q112: =Q$106+IF($C112<>0,SUMPRODUCT((Q$107:Q$108)*TRANSPOSE(($D112:$E112))),0) -> 23731.84072 | R112: =R$106+IF($C112<>0,SUMPRODUCT((R$107:R$108)*TRANSPOSE(($D112:$E112))),0) -> 30767.84 | S112: =S$106+IF($C112<>0,SUMPRODUCT((S$107:S$108)*TRANSPOSE(($D112:$E112))),0) -> 35199.44678 | T112: =T$106+IF($C112<>0,SUMPRODUCT((T$107:T$108)*TRANSPOSE(($D112:$E112))),0) -> 39809.44661 | U112: =U$106+IF($C112<>0,SUMPRODUCT((U$107:U$108)*TRANSPOSE(($D112:$E112))),0) -> 44564.10581 | V112: =V$106+IF($C112<>0,SUMPRODUCT((V$107:V$108)*TRANSPOSE(($D112:$E112))),0) -> 49767.77499 | W112: =W$106+IF($C112<>0,SUMPRODUCT((W$107:W$108)*TRANSPOSE(($D112:$E112))),0) -> 52446.98564 | X112: =X$106+IF($C112<>0,SUMPRODUCT((X$107:X$108)*TRANSPOSE(($D112:$E112))),0) -> 53458.09669 | Y112: =Y$106+IF($C112<>0,SUMPRODUCT((Y$107:Y$108)*TRANSPOSE(($D112:$E112))),0) -> 53849.08897 | Z112: =Z$106+IF($C112<>0,SUMPRODUCT((Z$107:Z$108)*TRANSPOSE(($D112:$E112))),0) -> 54271.546 | AA112: =AA$106+IF($C112<>0,SUMPRODUCT((AA$107:AA$108)*TRANSPOSE(($D112:$E112))),0) -> 54728.04759 | AB112: =AB$106+IF($C112<>0,SUMPRODUCT((AB$107:AB$108)*TRANSPOSE(($D112:$E112))),0) -> 55221.38753 | AC112: =AC$106+IF($C112<>0,SUMPRODUCT((AC$107:AC$108)*TRANSPOSE(($D112:$E112))),0) -> 55754.59146 | AD112: =AD$106+IF($C112<>0,SUMPRODUCT((AD$107:AD$108)*TRANSPOSE(($D112:$E112))),0) -> 56330.93631 | AE112: =AE$106+IF($C112<>0,SUMPRODUCT((AE$107:AE$108)*TRANSPOSE(($D112:$E112))),0) -> 56953.97124 | AF112: =AF$106+IF($C112<>0,SUMPRODUCT((AF$107:AF$108)*TRANSPOSE(($D112:$E112))),0) -> 57553.07037 | AG112: =AG$106+IF($C112<>0,SUMPRODUCT((AG$107:AG$108)*TRANSPOSE(($D112:$E112))),0) -> 57553.07037
A113: ="sens"&Assumptions!B114 -> sens4 | C113: =Assumptions!C114 -> Total benefits 10% lower | D113: =Assumptions!G114 -> 0 | E113: =Assumptions!H114 -> -0.1 | G113: Option 4sens4 | I113: =I$106+IF($C113<>0,SUMPRODUCT((I$107:I$108)*TRANSPOSE(($D113:$E113))),0) -> 297802.9665 | J113: =J$106+IF($C113<>0,SUMPRODUCT((J$107:J$108)*TRANSPOSE(($D113:$E113))),0) -> -696765.8381 | K113: =K$106+IF($C113<>0,SUMPRODUCT((K$107:K$108)*TRANSPOSE(($D113:$E113))),0) -> -668567.7438 | L113: =L$106+IF($C113<>0,SUMPRODUCT((L$107:L$108)*TRANSPOSE(($D113:$E113))),0) -> -632952.4074 | M113: =M$106+IF($C113<>0,SUMPRODUCT((M$107:M$108)*TRANSPOSE(($D113:$E113))),0) -> -588611.1364 | N113: =N$106+IF($C113<>0,SUMPRODUCT((N$107:N$108)*TRANSPOSE(($D113:$E113))),0) -> -1055317.466 | O113: =O$106+IF($C113<>0,SUMPRODUCT((O$107:O$108)*TRANSPOSE(($D113:$E113))),0) -> -11785.47923 | P113: =P$106+IF($C113<>0,SUMPRODUCT((P$107:P$108)*TRANSPOSE(($D113:$E113))),0) -> -2078.869804 | Q113: =Q$106+IF($C113<>0,SUMPRODUCT((Q$107:Q$108)*TRANSPOSE(($D113:$E113))),0) -> 5926.130314 | R113: =R$106+IF($C113<>0,SUMPRODUCT((R$107:R$108)*TRANSPOSE(($D113:$E113))),0) -> 11682.857 | S113: =S$106+IF($C113<>0,SUMPRODUCT((S$107:S$108)*TRANSPOSE(($D113:$E113))),0) -> 15308.71709 | T113: =T$106+IF($C113<>0,SUMPRODUCT((T$107:T$108)*TRANSPOSE(($D113:$E113))),0) -> 19080.53513 | U113: =U$106+IF($C113<>0,SUMPRODUCT((U$107:U$108)*TRANSPOSE(($D113:$E113))),0) -> 22970.71084 | V113: =V$106+IF($C113<>0,SUMPRODUCT((V$107:V$108)*TRANSPOSE(($D113:$E113))),0) -> 27228.25835 | W113: =W$106+IF($C113<>0,SUMPRODUCT((W$107:W$108)*TRANSPOSE(($D113:$E113))),0) -> 29420.33979 | X113: =X$106+IF($C113<>0,SUMPRODUCT((X$107:X$108)*TRANSPOSE(($D113:$E113))),0) -> 30247.61247 | Y113: =Y$106+IF($C113<>0,SUMPRODUCT((Y$107:Y$108)*TRANSPOSE(($D113:$E113))),0) -> 30567.51524 | Z113: =Z$106+IF($C113<>0,SUMPRODUCT((Z$107:Z$108)*TRANSPOSE(($D113:$E113))),0) -> 30913.16191 | AA113: =AA$106+IF($C113<>0,SUMPRODUCT((AA$107:AA$108)*TRANSPOSE(($D113:$E113))),0) -> 31286.66321 | AB113: =AB$106+IF($C113<>0,SUMPRODUCT((AB$107:AB$108)*TRANSPOSE(($D113:$E113))),0) -> 31690.30497 | AC113: =AC$106+IF($C113<>0,SUMPRODUCT((AC$107:AC$108)*TRANSPOSE(($D113:$E113))),0) -> 32126.56274 | AD113: =AD$106+IF($C113<>0,SUMPRODUCT((AD$107:AD$108)*TRANSPOSE(($D113:$E113))),0) -> 32598.11761 | AE113: =AE$106+IF($C113<>0,SUMPRODUCT((AE$107:AE$108)*TRANSPOSE(($D113:$E113))),0) -> 33107.87347 | AF113: =AF$106+IF($C113<>0,SUMPRODUCT((AF$107:AF$108)*TRANSPOSE(($D113:$E113))),0) -> 33598.04548 | AG113: =AG$106+IF($C113<>0,SUMPRODUCT((AG$107:AG$108)*TRANSPOSE(($D113:$E113))),0) -> 33598.04548
A114: ="sens"&Assumptions!B115 -> sens5 | C114: =Assumptions!C115 -> Capex 10% higher & total benefits 10% lower | D114: =Assumptions!G115 -> 0.1 | E114: =Assumptions!H115 -> -0.1 | G114: Option 4sens5 | I114: =I$106+IF($C114<>0,SUMPRODUCT((I$107:I$108)*TRANSPOSE(($D114:$E114))),0) -> 297802.9665 | J114: =J$106+IF($C114<>0,SUMPRODUCT((J$107:J$108)*TRANSPOSE(($D114:$E114))),0) -> -800265.8381 | K114: =K$106+IF($C114<>0,SUMPRODUCT((K$107:K$108)*TRANSPOSE(($D114:$E114))),0) -> -773922.7329 | L114: =L$106+IF($C114<>0,SUMPRODUCT((L$107:L$108)*TRANSPOSE(($D114:$E114))),0) -> -740162.3857 | M114: =M$106+IF($C114<>0,SUMPRODUCT((M$107:M$108)*TRANSPOSE(($D114:$E114))),0) -> -697676.1039 | N114: =N$106+IF($C114<>0,SUMPRODUCT((N$107:N$108)*TRANSPOSE(($D114:$E114))),0) -> -1166237.423 | O114: =O$106+IF($C114<>0,SUMPRODUCT((O$107:O$108)*TRANSPOSE(($D114:$E114))),0) -> -19205.43588 | P114: =P$106+IF($C114<>0,SUMPRODUCT((P$107:P$108)*TRANSPOSE(($D114:$E114))),0) -> -9498.826457 | Q114: =Q$106+IF($C114<>0,SUMPRODUCT((Q$107:Q$108)*TRANSPOSE(($D114:$E114))),0) -> -1493.826339 | R114: =R$106+IF($C114<>0,SUMPRODUCT((R$107:R$108)*TRANSPOSE(($D114:$E114))),0) -> 4262.900343 | S114: =S$106+IF($C114<>0,SUMPRODUCT((S$107:S$108)*TRANSPOSE(($D114:$E114))),0) -> 7888.760435 | T114: =T$106+IF($C114<>0,SUMPRODUCT((T$107:T$108)*TRANSPOSE(($D114:$E114))),0) -> 11660.57848 | U114: =U$106+IF($C114<>0,SUMPRODUCT((U$107:U$108)*TRANSPOSE(($D114:$E114))),0) -> 15550.75418 | V114: =V$106+IF($C114<>0,SUMPRODUCT((V$107:V$108)*TRANSPOSE(($D114:$E114))),0) -> 19808.3017 | W114: =W$106+IF($C114<>0,SUMPRODUCT((W$107:W$108)*TRANSPOSE(($D114:$E114))),0) -> 22000.38314 | X114: =X$106+IF($C114<>0,SUMPRODUCT((X$107:X$108)*TRANSPOSE(($D114:$E114))),0) -> 22827.65581 | Y114: =Y$106+IF($C114<>0,SUMPRODUCT((Y$107:Y$108)*TRANSPOSE(($D114:$E114))),0) -> 23147.55859 | Z114: =Z$106+IF($C114<>0,SUMPRODUCT((Z$107:Z$108)*TRANSPOSE(($D114:$E114))),0) -> 23493.20525 | AA114: =AA$106+IF($C114<>0,SUMPRODUCT((AA$107:AA$108)*TRANSPOSE(($D114:$E114))),0) -> 23866.70655 | AB114: =AB$106+IF($C114<>0,SUMPRODUCT((AB$107:AB$108)*TRANSPOSE(($D114:$E114))),0) -> 24270.34832 | AC114: =AC$106+IF($C114<>0,SUMPRODUCT((AC$107:AC$108)*TRANSPOSE(($D114:$E114))),0) -> 24706.60608 | AD114: =AD$106+IF($C114<>0,SUMPRODUCT((AD$107:AD$108)*TRANSPOSE(($D114:$E114))),0) -> 25178.16096 | AE114: =AE$106+IF($C114<>0,SUMPRODUCT((AE$107:AE$108)*TRANSPOSE(($D114:$E114))),0) -> 25687.91681 | AF114: =AF$106+IF($C114<>0,SUMPRODUCT((AF$107:AF$108)*TRANSPOSE(($D114:$E114))),0) -> 26178.08883 | AG114: =AG$106+IF($C114<>0,SUMPRODUCT((AG$107:AG$108)*TRANSPOSE(($D114:$E114))),0) -> 26178.08883
A115: ="sens"&Assumptions!B116 -> sens | C115: =Assumptions!C116 -> 0 | D115: =Assumptions!G116 -> 0 | E115: =Assumptions!H116 -> 0 | G115: Option 4sens | I115: =I$106+IF($C115<>0,SUMPRODUCT((I$107:I$108)*TRANSPOSE(($D115:$E115))),0) -> 330892.185 | J115: =J$106+IF($C115<>0,SUMPRODUCT((J$107:J$108)*TRANSPOSE(($D115:$E115))),0) -> -659184.2645 | K115: =K$106+IF($C115<>0,SUMPRODUCT((K$107:K$108)*TRANSPOSE(($D115:$E115))),0) -> -625791.9496 | L115: =L$106+IF($C115<>0,SUMPRODUCT((L$107:L$108)*TRANSPOSE(($D115:$E115))),0) -> -584158.2545 | M115: =M$106+IF($C115<>0,SUMPRODUCT((M$107:M$108)*TRANSPOSE(($D115:$E115))),0) -> -532829.0766 | N115: =N$106+IF($C115<>0,SUMPRODUCT((N$107:N$108)*TRANSPOSE(($D115:$E115))),0) -> -1049330.566 | O115: =O$106+IF($C115<>0,SUMPRODUCT((O$107:O$108)*TRANSPOSE(($D115:$E115))),0) -> -4850.58064 | P115: =P$106+IF($C115<>0,SUMPRODUCT((P$107:P$108)*TRANSPOSE(($D115:$E115))),0) -> 5934.540943 | Q115: =Q$106+IF($C115<>0,SUMPRODUCT((Q$107:Q$108)*TRANSPOSE(($D115:$E115))),0) -> 14828.98552 | R115: =R$106+IF($C115<>0,SUMPRODUCT((R$107:R$108)*TRANSPOSE(($D115:$E115))),0) -> 21225.3485 | S115: =S$106+IF($C115<>0,SUMPRODUCT((S$107:S$108)*TRANSPOSE(($D115:$E115))),0) -> 25254.08193 | T115: =T$106+IF($C115<>0,SUMPRODUCT((T$107:T$108)*TRANSPOSE(($D115:$E115))),0) -> 29444.99087 | U115: =U$106+IF($C115<>0,SUMPRODUCT((U$107:U$108)*TRANSPOSE(($D115:$E115))),0) -> 33767.40832 | V115: =V$106+IF($C115<>0,SUMPRODUCT((V$107:V$108)*TRANSPOSE(($D115:$E115))),0) -> 38498.01667 | W115: =W$106+IF($C115<>0,SUMPRODUCT((W$107:W$108)*TRANSPOSE(($D115:$E115))),0) -> 40933.66272 | X115: =X$106+IF($C115<>0,SUMPRODUCT((X$107:X$108)*TRANSPOSE(($D115:$E115))),0) -> 41852.85458 | Y115: =Y$106+IF($C115<>0,SUMPRODUCT((Y$107:Y$108)*TRANSPOSE(($D115:$E115))),0) -> 42208.30211 | Z115: =Z$106+IF($C115<>0,SUMPRODUCT((Z$107:Z$108)*TRANSPOSE(($D115:$E115))),0) -> 42592.35396 | AA115: =AA$106+IF($C115<>0,SUMPRODUCT((AA$107:AA$108)*TRANSPOSE(($D115:$E115))),0) -> 43007.3554 | AB115: =AB$106+IF($C115<>0,SUMPRODUCT((AB$107:AB$108)*TRANSPOSE(($D115:$E115))),0) -> 43455.84625 | AC115: =AC$106+IF($C115<>0,SUMPRODUCT((AC$107:AC$108)*TRANSPOSE(($D115:$E115))),0) -> 43940.5771 | AD115: =AD$106+IF($C115<>0,SUMPRODUCT((AD$107:AD$108)*TRANSPOSE(($D115:$E115))),0) -> 44464.52696 | AE115: =AE$106+IF($C115<>0,SUMPRODUCT((AE$107:AE$108)*TRANSPOSE(($D115:$E115))),0) -> 45030.92235 | AF115: =AF$106+IF($C115<>0,SUMPRODUCT((AF$107:AF$108)*TRANSPOSE(($D115:$E115))),0) -> 45575.55793 | AG115: =AG$106+IF($C115<>0,SUMPRODUCT((AG$107:AG$108)*TRANSPOSE(($D115:$E115))),0) -> 45575.55793
A116: ="sens"&Assumptions!B117 -> sens | C116: =Assumptions!C117 -> 0 | D116: =Assumptions!G117 -> 0 | E116: =Assumptions!H117 -> 0 | G116: Option 4sens | I116: =I$106+IF($C116<>0,SUMPRODUCT((I$107:I$108)*TRANSPOSE(($D116:$E116))),0) -> 330892.185 | J116: =J$106+IF($C116<>0,SUMPRODUCT((J$107:J$108)*TRANSPOSE(($D116:$E116))),0) -> -659184.2645 | K116: =K$106+IF($C116<>0,SUMPRODUCT((K$107:K$108)*TRANSPOSE(($D116:$E116))),0) -> -625791.9496 | L116: =L$106+IF($C116<>0,SUMPRODUCT((L$107:L$108)*TRANSPOSE(($D116:$E116))),0) -> -584158.2545 | M116: =M$106+IF($C116<>0,SUMPRODUCT((M$107:M$108)*TRANSPOSE(($D116:$E116))),0) -> -532829.0766 | N116: =N$106+IF($C116<>0,SUMPRODUCT((N$107:N$108)*TRANSPOSE(($D116:$E116))),0) -> -1049330.566 | O116: =O$106+IF($C116<>0,SUMPRODUCT((O$107:O$108)*TRANSPOSE(($D116:$E116))),0) -> -4850.58064 | P116: =P$106+IF($C116<>0,SUMPRODUCT((P$107:P$108)*TRANSPOSE(($D116:$E116))),0) -> 5934.540943 | Q116: =Q$106+IF($C116<>0,SUMPRODUCT((Q$107:Q$108)*TRANSPOSE(($D116:$E116))),0) -> 14828.98552 | R116: =R$106+IF($C116<>0,SUMPRODUCT((R$107:R$108)*TRANSPOSE(($D116:$E116))),0) -> 21225.3485 | S116: =S$106+IF($C116<>0,SUMPRODUCT((S$107:S$108)*TRANSPOSE(($D116:$E116))),0) -> 25254.08193 | T116: =T$106+IF($C116<>0,SUMPRODUCT((T$107:T$108)*TRANSPOSE(($D116:$E116))),0) -> 29444.99087 | U116: =U$106+IF($C116<>0,SUMPRODUCT((U$107:U$108)*TRANSPOSE(($D116:$E116))),0) -> 33767.40832 | V116: =V$106+IF($C116<>0,SUMPRODUCT((V$107:V$108)*TRANSPOSE(($D116:$E116))),0) -> 38498.01667 | W116: =W$106+IF($C116<>0,SUMPRODUCT((W$107:W$108)*TRANSPOSE(($D116:$E116))),0) -> 40933.66272 | X116: =X$106+IF($C116<>0,SUMPRODUCT((X$107:X$108)*TRANSPOSE(($D116:$E116))),0) -> 41852.85458 | Y116: =Y$106+IF($C116<>0,SUMPRODUCT((Y$107:Y$108)*TRANSPOSE(($D116:$E116))),0) -> 42208.30211 | Z116: =Z$106+IF($C116<>0,SUMPRODUCT((Z$107:Z$108)*TRANSPOSE(($D116:$E116))),0) -> 42592.35396 | AA116: =AA$106+IF($C116<>0,SUMPRODUCT((AA$107:AA$108)*TRANSPOSE(($D116:$E116))),0) -> 43007.3554 | AB116: =AB$106+IF($C116<>0,SUMPRODUCT((AB$107:AB$108)*TRANSPOSE(($D116:$E116))),0) -> 43455.84625 | AC116: =AC$106+IF($C116<>0,SUMPRODUCT((AC$107:AC$108)*TRANSPOSE(($D116:$E116))),0) -> 43940.5771 | AD116: =AD$106+IF($C116<>0,SUMPRODUCT((AD$107:AD$108)*TRANSPOSE(($D116:$E116))),0) -> 44464.52696 | AE116: =AE$106+IF($C116<>0,SUMPRODUCT((AE$107:AE$108)*TRANSPOSE(($D116:$E116))),0) -> 45030.92235 | AF116: =AF$106+IF($C116<>0,SUMPRODUCT((AF$107:AF$108)*TRANSPOSE(($D116:$E116))),0) -> 45575.55793 | AG116: =AG$106+IF($C116<>0,SUMPRODUCT((AG$107:AG$108)*TRANSPOSE(($D116:$E116))),0) -> 45575.55793
A117: ="sens"&Assumptions!B118 -> sens | C117: =Assumptions!C118 -> 0 | D117: =Assumptions!G118 -> 0 | E117: =Assumptions!H118 -> 0 | G117: Option 4sens | I117: =I$106+IF($C117<>0,SUMPRODUCT((I$107:I$108)*TRANSPOSE(($D117:$E117))),0) -> 330892.185 | J117: =J$106+IF($C117<>0,SUMPRODUCT((J$107:J$108)*TRANSPOSE(($D117:$E117))),0) -> -659184.2645 | K117: =K$106+IF($C117<>0,SUMPRODUCT((K$107:K$108)*TRANSPOSE(($D117:$E117))),0) -> -625791.9496 | L117: =L$106+IF($C117<>0,SUMPRODUCT((L$107:L$108)*TRANSPOSE(($D117:$E117))),0) -> -584158.2545 | M117: =M$106+IF($C117<>0,SUMPRODUCT((M$107:M$108)*TRANSPOSE(($D117:$E117))),0) -> -532829.0766 | N117: =N$106+IF($C117<>0,SUMPRODUCT((N$107:N$108)*TRANSPOSE(($D117:$E117))),0) -> -1049330.566 | O117: =O$106+IF($C117<>0,SUMPRODUCT((O$107:O$108)*TRANSPOSE(($D117:$E117))),0) -> -4850.58064 | P117: =P$106+IF($C117<>0,SUMPRODUCT((P$107:P$108)*TRANSPOSE(($D117:$E117))),0) -> 5934.540943 | Q117: =Q$106+IF($C117<>0,SUMPRODUCT((Q$107:Q$108)*TRANSPOSE(($D117:$E117))),0) -> 14828.98552 | R117: =R$106+IF($C117<>0,SUMPRODUCT((R$107:R$108)*TRANSPOSE(($D117:$E117))),0) -> 21225.3485 | S117: =S$106+IF($C117<>0,SUMPRODUCT((S$107:S$108)*TRANSPOSE(($D117:$E117))),0) -> 25254.08193 | T117: =T$106+IF($C117<>0,SUMPRODUCT((T$107:T$108)*TRANSPOSE(($D117:$E117))),0) -> 29444.99087 | U117: =U$106+IF($C117<>0,SUMPRODUCT((U$107:U$108)*TRANSPOSE(($D117:$E117))),0) -> 33767.40832 | V117: =V$106+IF($C117<>0,SUMPRODUCT((V$107:V$108)*TRANSPOSE(($D117:$E117))),0) -> 38498.01667 | W117: =W$106+IF($C117<>0,SUMPRODUCT((W$107:W$108)*TRANSPOSE(($D117:$E117))),0) -> 40933.66272 | X117: =X$106+IF($C117<>0,SUMPRODUCT((X$107:X$108)*TRANSPOSE(($D117:$E117))),0) -> 41852.85458 | Y117: =Y$106+IF($C117<>0,SUMPRODUCT((Y$107:Y$108)*TRANSPOSE(($D117:$E117))),0) -> 42208.30211 | Z117: =Z$106+IF($C117<>0,SUMPRODUCT((Z$107:Z$108)*TRANSPOSE(($D117:$E117))),0) -> 42592.35396 | AA117: =AA$106+IF($C117<>0,SUMPRODUCT((AA$107:AA$108)*TRANSPOSE(($D117:$E117))),0) -> 43007.3554 | AB117: =AB$106+IF($C117<>0,SUMPRODUCT((AB$107:AB$108)*TRANSPOSE(($D117:$E117))),0) -> 43455.84625 | AC117: =AC$106+IF($C117<>0,SUMPRODUCT((AC$107:AC$108)*TRANSPOSE(($D117:$E117))),0) -> 43940.5771 | AD117: =AD$106+IF($C117<>0,SUMPRODUCT((AD$107:AD$108)*TRANSPOSE(($D117:$E117))),0) -> 44464.52696 | AE117: =AE$106+IF($C117<>0,SUMPRODUCT((AE$107:AE$108)*TRANSPOSE(($D117:$E117))),0) -> 45030.92235 | AF117: =AF$106+IF($C117<>0,SUMPRODUCT((AF$107:AF$108)*TRANSPOSE(($D117:$E117))),0) -> 45575.55793 | AG117: =AG$106+IF($C117<>0,SUMPRODUCT((AG$107:AG$108)*TRANSPOSE(($D117:$E117))),0) -> 45575.55793

Sheet Option5
A1: =bus -> CitiPower
A2: =proj -> HV cable replacement
A3: OPTION 5 | C3: =INDEX(Assumptions!$E$14:$E$18, MATCH(A3,_xlfn.ANCHORARRAY( Assumptions!$C$14),0)) -> Replace highest 5 delta risk cable sections and monitor further 10
A4: =(INDEX(Data!$D$9:$D$13, MATCH(A3, options,0))) -> 
A6: ='Option1 (base case)'!A6 -> Count | I6: ='Option1 (base case)'!I6 -> 1 | J6: ='Option1 (base case)'!J6 -> 2 | K6: ='Option1 (base case)'!K6 -> 3 | L6: ='Option1 (base case)'!L6 -> 4 | M6: ='Option1 (base case)'!M6 -> 5 | N6: ='Option1 (base case)'!N6 -> 6 | O6: ='Option1 (base case)'!O6 -> 7 | P6: ='Option1 (base case)'!P6 -> 8 | Q6: ='Option1 (base case)'!Q6 -> 9 | R6: ='Option1 (base case)'!R6 -> 10 | S6: ='Option1 (base case)'!S6 -> 11 | T6: ='Option1 (base case)'!T6 -> 12 | U6: ='Option1 (base case)'!U6 -> 13 | V6: ='Option1 (base case)'!V6 -> 14 | W6: ='Option1 (base case)'!W6 -> 15 | X6: ='Option1 (base case)'!X6 -> 16 | Y6: ='Option1 (base case)'!Y6 -> 17 | Z6: ='Option1 (base case)'!Z6 -> 18 | AA6: ='Option1 (base case)'!AA6 -> 19 | AB6: ='Option1 (base case)'!AB6 -> 20 | AC6: ='Option1 (base case)'!AC6 -> 21 | AD6: ='Option1 (base case)'!AD6 -> 22 | AE6: ='Option1 (base case)'!AE6 -> 23 | AF6: ='Option1 (base case)'!AF6 -> 24 | AG6: ='Option1 (base case)'!AG6 -> 25
A7: ='Option1 (base case)'!A7 -> Value of CO2 reductions | G7: $/MWh | I7: ='Option1 (base case)'!I7 -> 24.7304868 | J7: ='Option1 (base case)'!J7 -> 22.34074009 | K7: ='Option1 (base case)'!K7 -> 20.19632912 | L7: ='Option1 (base case)'!L7 -> 18.06294208 | M7: ='Option1 (base case)'!M7 -> 15.91339762 | N7: ='Option1 (base case)'!N7 -> 13.71506943 | O7: ='Option1 (base case)'!O7 -> 13.71506943 | P7: ='Option1 (base case)'!P7 -> 13.71506943 | Q7: ='Option1 (base case)'!Q7 -> 13.71506943 | R7: ='Option1 (base case)'!R7 -> 13.71506943 | S7: ='Option1 (base case)'!S7 -> 13.71506943 | T7: ='Option1 (base case)'!T7 -> 13.71506943 | U7: ='Option1 (base case)'!U7 -> 13.71506943 | V7: ='Option1 (base case)'!V7 -> 13.71506943 | W7: ='Option1 (base case)'!W7 -> 13.71506943 | X7: ='Option1 (base case)'!X7 -> 13.71506943 | Y7: ='Option1 (base case)'!Y7 -> 13.71506943 | Z7: ='Option1 (base case)'!Z7 -> 13.71506943 | AA7: ='Option1 (base case)'!AA7 -> 13.71506943 | AB7: ='Option1 (base case)'!AB7 -> 13.71506943 | AC7: ='Option1 (base case)'!AC7 -> 13.71506943 | AD7: ='Option1 (base case)'!AD7 -> 13.71506943 | AE7: ='Option1 (base case)'!AE7 -> 13.71506943 | AF7: ='Option1 (base case)'!AF7 -> 13.71506943 | AG7: ='Option1 (base case)'!AG7 -> 13.71506943
G9: Units | I9: ='Option1 (base case)'!I9 -> 2026-27 | J9: ='Option1 (base case)'!J9 -> 2027-28 | K9: ='Option1 (base case)'!K9 -> 2028-29 | L9: ='Option1 (base case)'!L9 -> 2029-30 | M9: ='Option1 (base case)'!M9 -> 2030-31 | N9: ='Option1 (base case)'!N9 -> 2031-32 | O9: ='Option1 (base case)'!O9 -> 2032-33 | P9: ='Option1 (base case)'!P9 -> 2033-34 | Q9: ='Option1 (base case)'!Q9 -> 2034-35 | R9: ='Option1 (base case)'!R9 -> 2035-36 | S9: ='Option1 (base case)'!S9 -> 2036-37 | T9: ='Option1 (base case)'!T9 -> 2037-38 | U9: ='Option1 (base case)'!U9 -> 2038-39 | V9: ='Option1 (base case)'!V9 -> 2039-40 | W9: ='Option1 (base case)'!W9 -> 2040-41 | X9: ='Option1 (base case)'!X9 -> 2041-42 | Y9: ='Option1 (base case)'!Y9 -> 2042-43 | Z9: ='Option1 (base case)'!Z9 -> 2043-44 | AA9: ='Option1 (base case)'!AA9 -> 2044-45 | AB9: ='Option1 (base case)'!AB9 -> 2045-46 | AC9: ='Option1 (base case)'!AC9 -> 2046-47 | AD9: ='Option1 (base case)'!AD9 -> 2047-48 | AE9: ='Option1 (base case)'!AE9 -> 2048-49 | AF9: ='Option1 (base case)'!AF9 -> 2049-50 | AG9: ='Option1 (base case)'!AG9 -> 2050-51
A11: INVESTMENT & OPERATING COST
C13: Capex | E13: Asset life (yrs)
C14: Cable replacement (top 5) | E14: 60 | G14: =input_dollars -> 2023-12-31 | I14: =Workings_costs!E54 -> 726732.496 | J14: =Workings_costs!F54 -> 726732.496 | K14: =Workings_costs!G54 -> 726732.496 | L14: =Workings_costs!H54 -> 726732.496 | M14: =Workings_costs!I54 -> 726732.496 | N14: 0 | O14: 0 | P14: 0 | Q14: 0 | R14: 0 | S14: 0 | T14: 0 | U14: 0 | V14: 0 | W14: 0 | X14: 0 | Y14: 0 | Z14: 0 | AA14: 0 | AB14: 0 | AC14: 0 | AD14: 0 | AE14: 0 | AF14: 0 | AG14: 0
C15: Condition assessment of next 10 delta risk cable sections | E15: 1 | G15: =input_dollars -> 2023-12-31 | I15: =Workings_costs!E55 -> 333333.3333 | J15: =Workings_costs!F55 -> 333333.3333 | K15: =Workings_costs!G55 -> 333333.3333 | L15: =Workings_costs!H55 -> 333333.3333 | M15: =Workings_costs!I55 -> 333333.3333 | N15: 0 | O15: 0 | P15: 0 | Q15: 0 | R15: 0 | S15: 0 | T15: 0 | U15: 0 | V15: 0 | W15: 0 | X15: 0 | Y15: 0 | Z15: 0 | AA15: 0 | AB15: 0 | AC15: 0 | AD15: 0 | AE15: 0 | AF15: 0 | AG15: 0
C16: Replacement of poor condition cable sections | E16: 60 | G16: =input_dollars -> 2023-12-31 | I16: =Workings_costs!E56 -> 0 | J16: =Workings_costs!F56 -> 0 | K16: =Workings_costs!G56 -> 0 | L16: =Workings_costs!H56 -> 0 | M16: =Workings_costs!I56 -> 772268.1667 | N16: 0 | O16: 0 | P16: 0 | Q16: 0 | R16: 0 | S16: 0 | T16: 0 | U16: 0 | V16: 0 | W16: 0 | X16: 0 | Y16: 0 | Z16: 0 | AA16: 0 | AB16: 0 | AC16: 0 | AD16: 0 | AE16: 0 | AF16: 0 | AG16: 0
C17: Capital expenditure | G17: =input_dollars -> 2023-12-31 | I17: =SUM(I14:I16) -> 1060065.829 | J17: 1060065.829 | K17: =SUM(K14:K16) -> 1060065.829 | L17: 1060065.829 | M17: 1832333.996 | N17: 0 | O17: 0 | P17: 0 | Q17: 0 | R17: =SUM(R14:R16) -> 0 | S17: 0 | T17: 0 | U17: 0 | V17: 0 | W17: 0 | X17: 0 | Y17: 0 | Z17: 0 | AA17: 0 | AB17: 0 | AC17: 0 | AD17: 0 | AE17: 0 | AF17: 0 | AG17: 0
C19: Operating expenditure | G19: =input_dollars -> 2023-12-31 | I19: 0 | J19: 0 | K19: 0 | L19: 0 | M19: 0 | N19: 0 | O19: 0 | P19: 0 | Q19: 0 | R19: 0 | S19: 0 | T19: 0 | U19: 0 | V19: 0 | W19: 0 | X19: 0 | Y19: 0 | Z19: 0 | AA19: 0 | AB19: 0 | AC19: 0 | AD19: 0 | AE19: 0 | AF19: 0 | AG19: 0
A22: RISK ASSUMPTIONS
C24: PoF (major) | I24: 0 | J24: 0 | K24: 0 | L24: 0 | M24: 0 | N24: 0 | O24: 0 | P24: 0 | Q24: 0 | R24: 0 | S24: 0 | T24: 0 | U24: 0 | V24: 0 | W24: 0 | X24: 0 | Y24: 0 | Z24: 0 | AA24: 0 | AB24: 0 | AC24: 0 | AD24: 0 | AE24: 0 | AF24: 0 | AG24: 0
C25: PoF (reparable) | I25: 0 | J25: 0 | K25: 0 | L25: 0 | M25: 0 | N25: 0 | O25: 0 | P25: 0 | Q25: 0 | R25: 0 | S25: 0 | T25: 0 | U25: 0 | V25: 0 | W25: 0 | X25: 0 | Y25: 0 | Z25: 0 | AA25: 0 | AB25: 0 | AC25: 0 | AD25: 0 | AE25: 0 | AF25: 0 | AG25: 0
C27: Energy at risk (weighted) | G27: MWh | I27: =INDEX(Workings_risks!J$60:J$232, MATCH($A$3&$C27, Workings_risks!$E$60:$E$232,0)) -> 88.15459738 | J27: =INDEX(Workings_risks!K$60:K$232, MATCH($A$3&$C27, Workings_risks!$E$60:$E$232,0)) -> 96.50230235 | K27: =INDEX(Workings_risks!L$60:L$232, MATCH($A$3&$C27, Workings_risks!$E$60:$E$232,0)) -> 106.7212595 | L27: =INDEX(Workings_risks!M$60:M$232, MATCH($A$3&$C27, Workings_risks!$E$60:$E$232,0)) -> 118.4452237 | M27: =INDEX(Workings_risks!N$60:N$232, MATCH($A$3&$C27, Workings_risks!$E$60:$E$232,0)) -> 131.8795165 | N27: =INDEX(Workings_risks!O$60:O$232, MATCH($A$3&$C27, Workings_risks!$E$60:$E$232,0)) -> 148.0966886 | O27: =INDEX(Workings_risks!P$60:P$232, MATCH($A$3&$C27, Workings_risks!$E$60:$E$232,0)) -> 166.069427 | P27: =INDEX(Workings_risks!Q$60:Q$232, MATCH($A$3&$C27, Workings_risks!$E$60:$E$232,0)) -> 186.6396718 | Q27: =INDEX(Workings_risks!R$60:R$232, MATCH($A$3&$C27, Workings_risks!$E$60:$E$232,0)) -> 209.2692038 | R27: =INDEX(Workings_risks!S$60:S$232, MATCH($A$3&$C27, Workings_risks!$E$60:$E$232,0)) -> 233.4030026 | S27: =INDEX(Workings_risks!T$60:T$232, MATCH($A$3&$C27, Workings_risks!$E$60:$E$232,0)) -> 258.8704954 | T27: =INDEX(Workings_risks!U$60:U$232, MATCH($A$3&$C27, Workings_risks!$E$60:$E$232,0)) -> 287.0825889 | U27: =INDEX(Workings_risks!V$60:V$232, MATCH($A$3&$C27, Workings_risks!$E$60:$E$232,0)) -> 317.766047 | V27: =INDEX(Workings_risks!W$60:W$232, MATCH($A$3&$C27, Workings_risks!$E$60:$E$232,0)) -> 349.3456391 | W27: =INDEX(Workings_risks!X$60:X$232, MATCH($A$3&$C27, Workings_risks!$E$60:$E$232,0)) -> 379.3598552 | X27: =INDEX(Workings_risks!Y$60:Y$232, MATCH($A$3&$C27, Workings_risks!$E$60:$E$232,0)) -> 408.2742095 | Y27: =INDEX(Workings_risks!Z$60:Z$232, MATCH($A$3&$C27, Workings_risks!$E$60:$E$232,0)) -> 436.5849842 | Z27: =INDEX(Workings_risks!AA$60:AA$232, MATCH($A$3&$C27, Workings_risks!$E$60:$E$232,0)) -> 463.2339891 | AA27: =INDEX(Workings_risks!AB$60:AB$232, MATCH($A$3&$C27, Workings_risks!$E$60:$E$232,0)) -> 487.6325972 | AB27: =INDEX(Workings_risks!AC$60:AC$232, MATCH($A$3&$C27, Workings_risks!$E$60:$E$232,0)) -> 508.9143964 | AC27: =INDEX(Workings_risks!AD$60:AD$232, MATCH($A$3&$C27, Workings_risks!$E$60:$E$232,0)) -> 530.37907 | AD27: =INDEX(Workings_risks!AE$60:AE$232, MATCH($A$3&$C27, Workings_risks!$E$60:$E$232,0)) -> 552.2830723 | AE27: =INDEX(Workings_risks!AF$60:AF$232, MATCH($A$3&$C27, Workings_risks!$E$60:$E$232,0)) -> 574.2451913 | AF27: =INDEX(Workings_risks!AG$60:AG$232, MATCH($A$3&$C27, Workings_risks!$E$60:$E$232,0)) -> 596.6698176 | AG27: =INDEX(Workings_risks!AH$60:AH$232, MATCH($A$3&$C27, Workings_risks!$E$60:$E$232,0)) -> 619.2005428
C28: Energy at risk value | D28: $/MWh | E28: =Assumptions!H41*vcr_esc -> 36935.21398 | F28: =IF(AND(SUM(I27:AG27)<>0, E28=0), "!", "") ->  | G28: =input_dollars -> 2023-12-31 | I28: =I27*$E$28 -> 3256008.917 | J28: =J27*$E$28 -> 3564333.186 | K28: 3941772.554 | L28: 4374799.681 | M28: 4870998.161 | N28: 5469982.883 | O28: 6133809.823 | P28: 6893576.216 | Q28: 7729402.821 | R28: 8620789.843 | S28: 9561437.139 | T28: 10603456.85 | U28: 11736756.94 | V28: 12903155.93 | W28: 14011737.43 | X28: 15079695.29 | Y28: 16125359.81 | Z28: 17109646.51 | AA28: 18010814.32 | AB28: 18796862.13 | AC28: 19589664.44 | AD28: 20398693.45 | AE28: 21209869.02 | AF28: 22038127.39 | AG28: 22870304.54
C30: ='Option1 (base case)'!C30 -> Safety consequence | D30: (after DF) | G30: =input_dollars -> 2023-12-31 | I30: =INDEX(Workings_risks!J$60:J$232, MATCH($A$3&$C30, Workings_risks!$E$60:$E$232,0)) -> 937071.2295 | J30: =INDEX(Workings_risks!K$60:K$232, MATCH($A$3&$C30, Workings_risks!$E$60:$E$232,0)) -> 1025442.679 | K30: =INDEX(Workings_risks!L$60:L$232, MATCH($A$3&$C30, Workings_risks!$E$60:$E$232,0)) -> 1134117.023 | L30: =INDEX(Workings_risks!M$60:M$232, MATCH($A$3&$C30, Workings_risks!$E$60:$E$232,0)) -> 1258814.223 | M30: =INDEX(Workings_risks!N$60:N$232, MATCH($A$3&$C30, Workings_risks!$E$60:$E$232,0)) -> 1401723.94 | N30: =INDEX(Workings_risks!O$60:O$232, MATCH($A$3&$C30, Workings_risks!$E$60:$E$232,0)) -> 1574805.703 | O30: =INDEX(Workings_risks!P$60:P$232, MATCH($A$3&$C30, Workings_risks!$E$60:$E$232,0)) -> 1765950.097 | P30: =INDEX(Workings_risks!Q$60:Q$232, MATCH($A$3&$C30, Workings_risks!$E$60:$E$232,0)) -> 1984723.281 | Q30: =INDEX(Workings_risks!R$60:R$232, MATCH($A$3&$C30, Workings_risks!$E$60:$E$232,0)) -> 2225332.972 | R30: =INDEX(Workings_risks!S$60:S$232, MATCH($A$3&$C30, Workings_risks!$E$60:$E$232,0)) -> 2481890.776 | S30: =INDEX(Workings_risks!T$60:T$232, MATCH($A$3&$C30, Workings_risks!$E$60:$E$232,0)) -> 2752619.404 | T30: =INDEX(Workings_risks!U$60:U$232, MATCH($A$3&$C30, Workings_risks!$E$60:$E$232,0)) -> 3052524.846 | U30: =INDEX(Workings_risks!V$60:V$232, MATCH($A$3&$C30, Workings_risks!$E$60:$E$232,0)) -> 3378702.495 | V30: =INDEX(Workings_risks!W$60:W$232, MATCH($A$3&$C30, Workings_risks!$E$60:$E$232,0)) -> 3714407.69 | W30: =INDEX(Workings_risks!X$60:X$232, MATCH($A$3&$C30, Workings_risks!$E$60:$E$232,0)) -> 4033453.004 | X30: =INDEX(Workings_risks!Y$60:Y$232, MATCH($A$3&$C30, Workings_risks!$E$60:$E$232,0)) -> 4340808.577 | Y30: =INDEX(Workings_risks!Z$60:Z$232, MATCH($A$3&$C30, Workings_risks!$E$60:$E$232,0)) -> 4641748.214 | Z30: =INDEX(Workings_risks!AA$60:AA$232, MATCH($A$3&$C30, Workings_risks!$E$60:$E$232,0)) -> 4925023.465 | AA30: =INDEX(Workings_risks!AB$60:AB$232, MATCH($A$3&$C30, Workings_risks!$E$60:$E$232,0)) -> 5184377.309 | AB30: =INDEX(Workings_risks!AC$60:AC$232, MATCH($A$3&$C30, Workings_risks!$E$60:$E$232,0)) -> 5410599.904 | AC30: =INDEX(Workings_risks!AD$60:AD$232, MATCH($A$3&$C30, Workings_risks!$E$60:$E$232,0)) -> 5638766.428 | AD30: =INDEX(Workings_risks!AE$60:AE$232, MATCH($A$3&$C30, Workings_risks!$E$60:$E$232,0)) -> 5871602.956 | AE30: =INDEX(Workings_risks!AF$60:AF$232, MATCH($A$3&$C30, Workings_risks!$E$60:$E$232,0)) -> 6105057.256 | AF30: =INDEX(Workings_risks!AG$60:AG$232, MATCH($A$3&$C30, Workings_risks!$E$60:$E$232,0)) -> 6343427.946 | AG30: =INDEX(Workings_risks!AH$60:AH$232, MATCH($A$3&$C30, Workings_risks!$E$60:$E$232,0)) -> 6582926.451
C31: ='Option1 (base case)'!C31 -> Unplanned replacements | G31: =input_dollars -> 2023-12-31 | I31: =INDEX(Workings_risks!J$60:J$232, MATCH($A$3&$C31, Workings_risks!$E$60:$E$232,0)) -> 2159114.733 | J31: =INDEX(Workings_risks!K$60:K$232, MATCH($A$3&$C31, Workings_risks!$E$60:$E$232,0)) -> 2260285.71 | K31: =INDEX(Workings_risks!L$60:L$232, MATCH($A$3&$C31, Workings_risks!$E$60:$E$232,0)) -> 2484103.412 | L31: =INDEX(Workings_risks!M$60:M$232, MATCH($A$3&$C31, Workings_risks!$E$60:$E$232,0)) -> 2738463.915 | M31: =INDEX(Workings_risks!N$60:N$232, MATCH($A$3&$C31, Workings_risks!$E$60:$E$232,0)) -> 3026947.766 | N31: =INDEX(Workings_risks!O$60:O$232, MATCH($A$3&$C31, Workings_risks!$E$60:$E$232,0)) -> 3514265.578 | O31: =INDEX(Workings_risks!P$60:P$232, MATCH($A$3&$C31, Workings_risks!$E$60:$E$232,0)) -> 3935429.286 | P31: =INDEX(Workings_risks!Q$60:Q$232, MATCH($A$3&$C31, Workings_risks!$E$60:$E$232,0)) -> 4416819.802 | Q31: =INDEX(Workings_risks!R$60:R$232, MATCH($A$3&$C31, Workings_risks!$E$60:$E$232,0)) -> 4957242.888 | R31: =INDEX(Workings_risks!S$60:S$232, MATCH($A$3&$C31, Workings_risks!$E$60:$E$232,0)) -> 5541657.784 | S31: =INDEX(Workings_risks!T$60:T$232, MATCH($A$3&$C31, Workings_risks!$E$60:$E$232,0)) -> 6161628.618 | T31: =INDEX(Workings_risks!U$60:U$232, MATCH($A$3&$C31, Workings_risks!$E$60:$E$232,0)) -> 6848435.253 | U31: =INDEX(Workings_risks!V$60:V$232, MATCH($A$3&$C31, Workings_risks!$E$60:$E$232,0)) -> 7595248.641 | V31: =INDEX(Workings_risks!W$60:W$232, MATCH($A$3&$C31, Workings_risks!$E$60:$E$232,0)) -> 8363525.87 | W31: =INDEX(Workings_risks!X$60:X$232, MATCH($A$3&$C31, Workings_risks!$E$60:$E$232,0)) -> 9098296.539 | X31: =INDEX(Workings_risks!Y$60:Y$232, MATCH($A$3&$C31, Workings_risks!$E$60:$E$232,0)) -> 9806470.969 | Y31: =INDEX(Workings_risks!Z$60:Z$232, MATCH($A$3&$C31, Workings_risks!$E$60:$E$232,0)) -> 10499868.85 | Z31: =INDEX(Workings_risks!AA$60:AA$232, MATCH($A$3&$C31, Workings_risks!$E$60:$E$232,0)) -> 11152566.05 | AA31: =INDEX(Workings_risks!AB$60:AB$232, MATCH($A$3&$C31, Workings_risks!$E$60:$E$232,0)) -> 11750145.71 | AB31: =INDEX(Workings_risks!AC$60:AC$232, MATCH($A$3&$C31, Workings_risks!$E$60:$E$232,0)) -> 12271387.34 | AC31: =INDEX(Workings_risks!AD$60:AD$232, MATCH($A$3&$C31, Workings_risks!$E$60:$E$232,0)) -> 12797108 | AD31: =INDEX(Workings_risks!AE$60:AE$232, MATCH($A$3&$C31, Workings_risks!$E$60:$E$232,0)) -> 13333588.86 | AE31: =INDEX(Workings_risks!AF$60:AF$232, MATCH($A$3&$C31, Workings_risks!$E$60:$E$232,0)) -> 13871493.13 | AF31: =INDEX(Workings_risks!AG$60:AG$232, MATCH($A$3&$C31, Workings_risks!$E$60:$E$232,0)) -> 14420725.31 | AG31: =INDEX(Workings_risks!AH$60:AH$232, MATCH($A$3&$C31, Workings_risks!$E$60:$E$232,0)) -> 14972556.09
C32: ='Option1 (base case)'!C32 -> Environmental consequence | D32: (after DF) | G32: =input_dollars -> 2023-12-31 | I32: =INDEX(Workings_risks!J$60:J$232, MATCH($A$3&$C32, Workings_risks!$E$60:$E$232,0)) -> 128429.5992 | J32: =INDEX(Workings_risks!K$60:K$232, MATCH($A$3&$C32, Workings_risks!$E$60:$E$232,0)) -> 140499.4177 | K32: =INDEX(Workings_risks!L$60:L$232, MATCH($A$3&$C32, Workings_risks!$E$60:$E$232,0)) -> 155382.8028 | L32: =INDEX(Workings_risks!M$60:M$232, MATCH($A$3&$C32, Workings_risks!$E$60:$E$232,0)) -> 172459.5715 | M32: =INDEX(Workings_risks!N$60:N$232, MATCH($A$3&$C32, Workings_risks!$E$60:$E$232,0)) -> 192029.2249 | N32: =INDEX(Workings_risks!O$60:O$232, MATCH($A$3&$C32, Workings_risks!$E$60:$E$232,0)) -> 215786.8981 | O32: =INDEX(Workings_risks!P$60:P$232, MATCH($A$3&$C32, Workings_risks!$E$60:$E$232,0)) -> 241976.1427 | P32: =INDEX(Workings_risks!Q$60:Q$232, MATCH($A$3&$C32, Workings_risks!$E$60:$E$232,0)) -> 271950.6205 | Q32: =INDEX(Workings_risks!R$60:R$232, MATCH($A$3&$C32, Workings_risks!$E$60:$E$232,0)) -> 304921.4677 | R32: =INDEX(Workings_risks!S$60:S$232, MATCH($A$3&$C32, Workings_risks!$E$60:$E$232,0)) -> 340081.049 | S32: =INDEX(Workings_risks!T$60:T$232, MATCH($A$3&$C32, Workings_risks!$E$60:$E$232,0)) -> 377183.9931 | T32: =INDEX(Workings_risks!U$60:U$232, MATCH($A$3&$C32, Workings_risks!$E$60:$E$232,0)) -> 418285.5831 | U32: =INDEX(Workings_risks!V$60:V$232, MATCH($A$3&$C32, Workings_risks!$E$60:$E$232,0)) -> 462987.6745 | V32: =INDEX(Workings_risks!W$60:W$232, MATCH($A$3&$C32, Workings_risks!$E$60:$E$232,0)) -> 508995.3561 | W32: =INDEX(Workings_risks!X$60:X$232, MATCH($A$3&$C32, Workings_risks!$E$60:$E$232,0)) -> 552721.7332 | X32: =INDEX(Workings_risks!Y$60:Y$232, MATCH($A$3&$C32, Workings_risks!$E$60:$E$232,0)) -> 594846.1196 | Y32: =INDEX(Workings_risks!Z$60:Z$232, MATCH($A$3&$C32, Workings_risks!$E$60:$E$232,0)) -> 636091.1773 | Z32: =INDEX(Workings_risks!AA$60:AA$232, MATCH($A$3&$C32, Workings_risks!$E$60:$E$232,0)) -> 674915.2558 | AA32: =INDEX(Workings_risks!AB$60:AB$232, MATCH($A$3&$C32, Workings_risks!$E$60:$E$232,0)) -> 710460.8037 | AB32: =INDEX(Workings_risks!AC$60:AC$232, MATCH($A$3&$C32, Workings_risks!$E$60:$E$232,0)) -> 741465.5729 | AC32: =INDEX(Workings_risks!AD$60:AD$232, MATCH($A$3&$C32, Workings_risks!$E$60:$E$232,0)) -> 772736.7659 | AD32: =INDEX(Workings_risks!AE$60:AE$232, MATCH($A$3&$C32, Workings_risks!$E$60:$E$232,0)) -> 804648.0027 | AE32: =INDEX(Workings_risks!AF$60:AF$232, MATCH($A$3&$C32, Workings_risks!$E$60:$E$232,0)) -> 836643.908 | AF32: =INDEX(Workings_risks!AG$60:AG$232, MATCH($A$3&$C32, Workings_risks!$E$60:$E$232,0)) -> 869313.6252 | AG32: =INDEX(Workings_risks!AH$60:AH$232, MATCH($A$3&$C32, Workings_risks!$E$60:$E$232,0)) -> 902137.9144
C33: ='Option1 (base case)'!C33 -> Response cost | G33: =input_dollars -> 2023-12-31 | I33: =INDEX(Workings_risks!J$60:J$232, MATCH($A$3&$C33, Workings_risks!$E$60:$E$232,0)) -> 400238.0528 | J33: =INDEX(Workings_risks!K$60:K$232, MATCH($A$3&$C33, Workings_risks!$E$60:$E$232,0)) -> 440433.1518 | K33: =INDEX(Workings_risks!L$60:L$232, MATCH($A$3&$C33, Workings_risks!$E$60:$E$232,0)) -> 487495.8934 | L33: =INDEX(Workings_risks!M$60:M$232, MATCH($A$3&$C33, Workings_risks!$E$60:$E$232,0)) -> 541558.2277 | M33: =INDEX(Workings_risks!N$60:N$232, MATCH($A$3&$C33, Workings_risks!$E$60:$E$232,0)) -> 603591.3312 | N33: =INDEX(Workings_risks!O$60:O$232, MATCH($A$3&$C33, Workings_risks!$E$60:$E$232,0)) -> 675428.22 | O33: =INDEX(Workings_risks!P$60:P$232, MATCH($A$3&$C33, Workings_risks!$E$60:$E$232,0)) -> 757541.6646 | P33: =INDEX(Workings_risks!Q$60:Q$232, MATCH($A$3&$C33, Workings_risks!$E$60:$E$232,0)) -> 851540.1058 | Q33: =INDEX(Workings_risks!R$60:R$232, MATCH($A$3&$C33, Workings_risks!$E$60:$E$232,0)) -> 954650.5335 | R33: =INDEX(Workings_risks!S$60:S$232, MATCH($A$3&$C33, Workings_risks!$E$60:$E$232,0)) -> 1064394.379 | S33: =INDEX(Workings_risks!T$60:T$232, MATCH($A$3&$C33, Workings_risks!$E$60:$E$232,0)) -> 1180120.124 | T33: =INDEX(Workings_risks!U$60:U$232, MATCH($A$3&$C33, Workings_risks!$E$60:$E$232,0)) -> 1308317.353 | U33: =INDEX(Workings_risks!V$60:V$232, MATCH($A$3&$C33, Workings_risks!$E$60:$E$232,0)) -> 1447748.751 | V33: =INDEX(Workings_risks!W$60:W$232, MATCH($A$3&$C33, Workings_risks!$E$60:$E$232,0)) -> 1591261.462 | W33: =INDEX(Workings_risks!X$60:X$232, MATCH($A$3&$C33, Workings_risks!$E$60:$E$232,0)) -> 1727539.009 | X33: =INDEX(Workings_risks!Y$60:Y$232, MATCH($A$3&$C33, Workings_risks!$E$60:$E$232,0)) -> 1858815.626 | Y33: =INDEX(Workings_risks!Z$60:Z$232, MATCH($A$3&$C33, Workings_risks!$E$60:$E$232,0)) -> 1987351.74 | Z33: =INDEX(Workings_risks!AA$60:AA$232, MATCH($A$3&$C33, Workings_risks!$E$60:$E$232,0)) -> 2108343.113 | AA33: =INDEX(Workings_risks!AB$60:AB$232, MATCH($A$3&$C33, Workings_risks!$E$60:$E$232,0)) -> 2219117.272 | AB33: =INDEX(Workings_risks!AC$60:AC$232, MATCH($A$3&$C33, Workings_risks!$E$60:$E$232,0)) -> 2315740.547 | AC33: =INDEX(Workings_risks!AD$60:AD$232, MATCH($A$3&$C33, Workings_risks!$E$60:$E$232,0)) -> 2413194.105 | AD33: =INDEX(Workings_risks!AE$60:AE$232, MATCH($A$3&$C33, Workings_risks!$E$60:$E$232,0)) -> 2512642.296 | AE33: =INDEX(Workings_risks!AF$60:AF$232, MATCH($A$3&$C33, Workings_risks!$E$60:$E$232,0)) -> 2612354.347 | AF33: =INDEX(Workings_risks!AG$60:AG$232, MATCH($A$3&$C33, Workings_risks!$E$60:$E$232,0)) -> 2714166.267 | AG33: =INDEX(Workings_risks!AH$60:AH$232, MATCH($A$3&$C33, Workings_risks!$E$60:$E$232,0)) -> 2816459.894
G34: =input_dollars -> 2023-12-31 | I34: 0 | J34: 0 | K34: 0 | L34: 0 | M34: 0 | N34: 0 | O34: 0 | P34: 0 | Q34: 0 | R34: 0 | S34: 0 | T34: 0 | U34: 0 | V34: 0 | W34: 0 | X34: 0 | Y34: 0 | Z34: 0 | AA34: 0 | AB34: 0 | AC34: 0 | AD34: 0 | AE34: 0 | AF34: 0 | AG34: 0
C36: Total risk cost | I36: =SUM(I28:I34) -> 6880862.532 | J36: =SUM(J28:J34) -> 7430994.145 | K36: 8202871.685 | L36: 9086095.618 | M36: 10095290.42 | N36: 11450269.28 | O36: 12834707.01 | P36: 14418610.03 | Q36: 16171550.68 | R36: 18048813.83 | S36: 20032989.28 | T36: 22231019.89 | U36: 24621444.5 | V36: 27081346.31 | W36: 29423747.71 | X36: 31680636.58 | Y36: 33890419.79 | Z36: 35970494.39 | AA36: 37874915.42 | AB36: 39536055.49 | AC36: 41211469.74 | AD36: 42921175.56 | AE36: 44635417.66 | AF36: 46385760.53 | AG36: 48144384.89
A38: OTHER BENEFITS
C41: Reduction in CO2 emissions | G41: MWh | I41: 0 | J41: 0 | K41: 0 | L41: 0 | M41: 0 | N41: 0 | O41: 0 | P41: 0 | Q41: 0 | R41: 0 | S41: 0 | T41: 0 | U41: 0 | V41: 0 | W41: 0 | X41: 0 | Y41: 0 | Z41: 0 | AA41: 0 | AB41: 0 | AC41: 0 | AD41: 0 | AE41: 0 | AF41: 0 | AG41: 0
C42: Value of reduction in CO2 emissions | G42: $ | I42: =I41*I7 -> 0 | J42: 0 | K42: 0 | L42: 0 | M42: 0 | N42: 0 | O42: 0 | P42: 0 | Q42: 0 | R42: 0 | S42: 0 | T42: 0 | U42: 0 | V42: 0 | W42: 0 | X42: 0 | Y42: 0 | Z42: 0 | AA42: 0 | AB42: 0 | AC42: 0 | AD42: 0 | AE42: 0 | AF42: 0 | AG42: 0
C45: Reliability in worst-served areas | D45: $/MWh | E45: =Assumptions!G94 -> 151432.8174 | G45: MWh | I45: 0 | J45: 0 | K45: 0 | L45: 0 | M45: 0 | N45: 0 | O45: 0 | P45: 0 | Q45: 0 | R45: 0 | S45: 0 | T45: 0 | U45: 0 | V45: 0 | W45: 0 | X45: 0 | Y45: 0 | Z45: 0 | AA45: 0 | AB45: 0 | AC45: 0 | AD45: 0 | AE45: 0 | AF45: 0 | AG45: 0
C46: Network resilience | D46: $/MWh | E46: =Assumptions!G95 -> 24590 | G46: MWh | I46: 0 | J46: 0 | K46: 0 | L46: 0 | M46: 0 | N46: 0 | O46: 0 | P46: 0 | Q46: 0 | R46: 0 | S46: 0 | T46: 0 | U46: 0 | V46: 0 | W46: 0 | X46: 0 | Y46: 0 | Z46: 0 | AA46: 0 | AB46: 0 | AC46: 0 | AD46: 0 | AE46: 0 | AF46: 0 | AG46: 0
C47: Enabling solar exports | D47: $/MWh | E47: =Assumptions!G96 -> 88.35771951 | G47: MWh | I47: 0 | J47: 0 | K47: 0 | L47: 0 | M47: 0 | N47: 0 | O47: 0 | P47: 0 | Q47: 0 | R47: 0 | S47: 0 | T47: 0 | U47: 0 | V47: 0 | W47: 0 | X47: 0 | Y47: 0 | Z47: 0 | AA47: 0 | AB47: 0 | AC47: 0 | AD47: 0 | AE47: 0 | AF47: 0 | AG47: 0
C48: Aesthetics | D48: $/customer | E48: =Assumptions!G97 -> 0 | G48: customers | I48: 0 | J48: 0 | K48: 0 | L48: 0 | M48: 0 | N48: 0 | O48: 0 | P48: 0 | Q48: 0 | R48: 0 | S48: 0 | T48: 0 | U48: 0 | V48: 0 | W48: 0 | X48: 0 | Y48: 0 | Z48: 0 | AA48: 0 | AB48: 0 | AC48: 0 | AD48: 0 | AE48: 0 | AF48: 0 | AG48: 0
C49: Customer value of time (res) | D49: $/customer min | E49: =Assumptions!G98 -> 0.3518133654 | G49: mins | I49: 0 | J49: 0 | K49: 0 | L49: 0 | M49: 0 | N49: 0 | O49: 0 | P49: 0 | Q49: 0 | R49: 0 | S49: 0 | T49: 0 | U49: 0 | V49: 0 | W49: 0 | X49: 0 | Y49: 0 | Z49: 0 | AA49: 0 | AB49: 0 | AC49: 0 | AD49: 0 | AE49: 0 | AF49: 0 | AG49: 0
C50: Customer value of time (bus) | D50: $/customer min | E50: =Assumptions!G99 -> 0.3518133654 | G50: mins | I50: 0 | J50: 0 | K50: 0 | L50: 0 | M50: 0 | N50: 0 | O50: 0 | P50: 0 | Q50: 0 | R50: 0 | S50: 0 | T50: 0 | U50: 0 | V50: 0 | W50: 0 | X50: 0 | Y50: 0 | Z50: 0 | AA50: 0 | AB50: 0 | AC50: 0 | AD50: 0 | AE50: 0 | AF50: 0 | AG50: 0
C51: Communication | D51: $/customer | E51: =Assumptions!G100 -> 0 | G51: customers | I51: 0 | J51: 0 | K51: 0 | L51: 0 | M51: 0 | N51: 0 | O51: 0 | P51: 0 | Q51: 0 | R51: 0 | S51: 0 | T51: 0 | U51: 0 | V51: 0 | W51: 0 | X51: 0 | Y51: 0 | Z51: 0 | AA51: 0 | AB51: 0 | AC51: 0 | AD51: 0 | AE51: 0 | AF51: 0 | AG51: 0
C52: Information accessibility | D52: $/customer | E52: =Assumptions!G101 -> 0 | G52: customers | I52: 0 | J52: 0 | K52: 0 | L52: 0 | M52: 0 | N52: 0 | O52: 0 | P52: 0 | Q52: 0 | R52: 0 | S52: 0 | T52: 0 | U52: 0 | V52: 0 | W52: 0 | X52: 0 | Y52: 0 | Z52: 0 | AA52: 0 | AB52: 0 | AC52: 0 | AD52: 0 | AE52: 0 | AF52: 0 | AG52: 0
C54: Other benefits 1 | G54: =input_dollars -> 2023-12-31 | I54: 0 | J54: 0 | K54: 0 | L54: 0 | M54: 0 | N54: 0 | O54: 0 | P54: 0 | Q54: 0 | R54: 0 | S54: 0 | T54: 0 | U54: 0 | V54: 0 | W54: 0 | X54: 0 | Y54: 0 | Z54: 0 | AA54: 0 | AB54: 0 | AC54: 0 | AD54: 0 | AE54: 0 | AF54: 0 | AG54: 0
C55: Other benefits 2 | G55: =input_dollars -> 2023-12-31 | I55: 0 | J55: 0 | K55: 0 | L55: 0 | M55: 0 | N55: 0 | O55: 0 | P55: 0 | Q55: 0 | R55: 0 | S55: 0 | T55: 0 | U55: 0 | V55: 0 | W55: 0 | X55: 0 | Y55: 0 | Z55: 0 | AA55: 0 | AB55: 0 | AC55: 0 | AD55: 0 | AE55: 0 | AF55: 0 | AG55: 0
C57: Total other benefits | G57: =input_dollars -> 2023-12-31 | I57: =SUMPRODUCT((I$45:I$52)*($E$45:$E$52))+SUM(I54:I55)+I42 -> 0 | J57: =SUMPRODUCT((J$45:J$52)*($E$45:$E$52))+SUM(J54:J55)+J42 -> 0 | K57: =SUMPRODUCT((K$45:K$52)*($E$45:$E$52))+SUM(K54:K55)+K42 -> 0 | L57: =SUMPRODUCT((L$45:L$52)*($E$45:$E$52))+SUM(L54:L55)+L42 -> 0 | M57: =SUMPRODUCT((M$45:M$52)*($E$45:$E$52))+SUM(M54:M55)+M42 -> 0 | N57: =SUMPRODUCT((N$45:N$52)*($E$45:$E$52))+SUM(N54:N55)+N42 -> 0 | O57: =SUMPRODUCT((O$45:O$52)*($E$45:$E$52))+SUM(O54:O55)+O42 -> 0 | P57: =SUMPRODUCT((P$45:P$52)*($E$45:$E$52))+SUM(P54:P55)+P42 -> 0 | Q57: =SUMPRODUCT((Q$45:Q$52)*($E$45:$E$52))+SUM(Q54:Q55)+Q42 -> 0 | R57: =SUMPRODUCT((R$45:R$52)*($E$45:$E$52))+SUM(R54:R55)+R42 -> 0 | S57: =SUMPRODUCT((S$45:S$52)*($E$45:$E$52))+SUM(S54:S55)+S42 -> 0 | T57: =SUMPRODUCT((T$45:T$52)*($E$45:$E$52))+SUM(T54:T55)+T42 -> 0 | U57: =SUMPRODUCT((U$45:U$52)*($E$45:$E$52))+SUM(U54:U55)+U42 -> 0 | V57: =SUMPRODUCT((V$45:V$52)*($E$45:$E$52))+SUM(V54:V55)+V42 -> 0 | W57: =SUMPRODUCT((W$45:W$52)*($E$45:$E$52))+SUM(W54:W55)+W42 -> 0 | X57: =SUMPRODUCT((X$45:X$52)*($E$45:$E$52))+SUM(X54:X55)+X42 -> 0 | Y57: =SUMPRODUCT((Y$45:Y$52)*($E$45:$E$52))+SUM(Y54:Y55)+Y42 -> 0 | Z57: =SUMPRODUCT((Z$45:Z$52)*($E$45:$E$52))+SUM(Z54:Z55)+Z42 -> 0 | AA57: =SUMPRODUCT((AA$45:AA$52)*($E$45:$E$52))+SUM(AA54:AA55)+AA42 -> 0 | AB57: =SUMPRODUCT((AB$45:AB$52)*($E$45:$E$52))+SUM(AB54:AB55)+AB42 -> 0 | AC57: =SUMPRODUCT((AC$45:AC$52)*($E$45:$E$52))+SUM(AC54:AC55)+AC42 -> 0 | AD57: =SUMPRODUCT((AD$45:AD$52)*($E$45:$E$52))+SUM(AD54:AD55)+AD42 -> 0 | AE57: =SUMPRODUCT((AE$45:AE$52)*($E$45:$E$52))+SUM(AE54:AE55)+AE42 -> 0 | AF57: =SUMPRODUCT((AF$45:AF$52)*($E$45:$E$52))+SUM(AF54:AF55)+AF42 -> 0 | AG57: =SUMPRODUCT((AG$45:AG$52)*($E$45:$E$52))+SUM(AG54:AG55)+AG42 -> 0
A60: SUMMARY
C64: ='Option1 (base case)'!C64 -> Risks mitigated vs base case | G64: =input_dollars -> 2023-12-31 | I64: =(1-INDEX(Data!$C$9:$C$13, MATCH($A$3, options,0)))*('Option1 (base case)'!I36-I36) -> 0 | J64: =(1-INDEX(Data!$C$9:$C$13, MATCH($A$3, options,0)))*('Option1 (base case)'!J36-J36) -> 147771.4742 | K64: =(1-INDEX(Data!$C$9:$C$13, MATCH($A$3, options,0)))*('Option1 (base case)'!K36-K36) -> 186636.0815 | L64: =(1-INDEX(Data!$C$9:$C$13, MATCH($A$3, options,0)))*('Option1 (base case)'!L36-L36) -> 234871.8549 | M64: =(1-INDEX(Data!$C$9:$C$13, MATCH($A$3, options,0)))*('Option1 (base case)'!M36-M36) -> 294636.864 | N64: =(1-INDEX(Data!$C$9:$C$13, MATCH($A$3, options,0)))*('Option1 (base case)'!N36-N36) -> 168360.3932 | O64: =(1-INDEX(Data!$C$9:$C$13, MATCH($A$3, options,0)))*('Option1 (base case)'!O36-O36) -> 196740.4327 | P64: =(1-INDEX(Data!$C$9:$C$13, MATCH($A$3, options,0)))*('Option1 (base case)'!P36-P36) -> 230182.1547 | Q64: =(1-INDEX(Data!$C$9:$C$13, MATCH($A$3, options,0)))*('Option1 (base case)'!Q36-Q36) -> 250736.7764 | R64: =(1-INDEX(Data!$C$9:$C$13, MATCH($A$3, options,0)))*('Option1 (base case)'!R36-R36) -> 260590.5981 | S64: =(1-INDEX(Data!$C$9:$C$13, MATCH($A$3, options,0)))*('Option1 (base case)'!S36-S36) -> 266193.7945 | T64: =(1-INDEX(Data!$C$9:$C$13, MATCH($A$3, options,0)))*('Option1 (base case)'!T36-T36) -> 272373.4421 | U64: =(1-INDEX(Data!$C$9:$C$13, MATCH($A$3, options,0)))*('Option1 (base case)'!U36-U36) -> 279327.7124 | V64: =(1-INDEX(Data!$C$9:$C$13, MATCH($A$3, options,0)))*('Option1 (base case)'!V36-V36) -> 286999.7421 | W64: =(1-INDEX(Data!$C$9:$C$13, MATCH($A$3, options,0)))*('Option1 (base case)'!W36-W36) -> 287495.2645 | X64: =(1-INDEX(Data!$C$9:$C$13, MATCH($A$3, options,0)))*('Option1 (base case)'!X36-X36) -> 287504.5643 | Y64: =(1-INDEX(Data!$C$9:$C$13, MATCH($A$3, options,0)))*('Option1 (base case)'!Y36-Y36) -> 287504.5643 | Z64: =(1-INDEX(Data!$C$9:$C$13, MATCH($A$3, options,0)))*('Option1 (base case)'!Z36-Z36) -> 287504.5643 | AA64: =(1-INDEX(Data!$C$9:$C$13, MATCH($A$3, options,0)))*('Option1 (base case)'!AA36-AA36) -> 287504.5643 | AB64: =(1-INDEX(Data!$C$9:$C$13, MATCH($A$3, options,0)))*('Option1 (base case)'!AB36-AB36) -> 287504.5643 | AC64: =(1-INDEX(Data!$C$9:$C$13, MATCH($A$3, options,0)))*('Option1 (base case)'!AC36-AC36) -> 287504.5643 | AD64: =(1-INDEX(Data!$C$9:$C$13, MATCH($A$3, options,0)))*('Option1 (base case)'!AD36-AD36) -> 287504.5643 | AE64: =(1-INDEX(Data!$C$9:$C$13, MATCH($A$3, options,0)))*('Option1 (base case)'!AE36-AE36) -> 287504.5643 | AF64: =(1-INDEX(Data!$C$9:$C$13, MATCH($A$3, options,0)))*('Option1 (base case)'!AF36-AF36) -> 287504.5643 | AG64: =(1-INDEX(Data!$C$9:$C$13, MATCH($A$3, options,0)))*('Option1 (base case)'!AG36-AG36) -> 287504.5643
C66: Capital expenditure
C67: =C14 -> Cable replacement (top 5) | G67: =input_dollars -> 2023-12-31 | I67: =-I14 -> -726732.496 | J67: -726732.496 | K67: -726732.496 | L67: -726732.496 | M67: -726732.496 | N67: 0 | O67: 0 | P67: 0 | Q67: 0 | R67: 0 | S67: 0 | T67: 0 | U67: 0 | V67: 0 | W67: 0 | X67: 0 | Y67: 0 | Z67: 0 | AA67: 0 | AB67: 0 | AC67: 0 | AD67: 0 | AE67: 0 | AF67: 0 | AG67: 0
C68: =C15 -> Condition assessment of next 10 delta risk cable sections | G68: =input_dollars -> 2023-12-31 | I68: =-I15 -> -333333.3333 | J68: -333333.3333 | K68: -333333.3333 | L68: -333333.3333 | M68: -333333.3333 | N68: 0 | O68: 0 | P68: 0 | Q68: 0 | R68: 0 | S68: 0 | T68: 0 | U68: 0 | V68: 0 | W68: 0 | X68: 0 | Y68: 0 | Z68: 0 | AA68: 0 | AB68: 0 | AC68: 0 | AD68: 0 | AE68: 0 | AF68: 0 | AG68: 0
C69: =C16 -> Replacement of poor condition cable sections | G69: =input_dollars -> 2023-12-31 | I69: =-I16 -> 0 | J69: 0 | K69: 0 | L69: 0 | M69: -772268.1667 | N69: 0 | O69: 0 | P69: 0 | Q69: 0 | R69: 0 | S69: 0 | T69: 0 | U69: 0 | V69: 0 | W69: 0 | X69: 0 | Y69: 0 | Z69: 0 | AA69: 0 | AB69: 0 | AC69: 0 | AD69: 0 | AE69: 0 | AF69: 0 | AG69: 0
C71: Cumulative capex
C72: =C14 -> Cable replacement (top 5) | G72: =input_dollars -> 2023-12-31 | I72: =SUMPRODUCT(($I67:I67))-SUMPRODUCT(($I67:I67)*($I$6:I$6<=(I$6-$E14))) -> -726732.496 | J72: =SUMPRODUCT(($I67:J67))-SUMPRODUCT(($I67:J67)*($I$6:J$6<=(J$6-$E14))) -> -1453464.992 | K72: =SUMPRODUCT(($I67:K67))-SUMPRODUCT(($I67:K67)*($I$6:K$6<=(K$6-$E14))) -> -2180197.488 | L72: =SUMPRODUCT(($I67:L67))-SUMPRODUCT(($I67:L67)*($I$6:L$6<=(L$6-$E14))) -> -2906929.984 | M72: =SUMPRODUCT(($I67:M67))-SUMPRODUCT(($I67:M67)*($I$6:M$6<=(M$6-$E14))) -> -3633662.48 | N72: =SUMPRODUCT(($I67:N67))-SUMPRODUCT(($I67:N67)*($I$6:N$6<=(N$6-$E14))) -> -3633662.48 | O72: =SUMPRODUCT(($I67:O67))-SUMPRODUCT(($I67:O67)*($I$6:O$6<=(O$6-$E14))) -> -3633662.48 | P72: =SUMPRODUCT(($I67:P67))-SUMPRODUCT(($I67:P67)*($I$6:P$6<=(P$6-$E14))) -> -3633662.48 | Q72: =SUMPRODUCT(($I67:Q67))-SUMPRODUCT(($I67:Q67)*($I$6:Q$6<=(Q$6-$E14))) -> -3633662.48 | R72: =SUMPRODUCT(($I67:R67))-SUMPRODUCT(($I67:R67)*($I$6:R$6<=(R$6-$E14))) -> -3633662.48 | S72: =SUMPRODUCT(($I67:S67))-SUMPRODUCT(($I67:S67)*($I$6:S$6<=(S$6-$E14))) -> -3633662.48 | T72: =SUMPRODUCT(($I67:T67))-SUMPRODUCT(($I67:T67)*($I$6:T$6<=(T$6-$E14))) -> -3633662.48 | U72: =SUMPRODUCT(($I67:U67))-SUMPRODUCT(($I67:U67)*($I$6:U$6<=(U$6-$E14))) -> -3633662.48 | V72: =SUMPRODUCT(($I67:V67))-SUMPRODUCT(($I67:V67)*($I$6:V$6<=(V$6-$E14))) -> -3633662.48 | W72: =SUMPRODUCT(($I67:W67))-SUMPRODUCT(($I67:W67)*($I$6:W$6<=(W$6-$E14))) -> -3633662.48 | X72: =SUMPRODUCT(($I67:X67))-SUMPRODUCT(($I67:X67)*($I$6:X$6<=(X$6-$E14))) -> -3633662.48 | Y72: =SUMPRODUCT(($I67:Y67))-SUMPRODUCT(($I67:Y67)*($I$6:Y$6<=(Y$6-$E14))) -> -3633662.48 | Z72: =SUMPRODUCT(($I67:Z67))-SUMPRODUCT(($I67:Z67)*($I$6:Z$6<=(Z$6-$E14))) -> -3633662.48 | AA72: =SUMPRODUCT(($I67:AA67))-SUMPRODUCT(($I67:AA67)*($I$6:AA$6<=(AA$6-$E14))) -> -3633662.48 | AB72: =SUMPRODUCT(($I67:AB67))-SUMPRODUCT(($I67:AB67)*($I$6:AB$6<=(AB$6-$E14))) -> -3633662.48 | AC72: =SUMPRODUCT(($I67:AC67))-SUMPRODUCT(($I67:AC67)*($I$6:AC$6<=(AC$6-$E14))) -> -3633662.48 | AD72: =SUMPRODUCT(($I67:AD67))-SUMPRODUCT(($I67:AD67)*($I$6:AD$6<=(AD$6-$E14))) -> -3633662.48 | AE72: =SUMPRODUCT(($I67:AE67))-SUMPRODUCT(($I67:AE67)*($I$6:AE$6<=(AE$6-$E14))) -> -3633662.48 | AF72: =SUMPRODUCT(($I67:AF67))-SUMPRODUCT(($I67:AF67)*($I$6:AF$6<=(AF$6-$E14))) -> -3633662.48 | AG72: =SUMPRODUCT(($I67:AG67))-SUMPRODUCT(($I67:AG67)*($I$6:AG$6<=(AG$6-$E14))) -> -3633662.48
C73: =C15 -> Condition assessment of next 10 delta risk cable sections | G73: =input_dollars -> 2023-12-31 | I73: =SUMPRODUCT(($I68:I68))-SUMPRODUCT(($I68:I68)*($I$6:I$6<=(I$6-$E15))) -> -333333.3333 | J73: =SUMPRODUCT(($I68:J68))-SUMPRODUCT(($I68:J68)*($I$6:J$6<=(J$6-$E15))) -> -333333.3333 | K73: =SUMPRODUCT(($I68:K68))-SUMPRODUCT(($I68:K68)*($I$6:K$6<=(K$6-$E15))) -> -333333.3333 | L73: =SUMPRODUCT(($I68:L68))-SUMPRODUCT(($I68:L68)*($I$6:L$6<=(L$6-$E15))) -> -333333.3333 | M73: =SUMPRODUCT(($I68:M68))-SUMPRODUCT(($I68:M68)*($I$6:M$6<=(M$6-$E15))) -> -333333.3333 | N73: =SUMPRODUCT(($I68:N68))-SUMPRODUCT(($I68:N68)*($I$6:N$6<=(N$6-$E15))) -> 0 | O73: =SUMPRODUCT(($I68:O68))-SUMPRODUCT(($I68:O68)*($I$6:O$6<=(O$6-$E15))) -> 0 | P73: =SUMPRODUCT(($I68:P68))-SUMPRODUCT(($I68:P68)*($I$6:P$6<=(P$6-$E15))) -> 0 | Q73: =SUMPRODUCT(($I68:Q68))-SUMPRODUCT(($I68:Q68)*($I$6:Q$6<=(Q$6-$E15))) -> 0 | R73: =SUMPRODUCT(($I68:R68))-SUMPRODUCT(($I68:R68)*($I$6:R$6<=(R$6-$E15))) -> 0 | S73: =SUMPRODUCT(($I68:S68))-SUMPRODUCT(($I68:S68)*($I$6:S$6<=(S$6-$E15))) -> 0 | T73: =SUMPRODUCT(($I68:T68))-SUMPRODUCT(($I68:T68)*($I$6:T$6<=(T$6-$E15))) -> 0 | U73: =SUMPRODUCT(($I68:U68))-SUMPRODUCT(($I68:U68)*($I$6:U$6<=(U$6-$E15))) -> 0 | V73: =SUMPRODUCT(($I68:V68))-SUMPRODUCT(($I68:V68)*($I$6:V$6<=(V$6-$E15))) -> 0 | W73: =SUMPRODUCT(($I68:W68))-SUMPRODUCT(($I68:W68)*($I$6:W$6<=(W$6-$E15))) -> 0 | X73: =SUMPRODUCT(($I68:X68))-SUMPRODUCT(($I68:X68)*($I$6:X$6<=(X$6-$E15))) -> 0 | Y73: =SUMPRODUCT(($I68:Y68))-SUMPRODUCT(($I68:Y68)*($I$6:Y$6<=(Y$6-$E15))) -> 0 | Z73: =SUMPRODUCT(($I68:Z68))-SUMPRODUCT(($I68:Z68)*($I$6:Z$6<=(Z$6-$E15))) -> 0 | AA73: =SUMPRODUCT(($I68:AA68))-SUMPRODUCT(($I68:AA68)*($I$6:AA$6<=(AA$6-$E15))) -> 0 | AB73: =SUMPRODUCT(($I68:AB68))-SUMPRODUCT(($I68:AB68)*($I$6:AB$6<=(AB$6-$E15))) -> 0 | AC73: =SUMPRODUCT(($I68:AC68))-SUMPRODUCT(($I68:AC68)*($I$6:AC$6<=(AC$6-$E15))) -> 0 | AD73: =SUMPRODUCT(($I68:AD68))-SUMPRODUCT(($I68:AD68)*($I$6:AD$6<=(AD$6-$E15))) -> 0 | AE73: =SUMPRODUCT(($I68:AE68))-SUMPRODUCT(($I68:AE68)*($I$6:AE$6<=(AE$6-$E15))) -> 0 | AF73: =SUMPRODUCT(($I68:AF68))-SUMPRODUCT(($I68:AF68)*($I$6:AF$6<=(AF$6-$E15))) -> 0 | AG73: =SUMPRODUCT(($I68:AG68))-SUMPRODUCT(($I68:AG68)*($I$6:AG$6<=(AG$6-$E15))) -> 0
